Workbook

Sheet Cover
B5: التقرير الاحصائي السنوي عن نشاط قطاع التأمين بدولة الإمارات العربية المتحدة
B6: ANNUAL STATISTICAL REPORT FOR THE
B7: .INSURANCE SECTOR OF THE U.A.E
B8: 2024
B9: جدول رقم | I9: Table
B10: 1 | C10: تطور نشاط قطاع التأمين | H10: Insurance Sector Developments | I10: 1
B11: 1A | C11: اجمالي الأقساط المكتتبة لتأمين الممتلكات والمسؤوليات والتأمين على الأشخاص وتكوين الأموال وفقاً لشركات التأمين الوطنية وشركات التأمين الأجنبية. | H11: Gross Written Premium - Non-Life / Life - National vs Foreign | I11: 1A
B12: 1B | C12: اجمالي الأقساط المكتتبة لتأمين الممتلكات والمسؤوليات والتأمين على الأشخاص وتكوين الأموال وفقا لشركات التأمين التقليدي والتأمين التكافلي الوطنية. | H12: Gross Written Premium - Non-Life / Life - National Traditional vs Takaful | I12: 1B
B13: 1C | C13: اجمالي الأقساط المكتتبة لتأمين الممتلكات والمسؤوليات والتأمين على الأشخاص وتكوين الأموال للشركات الوطنية والشركات الأجنبية خلال عشر سنوات. | H13: Gross Written Premium - Non-Life / Life - National vs Foreign | I13: 1C
B14: 2A | C14: اجمالي الأقساط المكتتبة وفقا لشركات التأمين الوطنية وشركات التأمين الاجنبية ووفقا لكل فرع من فروع التأمين. | H14: GWP by LOB - National vs Foreign | I14: 2A
B15: 2B | C15: اجمالي الأقساط المكتتبة وفقا لشركات التأمين التقليدي الوطنية وشركات التأمين التكافلي ووفقا لكل فرع من فروع التأمين. | H15: GWP by LOB - National Traditional vs Takaful | I15: 2B
B16: 2C | C16: اجمالي الأقساط المكتتبة لشركات التامين على الأشخاص وتكوين الأموال وشركات تامين الممتلكات والمسؤوليات والشركات التي تمارس النوعين معا. | H16: GWP by LOB - Life, Non-Life & Composite | I16: 2C
B17: 3A | C17: صافي الأقساط المكتتبة وفقا لشركات التأمين الوطنية والأجنبية. | H17: NWP by LOB - National vs Foreign | I17: 3A
B18: 3B | C18: صافي الأقساط المكتتبة وفقا لشركات التأمين التقليدي الوطنية وشركات التأمين التكافلي الوطنية. | H18: NWP by LOB - National Traditional vs Takaful | I18: 3B
B19: 4A | C19: نسبة الأقساط المحتفظ بها وفقا لشركات التأمين الوطنية وشركات التأمين الأجنبية. | H19: Premium Retention by LOB - National vs Foreign | I19: 4A
B20: 4B | C20: نسبة الأقساط المحتفظ بها وفقا لشركات التأمين التقليدي الوطنية وشركات التأمين التكافلي الوطنية. | H20: Premium Retention by LOB - National Traditional vs Takaful | I20: 4B
B21: 4C | C21: توزيع أقساط إعادة التأمين حسب التوزيع الجغرافي والتصنيف لكافة شركات التأمين العاملة في القطاع | H21: Ceded premiums per geographic location and rating - All Companies | I21: 4C
B22: 4D | C22: توزيع أقساط إعادة التأمين حسب التوزيع الجغرافي - شركات التأمين التقليدي والتكافلي الوطنية | H22: Ceded premiums per geographic location and rating - Traditional & Takaful National Companies | I22: 4D
B23: 4E | C23: توزيع أقساط إعادة التأمين حسب التوزيع الجغرافي والتصنيف لشركات التامين | H23: Ceded premiums per geographic location and rating - Life, Non-Life & Composite | I23: 4E
B24: 5A | C24: اجمالي الأقساط المكتسبة وفقا لشركات التأمين الوطنية وشركات التأمين الأجنبية. | H24: GEP by LOB - National vs Foreign | I24: 5A
B25: 5B | C25: اجمالي الأقساط المكتسبة وفقا لشركات التأمين التقليدي الوطنية وشركات التأمين التكافلي. | H25: GEP by LOB - National Traditional vs Takaful | I25: 5B
B26: 6A | C26: صافي الأقساط المكتسبة وفقا لشركات التأمين الوطنية وشركات التأمين الأجنبية. | H26: NEP by LOB - National vs Foreign | I26: 6A
B27: 6B | C27: صافي الأقساط المكتسبة وفقا لشركات التأمين التقليدي الوطنية وشركات التأمين التكافلي الوطنية. | H27: NEP by LOB - National Traditional vs Takaful | I27: 6B
B28: 7 | C28: اجمالي الأقساط المكتتبة وأعداد وثائق التأمين ومعدل القسط لكل وثيقة من كل فرع من فروع التامين. | H28: No of Policies & GWP per Policy by LOB | I28: 7
B29: 8 | C29: اجمالي الأقساط المكتتبة والعمولات المدفوعة حسب قنوات التوزيع لشركات التأمين الوطنية وشركات التأمين الأجنبية. | H29: GWP & Commission Paid by Distribution Channel - National vs Foreign | I29: 8
B30: 9A | C30: اجمالي المخصصات الفنية وفقا لشركات التأمين الوطنية وشركات التأمين الأجنبية. | H30: Gross Tech Prov by LOB - National vs Foreign | I30: 9A
B31: 9B | C31: اجمالي المخصصات الفنية وفقا لشركات التأمين التقليدي الوطنية وشركات التأمين التكافلي الوطنية. | H31: Gross Tech Prov by LOB - National Traditional vs Takaful | I31: 9B
B32: 9C | C32: اجمالي المخصصات الفنية لشركات التامين على الأشخاص وتكوين الأموال وشركات تامين الممتلكات والمسؤوليات والشركات التي تمارس النوعين معا. | H32: Gross Tech Prov by LOB - Life, Non-Life & Composite | I32: 9C
B33: 10A | C33: صافي المخصصات الفنية حسب فرع التأمين وفقا لشركات التأمين الوطنية والأجنبية. | H33: Net Tech Prov by LOB - National vs Foreign | I33: 10A
B34: 10B | C34: صافي المخصصات الفنية وفقا لشركات التأمين التقليدي الوطنية وشركات التأمين التكافلي. | H34: Net Tech Prov by LOB - National Traditional vs Takaful | I34: 10B
B35: 11A | C35: إجمالي انواع المخصصات الفنية قبل استبعاد إعادة التامين ووفقا لكل نوع من المخصصات الفنية. | H35: Gross / Net Tech Prov by Type by LOB - National vs Foreign | I35: 11A
B36: 11B | C36: صافي انواع المخصصات الفنية بعد استبعاد إعادة التامين ووفقا لكل نوع من المخصصات الفنية. | H36: Gross / Net Tech Prov by Type by LOB - National Traditional vs Takaful | I36: 11B
B37: 12A | C37: اجمالي المطالبات المدفوعة والمتكبدة وفقا لشركات التأمين الوطنية وشركات التأمين الأجنبية. | H37: Gross Claims Paid & Incurred by LOB - National vs Foreign | I37: 12A
B38: 12B | C38: اجمالي المطالبات المدفوعة والمتكبدة وفقا لشركات التأمين التقليدي الوطنية وشركات التأمين التكافلي الوطنية. | H38: Gross Claims Paid & Incurred by LOB - National Traditional vs Takaful | I38: 12B
B39: 13A | C39: صافي المطالبات المدفوعة والمتكبدة وفقا لشركات التأمين الوطنية وشركات التأمين الأجنبية. | H39: Net Claims Paid & Incurred by LOB - National vs Foreign | I39: 13A
B40: 13B | C40: صافي المطالبات المدفوعة والمتكبدة وفقا لشركات التأمين التقليدي الوطنية وشركات التأمين التكافلي الوطنية. | H40: Net Claims Paid & Incurred by LOB - National Traditional vs Takaful | I40: 13B
B41: 14A | C41: نسب الخسارة "الإجمالية" قبل استبعاد إعادة التأمين وفقا لشركات التأمين الوطنية والاجنبية. | H41: Gross Loss Ratios by LOB - National vs Foreign | I41: 14A
B42: 14B | C42: نسب الخسارة "الإجمالية" قبل استبعاد إعادة التأمين وفقا لشركات التأمين التقليدي الوطنية وشركات التأمين التكافلي الوطنية. | H42: Gross Loss Ratios by LOB - National Traditional vs Takaful | I42: 14B
B43: 15A | C43: نسب الخسارة "الصافية" بعد استبعاد إعادة التامين وفقا لشركات التأمين الوطنية وشركات التأمين الأجنبية. | H43: Net Loss Ratios by LOB - National vs Foreign | I43: 15A
B44: 15B | C44: نسب الخسارة "الصافية" بعد استبعاد إعادة التامين وفقا لشركات التأمين التقليدي الوطنية وشركات التأمين التكافلي الوطنية ووفقا لكل فرع من فروع التأمين. | H44: Net Loss Ratios by LOB - National Traditional vs Takaful | I44: 15B
B45: 16A | C45: نسبة العمولات ونسبة المصاريف والنسبة المجمعة "الإجمالية" قبل استبعاد إعادة التأمين وفقا لشركات التأمين الوطنية والاجنبية ووفقا لكل فرع من فروع التأمين. | H45: Gross Combined Ratios by LOB - National vs Foreign | I45: 16A
B46: 16B | C46: نسبة العمولات ونسبة المصاريف والنسبة المجمعة "الإجمالية" قبل استبعاد إعادة التأمين لشركات التأمين التقليدي الوطنية وشركات التأمين التكافلي الوطنية ووفقا لكل فرع من فروع التأمين. | H46: Gross Combined Ratios by LOB - National Traditional vs Takaful | I46: 16B
B47: 17A | C47: نسبة العمولات ونسبة المصاريف والنسبة المجمعة "الصافية" بعد استبعاد إعادة التأمين وفقا لشركات التأمين الوطنية وشركات التأمين الاجنبية ووفقا لكل فرع من فروع التأمين. | H47: Net Combined Ratios by LOB - National vs Foreign | I47: 17A
B48: 17B | C48: نسبة العمولات ونسبة المصاريف والنسبة المجمعة "الصافية" لشركات التأمين التقليدي الوطنية وشركات التأمين التكافلي ووفقا لكل فرع من فروع التأمين. | H48: Net Combined Ratios by LOB - National Traditional vs Takaful | I48: 17B
B49: 18 | C49: تحليل ربحية فرع تأمين المركبات “إجمالي" قبل استبعاد إعادة التأمين وبعد استبعاد إعادة التامين "صافي". | H49: Motor Profitability by Policy Type - Gross / Net | I49: 18
B50: 19 | C50: تحليل ربحية فرع التأمين الصحي “إجمالي" قبل استبعاد إعادة التأمين و"صافي" بعد استبعاد إعادة التامين. | H50: Medical Profitability by Policy Type - Gross / Net | I50: 19
B51: 20A | C51: اجمالي الأموال المستثمرة للشركات وفقا للفئات الاستثمارية وفقا لشركات التأمين الوطنية وشركات التأمين الأجنبية. | H51: Invested Assets by Class - National vs Foreign | I51: 20A
B52: 20B | C52: اجمالي الأموال المستثمرة للشركات وفقا للفئات الاستثمارية لشركات التأمين التقليدي الوطنية وشركات التأمين التكافلي. | H52: Invested Assets by Class - National Traditional vs Takaful | I52: 20B
B53: 21A | C53: قائمة المركز المالي للشركات وفقا لشركات التأمين الوطنية وشركات الاجنبية العاملة في الدولة. | H53: Balance Sheet Key Figures - National vs Foreign | I53: 21A
B54: 21B | C54: قائمة المركز المالي لشركات التأمين التقليدي الوطنية وشركات التأمين التكافلي الوطنية. | H54: Balance Sheet Key Figures - National Traditional vs Takaful | I54: 21B
B55: 22A | C55: قائمة الدخل للشركات وفقا لشركات التأمين الوطنية والأجنبية. | H55: Income Statement Key Figures - National vs Foreign | I55: 22A
B56: 22B | C56: قائمة الدخل لشركات التأمين التقليدي الوطنية وشركات التأمين التكافلي الوطنية. | H56: Income Statement Key Figures - National Traditional vs Takaful | I56: 22B
B57: 23A | C57: تحليل الملاءة المالية لكافة شركات التأمين العاملة في القطاع. | H57: Solvency Analysis - All Companies | I57: 23A
B58: 23B | C58: تحليل الملاءة المالية لشركات التأمين الوطنية. | H58: Solvency Analysis - National Companies | I58: 23B
B59: 24A | C59: اجمالي الأقساط المكتتبة حسب الامارة ووفقا لكل فرع من فروع التأمين. | H59: GWP by LOB by Emirate | I59: 24A
B60: 24B | C60: صافي الأقساط المكتتبة حسب الامارة ووفقا لكل فرع من فروع التأمين. | H60: NWP by LOB by Emirate | I60: 24B
B61: 25 | C61: عدد وثائق التأمين حسب الامارة ووفقا لكل فرع من فروع التأمين. | H61: Number of Policies by Emirate | I61: 25
B62: 26A | C62: اجمالي الأقساط غير المكتسبة حسب الامارة ووفقا لكل فرع من فروع التأمين. | H62: Gross UPR by LOB by Emirate | I62: 26A
B63: 26B | C63: صافي الأقساط غير المكتسبة حسب الامارة ووفقا لكل فرع من فروع التأمين. | H63: Net UPR by LOB by Emirate | I63: 26B
B64: 27A | C64: اجمالي المطالبات المدفوعة حسب الامارة ووفقا لكل فرع من فروع التأمين. | H64: Gross Paid Claims by LOB by Emirate | I64: 27A
B65: 27B | C65: صافي المطالبات المدفوعة حسب الامارة ووفقا لكل فرع من فروع التأمين. | H65: Net Paid Claims by LOB by Emirate | I65: 27B
B66: 28A | C66: بيانات التأمين لإمارة دبي بالقيمة الاجمالية. | H66: Gross Results for Dubai | I66: 28A
B67: 28B | C67: بيانات التأمين لإمارة دبي بالقيمة الصافية. | H67: Net Results for Dubai | I67: 28B
B68: 29A | C68: بيانات التأمين لإمارة أبو ظبي بالقيمة الاجمالية. | H68: Gross Results for Abu Dhabi | I68: 29A
B69: 29B | C69: بيانات التأمين لإمارة أبو ظبي بالقيمة الصافية. | H69: Net Results for Abu Dhabi | I69: 29B
B70: 30A | C70: بيانات التأمين لإمارة عجمان بالقيمة الاجمالية. | H70: Gross Results for Ajman | I70: 30A
B71: 30B | C71: بيانات التأمين لإمارة عجمان بالقيمة الصافية. | H71: Net Results for Ajman | I71: 30B
B72: 31A | C72: بيانات التأمين لإمارة أم القيوين بالقيمة الاجمالية. | H72: Gross Results for Umm Al Quwain | I72: 31A
B73: 31B | C73: بيانات التأمين لإمارة ام القيوين بالقيمة الصافية. | H73: Net Results for Umm Al Quwain | I73: 31B
B74: 32A | C74: بيانات التأمين لإمارة الشارقة بالقيمة الاجمالية. | H74: Gross Results for Sharjah | I74: 32A
B75: 32B | C75: بيانات التأمين لإمارة الشارقة بالقيمة الصافية. | H75: Net Results for Sharjah | I75: 32B
B76: 33A | C76: بيانات التأمين لإمارة رأس الخيمة بالقيمة الاجمالية. | H76: Gross Results for Ras Al Khaimah | I76: 33A
B77: 33B | C77: بيانات التأمين لإمارة رأس الخيمة بالقيمة الصافية. | H77: Net Results for Ras Al Khaimah | I77: 33B
B78: 34A | C78: بيانات التأمين لإمارة الفجيرة بالقيمة الاجمالية. | H78: Gross Results for Fujairah | I78: 34A
B79: 34B | C79: بيانات التأمين لإمارة الفجيرة بالقيمة الصافية. | H79: Net Results for Fujairah | I79: 34B
B80: 35 | C80: دليل شركات التأمين في دولة الإمارات العربية المتحدة | H80: Directory of insurance companies in the UAE | I80: 35
B81: 36 | C81: قائمة مُصطلحات التأمين المُستخدمة في التقرير | H81: Glossary of Insurance Terms Used in The Report | I81: 36

Sheet Insurance Sector Development

Sheet 1A
B6: إجمالي الاقساط المكتتبة
B7: Gross Written Premium
B8: (2018 - 2024)
B11: جدول رقم 1A | J11: TABLE 1A
B12: بالألف درهم | J12: AED in 000's
B13: البيــــــــان | C13: 2018 | D13: 2019 | E13: 2020 | F13: 2021 | G13: 2022 | H13: 2023 | I13: 2024 | J13: DESCRIPTION
B14: تأمين الممتلكات والمسؤوليات | C14: 31747732.61 | D14: 32526275.99 | E14: 32166056.18 | F14: 32940064.95 | G14: 37106523.92 | H14: 43837231.3 | I14: 54068702.91 | J14: Property and Liability Insurance
B15: التأمين على الأشخاص وتكوين الأموال | C15: 11970700.23 | D15: 11494538.22 | E15: 10330736.22 | F15: 11376964.14 | G15: 10139921.51 | H15: 9540611.513 | I15: 11042065.86 | J15: Insurance of Persons & Fund Accumulation
B16: اجمالي الأقساط | C16: =SUM(C14:C15) -> 43718432.84 | D16: 44020814.21 | E16: 42496792.4 | F16: 44317029.09 | G16: 47246445.43 | H16: 53377842.82 | I16: 65110768.77 | J16: TOTAL
B18: جدول رقم 1AA | C18: National Companies الشركات الوطنية | J18: TABLE 1AA
B19: بالألف درهم | J19: AED in 000's
B20: البيــــــــان | C20: 2018 | D20: 2019 | E20: 2020 | F20: 2021 | G20: 2022 | H20: 2023 | I20: 2024 | J20: DESCRIPTION
B21: تأمين الممتلكات والمسؤوليات | C21: 24692124.36 | D21: 25988129.04 | E21: 26054212.76 | F21: 26629539.15 | G21: 30289262.55 | H21: 35811365.73 | I21: 43689297.58 | J21: Property and Liability Insurance
B22: التأمين على الأشخاص وتكوين الأموال | C22: 2990432.688 | D22: 3049857.184 | E22: 3008326.207 | F22: 3639522.35 | G22: 3438475.659 | H22: 3328659.48 | I22: 3998947.661 | J22: Insurance of Persons & Fund Accumulation
B23: اجمالي الأقساط | C23: =SUM(C21:C22) -> 27682557.05 | D23: 29037986.23 | E23: 29062538.96 | F23: 30269061.5 | G23: 33727738.21 | H23: 39140025.21 | I23: 47688245.24 | J23: TOTAL
B25: حصة الشركات الوطنية | J25: Share of National Companies
B26: البيــــــــان | C26: 2018 | D26: 2019 | E26: 2020 | F26: 2021 | G26: 2022 | H26: 2023 | I26: 2024 | J26: DESCRIPTION
B27: تأمين الممتلكات والمسؤوليات | C27: =C21/C14 -> 0.7777602471 | D27: 0.7989887638 | E27: 0.8099908988 | F27: 0.8084240025 | G27: 0.8162786311 | H27: =H21/H14 -> 0.8169166862 | I27: 0.8080330252 | J27: Property and Liability Insurance
B28: التأمين على الأشخاص وتكوين الأموال | C28: 0.2498126786 | D28: 0.2653309881 | E28: 0.2912015314 | F28: 0.3199027706 | G28: 0.3391027886 | H28: =H22/H15 -> 0.348893724 | I28: 0.3621557516 | J28: Insurance of Persons & Fund Accumulation
B29: اجمالي الأقساط | C29: 0.6332010379 | D29: 0.6596421885 | E29: 0.6838760604 | F29: 0.6830119735 | G29: 0.7138682689 | H29: =H23/H16 -> 0.7332635255 | I29: 0.7324171737 | J29: TOTAL
B31: جدول رقم 1AB | C31: Foreign Branches الشركات الأجنبية | J31: TABLE 1AB
B32: بالألف درهم | J32: AED in 000's
B33: البيــــــــان | C33: 2018 | D33: 2019 | E33: 2020 | F33: 2021 | G33: 2022 | H33: 2023 | I33: 2024 | J33: DESCRIPTION
B34: تأمين الممتلكات والمسؤوليات | C34: 7055608 | D34: 6538147 | E34: 6111843 | F34: 6310526 | G34: 6817261.37 | H34: 8025865.574 | I34: 10379405.33 | J34: Property and Liability Insurance
B35: التأمين على الأشخاص وتكوين الأموال | C35: 8980268 | D35: 8444681 | E35: 7322410 | F35: 7737442 | G35: 6701445.849 | H35: 6211952.033 | I35: 7043118.199 | J35: Insurance of Persons & Fund Accumulation
B36: اجمالي الأقساط | C36: =SUM(C34:C35) -> 16035876 | D36: 14982828 | E36: 13434253 | F36: =SUM(F34:F35) -> 14047968 | G36: =SUM(G34:G35) -> 13518707.22 | H36: =SUM(H34:H35) -> 14237817.61 | I36: =SUM(I34:I35) -> 17422523.53 | J36: TOTAL
B38: حصة الشركات الأجنبية | J38: Share of Foreign Companies
B39: البيــــــــان | C39: 2018 | D39: 2019 | E39: 2020 | F39: 2021 | G39: 2022 | H39: 2023 | I39: 2024 | J39: DESCRIPTION
B40: تأمين الممتلكات والمسؤوليات | C40: =C34/C14 -> 0.222239745 | D40: 0.2010112379 | E40: 0.190009088 | F40: 0.1915760036 | G40: 0.1837213689 | H40: =H34/H14 -> 0.1830833138 | I40: 0.1919669748 | J40: Property and Liability Insurance
B41: التأمين على الأشخاص وتكوين الأموال | C41: 0.75018736 | D41: 0.7346690086 | E41: 0.7087984676 | F41: 0.6800972477 | G41: 0.6608972114 | H41: =H35/H15 -> 0.651106276 | I41: 0.6378442484 | J41: Insurance of Persons & Fund Accumulation
B42: اجمالي الأقساط | C42: 0.3667989669 | D42: 0.3403578118 | E42: 0.3161239294 | F42: 0.3169880357 | G42: 0.2861317311 | H42: =H36/H16 -> 0.2667364745 | I42: 0.2675828263 | J42: TOTAL

Sheet 1B
B6: إجمالي الاقساط المكتتبة
B7: Gross Written Premium
B8: (2018 - 2024)
B11: جدول رقم 1B | J11: TABLE 1B
B12: بالألف درهم | J12: AED in 000's
B13: البيــــــــان | C13: 2018 | D13: 2019 | E13: 2020 | F13: 2021 | G13: 2022 | H13: 2023 | I13: 2024 | J13: DESCRIPTION
B14: تأمين الممتلكات والمسؤوليات | C14: 24692124.36 | D14: 25988129.04 | E14: 26054212.76 | F14: 26629539.15 | G14: 30289262.55 | H14: 35811365.73 | I14: 43689297.58 | J14: Property and Liability Insurance
B15: التأمين على الأشخاص وتكوين الأموال | C15: 2990432.688 | D15: 3049857.184 | E15: 3008326.207 | F15: 3639522.35 | G15: 3438475.659 | H15: 3328659.48 | I15: 3998947.661 | J15: Insurance of Persons & Fund Accumulation
B16: اجمالي الأقساط | C16: =SUM(C14:C15) -> 27682557.05 | D16: 29037986.23 | E16: 29062538.96 | F16: 30269061.5 | G16: 33727738.21 | H16: 39140025.21 | I16: 47688245.24 | J16: TOTAL
B18: جدول رقم 1BA | C18: National Traditional Insurance Companies شركات التأمين التقليدي الوطنية | J18: TABLE 1BA
B19: بالألف درهم | J19: AED in 000's
B20: البيــــــــان | C20: 2018 | D20: 2019 | E20: 2020 | F20: 2021 | G20: 2022 | H20: 2023 | I20: 2024 | J20: DESCRIPTION
B21: تأمين الممتلكات والمسؤوليات | C21: 21909074.99 | D21: 23090567.86 | E21: 23247009.88 | F21: 23874472.57 | G21: 27430471.11 | H21: 32309076.19 | I21: 39786851.83 | J21: Property and Liability Insurance
B22: التأمين على الأشخاص وتكوين الأموال | C22: 1347855.84 | D22: 1352897.674 | E22: 1487048.125 | F22: 2043977.188 | G22: 2127418.427 | H22: 1976398.59 | I22: 2418317.279 | J22: Insurance of Persons & Fund Accumulation
B23: اجمالي الأقساط | C23: =SUM(C21:C22) -> 23256930.83 | D23: 24443465.53 | E23: 24734058.01 | F23: 25918449.76 | G23: 29557889.53 | H23: 34285474.78 | I23: 42205169.11 | J23: TOTAL
B25: حصة شركات التأمين التقليدي | J25: Share of Traditional Insurance Companies
B26: البيــــــــان | C26: 2018 | D26: 2019 | E26: 2020 | F26: 2021 | G26: 2022 | H26: 2023 | I26: 2024 | J26: DESCRIPTION
B27: تأمين الممتلكات والمسؤوليات | C27: =C21/C14 -> 0.8872899987 | D27: 0.8885044329 | E27: 0.8922553177 | F27: 0.896540959 | G27: 0.9056170007 | H27: =H21/H14 -> 0.9022017322 | I27: 0.9106773062 | J27: Property and Liability Insurance
B28: التأمين على الأشخاص وتكوين الأموال | C28: 0.4507226817 | D28: 0.4435937791 | E28: 0.4943107972 | F28: 0.56160589 | G28: 0.6187097535 | H28: =H22/H15 -> 0.5937521102 | I28: 0.6047384172 | J28: Insurance of Persons & Fund Accumulation
B29: اجمالي الأقساط | C29: 0.8401294285 | D29: 0.8417755053 | E29: 0.8510632205 | F29: 0.8562686939 | G29: 0.8763673789 | H29: =H23/H16 -> 0.8759696653 | I29: 0.8850224809 | J29: TOTAL
B31: جدول رقم 1BB | C31: National Takaful Insurance Companies شركات التأمين التكافلي الوطنية | J31: TABLE 1BB
B32: بالألف درهم | J32: AED in 000's
B33: البيــــــــان | C33: 2018 | D33: 2019 | E33: 2020 | F33: 2021 | G33: 2022 | H33: 2023 | I33: 2024 | J33: DESCRIPTION
B34: تأمين الممتلكات والمسؤوليات | C34: 2783049.368 | D34: 2897561.187 | E34: 2807202.876 | F34: 2755066.582 | G34: 2858791.447 | H34: 3502289.537 | I34: 3902445.748 | J34: Property and Liability Insurance
B35: التأمين على الأشخاص وتكوين الأموال | C35: 1642576.847 | D35: 1696959.51 | E35: 1521278.081 | F35: 1595545.161 | G35: 1311057.232 | H35: 1352260.89 | I35: 1580630.382 | J35: Insurance of Persons & Fund Accumulation
B36: اجمالي الأقساط | C36: =SUM(C34:C35) -> 4425626.215 | D36: 4594520.697 | E36: 4328480.957 | F36: 4350611.743 | G36: 4169848.679 | H36: 4854550.427 | I36: 5483076.13 | J36: TOTAL
B38: حصة شركات التأمين التكافلي | J38: Share of Takaful Insurance Companies
B39: البيــــــــان | C39: 2018 | D39: 2019 | E39: 2020 | F39: 2021 | G39: 2022 | H39: 2023 | I39: 2024 | J39: DESCRIPTION
B40: تأمين الممتلكات والمسؤوليات | C40: =C34/C14 -> 0.1127100013 | D40: =D34/D14 -> 0.1114955671 | E40: 0.1077446823 | F40: 0.103459041 | G40: 0.09438299934 | H40: =H34/H14 -> 0.09779826783 | I40: 0.08932269376 | J40: Property and Liability Insurance
B41: التأمين على الأشخاص وتكوين الأموال | C41: 0.5492773183 | D41: 0.5564062209 | E41: 0.5056892028 | F41: 0.43839411 | G41: 0.3812902465 | H41: =H35/H15 -> 0.4062478898 | I41: 0.3952615828 | J41: Insurance of Persons & Fund Accumulation
B42: اجمالي الأقساط | C42: 0.1598705715 | D42: 0.1582244947 | E42: 0.1489367795 | F42: 0.1437313061 | G42: 0.1236326211 | H42: =H36/H16 -> 0.1240303347 | I42: 0.1149775191 | J42: TOTAL

Sheet 1C
B6: إجمالي الاقساط المكتتبة
B7: Gross Written Premium
B8: (2013 - 2024)
B10: جدول رقم 1C | O10: TABLE 1C
B11: بالألف درهم | O11: AED in 000's
B12: البيــــــــان | C12: 2013 | D12: 2014 | E12: 2015 | F12: 2016 | G12: 2017 | H12: 2018 | I12: 2019 | J12: 2020 | K12: 2021 | L12: 2022 | M12: 2023 | N12: 2024 | O12: DESCRIPTION
B13: تأمين الممتلكات والمسؤوليات | C13: 22473259 | D13: 24888224 | E13: 27464821.68 | F13: 29863254.12 | G13: 33079472.07 | H13: 31747732.61 | I13: 32526275.99 | J13: 32166056.18 | K13: 32940064.95 | L13: 37106523.92 | M13: 43837231.3 | N13: 54068702.91 | O13: Property and Liability Insurance
B14: التأمين على الأشخاص وتكوين الأموال | C14: 7030665 | D14: 8645603 | E14: 9488889.281 | F14: 10145897.15 | G14: 11744756.07 | H14: 11970700.23 | I14: 11494538.22 | J14: 10330736.22 | K14: 11376964.14 | L14: 10139921.51 | M14: 9540611.513 | N14: 11042065.86 | O14: Insurance of Persons & Fund Accumulation
B15: اجمالي الأقساط | C15: =SUM(C13:C14) -> 29503924 | D15: =SUM(D13:D14) -> 33533827 | E15: 36953710.97 | F15: 40009151.27 | G15: 44824228.14 | H15: 43718432.84 | I15: 44020814.21 | J15: 42496792.4 | K15: 44317029.09 | L15: 47246445.43 | M15: 53377842.82 | N15: 65110768.77 | O15: TOTAL
B17: جدول رقم 1CA | C17: National Companies الشركات الوطنية | O17: TABLE 1CA
B18: بالألف درهم | O18: AED in 000's
B19: البيــــــــان | C19: 2013 | D19: 2014 | E19: 2015 | F19: 2016 | G19: 2017 | H19: 2018 | I19: 2019 | J19: 2020 | K19: 2021 | L19: 2022 | M19: 2023 | N19: 2024 | O19: DESCRIPTION
B20: تأمين الممتلكات والمسؤوليات | C20: 16714660 | D20: 18658198 | E20: 20347929 | F20: 22691772.4 | G20: 25771056.49 | H20: 24692124.36 | I20: 25988129.04 | J20: 26054212.76 | K20: 26629539.15 | L20: 30289262.55 | M20: 35811365.73 | N20: 43689297.58 | O20: Property and Liability Insurance
B21: التأمين على الأشخاص وتكوين الأموال | C21: 1533114 | D21: 1563509 | E21: 1953052 | F21: 2203769.705 | G21: 2372508.936 | H21: 2990432.688 | I21: 3049857.184 | J21: 3008326.207 | K21: 3639522.35 | L21: 3438475.659 | M21: 3328659.48 | N21: 3998947.661 | O21: Insurance of Persons & Fund Accumulation
B22: اجمالي الأقساط | C22: =SUM(C20:C21) -> 18247774 | D22: =SUM(D20:D21) -> 20221707 | E22: 22300981 | F22: 24895542.1 | G22: 28143565.43 | H22: 27682557.05 | I22: 29037986.23 | J22: 29062538.96 | K22: 30269061.5 | L22: 33727738.21 | M22: 39140025.21 | N22: 47688245.24 | O22: TOTAL
B24: حصة الشركات الوطنية | O24: Share of National Companies
B25: البيــــــــان | C25: 2013 | D25: 2014 | E25: 2015 | F25: 2016 | G25: 2017 | H25: 2018 | I25: 2019 | J25: 2020 | K25: 2021 | L25: 2022 | M25: 2023 | N25: 2024 | O25: DESCRIPTION
B26: تأمين الممتلكات والمسؤوليات | C26: =C20/C13 -> 0.7437577256 | D26: 0.7496797682 | E26: 0.7408724234 | F26: 0.7598559857 | G26: 0.779064927 | H26: 0.7777602471 | I26: 0.7989887638 | J26: 0.8099908988 | K26: 0.8084240025 | L26: 0.8162786311 | M26: =M20/M13 -> 0.8169166862 | N26: 0.8080330252 | O26: Property and Liability Insurance
B27: التأمين على الأشخاص وتكوين الأموال | C27: =C21/C14 -> 0.2180610227 | D27: 0.1808444131 | E27: 0.2058251437 | F27: 0.2172079682 | G27: 0.2020058076 | H27: 0.2498126786 | I27: 0.2653309881 | J27: 0.2912015314 | K27: 0.3199027706 | L27: 0.3391027886 | M27: =M21/M14 -> 0.348893724 | N27: 0.3621557516 | O27: Insurance of Persons & Fund Accumulation
B28: اجمالي الأقساط | C28: =C22/C15 -> 0.618486341 | D28: 0.6030241344 | E28: 0.6034842081 | F28: 0.6222461939 | G28: 0.6278650318 | H28: 0.6332010379 | I28: 0.6596421885 | J28: 0.6838760604 | K28: 0.6830119735 | L28: 0.7138682689 | M28: =M22/M15 -> 0.7332635255 | N28: =N22/N15 -> 0.7324171737 | O28: TOTAL
B30: جدول رقم 1CB | C30: Foreign Branches الشركات الأجنبية | O30: TABLE 1CB
B31: بالألف درهم | O31: AED in 000's
B32: البيــــــــان | C32: 2013 | D32: 2014 | E32: 2015 | F32: 2016 | G32: 2017 | H32: 2018 | I32: 2019 | J32: 2020 | K32: 2021 | L32: 2022 | M32: 2023 | N32: 2024 | O32: DESCRIPTION
B33: تأمين الممتلكات والمسؤوليات | C33: 5758599 | D33: 6230026 | E33: 7116892 | F33: 7171481.725 | G33: 7308415.578 | H33: 7055608.25 | I33: 6538146.946 | J33: 6111843.423 | K33: 6310525.8 | L33: 6817261.37 | M33: 8025865.574 | N33: 10379405.33 | O33: Property and Liability Insurance
B34: التأمين على الأشخاص وتكوين الأموال | C34: 5497551 | D34: 7082094 | E34: 7535837 | F34: 7942127.445 | G34: 9372247.136 | H34: 8980267.538 | I34: 8444681.037 | J34: 7322410.01 | K34: 7737441.791 | L34: 6701445.849 | M34: 6211952.033 | N34: 7043118.199 | O34: Insurance of Persons & Fund Accumulation
B35: اجمالي الأقساط | C35: =SUM(C33:C34) -> 11256150 | D35: =SUM(D33:D34) -> 13312120 | E35: 14652729 | F35: 15113609.17 | G35: 16680662.71 | H35: 16035875.79 | I35: 14982827.98 | J35: 13434253.43 | K35: 14047967.59 | L35: 13518707.22 | M35: 14237817.61 | N35: 17422523.53 | O35: TOTAL
B37: حصة الشركات الأجنبية | O37: Share of Foreign Companies
B38: البيــــــــان | C38: 2013 | D38: 2014 | E38: 2015 | F38: 2016 | G38: 2017 | H38: 2018 | I38: 2019 | J38: 2020 | K38: 2021 | L38: 2022 | M38: 2023 | N38: 2024 | O38: DESCRIPTION
B39: تأمين الممتلكات والمسؤوليات | C39: =C33/C13 -> 0.2562422744 | D39: 0.2503202318 | E39: 0.2591275517 | F39: 0.2401440143 | G39: 0.220935073 | H39: 0.2222397529 | I39: 0.2010112362 | J39: 0.1900091012 | K39: 0.1915759975 | L39: 0.1837213689 | M39: =M33/M13 -> 0.1830833138 | N39: 0.1919669748 | O39: Property and Liability Insurance
B40: التأمين على الأشخاص وتكوين الأموال | C40: =C34/C14 -> 0.7819389773 | D40: 0.8191555869 | E40: 0.7941748266 | F40: 0.7827920318 | G40: 0.7979941924 | H40: 0.7501873214 | I40: 0.7346690119 | J40: 0.7087984686 | K40: 0.6800972294 | L40: 0.6608972114 | M40: =M34/M14 -> 0.651106276 | N40: 0.6378442484 | O40: Insurance of Persons & Fund Accumulation
B41: اجمالي الأقساط | C41: =C35/C15 -> 0.381513659 | D41: 0.3969758656 | E41: 0.3965157657 | F41: 0.3777538061 | G41: 0.3721349682 | H41: 0.3667989621 | I41: 0.3403578115 | J41: 0.3161239396 | K41: 0.3169880265 | L41: 0.2861317311 | M41: =M35/M15 -> 0.2667364745 | N41: 0.2675828263 | O41: TOTAL

Sheet 2A
B6: إجمالي الأقساط المكتتبة حسب فرع التأمين
B7: الشركات الوطنية والاجنبية
B8: Gross Written Premium by Line of Business
B9: National & Foreign Companies
B11: جدول رقم 2A | I11: TABLE 2A
B12: بالألف درهم | I12: AED in 000's
B13: فروع التأمين | C13: الشركات الوطنية | E13: الشركات الأجنبية | G13: الاجمالي | I13: Line of Business
C14: NATIONAL COMPANIES | E14: FOREIGN COMPANIES | G14: TOTAL
C15: 2023 | D15: 2024 | E15: 2023 | F15: 2024 | G15: 2023 | H15: 2024
B16: تأمين الحريق | C16: 3896252.003 | D16: 5535805.614 | E16: 633390.9815 | F16: 697449.6603 | G16: =E16+C16 -> 4529642.984 | H16: =F16+D16 -> 6233255.274 | I16: Fire
B17: التأمين البحري والطيران | C17: 1881747.873 | D17: 1966032.43 | E17: 334045.0072 | F17: 351538.2553 | G17: 2215792.881 | H17: 2317570.685 | I17: Marine & Aviation
B18: تأمين السيارات والمركبات الأخرى | C18: 4318643.825 | D18: 6056078.039 | E18: 1567919.593 | F18: 1995567.082 | G18: 5886563.418 | H18: 8051645.121 | I18: Motor & Transportation
B19: التأمين الهندسي والانشاءات والطاقة | C19: 3162435.288 | D19: 3928029.822 | E19: 154579.8515 | F19: 174507.3799 | G19: 3317015.139 | H19: 4102537.202 | I19: Engineering, Construction & Energy
B20: أخرى | C20: 4285899.469 | D20: 5024759.234 | E20: 531065.5098 | F20: 563761.3974 | G20: 4816964.979 | H20: 5588520.631 | I20: Other
B21: اعادة التأمين غير النسبية - المسؤوليات والممتلكات | C21: 5989.4324 | D21: 5753.65417 | E21: 0 | F21: 0 | G21: 5989.4324 | H21: 5753.65417 | I21: Reinsurance - Property & Liability
B22: المجموع - تأمين الممتلكات والمسؤوليات | C22: =C16+C17+C18+C19+C20+C21 -> 17550967.89 | D22: 22516458.79 | E22: 3221000.943 | F22: 3782823.775 | G22: =G16+G17+G18+G19+G20+G21 -> 20771968.83 | H22: 26299282.57 | I22: Total - Property & Liability Insurance
B24: المجموع - تأمين صحي | C24: 18983394.64 | D24: 22280623.77 | E24: 6913648.708 | F24: 9037133.596 | G24: =E24+C24 -> 25897043.35 | H24: 31317757.37 | I24: Total - Health Insurance
B26: تأمين حياة جماعي | C26: 817542.1435 | D26: 885725.5169 | E26: 202734.9294 | F26: 235860.5531 | G26: =E26+C26 -> 1020277.073 | H26: 1121586.07 | I26: Group Life
B27: تأمين ائتمان حياة جماعي | C27: 541284.1291 | D27: 611483.4385 | E27: 19901 | F27: 18832 | G27: 561185.1291 | H27: 630315.4385 | I27: Group Credit Life
B28: تأمين حياة فردي | C28: 1246836.409 | D28: 1393953.718 | E28: 3832384.539 | F28: 4306106.946 | G28: 5079220.948 | H28: 5700060.664 | I28: Individual Life
B29: دفعات الحياة وتكوين الأموال | C29: 0 | D29: 0 | E29: 48147.48767 | F29: 41766.65936 | G29: 48147.48767 | H29: 41766.65936 | I29: Annuities & Fund Accumulation
B30: المجموع - تأمين الأشخاص وعمليات تكوين الأموال | C30: =C26+C27+C28+C29 -> 2605662.681 | D30: 2891162.674 | E30: 4103167.956 | F30: 4602566.158 | G30: =SUM(G26:G29) -> 6708830.638 | H30: =SUM(H26:H29) -> 7493728.832 | I30: Total - Insurance of Persons & Fund Accumulation
B32: المجموع - كافة فروع التأمين | C32: =C22+C24+C30 -> 39140025.21 | D32: 47688245.24 | E32: 14237817.61 | F32: 17422523.53 | G32: =G22+G24+G30 -> 53377842.82 | H32: =H22+H24+H30 -> 65110768.77 | I32: TOTAL - All Types of Business Combined

Sheet 2B
B6: إجمالي الأقساط المكتتبة حسب فرع التأمين
B7: شركات التأمين التقليدي الوطنية وشركات التأمين التكافلي الوطنية
B8: Gross Written Premium by Line of Business
B9: Traditional & Takaful National Companies
B11: جدول رقم 2B | I11: TABLE 2B
B12: بالألف درهم | I12: AED in 000's
B13: فروع التأمين | C13: شركات التأمين التقليدي الوطنية | E13: شركات التأمين التكافلي الوطنية | G13: الشركات الوطنية | I13: Line of Business
C14: TRADITIONAL COMPANIES | E14: TAKAFUL COMPANIES | G14: NATIONAL COMPANIES
C15: 2023 | D15: 2024 | E15: 2023 | F15: 2024 | G15: 2023 | H15: 2024
B16: تأمين الحريق | C16: 3394877.671 | D16: 4929402.127 | E16: 501374.3319 | F16: 606403.4865 | G16: =E16+C16 -> 3896252.003 | H16: =F16+D16 -> 5535805.614 | I16: Fire
B17: التأمين البحري والطيران | C17: 1758771.824 | D17: 1843213.048 | E17: 122976.0493 | F17: 122819.3821 | G17: =E17+C17 -> 1881747.873 | H17: 1966032.43 | I17: Marine & Aviation
B18: تأمين السيارات والمركبات الأخرى | C18: 3216766.898 | D18: 4823143.369 | E18: 1101876.927 | F18: 1232934.669 | G18: 4318643.825 | H18: 6056078.039 | I18: Motor & Transportation
B19: التأمين الهندسي والانشاءات والطاقة | C19: 2989971.871 | D19: 3666610.461 | E19: 172463.4163 | F19: 261419.3612 | G19: 3162435.288 | H19: 3928029.822 | I19: Engineering, Construction & Energy
B20: أخرى | C20: 3841607.987 | D20: 4459301.014 | E20: 444291.4824 | F20: 565458.2198 | G20: 4285899.469 | H20: 5024759.234 | I20: Other
B21: اعادة التأمين غير النسبية - المسؤوليات والممتلكات | C21: 5989.4324 | D21: 5753.65417 | E21: 0 | F21: 0 | G21: =E21+C21 -> 5989.4324 | H21: 5753.65417 | I21: Reinsurance - Property & Liability
B22: المجموع - تأمين الممتلكات والمسؤوليات | C22: =C16+C17+C18+C19+C20+C21 -> 15207985.68 | D22: =D16+D17+D18+D19+D20+D21 -> 19727423.67 | E22: =E16+E17+E18+E19+E20+E21 -> 2342982.207 | F22: 2789035.119 | G22: =G16+G17+G18+G19+G20+G21 -> 17550967.89 | H22: =H16+H17+H18+H19+H20+H21 -> 22516458.79 | I22: Total - Property & Liability Insurance
B24: المجموع - تأمين صحي | C24: 17176409.55 | D24: 20250076.98 | E24: 1806985.085 | F24: 2030546.791 | G24: =E24+C24 -> 18983394.64 | H24: =F24+D24 -> 22280623.77 | I24: Total - Health Insurance
B26: تأمين حياة جماعي | C26: 670581.1566 | D26: 836574.9112 | E26: 146960.9868 | F26: 49150.60578 | G26: =E26+C26 -> 817542.1435 | H26: 885725.5169 | I26: Group Life
B27: تأمين ائتمان حياة جماعي | C27: 311872.434 | D27: 286258.5353 | E27: 229411.6951 | F27: 325224.9032 | G27: 541284.1291 | H27: 611483.4385 | I27: Group Credit Life
B28: تأمين حياة فردي | C28: 918625.9552 | D28: 1104835.007 | E28: 328210.4534 | F28: 289118.7115 | G28: 1246836.409 | H28: 1393953.718 | I28: Individual Life
B29: دفعات الحياة وتكوين الأموال | C29: 0 | D29: 0 | E29: 0 | F29: 0 | G29: 0 | H29: 0 | I29: Annuities & Fund Accumulation
B30: المجموع - تأمين الأشخاص وعمليات تكوين الأموال | C30: =C26+C27+C28+C29 -> 1901079.546 | D30: =D26+D27+D28+D29 -> 2227668.454 | E30: =E26+E27+E28+E29 -> 704583.1352 | F30: 663494.2204 | G30: 2605662.681 | H30: 2891162.674 | I30: Total - Insurance of Persons & Fund Accumulation
B32: المجموع - كافة فروع التأمين | C32: =C22+C24+C30 -> 34285474.78 | D32: =D22+D24+D30 -> 42205169.11 | E32: =E22+E24+E30 -> 4854550.427 | F32: 5483076.13 | G32: 39140025.21 | H32: 47688245.24 | I32: TOTAL - All Types of Business Combined

Sheet 2C
B6: إجمالي الأقساط المكتتبة حسب فرع التأمين
B7: شركات التأمين على الحياة وشركات التأمينات العامة وشركات التأمين على الحياة والتأمينات العامة
B8: Gross Written Premium by Line of Business
B9: Life, Non-Life & Composite Companies
B11: جدول رقم 2C | K11: TABLE 2C
B12: بالألف درهم | K12: AED in 000's
B13: فروع التأمين | C13: شركات التأمين على الأشخاص وتكوين الأموال | E13: شركات تأمين الممتلكات والمسؤوليات | G13: شركات التأمين (النوعين معاً) | I13: الاجمالي | K13: Line of Business
C14: LIFE COMPANIES | E14: NON-LIFE COMPANIES | G14: COMPOSITE COMPANIES | I14: TOTAL
C15: 2023 | D15: 2024 | E15: 2023 | F15: 2024 | G15: 2023 | H15: 2024 | I15: 2023 | J15: 2024
B16: تأمين الحريق | C16: 0 | D16: 0 | E16: 1213934.977 | F16: 1432441.154 | G16: 3315708.007 | H16: 4800814.12 | I16: =G16+E16+C16 -> 4529642.984 | J16: =H16+F16+D16 -> 6233255.274 | K16: Fire
B17: التأمين البحري والطيران | C17: 0 | D17: 0 | E17: 467836.0057 | F17: 515465.1115 | G17: 1747956.875 | H17: 1802105.574 | I17: =G17+E17+C17 -> 2215792.881 | J17: 2317570.685 | K17: Marine & Aviation
B18: تأمين السيارات والمركبات الأخرى | C18: 0 | D18: 0 | E18: 2548343.156 | F18: 3259802.393 | G18: 3338220.262 | H18: 4791842.728 | I18: 5886563.418 | J18: 8051645.121 | K18: Motor & Transportation
B19: التأمين الهندسي والانشاءات والطاقة | C19: 0 | D19: 0 | E19: 434107.6912 | F19: 602648.6839 | G19: 2882907.448 | H19: 3499888.518 | I19: 3317015.139 | J19: 4102537.202 | K19: Engineering, Construction & Energy
B20: أخرى | C20: 0 | D20: 0 | E20: 1028779 | F20: 1179418.455 | G20: 3788185.979 | H20: 4409102.176 | I20: 4816964.979 | J20: 5588520.631 | K20: Other
B21: اعادة التأمين غير النسبية - المسؤوليات والممتلكات | C21: 0 | D21: 0 | E21: 5989.4324 | F21: 5753.65417 | G21: 0 | H21: 0 | I21: =G21+E21+C21 -> 5989.4324 | J21: =H21+F21+D21 -> 5753.65417 | K21: Reinsurance - Property & Liability
B22: المجموع - تأمين الممتلكات والمسؤوليات | C22: =C16+C17+C18+C19+C20+C21 -> 0 | D22: 0 | E22: =E16+E17+E18+E19+E20+E21 -> 5698990.263 | F22: 6995529.451 | G22: =G16+G17+G18+G19+G20+G21 -> 15072978.57 | H22: 19303753.12 | I22: =I16+I17+I18+I19+I20+I21 -> 20771968.83 | J22: =J16+J17+J18+J19+J20+J21 -> 26299282.57 | K22: Total - Property & Liability Insurance
B24: المجموع - تأمين صحي | C24: 1700132.975 | D24: 2105443.986 | E24: 10798607.37 | F24: 14003865.36 | G24: 13398303 | H24: 15208448.02 | I24: =G24+E24+C24 -> 25897043.35 | J24: =H24+F24+D24 -> 31317757.37 | K24: Total - Health Insurance
B26: تأمين حياة جماعي | C26: 306881.8588 | D26: 235679.9452 | E26: 0 | F26: 0 | G26: 713395.2141 | H26: 885906.1249 | I26: =G26+E26+C26 -> 1020277.073 | J26: =H26+F26+D26 -> 1121586.07 | K26: Group Life
B27: تأمين ائتمان حياة جماعي | C27: 6869.468546 | D27: 116257.8395 | E27: 0 | F27: 0 | G27: 554315.6605 | H27: 514057.599 | I27: =G27+E27+C27 -> 561185.1291 | J27: =H27+F27+D27 -> 630315.4385 | K27: Group Credit Life
B28: تأمين حياة فردي | C28: 2974403.381 | D28: 3099739.479 | E28: 0 | F28: 0 | G28: 2104817.567 | H28: 2600321.185 | I28: 5079220.948 | J28: 5700060.664 | K28: Individual Life
B29: دفعات الحياة وتكوين الأموال | C29: 3369.487671 | D29: 8957.659356 | E29: 0 | F29: 0 | G29: 44778 | H29: 32809 | I29: 48147.48767 | J29: 41766.65936 | K29: Annuities & Fund Accumulation
B30: المجموع - تأمين الأشخاص وعمليات تكوين الأموال | C30: =C26+C27+C28+C29 -> 3291524.196 | D30: 3460634.924 | E30: 0 | F30: 0 | G30: =G26+G27+G28+G29 -> 3417306.442 | H30: 4033093.909 | I30: =I26+I27+I28+I29 -> 6708830.638 | J30: =J26+J27+J28+J29 -> 7493728.832 | K30: Total - Insurance of Persons & Fund Accumulation
B32: المجموع - كافة فروع التأمين | C32: =C22+C24+C30 -> 4991657.171 | D32: 5566078.91 | E32: =E22+E24+E30 -> 16497597.63 | F32: 20999394.81 | G32: =G22+G24+G30 -> 31888588.01 | H32: =H22+H24+H30 -> 38545295.05 | I32: =I22+I24+I30 -> 53377842.82 | J32: 65110768.77 | K32: TOTAL - All Types of Business Combined

Sheet 3A
B6: صافي الأقساط المكتتبة حسب فرع التأمين
B7: الشركات الوطنية والاجنبية
B8: Net Written Premium by Line of Business
B9: National & Foreign Companies
B11: جدول رقم 3A | I11: TABLE 3A
B12: بالألف درهم | I12: AED in 000's
B13: فروع التأمين | C13: الشركات الوطنية | E13: الشركات الأجنبية | G13: الاجمالي | I13: Line of Business
C14: NATIONAL COMPANIES | E14: FOREIGN COMPANIES | G14: TOTAL
C15: 2023 | D15: 2024 | E15: 2023 | F15: 2024 | G15: 2023 | H15: 2024
B16: تأمين الحريق | C16: 610766.7843 | D16: 744574.3196 | E16: 343694.8874 | F16: 205764.2327 | G16: =E16+C16 -> 954461.6716 | H16: =F16+D16 -> 950338.5523 | I16: Fire
B17: التأمين البحري والطيران | C17: 310805.1846 | D17: 334632.9483 | E17: 191629.0872 | F17: 175803.2639 | G17: 502434.2718 | H17: 510436.2121 | I17: Marine & Aviation
B18: تأمين السيارات والمركبات الأخرى | C18: 3229632.869 | D18: 4736122.285 | E18: 1509623.05 | F18: 1854797.92 | G18: 4739255.919 | H18: 6590920.205 | I18: Motor & Transportation
B19: التأمين الهندسي والانشاءات والطاقة | C19: 552521.5952 | D19: 568344.6163 | E19: 87623.25468 | F19: 86066.1371 | G19: 640144.8499 | H19: 654410.7534 | I19: Engineering, Construction & Energy
B20: أخرى | C20: 1077889.408 | D20: 1272279.659 | E20: 247259.3724 | F20: 251407.7242 | G20: 1325148.78 | H20: 1523687.384 | I20: Other
B21: اعادة التأمين غير النسبية - المسؤوليات والممتلكات | C21: 1800.348215 | D21: 4431.73023 | E21: 0 | F21: 0 | G21: 1800.348215 | H21: 4431.73023 | I21: Reinsurance - Property & Liability
B22: المجموع - تأمين الممتلكات والمسؤوليات | C22: =C16+C17+C18+C19+C20+C21 -> 5783416.189 | D22: =D16+D17+D18+D19+D20+D21 -> 7660385.559 | E22: =E16+E17+E18+E19+E20+E21 -> 2379829.652 | F22: =F16+F17+F18+F19+F20+F21 -> 2573839.278 | G22: =G16+G17+G18+G19+G20+G21 -> 8163245.841 | H22: 10234224.84 | I22: Total - Property & Liability Insurance
B24: المجموع - تأمين صحي | C24: 10409701.66 | D24: 12885991.83 | E24: 4777806.975 | F24: 6566189.562 | G24: =E24+C24 -> 15187508.64 | H24: =F24+D24 -> 19452181.39 | I24: Total - Health Insurance
B26: تأمين حياة جماعي | C26: 307258.0887 | D26: 357227.3416 | E26: 57674.27119 | F26: 64355.1338 | G26: =E26+C26 -> 364932.3599 | H26: =F26+D26 -> 421582.4754 | I26: Group Life
B27: تأمين ائتمان حياة جماعي | C27: 207303.8678 | D27: 185927.5765 | E27: 4555 | F27: 2537 | G27: 211858.8678 | H27: 188464.5765 | I27: Group Credit Life
B28: تأمين حياة فردي | C28: 1146372.244 | D28: 1282025.685 | E28: 3654909.755 | F28: 4109649.988 | G28: 4801281.999 | H28: 5391675.673 | I28: Individual Life
B29: دفعات الحياة وتكوين الأموال | C29: -0.16998 | D29: -0.00639 | E29: 48056.55475 | F29: 41760.23691 | G29: 48056.38477 | H29: 41760.23052 | I29: Annuities & Fund Accumulation
B30: المجموع - تأمين الأشخاص وعمليات تكوين الأموال | C30: =C26+C27+C28+C29 -> 1660934.03 | D30: =D26+D27+D28+D29 -> 1825180.597 | E30: =E26+E27+E28+E29 -> 3765195.581 | F30: 4218302.359 | G30: 5426129.612 | H30: 6043482.956 | I30: Total - Insurance of Persons & Fund Accumulation
B32: المجموع - كافة فروع التأمين | C32: =C22+C24+C30 -> 17854051.88 | D32: =D22+D24+D30 -> 22371557.98 | E32: =E22+E24+E30 -> 10922832.21 | F32: 13358331.2 | G32: 28776884.09 | H32: 35729889.18 | I32: TOTAL - All Types of Business Combined

Sheet 3B
B6: صافي الأقساط المكتتبة حسب فرع التأمين
B7: شركات التأمين التقليدي الوطنية وشركات التأمين التكافلي الوطنية
B8: Net Written Premium by Line of Business
B9: Traditional & Takaful National Companies
B11: جدول رقم 3B | I11: TABLE 3B
B12: بالألف درهم | I12: AED in 000's
B13: فروع التأمين | C13: شركات التأمين التقليدي الوطنية | E13: شركات التأمين التكافلي الوطنية | G13: الشركات الوطنية | I13: Line of Business
C14: TRADITIONAL COMPANIES | E14: TAKAFUL OPERATORS | G14: NATIONAL COMPANIES
C15: 2023 | D15: 2024 | E15: 2023 | F15: 2024 | G15: 2023 | H15: 2024
B16: تأمين الحريق | C16: 535344.1756 | D16: 678728.8043 | E16: 75422.60871 | F16: 65845.51535 | G16: =E16+C16 -> 610766.7843 | H16: =F16+D16 -> 744574.3196 | I16: Fire
B17: التأمين البحري والطيران | C17: 285830.0868 | D17: 294775.5589 | E17: 24975.09778 | F17: 39857.38933 | G17: =E17+C17 -> 310805.1846 | H17: =F17+D17 -> 334632.9483 | I17: Marine & Aviation
B18: تأمين السيارات والمركبات الأخرى | C18: 2392033.173 | D18: 3857122.956 | E18: 837599.6957 | F18: 878999.329 | G18: 3229632.869 | H18: =F18+D18 -> 4736122.285 | I18: Motor & Transportation
B19: التأمين الهندسي والانشاءات والطاقة | C19: 495098.1693 | D19: 497177.2047 | E19: 57423.4259 | F19: 71167.41158 | G19: 552521.5952 | H19: =F19+D19 -> 568344.6163 | I19: Engineering, Construction & Energy
B20: أخرى | C20: 945320.9573 | D20: 1083337.287 | E20: 132568.4505 | F20: 188942.3722 | G20: 1077889.408 | H20: =F20+D20 -> 1272279.659 | I20: Other
B21: اعادة التأمين غير النسبية - المسؤوليات والممتلكات | C21: 1800.348215 | D21: 4431.73023 | E21: 0 | F21: 0 | G21: 1800.348215 | H21: =F21+D21 -> 4431.73023 | I21: Reinsurance - Property & Liability
B22: المجموع - تأمين الممتلكات والمسؤوليات | C22: =C16+C17+C18+C19+C20+C21 -> 4655426.911 | D22: =D16+D17+D18+D19+D20+D21 -> 6415573.541 | E22: 1127989.279 | F22: 1244812.017 | G22: 5783416.189 | H22: 7660385.559 | I22: Total - Property & Liability Insurance
B24: المجموع - تأمين صحي | C24: 9349917.384 | D24: 11807357.34 | E24: 1059784.279 | F24: 1078634.488 | G24: =E24+C24 -> 10409701.66 | H24: =F24+D24 -> 12885991.83 | I24: Total - Health Insurance
B26: تأمين حياة جماعي | C26: 284977.7525 | D26: 345835.1099 | E26: 22280.3362 | F26: 11392.23166 | G26: =E26+C26 -> 307258.0887 | H26: 357227.3416 | I26: Group Life
B27: تأمين ائتمان حياة جماعي | C27: 101597.531 | D27: 79363.25593 | E27: 105706.3368 | F27: 106564.3206 | G27: 207303.8678 | H27: 185927.5765 | I27: Group Credit Life
B28: تأمين حياة فردي | C28: 848762.5421 | D28: 1040962.824 | E28: 297609.7015 | F28: 241062.8609 | G28: 1146372.244 | H28: 1282025.685 | I28: Individual Life
B29: دفعات الحياة وتكوين الأموال | C29: 0 | D29: 0 | E29: -0.16998 | F29: -0.00639 | G29: -0.16998 | H29: -0.00639 | I29: Annuities & Fund Accumulation
B30: المجموع - تأمين الأشخاص وعمليات تكوين الأموال | C30: =C26+C27+C28+C29 -> 1235337.826 | D30: =D26+D27+D28+D29 -> 1466161.19 | E30: 425596.2046 | F30: 359019.4068 | G30: 1660934.03 | H30: 1825180.597 | I30: Total - Insurance of Persons & Fund Accumulation
B32: المجموع - كافة فروع التأمين | C32: =C22+C24+C30 -> 15240682.12 | D32: 19689092.07 | E32: 2613369.763 | F32: 2682465.912 | G32: 17854051.88 | H32: 22371557.98 | I32: TOTAL - All Types of Business Combined

Sheet 4A
B6: نسب الاحتفاظ بالاقساط المكتتبة حسب فرع التأمين
B7: (صافي الأقساط المكتتبة الى إجمالي الاقساط المكتتبة)
B8: Retention Ratios of Written Premium by Line of Business
B9: (Net Written Premium ÷ Gross Written Premium)
B11: جدول رقم 4A | I11: TABLE 4A
B12: بالألف درهم | I12: AED in 000's
B13: فروع التأمين | C13: الشركات الوطنية | E13: الشركات الأجنبية | G13: الاجمالي | I13: Line of Business
C14: NATIONAL COMPANIES | E14: FOREIGN COMPANIES | G14: TOTAL
C15: 2023 | D15: 2024 | E15: 2023 | F15: 2024 | G15: 2023 | H15: 2024
B16: تأمين الحريق | C16: =IFERROR('3A'!C16/'2A'!C16,"") -> 0.1567575156 | D16: =IFERROR('3A'!D16/'2A'!D16,"") -> 0.1345015291 | E16: =IFERROR('3A'!E16/'2A'!E16,"") -> 0.5426267462 | F16: =IFERROR('3A'!F16/'2A'!F16,"") -> 0.2950237765 | G16: =IFERROR('3A'!G16/'2A'!G16,"") -> 0.2107145475 | H16: =IFERROR('3A'!H16/'2A'!H16,"") -> 0.1524626396 | I16: Fire
B17: التأمين البحري والطيران | C17: =IFERROR('3A'!C17/'2A'!C17,"") -> 0.1651683464 | D17: =IFERROR('3A'!D17/'2A'!D17,"") -> 0.1702072373 | E17: =IFERROR('3A'!E17/'2A'!E17,"") -> 0.5736624799 | F17: =IFERROR('3A'!F17/'2A'!F17,"") -> 0.5000971053 | G17: =IFERROR('3A'!G17/'2A'!G17,"") -> 0.2267514605 | H17: =IFERROR('3A'!H17/'2A'!H17,"") -> 0.2202462326 | I17: Marine & Aviation
B18: تأمين السيارات والمركبات الأخرى | C18: =IFERROR('3A'!C18/'2A'!C18,"") -> 0.7478349686 | D18: =IFERROR('3A'!D18/'2A'!D18,"") -> 0.7820444609 | E18: =IFERROR('3A'!E18/'2A'!E18,"") -> 0.9628191756 | F18: =IFERROR('3A'!F18/'2A'!F18,"") -> 0.9294590677 | G18: =IFERROR('3A'!G18/'2A'!G18,"") -> 0.8050972329 | H18: =IFERROR('3A'!H18/'2A'!H18,"") -> 0.8185805641 | I18: Motor & Transportation
B19: التأمين الهندسي والانشاءات والطاقة | C19: =IFERROR('3A'!C19/'2A'!C19,"") -> 0.1747139609 | D19: =IFERROR('3A'!D19/'2A'!D19,"") -> 0.1446894861 | E19: =IFERROR('3A'!E19/'2A'!E19,"") -> 0.5668478386 | F19: =IFERROR('3A'!F19/'2A'!F19,"") -> 0.4931948274 | G19: =IFERROR('3A'!G19/'2A'!G19,"") -> 0.1929882207 | H19: =IFERROR('3A'!H19/'2A'!H19,"") -> 0.1595136671 | I19: Engineering, Construction & Energy
B20: أخرى | C20: =IFERROR('3A'!C20/'2A'!C20,"") -> 0.2514966615 | D20: =IFERROR('3A'!D20/'2A'!D20,"") -> 0.2532021138 | E20: =IFERROR('3A'!E20/'2A'!E20,"") -> 0.4655910954 | F20: =IFERROR('3A'!F20/'2A'!F20,"") -> 0.445947036 | G20: =IFERROR('3A'!G20/'2A'!G20,"") -> 0.275100356 | H20: =IFERROR('3A'!H20/'2A'!H20,"") -> 0.2726459262 | I20: Other
B21: اعادة التأمين غير النسبية - المسؤوليات والممتلكات | C21: =IFERROR('3A'!C21/'2A'!C21,"") -> 0.3005874505 | D21: =IFERROR('3A'!D21/'2A'!D21,"") -> 0.7702461947 | E21: =IFERROR('3A'!E21/'2A'!E21,"") ->  | F21: =IFERROR('3A'!F21/'2A'!F21,"") ->  | G21: =IFERROR('3A'!G21/'2A'!G21,"") -> 0.3005874505 | H21: =IFERROR('3A'!H21/'2A'!H21,"") -> 0.7702461947 | I21: Reinsurance - Property & Liability
B22: المجموع - تأمين الممتلكات والمسؤوليات | C22: =IFERROR('3A'!C22/'2A'!C22,"") -> 0.3295212108 | D22: =IFERROR('3A'!D22/'2A'!D22,"") -> 0.3402127141 | E22: =IFERROR('3A'!E22/'2A'!E22,"") -> 0.7388478594 | F22: =IFERROR('3A'!F22/'2A'!F22,"") -> 0.6804015811 | G22: =IFERROR('3A'!G22/'2A'!G22,"") -> 0.3929933607 | H22: =IFERROR('3A'!H22/'2A'!H22,"") -> 0.3891446396 | I22: Total - Property & Liability Insurance
B24: المجموع - تأمين صحي | C24: =IFERROR('3A'!C24/'2A'!C24,"") -> 0.5483582816 | D24: =IFERROR('3A'!D24/'2A'!D24,"") -> 0.5783496888 | E24: =IFERROR('3A'!E24/'2A'!E24,"") -> 0.6910688085 | F24: =IFERROR('3A'!F24/'2A'!F24,"") -> 0.7265787865 | G24: =IFERROR('3A'!G24/'2A'!G24,"") -> 0.5864572428 | H24: =IFERROR('3A'!H24/'2A'!H24,"") -> 0.6211230631 | I24: Total - Health Insurance
B26: تأمين حياة جماعي | C26: =IFERROR('3A'!C26/'2A'!C26,"") -> 0.3758314984 | D26: =IFERROR('3A'!D26/'2A'!D26,"") -> 0.4033160779 | E26: =IFERROR('3A'!E26/'2A'!E26,"") -> 0.2844811762 | F26: =IFERROR('3A'!F26/'2A'!F26,"") -> 0.272852467 | G26: =IFERROR('3A'!G26/'2A'!G26,"") -> 0.3576796633 | H26: =IFERROR('3A'!H26/'2A'!H26,"") -> 0.3758806271 | I26: Group Life
B27: تأمين ائتمان حياة جماعي | C27: =IFERROR('3A'!C27/'2A'!C27,"") -> 0.382985306 | D27: =IFERROR('3A'!D27/'2A'!D27,"") -> 0.3040598727 | E27: =IFERROR('3A'!E27/'2A'!E27,"") -> 0.2288829707 | F27: =IFERROR('3A'!F27/'2A'!F27,"") -> 0.1347175021 | G27: =IFERROR('3A'!G27/'2A'!G27,"") -> 0.3775204595 | H27: =IFERROR('3A'!H27/'2A'!H27,"") -> 0.2990004131 | I27: Group Credit Life
B28: تأمين حياة فردي | C28: =IFERROR('3A'!C28/'2A'!C28,"") -> 0.9194247423 | D28: =IFERROR('3A'!D28/'2A'!D28,"") -> 0.9197046274 | E28: =IFERROR('3A'!E28/'2A'!E28,"") -> 0.9536907682 | F28: =IFERROR('3A'!F28/'2A'!F28,"") -> 0.95437713 | G28: =IFERROR('3A'!G28/'2A'!G28,"") -> 0.9452792167 | H28: =IFERROR('3A'!H28/'2A'!H28,"") -> 0.9458979458 | I28: Individual Life
B29: دفعات الحياة وتكوين الأموال | C29: =IFERROR('3A'!C29/'2A'!C29,"") ->  | D29: =IFERROR('3A'!D29/'2A'!D29,"") ->  | E29: =IFERROR('3A'!E29/'2A'!E29,"") -> 0.9981113672 | F29: =IFERROR('3A'!F29/'2A'!F29,"") -> 0.9998462303 | G29: =IFERROR('3A'!G29/'2A'!G29,"") -> 0.9981078368 | H29: =IFERROR('3A'!H29/'2A'!H29,"") -> 0.9998460773 | I29: Annuities & Fund Accumulation
B30: المجموع - تأمين الأشخاص وعمليات تكوين الأموال | C30: =IFERROR('3A'!C30/'2A'!C30,"") -> 0.637432482 | D30: =IFERROR('3A'!D30/'2A'!D30,"") -> 0.6312964031 | E30: =IFERROR('3A'!E30/'2A'!E30,"") -> 0.9176313574 | F30: =IFERROR('3A'!F30/'2A'!F30,"") -> 0.9165109667 | G30: =IFERROR('3A'!G30/'2A'!G30,"") -> 0.808804083 | H30: =IFERROR('3A'!H30/'2A'!H30,"") -> 0.8064720637 | I30: Total - Insurance of Persons & Fund Accumulation
B32: المجموع - كافة فروع التأمين | C32: =IFERROR('3A'!C32/'2A'!C32,"") -> 0.4561584155 | D32: =IFERROR('3A'!D32/'2A'!D32,"") -> 0.4691210144 | E32: =IFERROR('3A'!E32/'2A'!E32,"") -> 0.7671703985 | F32: =IFERROR('3A'!F32/'2A'!F32,"") -> 0.7667276888 | G32: =IFERROR('3A'!G32/'2A'!G32,"") -> 0.5391166554 | H32: =IFERROR('3A'!H32/'2A'!H32,"") -> 0.5487554494 | I32: TOTAL - All Types of Business Combined

Sheet 4B
B6: نسب الاحتفاظ بالاقساط المكتتبة حسب فرع التأمين
B7: (صافي الأقساط المكتتبة الى إجمالي الاقساط المكتتبة)
B8: Retention Ratios of Written Premium by Line of Business
B9: (Net Written Premium ÷ Gross Written Premium)
B11: جدول رقم 4B | I11: TABLE 4B
B12: بالألف درهم | I12: AED in 000's
B13: فروع التأمين | C13: شركات التأمين التقليدي الوطنية | E13: شركات التأمين التكافلي الوطنية | G13: الشركات الوطنية | I13: Line of Business
C14: TRADITIONAL COMPANIES | E14: TAKAFUL OPERATORS | G14: NATIONAL COMPANIES
C15: 2023 | D15: 2024 | E15: 2023 | F15: 2024 | G15: 2023 | H15: 2024
B16: تأمين الحريق | C16: =IFERROR('3B'!C16/'2B'!C16,"") -> 0.1576917425 | D16: =IFERROR('3B'!D16/'2B'!D16,"") -> 0.1376898834 | E16: =IFERROR('3B'!E16/'2B'!E16,"") -> 0.1504317312 | F16: =IFERROR('3B'!F16/'2B'!F16,"") -> 0.1085836688 | G16: =IFERROR('3B'!G16/'2B'!G16,"") -> 0.1567575156 | H16: =IFERROR('3B'!H16/'2B'!H16,"") -> 0.1345015291 | I16: Fire
B17: التأمين البحري والطيران | C17: =IFERROR('3B'!C17/'2B'!C17,"") -> 0.1625168671 | D17: =IFERROR('3B'!D17/'2B'!D17,"") -> 0.1599248439 | E17: =IFERROR('3B'!E17/'2B'!E17,"") -> 0.2030891212 | F17: =IFERROR('3B'!F17/'2B'!F17,"") -> 0.3245203539 | G17: =IFERROR('3B'!G17/'2B'!G17,"") -> 0.1651683464 | H17: =IFERROR('3B'!H17/'2B'!H17,"") -> 0.1702072373 | I17: Marine & Aviation
B18: تأمين السيارات والمركبات الأخرى | C18: =IFERROR('3B'!C18/'2B'!C18,"") -> 0.7436140849 | D18: =IFERROR('3B'!D18/'2B'!D18,"") -> 0.7997114455 | E18: =IFERROR('3B'!E18/'2B'!E18,"") -> 0.7601572147 | F18: =IFERROR('3B'!F18/'2B'!F18,"") -> 0.7129326078 | G18: =IFERROR('3B'!G18/'2B'!G18,"") -> 0.7478349686 | H18: =IFERROR('3B'!H18/'2B'!H18,"") -> 0.7820444609 | I18: Motor & Transportation
B19: التأمين الهندسي والانشاءات والطاقة | C19: =IFERROR('3B'!C19/'2B'!C19,"") -> 0.1655862298 | D19: =IFERROR('3B'!D19/'2B'!D19,"") -> 0.1355958616 | E19: =IFERROR('3B'!E19/'2B'!E19,"") -> 0.3329600394 | F19: =IFERROR('3B'!F19/'2B'!F19,"") -> 0.2722346626 | G19: =IFERROR('3B'!G19/'2B'!G19,"") -> 0.1747139609 | H19: =IFERROR('3B'!H19/'2B'!H19,"") -> 0.1446894861 | I19: Engineering, Construction & Energy
B20: أخرى | C20: =IFERROR('3B'!C20/'2B'!C20,"") -> 0.2460742899 | D20: =IFERROR('3B'!D20/'2B'!D20,"") -> 0.2429388112 | E20: =IFERROR('3B'!E20/'2B'!E20,"") -> 0.2983817061 | F20: =IFERROR('3B'!F20/'2B'!F20,"") -> 0.3341402876 | G20: =IFERROR('3B'!G20/'2B'!G20,"") -> 0.2514966615 | H20: =IFERROR('3B'!H20/'2B'!H20,"") -> 0.2532021138 | I20: Other
B21: اعادة التأمين غير النسبية - المسؤوليات والممتلكات | C21: =IFERROR('3B'!C21/'2B'!C21,"") -> 0.3005874505 | D21: =IFERROR('3B'!D21/'2B'!D21,"") -> 0.7702461947 | E21: =IFERROR('3B'!E21/'2B'!E21,"") ->  | F21: =IFERROR('3B'!F21/'2B'!F21,"") ->  | G21: =IFERROR('3B'!G21/'2B'!G21,"") -> 0.3005874505 | H21: =IFERROR('3B'!H21/'2B'!H21,"") -> 0.7702461947 | I21: Reinsurance - Property & Liability
B22: المجموع - تأمين الممتلكات والمسؤوليات | C22: =IFERROR('3B'!C22/'2B'!C22,"") -> 0.3061172602 | D22: =IFERROR('3B'!D22/'2B'!D22,"") -> 0.3252109169 | E22: =IFERROR('3B'!E22/'2B'!E22,"") -> 0.4814331391 | F22: =IFERROR('3B'!F22/'2B'!F22,"") -> 0.4463235364 | G22: =IFERROR('3B'!G22/'2B'!G22,"") -> 0.3295212108 | H22: =IFERROR('3B'!H22/'2B'!H22,"") -> 0.3402127141 | I22: Total - Property & Liability Insurance
B24: المجموع - تأمين صحي | C24: =IFERROR('3B'!C24/'2B'!C24,"") -> 0.5443464395 | D24: =IFERROR('3B'!D24/'2B'!D24,"") -> 0.5830771581 | E24: =IFERROR('3B'!E24/'2B'!E24,"") -> 0.5864930974 | F24: =IFERROR('3B'!F24/'2B'!F24,"") -> 0.5312039558 | G24: =IFERROR('3B'!G24/'2B'!G24,"") -> 0.5483582816 | H24: =IFERROR('3B'!H24/'2B'!H24,"") -> 0.5783496888 | I24: Total - Health Insurance
B26: تأمين حياة جماعي | C26: =IFERROR('3B'!C26/'2B'!C26,"") -> 0.4249713099 | D26: =IFERROR('3B'!D26/'2B'!D26,"") -> 0.413394073 | E26: =IFERROR('3B'!E26/'2B'!E26,"") -> 0.1516071488 | F26: =IFERROR('3B'!F26/'2B'!F26,"") -> 0.2317821212 | G26: =IFERROR('3B'!G26/'2B'!G26,"") -> 0.3758314984 | H26: =IFERROR('3B'!H26/'2B'!H26,"") -> 0.4033160779 | I26: Group Life
B27: تأمين ائتمان حياة جماعي | C27: =IFERROR('3B'!C27/'2B'!C27,"") -> 0.3257663066 | D27: =IFERROR('3B'!D27/'2B'!D27,"") -> 0.2772432823 | E27: =IFERROR('3B'!E27/'2B'!E27,"") -> 0.4607713518 | F27: =IFERROR('3B'!F27/'2B'!F27,"") -> 0.3276634708 | G27: =IFERROR('3B'!G27/'2B'!G27,"") -> 0.382985306 | H27: =IFERROR('3B'!H27/'2B'!H27,"") -> 0.3040598727 | I27: Group Credit Life
B28: تأمين حياة فردي | C28: =IFERROR('3B'!C28/'2B'!C28,"") -> 0.9239479216 | D28: =IFERROR('3B'!D28/'2B'!D28,"") -> 0.9421884876 | E28: =IFERROR('3B'!E28/'2B'!E28,"") -> 0.906764847 | F28: =IFERROR('3B'!F28/'2B'!F28,"") -> 0.8337850556 | G28: =IFERROR('3B'!G28/'2B'!G28,"") -> 0.9194247423 | H28: =IFERROR('3B'!H28/'2B'!H28,"") -> 0.9197046274 | I28: Individual Life
B29: دفعات الحياة وتكوين الأموال | C29: =IFERROR('3B'!C29/'2B'!C29,"") ->  | D29: =IFERROR('3B'!D29/'2B'!D29,"") ->  | E29: =IFERROR('3B'!E29/'2B'!E29,"") ->  | F29: =IFERROR('3B'!F29/'2B'!F29,"") ->  | G29: =IFERROR('3B'!G29/'2B'!G29,"") ->  | H29: =IFERROR('3B'!H29/'2B'!H29,"") ->  | I29: Annuities & Fund Accumulation
B30: المجموع - تأمين الأشخاص وعمليات تكوين الأموال | C30: =IFERROR('3B'!C30/'2B'!C30,"") -> 0.6498085934 | D30: =IFERROR('3B'!D30/'2B'!D30,"") -> 0.6581595155 | E30: =IFERROR('3B'!E30/'2B'!E30,"") -> 0.6040397269 | F30: =IFERROR('3B'!F30/'2B'!F30,"") -> 0.5411040454 | G30: =IFERROR('3B'!G30/'2B'!G30,"") -> 0.637432482 | H30: =IFERROR('3B'!H30/'2B'!H30,"") -> 0.6312964031 | I30: Total - Insurance of Persons & Fund Accumulation
B32: المجموع - كافة فروع التأمين | C32: =IFERROR('3B'!C32/'2B'!C32,"") -> 0.4445230004 | D32: =IFERROR('3B'!D32/'2B'!D32,"") -> 0.4665090197 | E32: =IFERROR('3B'!E32/'2B'!E32,"") -> 0.5383340439 | F32: =IFERROR('3B'!F32/'2B'!F32,"") -> 0.4892264576 | G32: =IFERROR('3B'!G32/'2B'!G32,"") -> 0.4561584155 | H32: =IFERROR('3B'!H32/'2B'!H32,"") -> 0.4691210144 | I32: TOTAL - All Types of Business Combined

Sheet 4C
B6: توزيع أقساط إعادة التأمين حسب التوزيع الجغرافي والتصنيف لكافة شركات التأمين العاملة في القطاع
B7: Ceded premiums per geographic location and rating - All Companies
B8: (2024)
B10: جدول رقم 4C | F10: TABLE 4C
B11: بالألف درهم | F11: AED in 000's
B12: البيــــــــان | C12: الشركات الوطنية | D12: الشركات الأجنبية | E12: الاجمالي | F12: DESCRIPTION
C13: NATIONAL COMPANIES | D13: FOREIGN COMPANIES | E13: TOTAL
B14: داخل الدولة | F14: Inside UAE
B15: AAA | C15: 6595.267392 | D15: 410.17045 | E15: =C15+D15 -> 7005.437842 | F15: AAA
B16: AA | C16: 843970.2243 | D16: 25133.80486 | E16: =C16+D16 -> 869104.0292 | F16: AA
B17: A | C17: 2744035.354 | D17: 101398.4558 | E17: 2845433.81 | F17: A
B18: BBB | C18: 314698.8354 | D18: 15033.26148 | E18: 329732.0969 | F18: BBB
B19: BB | C19: 28112.74414 | D19: 3204.575782 | E19: 31317.31992 | F19: BB
B20: B | C20: 53140.22938 | D20: 6310.814297 | E20: 59451.04368 | F20: B
B21: أخري | C21: 19183.06031 | D21: 0 | E21: 19183.06031 | F21: Other
B22: غير مُصنفة | C22: 262513.8056 | D22: 2493.62909 | E22: 265007.4347 | F22: Unrated
B23: الاجمالي حسب نوع التصنيف | C23: =C15+C16+C17+C18+C19+C20+C21+C22 -> 4272249.52 | D23: =D15+D16+D17+D18+D19+D20+D21+D22 -> 153984.7118 | E23: =E15+E16+E17+E18+E19+E20+E21+E22 -> 4426234.232 | F23: Totals for All Rating Types
B25: مجلس التعاون الخليجي عدا دولة الإمارات | F25: GCC Excl UAE
B26: AAA | C26: 0 | D26: 0 | E26: =C26+D26 -> 0 | F26: AAA
B27: AA | C27: 184970.1019 | D27: 7451.896637 | E27: 192421.9986 | F27: AA
B28: A | C28: 494073.7302 | D28: 338164.7316 | E28: 832238.4618 | F28: A
B29: BBB | C29: 81075.76123 | D29: 4427.397698 | E29: 85503.15893 | F29: BBB
B30: BB | C30: 21263.00176 | D30: 862.3499986 | E30: 22125.35176 | F30: BB
B31: B | C31: 12577.75447 | D31: 114.398 | E31: 12692.15247 | F31: B
B32: أخري | C32: 455.8600885 | D32: 0 | E32: 455.8600885 | F32: Other
B33: غير مُصنفة | C33: 4808.544529 | D33: 772.941135 | E33: 5581.485664 | F33: Unrated
B34: الاجمالي حسب نوع التصنيف | C34: =C26+C27+C28+C29+C30+C31+C32+C33 -> 799224.7542 | D34: =D26+D27+D28+D29+D30+D31+D32+D33 -> 351793.7151 | E34: =E26+E27+E28+E29+E30+E31+E32+E33 -> 1151018.469 | F34: Totals for All Rating Types
B36: منطقة الشرق الأوسط وشمال أفريقيا عدا منطقة مجلس التعاون الخليجي | F36: MENA Excl GCC
B37: AAA | C37: 8567.27072 | D37: 1188.41015 | E37: =C37+D37 -> 9755.68087 | F37: AAA
B38: AA | C38: 137097.7024 | D38: 0 | E38: =C38+D38 -> 137097.7024 | F38: AA
B39: A | C39: 502295.6213 | D39: 4737.112958 | E39: 507032.7342 | F39: A
B40: BBB | C40: 215611.6317 | D40: 7068.355303 | E40: 222679.987 | F40: BBB
B41: BB | C41: 60052.47929 | D41: 228.8471819 | E41: 60281.32647 | F41: BB
B42: B | C42: 184295.5088 | D42: 1478.624251 | E42: 185774.1331 | F42: B
B43: أخري | C43: 2632.667459 | D43: 0 | E43: 2632.667459 | F43: Other
B44: غير مُصنفة | C44: 1819.00493 | D44: 4934.96878 | E44: 6753.97371 | F44: Unrated
B45: الاجمالي حسب نوع التصنيف | C45: =C37+C38+C39+C40+C41+C42+C43+C44 -> 1112371.887 | D45: =D37+D38+D39+D40+D41+D42+D43+D44 -> 19636.31862 | E45: 1132008.205 | F45: Totals for All Rating Types
B47: خارج منطقة الشرق الأوسط وشمال أفريقيا | F47: Outside MENA
B48: AAA | C48: 315470.373 | D48: 8029.771678 | E48: =C48+D48 -> 323500.1447 | F48: AAA
B49: AA | C49: 5430934.993 | D49: 1508316.914 | E49: 6939251.907 | F49: AA
B50: A | C50: 12045928.79 | D50: 1930469.805 | E50: 13976398.59 | F50: A
B51: BBB | C51: 356685.4933 | D51: 25445.51469 | E51: 382131.0079 | F51: BBB
B52: BB | C52: 93156.38718 | D52: 1774.354237 | E52: 94930.74142 | F52: BB
B53: B | C53: 168307.8581 | D53: 2725.969309 | E53: 171033.8274 | F53: B
B54: أخري | C54: 23955.50205 | D54: 2573.826735 | E54: 26529.32879 | F54: Other
B55: غير مُصنفة | C55: 698401.7033 | D55: 59441.43236 | E55: 757843.1356 | F55: Unrated
B56: الاجمالي حسب نوع التصنيف | C56: =C48+C49+C50+C51+C52+C53+C54+C55 -> 19132841.1 | D56: =D48+D49+D50+D51+D52+D53+D54+D55 -> 3538777.588 | E56: 22671618.68 | F56: Totals for All Rating Types
B58: كافة المناطق حسب التوزيع الجغرافي | F58: Totals for All Regions
B59: AAA | C59: =C15+C26+C37+C48 -> 330632.9111 | D59: =D15+D26+D37+D48 -> 9628.352278 | E59: =C59+D59 -> 340261.2634 | F59: AAA
B60: AA | C60: =C16+C27+C38+C49 -> 6596973.021 | D60: 1540902.615 | E60: 8137875.637 | F60: AA
B61: A | C61: =C17+C28+C39+C50 -> 15786333.49 | D61: 2374770.105 | E61: 18161103.6 | F61: A
B62: BBB | C62: =C18+C29+C40+C51 -> 968071.7216 | D62: 51974.52916 | E62: 1020046.251 | F62: BBB
B63: BB | C63: =C19+C30+C41+C52 -> 202584.6124 | D63: 6070.127199 | E63: 208654.7396 | F63: BB
B64: B | C64: =C20+C31+C42+C53 -> 418321.3508 | D64: 10629.80586 | E64: 428951.1566 | F64: B
B65: أخري | C65: =C21+C32+C43+C54 -> 46227.08991 | D65: 2573.826735 | E65: =C65+D65 -> 48800.91664 | F65: Other
B66: غير مُصنفة | C66: =C22+C33+C44+C55 -> 967543.0583 | D66: 67642.97136 | E66: =C66+D66 -> 1035186.03 | F66: Unrated
B67: الاجمالي حسب نوع التصنيف | C67: =C59+C60+C61+C62+C63+C64+C65+C66 -> 25316687.26 | D67: =D59+D60+D61+D62+D63+D64+D65+D66 -> 4064192.333 | E67: =E59+E60+E61+E62+E63+E64+E65+E66 -> 29380879.59 | F67: Totals for All Rating Types

Sheet 4D
B6: توزيع أقساط إعادة التأمين حسب التوزيع الجغرافي
B7: شركات التأمين التقليدي الوطنية وشركات التأمين التكافلي الوطنية
B8: Ceded premiums per geographic location and rating
B9: Traditional & Takaful National Companies
B10: (2024)
B12: جدول رقم 4D | F12: TABLE 4D
B13: بالألف درهم | F13: AED in 000's
B14: البيــــــــان | C14: شركات التأمين التقليدي الوطنية | D14: شركات التأمين التكافلي الوطنية | E14: إجمالي الشركات الوطنية | F14: DESCRIPTION
C15: TRADITIONAL COMPANIES | D15: TAKAFUL OPERATORS | E15: TOTAL of NATIONAL COMPANIES
B16: داخل الدولة | F16: Inside UAE
B17: AAA | C17: 6311.230342 | D17: 284.03705 | E17: =C17+D17 -> 6595.267392 | F17: AAA
B18: AA | C18: 659798.0523 | D18: 184172.1721 | E18: =C18+D18 -> 843970.2243 | F18: AA
B19: A | C19: 2185341.59 | D19: 558693.7635 | E19: 2744035.354 | F19: A
B20: BBB | C20: 25019.72799 | D20: 289679.1074 | E20: 314698.8354 | F20: BBB
B21: BB | C21: 0 | D21: 28112.74414 | E21: 28112.74414 | F21: BB
B22: B | C22: 0 | D22: 53140.22938 | E22: 53140.22938 | F22: B
B23: أخري | C23: 4758.055894 | D23: 14425.00441 | E23: =C23+D23 -> 19183.06031 | F23: Other
B24: غير مُصنفة | C24: 221219.4242 | D24: 41294.38139 | E24: 262513.8056 | F24: Unrated
B25: الاجمالي حسب نوع التصنيف | C25: =C17+C18+C19+C20+C21+C22+C23+C24 -> 3102448.081 | D25: =D17+D18+D19+D20+D21+D22+D23+D24 -> 1169801.439 | E25: =E17+E18+E19+E20+E21+E22+E23+E24 -> 4272249.52 | F25: Totals for All Rating Types
B27: مجلس التعاون الخليجي عدا دولة الإمارات | F27: GCC Excl UAE
B28: AAA | C28: 0 | D28: 0 | E28: =C28+D28 -> 0 | F28: AAA
B29: AA | C29: 75592.33911 | D29: 109377.7628 | E29: =C29+D29 -> 184970.1019 | F29: AA
B30: A | C30: 335306.9349 | D30: 158766.7952 | E30: =C30+D30 -> 494073.7302 | F30: A
B31: BBB | C31: 78796.61181 | D31: 2279.149429 | E31: 81075.76123 | F31: BBB
B32: BB | C32: 20610.51804 | D32: 652.4837248 | E32: 21263.00176 | F32: BB
B33: B | C33: 11861.7289 | D33: 716.0255709 | E33: 12577.75447 | F33: B
B34: أخري | C34: 434.2391177 | D34: 21.62097077 | E34: 455.8600885 | F34: Other
B35: غير مُصنفة | C35: 4532.172341 | D35: 276.3721881 | E35: 4808.544529 | F35: Unrated
B36: الاجمالي حسب نوع التصنيف | C36: =C28+C29+C30+C31+C32+C33+C34+C35 -> 527134.5443 | D36: =D28+D29+D30+D31+D32+D33+D34+D35 -> 272090.2099 | E36: =E28+E29+E30+E31+E32+E33+E34+E35 -> 799224.7542 | F36: Totals for All Rating Types
B38: منطقة الشرق الأوسط وشمال أفريقيا عدا منطقة مجلس التعاون الخليجي | F38: MENA Excl GCC
B39: AAA | C39: 7576.510251 | D39: 990.760469 | E39: =C39+D39 -> 8567.27072 | F39: AAA
B40: AA | C40: 137063.242 | D40: 34.46039305 | E40: =C40+D40 -> 137097.7024 | F40: AA
B41: A | C41: 472877.3751 | D41: 29418.24615 | E41: =C41+D41 -> 502295.6213 | F41: A
B42: BBB | C42: 214813.6227 | D42: 798.0090051 | E42: 215611.6317 | F42: BBB
B43: BB | C43: 60052.47929 | D43: 0 | E43: 60052.47929 | F43: BB
B44: B | C44: 141849.0167 | D44: 42446.49211 | E44: 184295.5088 | F44: B
B45: أخري | C45: 2623.744173 | D45: 8.923286762 | E45: 2632.667459 | F45: Other
B46: غير مُصنفة | C46: 1763.10593 | D46: 55.899 | E46: 1819.00493 | F46: Unrated
B47: الاجمالي حسب نوع التصنيف | C47: =C39+C40+C41+C42+C43+C44+C45+C46 -> 1038619.096 | D47: =D39+D40+D41+D42+D43+D44+D45+D46 -> 73752.79042 | E47: =E39+E40+E41+E42+E43+E44+E45+E46 -> 1112371.887 | F47: Totals for All Rating Types
B49: خارج منطقة الشرق الأوسط وشمال أفريقيا | F49: Outside MENA
B50: AAA | C50: 230900.2406 | D50: 84570.13237 | E50: =C50+D50 -> 315470.373 | F50: AAA
B51: AA | C51: 5100435.587 | D51: 330499.4054 | E51: =C51+D51 -> 5430934.993 | F51: AA
B52: A | C52: 11271350.1 | D52: 774578.6829 | E52: 12045928.79 | F52: A
B53: BBB | C53: 319037.8402 | D53: 37647.65307 | E53: 356685.4933 | F53: BBB
B54: BB | C54: 92920.84318 | D54: 235.544 | E54: 93156.38718 | F54: BB
B55: B | C55: 161845.2657 | D55: 6462.592363 | E55: 168307.8581 | F55: B
B56: أخري | C56: 23484.80704 | D56: 470.695011 | E56: 23955.50205 | F56: Other
B57: غير مُصنفة | C57: 696487.1785 | D57: 1914.524732 | E57: =C57+D57 -> 698401.7033 | F57: Unrated
B58: الاجمالي حسب نوع التصنيف | C58: =C50+C51+C52+C53+C54+C55+C56+C57 -> 17896461.87 | D58: =D50+D51+D52+D53+D54+D55+D56+D57 -> 1236379.23 | E58: =E50+E51+E52+E53+E54+E55+E56+E57 -> 19132841.1 | F58: Totals for All Rating Types
B60: كافة المناطق حسب التوزيع الجغرافي | F60: Totals for All Regions
B61: AAA | C61: =C17+C28+C39+C50 -> 244787.9812 | D61: =D17+D28+D39+D50 -> 85844.92989 | E61: =C61+D61 -> 330632.9111 | F61: AAA
B62: AA | C62: =C18+C29+C40+C51 -> 5972889.221 | D62: 624083.8006 | E62: =C62+D62 -> 6596973.021 | F62: AA
B63: A | C63: =C19+C30+C41+C52 -> 14264876.01 | D63: 1521457.488 | E63: 15786333.49 | F63: A
B64: BBB | C64: =C20+C31+C42+C53 -> 637667.8026 | D64: 330403.9189 | E64: 968071.7216 | F64: BBB
B65: BB | C65: =C21+C32+C43+C54 -> 173583.8405 | D65: 29000.77186 | E65: 202584.6124 | F65: BB
B66: B | C66: =C22+C33+C44+C55 -> 315556.0113 | D66: 102765.3394 | E66: 418321.3508 | F66: B
B67: أخري | C67: =C23+C34+C45+C56 -> 31300.84623 | D67: 14926.24368 | E67: 46227.08991 | F67: Other
B68: غير مُصنفة | C68: =C24+C35+C46+C57 -> 924001.881 | D68: 43541.17731 | E68: 967543.0583 | F68: Unrated
B69: الاجمالي حسب نوع التصنيف | C69: =C61+C62+C63+C64+C65+C66+C67+C68 -> 22564663.59 | D69: =D61+D62+D63+D64+D65+D66+D67+D68 -> 2752023.669 | E69: 25316687.26 | F69: Totals for All Rating Types

Sheet 4E
B6: توزيع أقساط إعادة التأمين حسب التوزيع الجغرافي والتصنيف
B7: لشركات التامين على الأشخاص وتكوين الأموال وشركات تامين الممتلكات والمسؤوليات والشركات التي تمارس النوعين معاً
B8: Ceded premiums per geographic location and rating -
B9: Life, Non-Life & Composite
B11: جدول رقم 4E | K11: TABLE 4E
B12: بالألف درهم | K12: AED in 000's
B13: البيــــــــان | C13: شركات التأمين على الأشخاص وتكوين الأموال | E13: شركات تأمين الممتلكات والمسؤوليات | G13: شركات التأمين (النوعين معاً) | I13: الاجمالي | K13: DESCRIPTION
C14: LIFE COMPANIES | E14: NON-LIFE COMPANIES | G14: COMPOSITE COMPANIES | I14: TOTAL
C15: 2023 | D15: 2024 | E15: 2023 | F15: 2024 | G15: 2023 | H15: 2024 | I15: 2023 | J15: 2024
B16: داخل الدولة | K16: Inside UAE
B17: AAA | C17: 243.953 | D17: 0 | E17: 26023.00223 | F17: 6213.11287 | G17: 78.25864986 | H17: 792.3249725 | I17: =C17+E17+G17 -> 26345.21388 | J17: =D17+F17+H17 -> 7005.437842 | K17: AAA
B18: AA | C18: 53756.11672 | D18: 100155.4207 | E18: 92467.78795 | F18: 115392.5337 | G18: 646591.2532 | H18: 653556.0748 | I18: =C18+E18+G18 -> 792815.1579 | J18: =D18+F18+H18 -> 869104.0292 | K18: AA
B19: A | C19: 65128.05066 | D19: 88154.16189 | E19: 418321.5184 | F19: 923783.2071 | G19: 871255.0873 | H19: 1833496.441 | I19: 1354704.656 | J19: 2845433.81 | K19: A
B20: BBB | C20: 926.02045 | D20: 7409.206622 | E20: 61688.95427 | F20: 302046.9765 | G20: 55325.92089 | H20: 20275.91376 | I20: 117940.8956 | J20: 329732.0969 | K20: BBB
B21: BB | C21: 629.50814 | D21: 5.53547 | E21: 16510.4377 | F21: 31311.78445 | G21: 795.3087049 | H21: 0 | I21: 17935.25454 | J21: 31317.31992 | K21: BB
B22: B | C22: 0 | D22: 0 | E22: 90466.15425 | F22: 59451.04368 | G22: 16593.56606 | H22: 0 | I22: 107059.7203 | J22: 59451.04368 | K22: B
B23: أخري | C23: 0 | D23: 0 | E23: 789.526503 | F23: 113.10115 | G23: 15158.08341 | H23: 19069.95916 | I23: 15947.60991 | J23: 19183.06031 | K23: Other
B24: غير مُصنفة | C24: 2516.763875 | D24: 3046.663755 | E24: 112244.1848 | F24: 91259.36404 | G24: 322051.2152 | H24: 170701.4069 | I24: 436812.1639 | J24: 265007.4347 | K24: Unrated
B25: الاجمالي حسب نوع التصنيف | C25: =C17+C18+C19+C20+C21+C22+C23+C24 -> 123200.4128 | D25: =D17+D18+D19+D20+D21+D22+D23+D24 -> 198770.9884 | E25: 818511.5661 | F25: 1529571.123 | G25: 1927848.693 | H25: 2697892.12 | I25: 2869560.672 | J25: 4426234.232 | K25: Totals for All Rating Types
B27: مجلس التعاون الخليجي عدا دولة الإمارات | K27: GCC Excl UAE
B28: AAA | C28: 0 | D28: 0 | E28: 0 | F28: 0 | G28: 0 | H28: 0 | I28: =C28+E28+G28 -> 0 | J28: =D28+F28+H28 -> 0 | K28: AAA
B29: AA | C29: 0 | D29: 0 | E29: 2686.079538 | F29: 8874.451637 | G29: 195479.4656 | H29: 183547.5469 | I29: 198165.5452 | J29: 192421.9986 | K29: AA
B30: A | C30: 26406.89269 | D30: 60807.33802 | E30: 158493.9493 | F30: 430499.036 | G30: 138934.9654 | H30: 340932.0878 | I30: 323835.8073 | J30: 832238.4618 | K30: A
B31: BBB | C31: 303.0674 | D31: 0 | E31: 681.3425242 | F31: 21572.4571 | G31: 134585.2899 | H31: 63930.70183 | I31: 135569.6999 | J31: 85503.15893 | K31: BBB
B32: BB | C32: 0 | D32: 0 | E32: 7589.597367 | F32: 3662.145466 | G32: 12103.5694 | H32: 18463.20629 | I32: 19693.16677 | J32: 22125.35176 | K32: BB
B33: B | C33: 0 | D33: 0 | E33: 192.5813859 | F33: 2431.63282 | G33: 2587.560674 | H33: 10260.51965 | I33: 2780.14206 | J33: 12692.15247 | K33: B
B34: أخري | C34: 0 | D34: 0 | E34: 18.3010377 | F34: 0 | G34: 2316.888582 | H34: 455.8600885 | I34: 2335.18962 | J34: 455.8600885 | K34: Other
B35: غير مُصنفة | C35: 0 | D35: 0 | E35: 2583.228197 | F35: 1062.033323 | G35: 33325.27694 | H35: 4519.452341 | I35: 35908.50514 | J35: 5581.485664 | K35: Unrated
B36: الاجمالي حسب نوع التصنيف | C36: =C28+C29+C30+C31+C32+C33+C34+C35 -> 26709.96009 | D36: =D28+D29+D30+D31+D32+D33+D34+D35 -> 60807.33802 | E36: 172245.0793 | F36: 468101.7563 | G36: 519333.0166 | H36: 622109.375 | I36: 718288.056 | J36: 1151018.469 | K36: Totals for All Rating Types
B38: منطقة الشرق الأوسط وشمال أفريقيا عدا منطقة مجلس التعاون الخليجي | K38: MENA Excl GCC
B39: AAA | C39: 0 | D39: 990.760469 | E39: 186.8335475 | F39: 1188.41015 | G39: 4881.080749 | H39: 7576.510251 | I39: =C39+E39+G39 -> 5067.914297 | J39: =D39+F39+H39 -> 9755.68087 | K39: AAA
B40: AA | C40: 0 | D40: 0 | E40: 0 | F40: 1533.222084 | G40: 145544.7315 | H40: 135564.4803 | I40: 145544.7315 | J40: 137097.7024 | K40: AA
B41: A | C41: 0 | D41: 0 | E41: 5411.807136 | F41: 17779.76674 | G41: 378798.7441 | H41: 489252.9675 | I41: 384210.5513 | J41: 507032.7342 | K41: A
B42: BBB | C42: 0 | D42: 0 | E42: 7651.647684 | F42: 9339.852344 | G42: 41792.17623 | H42: 213340.1346 | I42: 49443.82391 | J42: 222679.987 | K42: BBB
B43: BB | C43: 0 | D43: 0 | E43: 2843.610337 | F43: 358.5876024 | G43: 33330.39678 | H43: 59922.73887 | I43: 36174.00712 | J43: 60281.32647 | K43: BB
B44: B | C44: 0 | D44: 0 | E44: 18023.05328 | F44: 22424.37105 | G44: 356347.8471 | H44: 163349.762 | I44: 374370.9004 | J44: 185774.1331 | K44: B
B45: أخري | C45: 0 | D45: 0 | E45: 4746.032 | F45: 0 | G45: 3708.055983 | H45: 2632.667459 | I45: 8454.087983 | J45: 2632.667459 | K45: Other
B46: غير مُصنفة | C46: 32.8446 | D46: 0 | E46: 278.8547346 | F46: 5049.13008 | G46: 28125.55534 | H46: 1704.84363 | I46: 28437.25468 | J46: 6753.97371 | K46: Unrated
B47: الاجمالي حسب نوع التصنيف | C47: =C39+C40+C41+C42+C43+C44+C45+C46 -> 32.8446 | D47: =D39+D40+D41+D42+D43+D44+D45+D46 -> 990.760469 | E47: 39141.83872 | F47: 57673.34006 | G47: 992528.5878 | H47: 1073344.105 | I47: 1031703.271 | J47: 1132008.205 | K47: Totals for All Rating Types
B49: خارج منطقة الشرق الأوسط وشمال أفريقيا | K49: Outside MENA
B50: AAA | C50: 16546.45476 | D50: 1152.541911 | E50: 35967.17416 | F50: 70029.57511 | G50: 131167.3226 | H50: 252318.0277 | I50: =C50+E50+G50 -> 183680.9515 | J50: =D50+F50+H50 -> 323500.1447 | K50: AAA
B51: AA | C51: 479506.4485 | D51: 630938.7967 | E51: 1319726.702 | F51: 1575208.234 | G51: 2661604.589 | H51: 4733104.876 | I51: 4460837.739 | J51: 6939251.907 | K51: AA
B52: A | C52: 102293.2488 | D52: 249098.447 | E52: 1575253.257 | F52: 2636893.905 | G52: 8871997.909 | H52: 11090406.24 | I52: 10549544.41 | J52: 13976398.59 | K52: A
B53: BBB | C53: 5197.462914 | D53: 16145.4192 | E53: 66882.35955 | F53: 45581.4332 | G53: 309084.9767 | H53: 320404.1555 | I53: 381164.7992 | J53: 382131.0079 | K53: BBB
B54: BB | C54: 10733.09624 | D54: 0 | E54: 2452.830323 | F54: 1145.557743 | G54: 48957.50048 | H54: 93785.18368 | I54: =C54+E54+G54 -> 62143.42704 | J54: =D54+F54+H54 -> 94930.74142 | K54: BB
B55: B | C55: 0 | D55: 0 | E55: 8885.351707 | F55: 18356.92966 | G55: 96099.20258 | H55: 152676.8977 | I55: 104984.5543 | J55: 171033.8274 | K55: B
B56: أخري | C56: 0 | D56: 0 | E56: 50636.67105 | F56: 2849.331235 | G56: 25905.78013 | H56: 23679.99755 | I56: 76542.45118 | J56: 26529.32879 | K56: Other
B57: غير مُصنفة | C57: 8777.260613 | D57: 75.65613 | E57: 51531.10824 | F57: 31986.53595 | G57: 825260.8007 | H57: 725780.9435 | I57: 885569.1696 | J57: 757843.1356 | K57: Unrated
B58: الاجمالي حسب نوع التصنيف | C58: =C50+C51+C52+C53+C54+C55+C56+C57 -> 623053.9719 | D58: =D50+D51+D52+D53+D54+D55+D56+D57 -> 897410.861 | E58: 3111335.454 | F58: 4382051.502 | G58: 12970078.08 | H58: 17392156.32 | I58: 16704467.51 | J58: 22671618.68 | K58: Totals for All Rating Types
B60: كافة المناطق حسب التوزيع الجغرافي | K60: Totals for All Regions
B61: AAA | C61: =C17+C28+C39+C50 -> 16790.40776 | D61: =D17+D28+D39+D50 -> 2143.30238 | E61: 62177.00993 | F61: 77431.09813 | G61: 136126.662 | H61: 260686.8629 | I61: =C61+E61+G61 -> 215094.0797 | J61: =D61+F61+H61 -> 340261.2634 | K61: AAA
B62: AA | C62: =C18+C29+C40+C51 -> 533262.5652 | D62: 731094.2174 | E62: 1414880.57 | F62: 1701008.441 | G62: 3649220.039 | H62: 5705772.978 | I62: 5597363.174 | J62: 8137875.637 | K62: AA
B63: A | C63: =C19+C30+C41+C52 -> 193828.1922 | D63: 398059.9469 | E63: 2157480.532 | F63: 4008955.915 | G63: 10260986.71 | H63: 13754087.74 | I63: 12612295.43 | J63: 18161103.6 | K63: A
B64: BBB | C64: =C20+C31+C42+C53 -> 6426.550764 | D64: 23554.62583 | E64: 136904.304 | F64: 378540.7191 | G64: 540788.3638 | H64: 617950.9057 | I64: 684119.2186 | J64: 1020046.251 | K64: BBB
B65: BB | C65: =C21+C32+C43+C54 -> 11362.60438 | D65: 5.53547 | E65: 29396.47572 | F65: 36478.07526 | G65: 95186.77537 | H65: 172171.1288 | I65: =C65+E65+G65 -> 135945.8555 | J65: =D65+F65+H65 -> 208654.7396 | K65: BB
B66: B | C66: =C22+C33+C44+C55 -> 0 | D66: 0 | E66: 117567.1406 | F66: 102663.9772 | G66: 471628.1764 | H66: 326287.1794 | I66: =C66+E66+G66 -> 589195.3171 | J66: =D66+F66+H66 -> 428951.1566 | K66: B
B67: أخري | C67: =C23+C34+C45+C56 -> 0 | D67: 0 | E67: 56190.5306 | F67: 2962.432385 | G67: 47088.8081 | H67: 45838.48426 | I67: 103279.3387 | J67: 48800.91664 | K67: Other
B68: غير مُصنفة | C68: =C24+C35+C46+C57 -> 11326.86909 | D68: 3122.319885 | E68: 166637.376 | F68: 129357.0634 | G68: 1208762.848 | H68: 902706.6464 | I68: 1386727.093 | J68: =D68+F68+H68 -> 1035186.03 | K68: Unrated
B69: الاجمالي حسب نوع التصنيف | C69: =C61+C62+C63+C64+C65+C66+C67+C68 -> 772997.1894 | D69: =D61+D62+D63+D64+D65+D66+D67+D68 -> 1157979.948 | E69: 4141233.938 | F69: 6437397.722 | G69: 16409788.38 | H69: 21785501.92 | I69: 21324019.51 | J69: 29380879.59 | K69: Totals for All Rating Types

Sheet 5A
B6: إجمالي الأقساط المكتسبة حسب فرع التأمين
B7: الشركات الوطنية والاجنبية
B8: Gross Earned Premium by Line of Business
B9: National & Foreign Companies
B11: جدول رقم 5A | I11: TABLE 5A
B12: بالألف درهم | I12: AED in 000's
B13: فروع التأمين | C13: الشركات الوطنية | E13: الشركات الأجنبية | G13: الاجمالي | I13: Line of Business
C14: NATIONAL COMPANIES | E14: FOREIGN COMPANIES | G14: TOTAL
C15: 2023 | D15: 2024 | E15: 2023 | F15: 2024 | G15: 2023 | H15: 2024
B16: تأمين الحريق | C16: 3971834.162 | D16: 4905939.945 | E16: 628668.2774 | F16: 661673.5256 | G16: =E16+C16 -> 4600502.439 | H16: =F16+D16 -> 5567613.471 | I16: Fire
B17: التأمين البحري والطيران | C17: 1731231.065 | D17: 1924394.747 | E17: 333901.5417 | F17: 339288.0314 | G17: =E17+C17 -> 2065132.607 | H17: =F17+D17 -> 2263682.778 | I17: Marine & Aviation
B18: تأمين السيارات والمركبات الأخرى | C18: 3537419.3 | D18: 5096599.147 | E18: 1392375.427 | F18: 1753088.365 | G18: 4929794.727 | H18: =F18+D18 -> 6849687.512 | I18: Motor & Transportation
B19: التأمين الهندسي والانشاءات والطاقة | C19: 2939175.536 | D19: 3322918.016 | E19: 177457.3697 | F19: 187638.9087 | G19: 3116632.906 | H19: =F19+D19 -> 3510556.925 | I19: Engineering, Construction & Energy
B20: أخرى | C20: 3653455.271 | D20: 4673355.817 | E20: 517346.7159 | F20: 547392.3327 | G20: 4170801.987 | H20: =F20+D20 -> 5220748.15 | I20: Other
B21: اعادة التأمين غير النسبية - المسؤوليات والممتلكات | C21: 5858.643684 | D21: 5899.103031 | E21: 0 | F21: 0 | G21: 5858.643684 | H21: =F21+D21 -> 5899.103031 | I21: Reinsurance - Property & Liability
B22: المجموع - تأمين الممتلكات والمسؤوليات | C22: =C16+C17+C18+C19+C20+C21 -> 15838973.98 | D22: =D16+D17+D18+D19+D20+D21 -> 19929106.78 | E22: =E16+E17+E18+E19+E20+E21 -> 3049749.331 | F22: =F16+F17+F18+F19+F20+F21 -> 3489081.164 | G22: =G16+G17+G18+G19+G20+G21 -> 18888723.31 | H22: =H16+H17+H18+H19+H20+H21 -> 23418187.94 | I22: Total - Property & Liability Insurance
B24: المجموع - تأمين صحي | C24: 18035973.21 | D24: 21062489.73 | E24: 6527747.204 | F24: 8372468.755 | G24: =E24+C24 -> 24563720.41 | H24: =F24+D24 -> 29434958.48 | I24: Total - Health Insurance
B26: تأمين حياة جماعي | C26: 801551.8068 | D26: 867758.8165 | E26: 195316.9358 | F26: 226338.0651 | G26: =E26+C26 -> 996868.7426 | H26: 1094096.882 | I26: Group Life
B27: تأمين ائتمان حياة جماعي | C27: 566306.4021 | D27: 612658.9576 | E27: 20732 | F27: 19524 | G27: 587038.4021 | H27: 632182.9576 | I27: Group Credit Life
B28: تأمين حياة فردي | C28: 1198547.72 | D28: 1450219.372 | E28: 3832447.194 | F28: 4306189.494 | G28: 5030994.914 | H28: 5756408.866 | I28: Individual Life
B29: دفعات الحياة وتكوين الأموال | C29: 0 | D29: 0 | E29: 48147.48767 | F29: 41766.65936 | G29: 48147.48767 | H29: 41766.65936 | I29: Annuities & Fund Accumulation
B30: المجموع - تأمين الأشخاص وعمليات تكوين الأموال | C30: =C26+C27+C28+C29 -> 2566405.929 | D30: =D26+D27+D28+D29 -> 2930637.146 | E30: =E26+E27+E28+E29 -> 4096643.618 | F30: 4593818.219 | G30: =G26+G27+G28+G29 -> 6663049.546 | H30: =H26+H27+H28+H29 -> 7524455.365 | I30: Total - Insurance of Persons & Fund Accumulation
B32: المجموع - كافة فروع التأمين | C32: =C22+C24+C30 -> 36441353.11 | D32: =D22+D24+D30 -> 43922233.65 | E32: =E22+E24+E30 -> 13674140.15 | F32: 16455368.14 | G32: =G22+G24+G30 -> 50115493.26 | H32: =H22+H24+H30 -> 60377601.79 | I32: TOTAL - All Types of Business Combined

Sheet 5B
B6: إجمالي الأقساط المكتسبة حسب فرع التأمين
B7: شركات التأمين التقليدي الوطنية وشركات التأمين التكافلي الوطنية
B8: Gross Earned Premium by Line of Business
B9: Traditional & Takaful National Companies
B11: جدول رقم 5B | I11: TABLE 5B
B12: بالألف درهم | I12: AED in 000's
B13: فروع التأمين | C13: شركات التأمين التقليدي الوطنية | E13: شركات التأمين التكافلي الوطنية | G13: الشركات الوطنية | I13: Line of Business
C14: TRADITIONAL COMPANIES | E14: TAKAFUL OPERATORS | G14: NATIONAL COMPANIES
C15: 2023 | D15: 2024 | E15: 2023 | F15: 2024 | G15: 2023 | H15: 2024
B16: تأمين الحريق | C16: 3497565.159 | D16: 4334285.538 | E16: 474269.0025 | F16: 571654.4073 | G16: =E16+C16 -> 3971834.162 | H16: 4905939.945 | I16: Fire
B17: التأمين البحري والطيران | C17: 1600501.513 | D17: 1812032.293 | E17: 130729.5517 | F17: 112362.4543 | G17: 1731231.065 | H17: 1924394.747 | I17: Marine & Aviation
B18: تأمين السيارات والمركبات الأخرى | C18: 2716965.311 | D18: 4059951.496 | E18: 820453.9888 | F18: 1036647.651 | G18: 3537419.3 | H18: 5096599.147 | I18: Motor & Transportation
B19: التأمين الهندسي والانشاءات والطاقة | C19: 2798470.065 | D19: 3135646.917 | E19: 140705.471 | F19: 187271.0989 | G19: 2939175.536 | H19: 3322918.016 | I19: Engineering, Construction & Energy
B20: أخرى | C20: 3275646.96 | D20: 4158028.755 | E20: 377808.3118 | F20: 515327.0618 | G20: 3653455.271 | H20: 4673355.817 | I20: Other
B21: اعادة التأمين غير النسبية - المسؤوليات والممتلكات | C21: 5858.643684 | D21: 5899.103031 | E21: 0 | F21: 0 | G21: 5858.643684 | H21: 5899.103031 | I21: Reinsurance - Property & Liability
B22: المجموع - تأمين الممتلكات والمسؤوليات | C22: =C16+C17+C18+C19+C20+C21 -> 13895007.65 | D22: 17505844.1 | E22: =E16+E17+E18+E19+E20+E21 -> 1943966.326 | F22: =F16+F17+F18+F19+F20+F21 -> 2423262.673 | G22: =G16+G17+G18+G19+G20+G21 -> 15838973.98 | H22: 19929106.78 | I22: Total - Property & Liability Insurance
B24: المجموع - تأمين صحي | C24: 16298176.57 | D24: 19139873.84 | E24: 1737796.64 | F24: 1922615.891 | G24: =E24+C24 -> 18035973.21 | H24: 21062489.73 | I24: Total - Health Insurance
B26: تأمين حياة جماعي | C26: 651462.1622 | D26: 823619.141 | E26: 150089.6446 | F26: 44139.67551 | G26: =E26+C26 -> 801551.8068 | H26: =F26+D26 -> 867758.8165 | I26: Group Life
B27: تأمين ائتمان حياة جماعي | C27: 318077.3185 | D27: 287960.2759 | E27: 248229.0836 | F27: 324698.6816 | G27: 566306.4021 | H27: 612658.9576 | I27: Group Credit Life
B28: تأمين حياة فردي | C28: 865314.6656 | D28: 1150788.39 | E28: 333233.0541 | F28: 299430.9824 | G28: 1198547.72 | H28: 1450219.372 | I28: Individual Life
B29: دفعات الحياة وتكوين الأموال | C29: 0 | D29: 0 | E29: 0 | F29: 0 | G29: 0 | H29: 0 | I29: Annuities & Fund Accumulation
B30: المجموع - تأمين الأشخاص وعمليات تكوين الأموال | C30: =C26+C27+C28+C29 -> 1834854.146 | D30: =D26+D27+D28+D29 -> 2262367.807 | E30: =E26+E27+E28+E29 -> 731551.7823 | F30: 668269.3395 | G30: =G26+G27+G28+G29 -> 2566405.929 | H30: =H26+H27+H28+H29 -> 2930637.146 | I30: Total - Insurance of Persons & Fund Accumulation
B32: المجموع - كافة فروع التأمين | C32: =C22+C24+C30 -> 32028038.36 | D32: =D22+D24+D30 -> 38908085.75 | E32: =E22+E24+E30 -> 4413314.748 | F32: 5014147.903 | G32: =G22+G24+G30 -> 36441353.11 | H32: =H22+H24+H30 -> 43922233.65 | I32: TOTAL - All Types of Business Combined

Sheet 6A
B6: صافي الأقساط المكتسبة حسب فرع التأمين
B7: الشركات الوطنية والاجنبية
B8: Net Earned Premium by Line of Business
B9: National & Foreign Companies
B11: جدول رقم 6A | I11: TABLE 6A
B12: بالألف درهم | I12: AED in 000's
B13: فروع التأمين | C13: الشركات الوطنية | E13: الشركات الأجنبية | G13: الاجمالي | I13: Line of Business
C14: NATIONAL COMPANIES | E14: FOREIGN COMPANIES | G14: TOTAL
C15: 2023 | D15: 2024 | E15: 2023 | F15: 2024 | G15: 2023 | H15: 2024
B16: تأمين الحريق | C16: 588582.065 | D16: 700625.9645 | E16: 337557.1654 | F16: 194386.0111 | G16: =E16+C16 -> 926139.2304 | H16: =F16+D16 -> 895011.9756 | I16: Fire
B17: التأمين البحري والطيران | C17: 265440.2549 | D17: 332593.5944 | E17: 193938.9725 | F17: 179071.4593 | G17: 459379.2274 | H17: 511665.0537 | I17: Marine & Aviation
B18: تأمين السيارات والمركبات الأخرى | C18: 2668653.234 | D18: 3779270.605 | E18: 1337051.628 | F18: 1618998.718 | G18: 4005704.862 | H18: 5398269.323 | I18: Motor & Transportation
B19: التأمين الهندسي والانشاءات والطاقة | C19: 488871.6962 | D19: 550018.448 | E19: 98880.0506 | F19: 95722.2725 | G19: 587751.7468 | H19: 645740.7205 | I19: Engineering, Construction & Energy
B20: أخرى | C20: 905305.8169 | D20: 1212406.336 | E20: 237830.6679 | F20: 242418.3408 | G20: 1143136.485 | H20: 1454824.677 | I20: Other
B21: اعادة التأمين غير النسبية - المسؤوليات والممتلكات | C21: 2405.24819 | D21: 3422.164785 | E21: 0 | F21: 0 | G21: 2405.24819 | H21: 3422.164785 | I21: Reinsurance - Property & Liability
B22: المجموع - تأمين الممتلكات والمسؤوليات | C22: =C16+C17+C18+C19+C20+C21 -> 4919258.315 | D22: =D16+D17+D18+D19+D20+D21 -> 6578337.113 | E22: =E16+E17+E18+E19+E20+E21 -> 2205258.484 | F22: 2330596.801 | G22: 7124516.8 | H22: 8908933.915 | I22: Total - Property & Liability Insurance
B24: المجموع - تأمين صحي | C24: 9917691.132 | D24: 12197171.34 | E24: 4483219.17 | F24: 6033197.746 | G24: =E24+C24 -> 14400910.3 | H24: =F24+D24 -> 18230369.09 | I24: Total - Health Insurance
B26: تأمين حياة جماعي | C26: 280833.3203 | D26: 380517.6534 | E26: 55219.03188 | F26: 60298.82372 | G26: =E26+C26 -> 336052.3522 | H26: =F26+D26 -> 440816.4771 | I26: Group Life
B27: تأمين ائتمان حياة جماعي | C27: 213215.5013 | D27: 187518.7449 | E27: 4952 | F27: 2862 | G27: 218167.5013 | H27: 190380.7449 | I27: Group Credit Life
B28: تأمين حياة فردي | C28: 1096825.18 | D28: 1341775.949 | E28: 3654957.064 | F28: 4109736.781 | G28: 4751782.244 | H28: 5451512.73 | I28: Individual Life
B29: دفعات الحياة وتكوين الأموال | C29: -0.16998 | D29: -0.00639 | E29: 48056.55475 | F29: 41760.23691 | G29: 48056.38477 | H29: 41760.23052 | I29: Annuities & Fund Accumulation
B30: المجموع - تأمين الأشخاص وعمليات تكوين الأموال | C30: =C26+C27+C28+C29 -> 1590873.832 | D30: =D26+D27+D28+D29 -> 1909812.341 | E30: =E26+E27+E28+E29 -> 3763184.651 | F30: 4214657.842 | G30: 5354058.482 | H30: 6124470.183 | I30: Total - Insurance of Persons & Fund Accumulation
B32: المجموع - كافة فروع التأمين | C32: =C22+C24+C30 -> 16427823.28 | D32: =D22+D24+D30 -> 20685320.8 | E32: =E22+E24+E30 -> 10451662.31 | F32: 12578452.39 | G32: 26879485.58 | H32: 33263773.18 | I32: TOTAL - All Types of Business Combined

Sheet 6B
B6: صافي الأقساط المكتسبة حسب فرع التأمين
B7: شركات التأمين التقليدي الوطنية وشركات التأمين التكافلي الوطنية
B8: Net Earned Premium by Line of Business
B9: Traditional & Takaful National Companies
B11: جدول رقم 6B | I11: TABLE 6B
B12: بالألف درهم | I12: AED in 000's
B13: فروع التأمين | C13: شركات التأمين التقليدي الوطنية | E13: شركات التأمين التكافلي الوطنية | G13: الشركات الوطنية | I13: Line of Business
C14: TRADITIONAL COMPANIES | E14: TAKAFUL OPERATORS | G14: NATIONAL COMPANIES
C15: 2023 | D15: 2024 | E15: 2023 | F15: 2024 | G15: 2023 | H15: 2024
B16: تأمين الحريق | C16: 518577.3365 | D16: 637011.6922 | E16: 70004.72852 | F16: 63614.2723 | G16: =C16+E16 -> 588582.065 | H16: =D16+F16 -> 700625.9645 | I16: Fire
B17: التأمين البحري والطيران | C17: 232348.338 | D17: 306767.7478 | E17: 33091.91691 | F17: 25825.84652 | G17: =C17+E17 -> 265440.2549 | H17: =D17+F17 -> 332593.5944 | I17: Marine & Aviation
B18: تأمين السيارات والمركبات الأخرى | C18: 1900718.287 | D18: 3106747.546 | E18: 767934.9473 | F18: 672523.0595 | G18: =C18+E18 -> 2668653.234 | H18: =D18+F18 -> 3779270.605 | I18: Motor & Transportation
B19: التأمين الهندسي والانشاءات والطاقة | C19: 443891.4421 | D19: 486637.2459 | E19: 44980.25412 | F19: 63381.20215 | G19: 488871.6962 | H19: 550018.448 | I19: Engineering, Construction & Energy
B20: أخرى | C20: 806750.435 | D20: 1047956.545 | E20: 98555.38196 | F20: 164449.7911 | G20: 905305.8169 | H20: 1212406.336 | I20: Other
B21: اعادة التأمين غير النسبية - المسؤوليات والممتلكات | C21: 2405.24819 | D21: 3422.164785 | E21: 0 | F21: 0 | G21: 2405.24819 | H21: 3422.164785 | I21: Reinsurance - Property & Liability
B22: المجموع - تأمين الممتلكات والمسؤوليات | C22: =C16+C17+C18+C19+C20+C21 -> 3904691.087 | D22: =D16+D17+D18+D19+D20+D21 -> 5588542.941 | E22: =E16+E17+E18+E19+E20+E21 -> 1014567.229 | F22: 989794.1716 | G22: 4919258.315 | H22: 6578337.113 | I22: Total - Property & Liability Insurance
B24: المجموع - تأمين صحي | C24: 8858613.09 | D24: 11054272.49 | E24: 1059078.043 | F24: 1142898.851 | G24: =C24+E24 -> 9917691.132 | H24: =D24+F24 -> 12197171.34 | I24: Total - Health Insurance
B26: تأمين حياة جماعي | C26: 257260.5706 | D26: 370419.6632 | E26: 23572.74975 | F26: 10097.99022 | G26: =C26+E26 -> 280833.3203 | H26: =D26+F26 -> 380517.6534 | I26: Group Life
B27: تأمين ائتمان حياة جماعي | C27: 102976.2845 | D27: 82708.20386 | E27: 110239.2168 | F27: 104810.541 | G27: 213215.5013 | H27: 187518.7449 | I27: Group Credit Life
B28: تأمين حياة فردي | C28: 794212.2644 | D28: 1090652.055 | E28: 302612.9157 | F28: 251123.8938 | G28: 1096825.18 | H28: 1341775.949 | I28: Individual Life
B29: دفعات الحياة وتكوين الأموال | C29: 0 | D29: 0 | E29: -0.16998 | F29: -0.00639 | G29: -0.16998 | H29: -0.00639 | I29: Annuities & Fund Accumulation
B30: المجموع - تأمين الأشخاص وعمليات تكوين الأموال | C30: =C26+C27+C28+C29 -> 1154449.119 | D30: =D26+D27+D28+D29 -> 1543779.922 | E30: =E26+E27+E28+E29 -> 436424.7122 | F30: 366032.4186 | G30: 1590873.832 | H30: 1909812.341 | I30: Total - Insurance of Persons & Fund Accumulation
B32: المجموع - كافة فروع التأمين | C32: =C22+C24+C30 -> 13917753.3 | D32: =D22+D24+D30 -> 18186595.35 | E32: =E22+E24+E30 -> 2510069.984 | F32: 2498725.441 | G32: 16427823.28 | H32: 20685320.8 | I32: TOTAL - All Types of Business Combined

Sheet 7
B6: عدد وثائق التأمين ومعدل إجمالي الأقساط المكتتبة حسب فرع التأمين
B7: No. of Policies and Average Gross Written Premium
B8: (2024)
B10: جدول رقم 7 | L10: TABLE 7
B12: فروع التأمين | C12: الشركات الوطنية | F12: الشركات الأجنبية | I12: الاجمالي | L12: Line of Business
C13: NATIONAL COMPANIES | F13: FOREIGN COMPANIES | I13: TOTAL
C14: إجمالي الأقساط بالألف درهم | D14: عدد الوثائق | E14: معدل الأقساط | F14: إجمالي الأقساط بالألف درهم | G14: عدد الوثائق | H14: معدل الأقساط | I14: إجمالي الأقساط بالألف درهم | J14: عدد الوثائق | K14: معدل الأقساط
C15: GWP | D15: No. of Pols. | E15: Avg GWP | F15: GWP | G15: No. of Pols. | H15: Avg GWP | I15: GWP | J15: No. of Pols. | K15: Avg GWP
B16: تأمين الحريق | C16: 5535805.614 | D16: 170085.02 | E16: 32547.28496 | F16: 697449.6603 | G16: 47917 | H16: 14555.36992 | I16: =F16+C16 -> 6233255.274 | J16: =G16+D16 -> 218002.02 | K16: =I16*1000/J16 -> 28592.64916 | L16: Fire
B17: التأمين البحري والطيران | C17: 1966032.43 | D17: 135065.22 | E17: 14556.17094 | F17: 351538.2553 | G17: 125777 | H17: 2794.93274 | I17: =F17+C17 -> 2317570.685 | J17: =G17+D17 -> 260842.22 | K17: =I17*1000/J17 -> 8884.95231 | L17: Marine & Aviation
B18: تأمين السيارات والمركبات الأخرى | C18: 6056078.039 | D18: 4516890.06 | E18: 1340.762772 | F18: 1995567.082 | G18: 828598 | H18: 2408.365796 | I18: 8051645.121 | J18: =G18+D18 -> 5345488.06 | K18: 1506.250698 | L18: Motor & Transportation
B19: التأمين الهندسي والانشاءات والطاقة | C19: 3928029.822 | D19: 61594.4 | E19: 63772.51539 | F19: 174507.3799 | G19: 10072 | H19: 17325.99085 | I19: 4102537.202 | J19: =G19+D19 -> 71666.4 | K19: 57244.91815 | L19: Engineering, Construction & Energy
B20: أخرى | C20: 5024759.234 | D20: 8423159.46 | E20: 596.5409129 | F20: 563761.3974 | G20: 359759 | H20: 1567.052936 | I20: 5588520.631 | J20: =G20+D20 -> 8782918.46 | K20: 636.2942633 | L20: Other
B21: اعادة التأمين غير النسبية - المسؤوليات والممتلكات | C21: 5753.65417 | D21: 1149 | E21: 5007.531915 | F21: 0 | G21: 0 | I21: 5753.65417 | J21: =G21+D21 -> 1149 | K21: 5007.531915 | L21: Reinsurance - Property & Liability
B22: المجموع - تأمين الممتلكات والمسؤوليات | C22: =C16+C17+C18+C19+C20+C21 -> 22516458.79 | D22: =D16+D17+D18+D19+D20+D21 -> 13307943.16 | E22: =C22*1000/D22 -> 1691.956339 | F22: 3782823.775 | G22: 1372123 | H22: =F22*1000/G22 -> 2756.913028 | I22: =C22+F22 -> 26299282.57 | J22: =D22+G22 -> 14680066.16 | K22: 1791.496188 | L22: Total - Property & Liability Insurance
B24: المجموع - تأمين صحي | C24: 22280623.77 | D24: 1921161.16 | E24: 11597.47773 | F24: 9037133.596 | G24: 328380 | H24: 27520.35324 | I24: =F24+C24 -> 31317757.37 | J24: =G24+D24 -> 2249541.16 | K24: =I24*1000/J24 -> 13921.84234 | L24: Total - Health Insurance
B26: تأمين حياة جماعي | C26: 885725.5169 | D26: 13209.46 | E26: 67052.36376 | F26: 235860.5531 | G26: 2875 | H26: 82038.45327 | I26: 912908.8576 | J26: =G26+D26 -> 16084.46 | K26: =I26*1000/J26 -> 56757.19655 | L26: Group Life
B27: تأمين ائتمان حياة جماعي | C27: 611483.4385 | D27: 2317.9 | E27: 263809.2405 | F27: 18832 | G27: 12 | H27: 1569333.333 | I27: 828444.1132 | J27: 2329.9 | K27: 355570.6739 | L27: Group Credit Life
B28: تأمين حياة فردي | C28: 1393953.718 | D28: 188817.26 | E28: 7382.554532 | F28: 4306106.946 | G28: 98110 | H28: 43890.60183 | I28: 5799687.069 | J28: 286927.26 | K28: 20213.09188 | L28: Individual Life
B29: دفعات الحياة وتكوين الأموال | C29: 0 | D29: 0 | F29: 41766.65936 | G29: 655 | H29: 63765.89215 | I29: 146567.1386 | J29: 655 | K29: 223766.6238 | L29: Annuities & Fund Accumulation
B30: المجموع - تأمين الأشخاص وعمليات تكوين الأموال | C30: =C26+C27+C28+C29 -> 2891162.674 | D30: =D26+D27+D28+D29 -> 204344.62 | E30: =C30*1000/D30 -> 14148.46485 | F30: 4602566.158 | G30: 101652 | H30: =F30*1000/G30 -> 45277.6744 | I30: =C30+F30 -> 7493728.832 | J30: =D30+G30 -> 305996.62 | K30: 24489.58041 | L30: Total - Insurance of Persons & Fund Accumulation
B32: المجموع - كافة فروع التأمين | C32: =C22+C24+C30 -> 47688245.24 | D32: =D22+D24+D30 -> 15433448.94 | E32: =C32*1000/D32 -> 3089.92795 | F32: =F22+F24+F30 -> 17422523.53 | G32: =G22+G24+G30 -> 1802155 | H32: =F32*1000/G32 -> 9667.605466 | I32: =I22+I24+I30 -> 65110768.77 | J32: =J22+J24+J30 -> 17235603.94 | K32: =I32*1000/J32 -> 3777.690007 | L32: TOTAL - All Types of Business Combined

Sheet 8
B6: إجمالي الأقساط المكتتبة والعمولات المدفوعة حسب قنوات التوزيع الشركات الوطنية والاجنبية
B7: Gross Written Premium & Commission Paid by Distribution Channel
B8: (2024)
B10: جدول رقم 8 | I10: TABLE 8
B11: بالألف درهم | C11: Gross Written Premiums (اجمالي الاقساط المكتتبة) | I11: AED in 000's
B12: فروع التأمين | C12: الشركات الوطنية | E12: الشركات الأجنبية | G12: الاجمالي | I12: Distribution Channel
C13: NATIONAL COMPANIES | E13: FOREIGN COMPANIES | G13: TOTAL
C14: تأمينات عامة | D14: تأمين على الحياة | E14: تأمينات عامة | F14: تأمين على الحياة | G14: تأمينات عامة | H14: تأمين على الحياة
C15: Non-Life | D15: Life | E15: Non-Life | F15: Life | G15: Non-Life | H15: Life
B16: الوثائق المباعة من خلال الوكلاء | C16: 1804574.81 | D16: 231617.3896 | E16: 376600.3668 | F16: 453220.0908 | G16: =E16+C16 -> 2181175.177 | H16: =F16+D16 -> 684837.4804 | I16: Policies Sold Through Agents
B17: الوثائق المباعة من خلال الوسطاء | C17: 18846029.97 | D17: 1350185.447 | E17: 7597472.706 | F17: 5112042.292 | G17: 26443502.68 | H17: 6462227.739 | I17: Policies Sold Through Brokers
B18: الوثائق المباعة من خلال البنوك | C18: 142319.8735 | D18: 1174495.516 | E18: 132036.6181 | F18: 1321346.53 | G18: 274356.4916 | H18: 2495842.046 | I18: Policies Sold Through Banks
B19: الوثائق المباعة من خلال شركات التمويل | C19: 0 | D19: 0 | E19: 112662.4332 | F19: 0 | G19: 112662.4332 | H19: 0 | I19: Policies Sold Through Financial Institutions
B20: الوثائق المباعة عبر الانترنت | C20: 68222.72134 | D20: 0 | E20: 167044.1799 | F20: 0 | G20: =E20+C20 -> 235266.9013 | H20: =F20+D20 -> 0 | I20: Policies Sold Online
B21: الأخرى | C21: 22828150.2 | D21: 1242649.311 | E21: 1993589.023 | F21: 156509.287 | G21: 24821739.22 | H21: 1399158.598 | I21: Others
B22: كافة قنوات التوزيع | C22: =SUM(C16:C21) -> 43689297.57 | D22: 3998947.665 | E22: 10379405.33 | F22: 7043118.2 | G22: 54068702.9 | H22: 11042065.86 | I22: All Distribution Channels
C23: Percent of Total Gross Premium (توزيع إجمالي الأقساط)
B24: الوكلاء | C24: =C16/C$22 -> 0.04130473389 | D24: =D16/D$22 -> 0.0579195851 | E24: 0.03628342424 | F24: 0.0643493518 | G24: 0.04034080827 | H24: 0.06202077481 | I24: Agents
B25: الوسطاء | C25: =C17/C$22 -> 0.4313649113 | D25: 0.3376351882 | E25: 0.7319757218 | F25: 0.725820886 | G25: 0.4890722592 | H25: 0.5852372028 | I25: Brokers
B26: البنوك (المصارف) | C26: =C18/C$22 -> 0.003257545472 | D26: 0.2937011471 | E26: 0.01272101955 | F26: 0.1876081719 | G26: 0.005074219962 | H26: 0.2260303531 | I26: Banks
B27: المؤسسات الاستثمارية والمالية | C27: =C19/C$22 -> 0 | D27: 0 | E27: 0.01085442082 | F27: 0 | G27: 0.002083690327 | H27: 0 | I27: Investment / Financial Institutions
B28: الوثائق المباعة عبر الانترنت | C28: =C20/C$22 -> 0.001561543104 | D28: 0 | E28: 0.01609381026 | F28: 0 | G28: 0.004351258467 | H28: 0 | I28: Policies Sold Online
B29: الأخرى | C29: =C21/C$22 -> 0.5225112662 | D29: 0.3107440796 | E29: 0.1920716033 | F29: 0.02222159029 | G29: 0.4590777638 | H29: 0.1267116693 | I29: Others
B30: كافة قنوات التوزيع | C30: =C24+C25+C26+C27+C28+C29 -> 1 | D30: =D24+D25+D26+D27+D28+D29 -> 1 | E30: 1 | F30: 1 | G30: 1 | H30: 1 | I30: All Distribution Channels
C31: Commission Paid (العمولات المدفوعة)
B32: الوكلاء | C32: 200618.8165 | D32: 23122.38529 | E32: 84254.4252 | F32: 15334.00543 | G32: 284873.2417 | H32: 38456.39072 | I32: Agents
B33: الوسطاء | C33: 1645699.594 | D33: 115079.9071 | E33: 976140.693 | F33: 340903.5976 | G33: 2621840.287 | H33: 455983.5047 | I33: Brokers
B34: البنوك (المصارف) | C34: 42730.22792 | D34: 147186.0363 | E34: 37402.63363 | F34: 35745.96 | G34: 80132.86155 | H34: 182931.9963 | I34: Banks
B35: المؤسسات الاستثمارية والمالية | C35: 0 | D35: 0 | E35: 7589.424459 | F35: 0 | G35: 7589.424459 | H35: 0 | I35: Investment / Financial Institutions
B36: الوثائق المباعة عبر الانترنت | C36: 379.34927 | D36: 0 | E36: 173.1009 | F36: 0 | G36: 552.45017 | H36: 0 | I36: Policies Sold Online
B37: الأخرى | C37: 1196867.055 | D37: 177475.5499 | E37: 152360.8082 | F37: 12761.64464 | G37: 1349227.863 | H37: 190237.1946 | I37: Others
B38: كافة قنوات التوزيع | C38: =SUM(C32:C37) -> 3086295.043 | D38: =SUM(D32:D37) -> 462863.8786 | E38: 1257921.085 | F38: 404745.2077 | G38: 4344216.128 | H38: 867609.0862 | I38: All Distribution Channels
C39: Commission Ratio (نسبة العمولات )
B40: الوكلاء | C40: =C32/C16 -> 0.1111723467 | D40: =D32/D16 -> 0.09983009191 | E40: 0.2237236939 | F40: 0.03383346357 | G40: 0.1306053932 | H40: 0.0561540392 | I40: Agents
B41: الوسطاء | C41: =C33/C17 -> 0.08732340958 | D41: 0.08523266735 | E41: 0.1284822902 | F41: 0.06668638054 | G41: 0.09914875194 | H41: 0.07056134867 | I41: Brokers
B42: البنوك (المصارف) | C42: =C34/C18 -> 0.3002407666 | D42: 0.125318517 | E42: 0.2832747019 | F42: 0.02705267633 | G42: 0.2920756898 | H42: 0.07329470091 | I42: Banks
B43: المؤسسات الاستثمارية والمالية | E43: =E35/E19 -> 0.06736428675 | G43: 0.06736428675 | I43: Investment / Financial Institutions
B44: الوثائق المباعة عبر الانترنت | C44: =C36/C20 -> 0.005560453505 | E44: 0.001036258193 | G44: 0.002348184836 | I44: Policies Sold Online
B45: الأخرى | C45: =C37/C21 -> 0.05242943667 | D45: 0.142820302 | E45: 0.07642538478 | F45: 0.08153921652 | G45: 0.05435670125 | H45: 0.1359654258 | I45: Others
B46: كافة قنوات التوزيع | C46: =C38/C22 -> 0.07064190121 | D46: =D38/D22 -> 0.1157464207 | E46: 0.1211939457 | F46: 0.05746676347 | G46: 0.08034622426 | H46: 0.07857307653 | I46: All Distribution Channels

Sheet 9A
B6: إجمالي المُخصصات الفنية حسب فرع التأمين
B7: الشركات الوطنية والاجنبية
B8: Gross Technical Provisions by Line of Business
B9: National & Foreign Companies
B11: جدول رقم 9A | I11: TABLE 9A
B12: بالألف درهم | I12: AED in 000's
B13: فروع التأمين | C13: الشركات الوطنية | E13: الشركات الأجنبية | G13: الاجمالي | I13: Line of Business
C14: NATIONAL COMPANIES | E14: FOREIGN COMPANIES | G14: TOTAL
C15: 2023 | D15: 2024 | E15: 2023 | F15: 2024 | G15: 2023 | H15: 2024
B16: تأمين الحريق | C16: 5172978.665 | D16: 11895231.5 | E16: 1250004.498 | F16: 2117687.53 | G16: =E16+C16 -> 6422983.163 | H16: =F16+D16 -> 14012919.03 | I16: Fire
B17: التأمين البحري والطيران | C17: 2636394.596 | D17: 2698166.805 | E17: 418473.2532 | F17: 446090.2901 | G17: 3054867.85 | H17: 3144257.095 | I17: Marine & Aviation
B18: تأمين السيارات والمركبات الأخرى | C18: 4045228.256 | D18: 5341467.654 | E18: 1611109.385 | F18: 1901888.116 | G18: 5656337.641 | H18: 7243355.77 | I18: Motor & Transportation
B19: التأمين الهندسي والانشاءات والطاقة | C19: 5417350.316 | D19: 7247381.227 | E19: 660348.5917 | F19: 622209.4232 | G19: 6077698.908 | H19: 7869590.65 | I19: Engineering, Construction & Energy
B20: أخرى | C20: 4022833.863 | D20: 4506160.303 | E20: 680414.2955 | F20: 771210.0921 | G20: 4703248.158 | H20: 5277370.395 | I20: Other
B21: اعادة التأمين غير النسبية - المسؤوليات والممتلكات | C21: 10317.8625 | D21: 12508.36623 | E21: 0 | F21: 0 | G21: 10317.8625 | H21: 12508.36623 | I21: Reinsurance - Property & Liability
B22: المجموع - تأمين الممتلكات والمسؤوليات | C22: =C16+C17+C18+C19+C20+C21 -> 21305103.56 | D22: =D16+D17+D18+D19+D20+D21 -> 31700915.85 | E22: =E16+E17+E18+E19+E20+E21 -> 4620350.023 | F22: =F16+F17+F18+F19+F20+F21 -> 5859085.452 | G22: =G16+G17+G18+G19+G20+G21 -> 25925453.58 | H22: 37560001.31 | I22: Total - Property & Liability Insurance
B24: المجموع - تأمين صحي | C24: 10886969.79 | D24: 13133585.83 | E24: 2799001.524 | F24: 3856356.188 | G24: =E24+C24 -> 13685971.32 | H24: =F24+D24 -> 16989942.02 | I24: Total - Health Insurance
B26: تأمين حياة جماعي | C26: 565170.7466 | D26: 723214.3783 | E26: 149653.6095 | F26: 151500.6134 | G26: =E26+C26 -> 714824.3561 | H26: =F26+D26 -> 874714.9917 | I26: Group Life
B27: تأمين ائتمان حياة جماعي | C27: 1019641.244 | D27: 1032487.063 | E27: 12433 | F27: 11429 | G27: 1032074.244 | H27: 1043916.063 | I27: Group Credit Life
B28: تأمين حياة فردي | C28: 6807643.294 | D28: 7443270.899 | E28: 27583831.84 | F28: 27782776.54 | G28: 34391475.14 | H28: 35226047.44 | I28: Individual Life
B29: دفعات الحياة وتكوين الأموال | C29: 0 | D29: 0 | E29: 528141.5952 | F29: 537927.8518 | G29: 528141.5952 | H29: 537927.8518 | I29: Annuities & Fund Accumulation
B30: المجموع - تأمين الأشخاص وعمليات تكوين الأموال | C30: =C26+C27+C28+C29 -> 8392455.284 | D30: =D26+D27+D28+D29 -> 9198972.341 | E30: =E26+E27+E28+E29 -> 28274060.05 | F30: 28483634 | G30: 36666515.33 | H30: 37682606.34 | I30: Total - Insurance of Persons & Fund Accumulation
B32: المجموع - كافة فروع التأمين | C32: =C22+C24+C30 -> 40584528.64 | D32: =D22+D24+D30 -> 54033474.02 | E32: =E22+E24+E30 -> 35693411.59 | F32: 38199075.64 | G32: 76277940.23 | H32: 92232549.66 | I32: TOTAL - All Types of Business Combined

Sheet 9B
B6: إجمالي المُخصصات الفنية حسب فرع التأمين
B7: شركات التأمين التقليدي الوطنية وشركات التأمين التكافلي الوطنية
B8: Gross Technical Provisions by Line of Business
B9: Traditional & Takaful National Companies
B11: جدول رقم 9B | I11: TABLE 9B
B12: بالألف درهم | I12: AED in 000's
B13: فروع التأمين | C13: شركات التأمين التقليدي الوطنية | E13: شركات التأمين التكافلي الوطنية | G13: الشركات الوطنية | I13: Line of Business
C14: TRADITIONAL COMPANIES | E14: TAKAFUL OPERATORS | G14: NATIONAL COMPANIES
C15: 2023 | D15: 2024 | E15: 2023 | F15: 2024 | G15: 2023 | H15: 2024
B16: تأمين الحريق | C16: 4580696.089 | D16: 10707022.76 | E16: 592282.5759 | F16: 1188208.741 | G16: =E16+C16 -> 5172978.665 | H16: =F16+D16 -> 11895231.5 | I16: Fire
B17: التأمين البحري والطيران | C17: 2560044.572 | D17: 2604050.889 | E17: 76350.02491 | F17: 94115.9168 | G17: 2636394.596 | H17: 2698166.805 | I17: Marine & Aviation
B18: تأمين السيارات والمركبات الأخرى | C18: 2937236.663 | D18: 4110999.917 | E18: 1107991.593 | F18: 1230467.737 | G18: 4045228.256 | H18: 5341467.654 | I18: Motor & Transportation
B19: التأمين الهندسي والانشاءات والطاقة | C19: 5118672.841 | D19: 6800716.896 | E19: 298677.475 | F19: 446664.3312 | G19: 5417350.316 | H19: 7247381.227 | I19: Engineering, Construction & Energy
B20: أخرى | C20: 3582990.477 | D20: 3993618.737 | E20: 439843.3862 | F20: 512541.5668 | G20: 4022833.863 | H20: 4506160.303 | I20: Other
B21: اعادة التأمين غير النسبية - المسؤوليات والممتلكات | C21: 10317.8625 | D21: 12508.36623 | E21: 0 | F21: 0 | G21: 10317.8625 | H21: 12508.36623 | I21: Reinsurance - Property & Liability
B22: المجموع - تأمين الممتلكات والمسؤوليات | C22: =C16+C17+C18+C19+C20+C21 -> 18789958.5 | D22: =D16+D17+D18+D19+D20+D21 -> 28228917.56 | E22: =E16+E17+E18+E19+E20+E21 -> 2515145.055 | F22: =F16+F17+F18+F19+F20+F21 -> 3471998.293 | G22: =G16+G17+G18+G19+G20+G21 -> 21305103.56 | H22: 31700915.85 | I22: Total - Property & Liability Insurance
B24: المجموع - تأمين صحي | C24: 9802070.48 | D24: 11920980.51 | E24: 1084899.313 | F24: 1212605.322 | G24: =E24+C24 -> 10886969.79 | H24: =F24+D24 -> 13133585.83 | I24: Total - Health Insurance
B26: تأمين حياة جماعي | C26: 510840.9807 | D26: 645571.5584 | E26: 54329.76591 | F26: 77642.81996 | G26: =E26+C26 -> 565170.7466 | H26: =F26+D26 -> 723214.3783 | I26: Group Life
B27: تأمين ائتمان حياة جماعي | C27: 713088.5944 | D27: 746990.6725 | E27: 306552.6495 | F27: 285496.3908 | G27: 1019641.244 | H27: 1032487.063 | I27: Group Credit Life
B28: تأمين حياة فردي | C28: 3883698.133 | D28: 4656399.933 | E28: 2923945.161 | F28: 2786870.966 | G28: 6807643.294 | H28: 7443270.899 | I28: Individual Life
B29: دفعات الحياة وتكوين الأموال | C29: 0 | D29: 0 | E29: 0 | F29: 0 | G29: 0 | H29: 0 | I29: Annuities & Fund Accumulation
B30: المجموع - تأمين الأشخاص وعمليات تكوين الأموال | C30: =C26+C27+C28+C29 -> 5107627.708 | D30: =D26+D27+D28+D29 -> 6048962.164 | E30: =E26+E27+E28+E29 -> 3284827.576 | F30: 3150010.177 | G30: 8392455.284 | H30: 9198972.341 | I30: Total - Insurance of Persons & Fund Accumulation
B32: المجموع - كافة فروع التأمين | C32: =C22+C24+C30 -> 33699656.69 | D32: =D22+D24+D30 -> 46198860.23 | E32: =E22+E24+E30 -> 6884871.944 | F32: 7834613.791 | G32: 40584528.64 | H32: 54033474.02 | I32: TOTAL - All Types of Business Combined

Sheet 9C
B6: إجمالي المُخصصات الفنية حسب فرع التأمين
B7: شركات التأمين على الحياة وشركات التأمينات العامة وشركات التأمين على الحياة والتأمينات العامة
B8: Gross Technical Provisions by Line of Business
B9: Life, Non-Life & Composite Companies
B11: جدول رقم 9C | K11: TABLE 9C
B12: بالألف درهم | K12: AED in 000's
B13: فروع التأمين | C13: شركات التأمين على الأشخاص وتكوين الأموال | E13: شركات تأمين الممتلكات والمسؤوليات | G13: شركات التأمين (النوعين معاً) | I13: الاجمالي | K13: Line of Business
C14: LIFE COMPANIES | E14: NON-LIFE COMPANIES | G14: COMPOSITE COMPANIES | I14: TOTAL
C15: 2023 | D15: 2024 | E15: 2023 | F15: 2024 | G15: 2023 | H15: 2024 | I15: 2023 | J15: 2024
B16: تأمين الحريق | C16: 0 | D16: 0 | E16: 2004044.416 | F16: 3688585.744 | G16: 4418938.747 | H16: 10324333.28 | I16: =G16+E16+C16 -> 6422983.163 | J16: =H16+F16+D16 -> 14012919.03 | K16: Fire
B17: التأمين البحري والطيران | C17: 0 | D17: 0 | E17: 496185.0222 | F17: 547544.2738 | G17: 2558682.828 | H17: 2596712.822 | I17: 3054867.85 | J17: 3144257.095 | K17: Marine & Aviation
B18: تأمين السيارات والمركبات الأخرى | C18: 0.001 | D18: 0.001 | E18: 2515283.643 | F18: 2998281.168 | G18: 3141053.997 | H18: 4245074.602 | I18: 5656337.641 | J18: 7243355.77 | K18: Motor & Transportation
B19: التأمين الهندسي والانشاءات والطاقة | C19: 0 | D19: 0 | E19: 1240144.978 | F19: 1394787.459 | G19: 4837553.93 | H19: 6474803.191 | I19: 6077698.908 | J19: 7869590.65 | K19: Engineering, Construction & Energy
B20: أخرى | C20: 0 | D20: 0 | E20: 989732.9038 | F20: 1099274.176 | G20: 3713515.255 | H20: 4178096.219 | I20: 4703248.158 | J20: 5277370.395 | K20: Other
B21: اعادة التأمين غير النسبية - المسؤوليات والممتلكات | C21: 0 | D21: 0 | E21: 10317.8625 | F21: 12508.36623 | G21: 0 | H21: 0 | I21: 10317.8625 | J21: 12508.36623 | K21: Reinsurance - Property & Liability
B22: المجموع - تأمين الممتلكات والمسؤوليات | C22: =C16+C17+C18+C19+C20+C21 -> 0.001 | D22: =D16+D17+D18+D19+D20+D21 -> 0.001 | E22: =E16+E17+E18+E19+E20+E21 -> 7255708.826 | F22: 9740981.187 | G22: =G16+G17+G18+G19+G20+G21 -> 18669744.76 | H22: 27819020.12 | I22: 25925453.58 | J22: 37560001.31 | K22: Total - Property & Liability Insurance
B24: المجموع - تأمين صحي | C24: 986405.3918 | D24: 1264908.822 | E24: 5457949.833 | F24: 7213917.183 | G24: 7241616.092 | H24: 8511116.011 | I24: =G24+E24+C24 -> 13685971.32 | J24: 16989942.02 | K24: Total - Health Insurance
B26: تأمين حياة جماعي | C26: 155842.0446 | D26: 176906.2657 | E26: 0 | F26: 0 | G26: 558982.3116 | H26: 697808.726 | I26: =G26+E26+C26 -> 714824.3561 | J26: 874714.9917 | K26: Group Life
B27: تأمين ائتمان حياة جماعي | C27: 44680.83682 | D27: 37395.75768 | E27: 0 | F27: 0 | G27: 987393.4071 | H27: 1006520.306 | I27: 1032074.244 | J27: 1043916.063 | K27: Group Credit Life
B28: تأمين حياة فردي | C28: 23589865.48 | D28: 23766484.46 | E28: 0 | F28: 0 | G28: 10801609.65 | H28: 11459562.98 | I28: 34391475.14 | J28: 35226047.44 | K28: Individual Life
B29: دفعات الحياة وتكوين الأموال | C29: 217304.5952 | D29: 250506.8518 | E29: 0 | F29: 0 | G29: 310837 | H29: 287421 | I29: 528141.5952 | J29: 537927.8518 | K29: Annuities & Fund Accumulation
B30: المجموع - تأمين الأشخاص وعمليات تكوين الأموال | C30: =C26+C27+C28+C29 -> 24007692.96 | D30: =D26+D27+D28+D29 -> 24231293.34 | E30: =E26+E27+E28+E29 -> 0 | F30: 0 | G30: =G26+G27+G28+G29 -> 12658822.37 | H30: 13451313.01 | I30: 36666515.33 | J30: 37682606.34 | K30: Total - Insurance of Persons & Fund Accumulation
B32: المجموع - كافة فروع التأمين | C32: =C22+C24+C30 -> 24994098.35 | D32: =D22+D24+D30 -> 25496202.16 | E32: =E22+E24+E30 -> 12713658.66 | F32: 16954898.37 | G32: =G22+G24+G30 -> 38570183.22 | H32: 49781449.14 | I32: 76277940.23 | J32: 92232549.66 | K32: TOTAL - All Types of Business Combined

Sheet 10A
B6: صافي المُخصصات الفنية حسب فرع التأمين
B7: الشركات الوطنية والاجنبية
B8: Net Technical Provisions by Line of Business
B9: National & Foreign Companies
B11: جدول رقم 10A | I11: TABLE 10A
B12: بالألف درهم | I12: AED in 000's
B13: فروع التأمين | C13: الشركات الوطنية | E13: الشركات الأجنبية | G13: الاجمالي | I13: Line of Business
C14: NATIONAL COMPANIES | E14: FOREIGN COMPANIES | G14: TOTAL
C15: 2023 | D15: 2024 | E15: 2023 | F15: 2024 | G15: 2023 | H15: 2024
B16: تأمين الحريق | C16: 730299.6525 | D16: 1012364.48 | E16: 765727.9179 | F16: 730601.3529 | G16: =E16+C16 -> 1496027.57 | H16: 1742965.833 | I16: Fire
B17: التأمين البحري والطيران | C17: 452277.8782 | D17: 527481.5918 | E17: 265662.7426 | F17: 238848.0989 | G17: 717940.6208 | H17: 766329.6907 | I17: Marine & Aviation
B18: تأمين السيارات والمركبات الأخرى | C18: 2870870.095 | D18: 4082202.236 | E18: 1536860.786 | F18: 1785144.583 | G18: 4407730.881 | H18: 5867346.819 | I18: Motor & Transportation
B19: التأمين الهندسي والانشاءات والطاقة | C19: 896285.1671 | D19: 1035171.331 | E19: 393695.5242 | F19: 340726.7986 | G19: 1289980.691 | H19: 1375898.13 | I19: Engineering, Construction & Energy
B20: أخرى | C20: 857741.391 | D20: 943347.789 | E20: 258439.5926 | F20: 275241.7717 | G20: 1116180.984 | H20: 1218589.561 | I20: Other
B21: اعادة التأمين غير النسبية - المسؤوليات والممتلكات | C21: 3235.111516 | D21: 4444.323271 | E21: 0 | F21: 0 | G21: 3235.111516 | H21: 4444.323271 | I21: Reinsurance - Property & Liability
B22: المجموع - تأمين الممتلكات والمسؤوليات | C22: =C16+C17+C18+C19+C20+C21 -> 5810709.295 | D22: =D16+D17+D18+D19+D20+D21 -> 7605011.751 | E22: 3220386.563 | F22: 3370562.605 | G22: 9031095.859 | H22: 10975574.36 | I22: Total - Property & Liability Insurance
B24: المجموع - تأمين صحي | C24: 5964876.536 | D24: 7737796.729 | E24: 2078572.007 | F24: 2928440.289 | G24: =E24+C24 -> 8043448.543 | H24: =F24+D24 -> 10666237.02 | I24: Total - Health Insurance
B26: تأمين حياة جماعي | C26: 211238.3351 | D26: 231027.6067 | E26: 26568.32549 | F26: 32655.19237 | G26: =E26+C26 -> 237806.6606 | H26: =F26+D26 -> 263682.7991 | I26: Group Life
B27: تأمين ائتمان حياة جماعي | C27: 479654.9948 | D27: 486910.2855 | E27: 3752 | F27: 2789 | G27: 483406.9948 | H27: 489699.2855 | I27: Group Credit Life
B28: تأمين حياة فردي | C28: 6672737.888 | D28: 7328132.823 | E28: 25981696.55 | F28: 26436656.84 | G28: 32654434.44 | H28: 33764789.66 | I28: Individual Life
B29: دفعات الحياة وتكوين الأموال | C29: 0 | D29: 0 | E29: 528141.5952 | F29: 537927.8518 | G29: 528141.5952 | H29: 537927.8518 | I29: Annuities & Fund Accumulation
B30: المجموع - تأمين الأشخاص وعمليات تكوين الأموال | C30: =C26+C27+C28+C29 -> 7363631.218 | D30: 8046070.715 | E30: 26540158.47 | F30: =F26+F27+F28+F29 -> 27010028.88 | G30: =G26+G27+G28+G29 -> 33903789.69 | H30: 35056099.6 | I30: Total - Insurance of Persons & Fund Accumulation
B32: المجموع - كافة فروع التأمين | C32: =C22+C24+C30 -> 19139217.05 | D32: 23388879.2 | E32: 31839117.05 | F32: =F22+F24+F30 -> 33309031.78 | G32: =G22+G24+G30 -> 50978334.09 | H32: 56697910.97 | I32: TOTAL - All Types of Business Combined

Sheet 10B
B6: صافي المُخصصات الفنية حسب فرع التأمين
B7: شركات التأمين التقليدي الوطنية وشركات التأمين التكافلي الوطنية
B8: Net Technical Provisions by Line of Business
B9: Traditional & Takaful National Companies
B11: جدول رقم 10B | I11: TABLE 10B
B12: بالألف درهم | I12: AED in 000's
B13: فروع التأمين | C13: شركات التأمين التقليدي الوطنية | E13: شركات التأمين التكافلي الوطنية | G13: الشركات الوطنية | I13: Line of Business
C14: TRADITIONAL COMPANIES | E14: TAKAFUL OPERATORS | G14: NATIONAL COMPANIES
C15: 2023 | D15: 2024 | E15: 2023 | F15: 2024 | G15: 2023 | H15: 2024
B16: تأمين الحريق | C16: 672490.8586 | D16: 947605.8361 | E16: 57808.79396 | F16: 64758.64405 | G16: =E16+C16 -> 730299.6525 | H16: =F16+D16 -> 1012364.48 | I16: Fire
B17: التأمين البحري والطيران | C17: 442493.9441 | D17: 502457.9645 | E17: 9783.934056 | F17: 25023.62729 | G17: 452277.8782 | H17: 527481.5918 | I17: Marine & Aviation
B18: تأمين السيارات والمركبات الأخرى | C18: 2100259.324 | D18: 3201836.923 | E18: 770610.7709 | F18: 880365.3129 | G18: 2870870.095 | H18: 4082202.236 | I18: Motor & Transportation
B19: التأمين الهندسي والانشاءات والطاقة | C19: 845503.2463 | D19: 964075.3639 | E19: 50781.9208 | F19: 71095.96705 | G19: 896285.1671 | H19: 1035171.331 | I19: Engineering, Construction & Energy
B20: أخرى | C20: 719033.2694 | D20: 771007.0411 | E20: 138708.1217 | F20: 172340.748 | G20: 857741.391 | H20: 943347.789 | I20: Other
B21: اعادة التأمين غير النسبية - المسؤوليات والممتلكات | C21: 3235.111516 | D21: 4444.323271 | E21: 0 | F21: 0 | G21: 3235.111516 | H21: 4444.323271 | I21: Reinsurance - Property & Liability
B22: المجموع - تأمين الممتلكات والمسؤوليات | C22: =C16+C17+C18+C19+C20+C21 -> 4783015.754 | D22: =D16+D17+D18+D19+D20+D21 -> 6391427.452 | E22: =E16+E17+E18+E19+E20+E21 -> 1027693.541 | F22: 1213584.299 | G22: 5810709.295 | H22: 7605011.751 | I22: Total - Property & Liability Insurance
B24: المجموع - تأمين صحي | C24: 5371723.419 | D24: 7148889.037 | E24: 593153.1174 | F24: 588907.6919 | G24: =E24+C24 -> 5964876.536 | H24: =F24+D24 -> 7737796.729 | I24: Total - Health Insurance
B26: تأمين حياة جماعي | C26: 200738.6524 | D26: 218651.9786 | E26: 10499.68266 | F26: 12375.62806 | G26: =E26+C26 -> 211238.3351 | H26: 231027.6067 | I26: Group Life
B27: تأمين ائتمان حياة جماعي | C27: 435138.086 | D27: 439303.2682 | E27: 44516.9087 | F27: 47607.01724 | G27: 479654.9948 | H27: 486910.2855 | I27: Group Credit Life
B28: تأمين حياة فردي | C28: 3774444.045 | D28: 4568782.089 | E28: 2898293.843 | F28: 2759350.734 | G28: 6672737.888 | H28: 7328132.823 | I28: Individual Life
B29: دفعات الحياة وتكوين الأموال | C29: 0 | D29: 0 | E29: 0 | F29: 0 | G29: 0 | H29: 0 | I29: Annuities & Fund Accumulation
B30: المجموع - تأمين الأشخاص وعمليات تكوين الأموال | C30: =C26+C27+C28+C29 -> 4410320.783 | D30: =D26+D27+D28+D29 -> 5226737.336 | E30: 2953310.434 | F30: 2819333.379 | G30: 7363631.218 | H30: 8046070.715 | I30: Total - Insurance of Persons & Fund Accumulation
B32: المجموع - كافة فروع التأمين | C32: =C22+C24+C30 -> 14565059.96 | D32: =D22+D24+D30 -> 18767053.82 | E32: 4574157.093 | F32: 4621825.37 | G32: 19139217.05 | H32: 23388879.2 | I32: TOTAL - All Types of Business Combined

Sheet 11A
B6: إجمالي المُخصصات الفنية حسب فرع التأمين
B7: Gross Technical Provisions by Line of Business
B8: (2024)
B11: جدول رقم 11A | K11: TABLE 11A
B12: بالألف درهم | K12: AED in 000's
B13: فروع التأمين | C13: مخصص الأقساط غير المكتسبة | D13: مخصص المخاطر غير المنتهية | E13: مخصص المطالبات تحت التسوية | F13: مخصص المطالبات المتكبدة غير المبلغة | G13: مصاريف تسوية المطالبات الموزعة | H13: مصاريف تسوية المطالبات غير الموزعة | I13: المخصص الحسابي | J13: المجموع | K13: Line of Business
C15: UPR | D15: URR | E15: OSLR | F15: IBNR | G15: ALAE | H15: ULAE | I15: MATH | J15: Total
B16: تأمين الحريق | C16: 2189703.742 | D16: 26273.37192 | E16: 10721433.71 | F16: 899287.1766 | G16: 128154.2171 | H16: 48066.80707 | I16: 0 | J16: =C16+D16+E16+F16+G16+H16+I16 -> 14012919.03 | K16: Fire
B17: التأمين البحري والطيران | C17: 897592.1937 | D17: 3463.981086 | E17: 1794047.155 | F17: 419165.76 | G17: 12319.15775 | H17: 17668.84842 | I17: 0 | J17: =C17+D17+E17+F17+G17+H17+I17 -> 3144257.095 | K17: Marine & Aviation
B18: تأمين السيارات والمركبات الأخرى | C18: 4104401.069 | D18: 205724.2227 | E18: 1662717.706 | F18: 1186120.397 | G18: 10874.17226 | H18: 73518.20493 | I18: 0.001 | J18: 7243355.774 | K18: Motor & Transportation
B19: التأمين الهندسي والانشاءات والطاقة | C19: 2371323.829 | D19: 10944.74459 | E19: 4787930.783 | F19: 648362.0482 | G19: 23106.72998 | H19: 27922.5148 | I19: 0 | J19: 7869590.65 | K19: Engineering, Construction & Energy
B20: أخرى | C20: 2961896.785 | D20: 3839.20078 | E20: 1589941.698 | F20: 661438.5426 | G20: 27933.9467 | H20: 32320.22304 | I20: 0 | J20: 5277370.395 | K20: Other
B21: اعادة التأمين غير النسبية - المسؤوليات والممتلكات | C21: 2687.370938 | D21: 0 | E21: 7665.00365 | F21: 1870.825283 | G21: 0 | H21: 285.1663554 | I21: 0 | J21: 12508.36623 | K21: Reinsurance - Property & Liability
B22: المجموع - تأمين الممتلكات والمسؤوليات | C22: =C16+C17+C18+C19+C20+C21 -> 12527604.99 | D22: 250245.5211 | E22: 20563736.06 | F22: 3816244.75 | G22: 202388.2238 | H22: 199781.7646 | I22: 0.001 | J22: =J16+J17+J18+J19+J20+J21 -> 37560001.31 | K22: Total - Property & Liability Insurance
B24: المجموع - تأمين صحي | C24: 10360987.59 | D24: 59352.24625 | E24: 3429003.794 | F24: 3084032.873 | G24: 2474.08989 | H24: 54091.41854 | I24: 0 | J24: =C24+D24+E24+F24+G24+H24+I24 -> 16989942.02 | K24: Total - Health Insurance
B26: تأمين حياة جماعي | C26: 257880.7695 | D26: 1628.034892 | E26: 424289.4823 | F26: 183176.7132 | G26: 0 | H26: 4363.346653 | I26: 3376.645125 | J26: =C26+D26+E26+F26+G26+H26+I26 -> 874714.9917 | K26: Group Life
B27: تأمين ائتمان حياة جماعي | C27: 19900.45925 | D27: 0 | E27: 333521.0242 | F27: 124182.244 | G27: 0 | H27: 2635.868234 | I27: 563676.4677 | J27: 1043916.063 | K27: Group Credit Life
B28: تأمين حياة فردي | C28: 388115.8195 | D28: 0 | E28: 123525.1549 | F28: 40538.05731 | G28: 0 | H28: 62.16663434 | I28: 34673806.24 | J28: 35226047.44 | K28: Individual Life
B29: دفعات الحياة وتكوين الأموال | C29: 0 | D29: 0 | E29: 0 | F29: 0 | G29: 0 | H29: 0 | I29: 537927.8518 | J29: 537927.8518 | K29: Annuities & Fund Accumulation
B30: المجموع - تأمين الأشخاص وعمليات تكوين الأموال | C30: =C26+C27+C28+C29 -> 665897.0483 | D30: 1628.034892 | E30: 881335.6614 | F30: 347897.0145 | G30: 0 | H30: 7061.381521 | I30: 35778787.2 | J30: =J26+J27+J28+J29 -> 37682606.34 | K30: Total - Insurance of Persons & Fund Accumulation
B32: المجموع - كافة فروع التأمين | C32: =C22+C24+C30 -> 23554489.63 | D32: 311225.8023 | E32: 24874075.51 | F32: 7248174.638 | G32: 204862.3137 | H32: 260934.5647 | I32: 35778787.2 | J32: =J22+J24+J30 -> 92232549.67 | K32: TOTAL - All Types of Business Combined

Sheet 11B
B6: صافي المخصصات الفنية حسب فرع التأمين
B7: Net Technical Provisions by Line of Business
B8: (2024)
B11: جدول رقم 11B | K11: TABLE 11B
B12: بالألف درهم | K12: AED in 000's
B13: فروع التأمين | C13: مخصص الأقساط غير المكتسبة | D13: مخصص المخاطر غير المنتهية | E13: مخصص المطالبات تحت التسوية | F13: مخصص المطالبات المتكبدة غير المبلغة | G13: مصاريف تسوية المطالبات الموزعة | H13: مصاريف تسوية المطالبات غير الموزعة | I13: المخصص الحسابي | J13: المجموع | K13: Line of Business
C15: UPR | D15: URR | E15: OSLR | F15: IBNR | G15: ALAE | H15: ULAE | I15: MATH | J15: Total
B16: تأمين الحريق | C16: 449232.9794 | D16: 23450.08372 | E16: 879089.0449 | F16: 304360.598 | G16: 38766.32001 | H16: 48066.80707 | I16: 0 | J16: =C16+D16+E16+F16+G16+H16+I16 -> 1742965.833 | K16: Fire
B17: التأمين البحري والطيران | C17: 186615.6688 | D17: 3907.403123 | E17: 438744.5347 | F17: 114292.8574 | G17: 5100.378232 | H17: 17668.84842 | I17: 0 | J17: =C17+D17+E17+F17+G17+H17+I17 -> 766329.6907 | K17: Marine & Aviation
B18: تأمين السيارات والمركبات الأخرى | C18: 3599094.674 | D18: 199463.4158 | E18: 1132476.196 | F18: 852883.2871 | G18: 9911.04431 | H18: 73518.20493 | I18: 0.001 | J18: 5867346.823 | K18: Motor & Transportation
B19: التأمين الهندسي والانشاءات والطاقة | C19: 439116.7324 | D19: 11549.36165 | E19: 716245.8372 | F19: 174929.739 | G19: 6133.944481 | H19: 27922.5148 | I19: 0 | J19: 1375898.13 | K19: Engineering, Construction & Energy
B20: أخرى | C20: 696926.8304 | D20: 5329.412737 | E20: 289034.4717 | F20: 186019.8014 | G20: 8958.821449 | H20: 32320.22304 | I20: 0 | J20: 1218589.561 | K20: Other
B21: اعادة التأمين غير النسبية - المسؤوليات والممتلكات | C21: 2369.890011 | D21: 0 | E21: 1490.700912 | F21: 298.5659927 | G21: 0 | H21: 285.1663554 | I21: 0 | J21: 4444.323271 | K21: Reinsurance - Property & Liability
B22: المجموع - تأمين الممتلكات والمسؤوليات | C22: =C16+C17+C18+C19+C20+C21 -> 5373356.775 | D22: 243699.677 | E22: 3457080.786 | F22: 1632784.849 | G22: 68870.50848 | H22: 199781.7646 | I22: 0.001 | J22: =J16+J17+J18+J19+J20+J21 -> 10975574.36 | K22: Total - Property & Liability Insurance
B24: المجموع - تأمين صحي | C24: 6625849.323 | D24: 56221.62783 | E24: 2208164.072 | F24: 1719436.487 | G24: 2474.08989 | H24: 54091.41854 | I24: 0 | J24: =C24+D24+E24+F24+G24+H24+I24 -> 10666237.02 | K24: Total - Health Insurance
B26: تأمين حياة جماعي | C26: 107449.9426 | D26: 1108.909361 | E26: 106656.524 | F26: 43766.41195 | G26: 0 | H26: 4363.346653 | I26: 337.6645125 | J26: =C26+D26+E26+F26+G26+H26+I26 -> 263682.7991 | K26: Group Life
B27: تأمين ائتمان حياة جماعي | C27: 8104.239059 | D27: 0 | E27: 46126.73797 | F27: 35576.43317 | G27: 0 | H27: 2635.868234 | I27: 397256.007 | J27: 489699.2855 | K27: Group Credit Life
B28: تأمين حياة فردي | C28: 385646.5089 | D28: 0 | E28: 72973.33609 | F28: 29444.59613 | G28: 0 | H28: 62.16663434 | I28: 33276663.06 | J28: 33764789.66 | K28: Individual Life
B29: دفعات الحياة وتكوين الأموال | C29: 0 | D29: 0 | E29: 0 | F29: 0 | G29: 0 | H29: 0 | I29: 537927.8518 | J29: 537927.8518 | K29: Annuities & Fund Accumulation
B30: المجموع - تأمين الأشخاص وعمليات تكوين الأموال | C30: =C26+C27+C28+C29 -> 501200.6906 | D30: 1108.909361 | E30: 225756.598 | F30: 108787.4412 | G30: 0 | H30: 7061.381521 | I30: 34212184.58 | J30: =J26+J27+J28+J29 -> 35056099.6 | K30: Total - Insurance of Persons & Fund Accumulation
B32: المجموع - كافة فروع التأمين | C32: =C22+C24+C30 -> 12500406.79 | D32: 301030.2142 | E32: 5891001.455 | F32: 3461008.777 | G32: 71344.59837 | H32: 260934.5647 | I32: 34212184.58 | J32: =J22+J24+J30 -> 56697910.98 | K32: TOTAL - All Types of Business Combined

Sheet 12A
B6: إجمالي المُطالبات المدفوعة والمتكبدة حسب فرع التأمين
B7: الشركات الوطنية والاجنبية
B8: Gross Paid and Incurred Claims by Line of Business
B9: National & Foreign Companies
B10: (2024)
B11: جدول رقم 12A | I11: TABLE 12A
B12: بالألف درهم | I12: AED in 000's
B13: فروع التأمين | C13: الشركات الوطنية | E13: الشركات الأجنبية | G13: الاجمالي | I13: Line of Business
C14: NATIONAL COMPANIES | E14: FOREIGN COMPANIES | G14: TOTAL
C15: المدفوعة | D15: المتكبدة | E15: المدفوعة | F15: المتكبدة | G15: المدفوعة | H15: المتكبدة
C16: Paid | D16: Incurred | E16: Paid | F16: Incurred | G16: Paid | H16: Incurred
B17: تأمين الحريق | C17: 3542103.322 | D17: 9634732.224 | E17: 629216.6596 | F17: 1461123.557 | G17: =C17+E17 -> 4171319.982 | H17: =D17+F17 -> 11095855.78 | I17: Fire
B18: التأمين البحري والطيران | C18: 783163.0953 | D18: 803311.4051 | E18: 123642.6898 | F18: 139009.5029 | G18: =C18+E18 -> 906805.7852 | H18: =D18+F18 -> 942320.908 | I18: Marine & Aviation
B19: تأمين السيارات والمركبات الأخرى | C19: 4793922.943 | D19: 5505525.828 | E19: 1696668.32 | F19: 1744968.335 | G19: 6490591.263 | H19: 7250494.163 | I19: Motor & Transportation
B20: التأمين الهندسي والانشاءات والطاقة | C20: 1350810.272 | D20: 2576330.809 | E20: 82183.61055 | F20: 57175.97092 | G20: 1432993.883 | H20: 2633506.78 | I20: Engineering, Construction & Energy
B21: أخرى | C21: 563778.731 | D21: 696348.7955 | E21: 149034.2942 | F21: 223461.0261 | G21: 712813.0252 | H21: 919809.8217 | I21: Other
B22: اعادة التأمين غير النسبية - المسؤوليات والممتلكات | C22: 520.215 | D22: 2856.167588 | E22: 0 | F22: 0 | G22: 520.215 | H22: 2856.167588 | I22: Reinsurance - Property & Liability
B23: المجموع - تأمين الممتلكات والمسؤوليات | C23: =C17+C18+C19+C20+C21+C22 -> 11034298.58 | D23: 19219105.23 | E23: =E17+E18+E19+E20+E21+E22 -> 2680745.575 | F23: =F17+F18+F19+F20+F21+F22 -> 3625738.392 | G23: =G17+G18+G19+G20+G21+G22 -> 13715044.15 | H23: =H17+H18+H19+H20+H21+H22 -> 22844843.62 | I23: Total - Property & Liability Insurance
B25: المجموع - تأمين صحي | C25: 16506894.8 | D25: 17528342.57 | E25: 6264971.092 | F25: 6657660.914 | G25: =C25+E25 -> 22771865.9 | H25: =D25+F25 -> 24186003.49 | I25: Total - Health Insurance
B27: تأمين حياة جماعي | C27: 508149.4741 | D27: 648226.4054 | E27: 106213.662 | F27: 98538.17781 | G27: =C27+E27 -> 614363.136 | H27: =D27+F27 -> 746764.5832 | I27: Group Life
B28: تأمين ائتمان حياة جماعي | C28: 159377.6908 | D28: 173399.0292 | E28: 4352 | F28: 4040 | G28: 163729.6908 | H28: 177439.0292 | I28: Group Credit Life
B29: تأمين حياة فردي | C29: 750266.5801 | D29: 1542244.001 | E29: 3513915.26 | F29: 3712942.504 | G29: 4264181.84 | H29: 5255186.504 | I29: Individual Life
B30: دفعات الحياة وتكوين الأموال | C30: 0 | D30: 0 | E30: 87133.14938 | F30: 96919.40605 | G30: 87133.14938 | H30: 96919.40605 | I30: Annuities & Fund Accumulation
B31: المجموع - تأمين الأشخاص وعمليات تكوين الأموال | C31: =C27+C28+C29+C30 -> 1417793.745 | D31: 2363869.435 | E31: 3711614.071 | F31: 3912440.088 | G31: =G27+G28+G29+G30 -> 5129407.816 | H31: =H27+H28+H29+H30 -> 6276309.523 | I31: Total - Insurance of Persons & Fund Accumulation
B33: المجموع - كافة فروع التأمين | C33: =C23+C25+C31 -> 28958987.13 | D33: 39111317.24 | E33: 12657330.74 | F33: 14195839.39 | G33: 41616317.87 | H33: 53307156.63 | I33: TOTAL - All Types of Business Combined

Sheet 12B
B6: إجمالي المُطالبات المدفوعة والمتكبدة حسب فرع التأمين
B7: شركات التأمين التقليدي الوطنية وشركات التأمين التكافلي الوطنية
B8: Gross Paid and Incurred Claims by Line of Business
B9: Traditional & Takaful National Companies
B10: (2024)
B11: جدول رقم 12B | I11: TABLE 12B
B12: بالألف درهم | I12: AED in 000's
B13: فروع التأمين | C13: شركات التأمين التقليدي الوطنية | E13: شركات التأمين التكافلي الوطنية | G13: الشركات الوطنية | I13: Line of Business
C14: TRADITIONAL COMPANIES | E14: TAKAFUL OPERATORS | G14: NATIONAL COMPANIES
C15: المدفوعة | D15: المتكبدة | E15: المدفوعة | F15: المتكبدة | G15: المدفوعة | H15: المتكبدة
C16: Paid | D16: Incurred | E16: Paid | F16: Incurred | G16: Paid | H16: Incurred
B17: تأمين الحريق | C17: 3190933.857 | D17: 8722143.935 | E17: 351169.4655 | F17: 912588.2887 | G17: =C17+E17 -> 3542103.322 | H17: =D17+F17 -> 9634732.224 | I17: Fire
B18: التأمين البحري والطيران | C18: 758222.2089 | D18: 771047.7706 | E18: 24940.88642 | F18: 32263.63451 | G18: =C18+E18 -> 783163.0953 | H18: =D18+F18 -> 803311.4051 | I18: Marine & Aviation
B19: تأمين السيارات والمركبات الأخرى | C19: 3977863.567 | D19: 4390980.32 | E19: 816059.376 | F19: 1114545.508 | G19: 4793922.943 | H19: 5505525.828 | I19: Motor & Transportation
B20: التأمين الهندسي والانشاءات والطاقة | C20: 1304207.322 | D20: 2455287.833 | E20: 46602.94999 | F20: 121042.9756 | G20: 1350810.272 | H20: 2576330.809 | I20: Engineering, Construction & Energy
B21: أخرى | C21: 511009.6859 | D21: 620365.687 | E21: 52769.04512 | F21: 75983.10855 | G21: 563778.731 | H21: 696348.7955 | I21: Other
B22: اعادة التأمين غير النسبية - المسؤوليات والممتلكات | C22: 520.215 | D22: 2856.167588 | E22: 0 | F22: 0 | G22: 520.215 | H22: 2856.167588 | I22: Reinsurance - Property & Liability
B23: المجموع - تأمين الممتلكات والمسؤوليات | C23: =C17+C18+C19+C20+C21+C22 -> 9742756.855 | D23: =D17+D18+D19+D20+D21+D22 -> 16962681.71 | E23: 1291541.723 | F23: 2256423.515 | G23: =G17+G18+G19+G20+G21+G22 -> 11034298.58 | H23: =H17+H18+H19+H20+H21+H22 -> 19219105.23 | I23: Total - Property & Liability Insurance
B25: المجموع - تأمين صحي | C25: 14976651.04 | D25: 15985357.92 | E25: 1530243.767 | F25: 1542984.654 | G25: =C25+E25 -> 16506894.8 | H25: =D25+F25 -> 17528342.57 | I25: Total - Health Insurance
B27: تأمين حياة جماعي | C27: 452552.1518 | D27: 574327.9593 | E27: 55597.32226 | F27: 73898.44605 | G27: =C27+E27 -> 508149.4741 | H27: =D27+F27 -> 648226.4054 | I27: Group Life
B28: تأمين ائتمان حياة جماعي | C28: 105148.8245 | D28: 140752.6432 | E28: 54228.86627 | F28: 32646.38597 | G28: 159377.6908 | H28: 173399.0292 | I28: Group Credit Life
B29: تأمين حياة فردي | C29: 738970.4703 | D29: 1557625.653 | E29: 11296.10979 | F29: -15381.65236 | G29: 750266.5801 | H29: 1542244.001 | I29: Individual Life
B30: دفعات الحياة وتكوين الأموال | C30: 0 | D30: 0 | E30: 0 | F30: 0 | G30: 0 | H30: 0 | I30: Annuities & Fund Accumulation
B31: المجموع - تأمين الأشخاص وعمليات تكوين الأموال | C31: =C27+C28+C29+C30 -> 1296671.447 | D31: =D27+D28+D29+D30 -> 2272706.256 | E31: 121122.2983 | F31: 91163.17966 | G31: =G27+G28+G29+G30 -> 1417793.745 | H31: =H27+H28+H29+H30 -> 2363869.435 | I31: Total - Insurance of Persons & Fund Accumulation
B33: المجموع - كافة فروع التأمين | C33: =C23+C25+C31 -> 26016079.34 | D33: 35220745.89 | E33: 2942907.789 | F33: 3890571.348 | G33: 28958987.13 | H33: 39111317.24 | I33: TOTAL - All Types of Business Combined

Sheet 13A
B6: صافي المُطالبات المدفوعة والمتكبدة حسب فرع التأمين
B7: الشركات الوطنية والاجنبية
B8: Net Paid and Incurred Claims by Line of Business
B9: National & Foreign Companies
B10: (2024)
B11: جدول رقم 13A | I11: TABLE 13A
B12: بالألف درهم | I12: AED in 000's
B13: فروع التأمين | C13: الشركات الوطنية | E13: الشركات الأجنبية | G13: الاجمالي | I13: Line of Business
C14: NATIONAL COMPANIES | E14: FOREIGN COMPANIES | G14: TOTAL
C15: المدفوعة | D15: المتكبدة | E15: المدفوعة | F15: المتكبدة | G15: المدفوعة | H15: المتكبدة
C16: Paid | D16: Incurred | E16: Paid | F16: Incurred | G16: Paid | H16: Incurred
B17: تأمين الحريق | C17: 300766.156 | D17: 494685.6408 | E17: 262840.6347 | F17: 216335.8482 | G17: =C17+E17 -> 563606.7906 | H17: 711021.489 | I17: Fire
B18: التأمين البحري والطيران | C18: 117859.4289 | D18: 180140.2964 | E18: 75336.87011 | F18: 51790.42189 | G18: 193196.299 | H18: 231930.7183 | I18: Marine & Aviation
B19: تأمين السيارات والمركبات الأخرى | C19: 3026263.114 | D19: 3408320.97 | E19: 1241645.961 | F19: 1254130.555 | G19: 4267909.074 | H19: 4662451.525 | I19: Motor & Transportation
B20: التأمين الهندسي والانشاءات والطاقة | C20: 153386.1455 | D20: 256214.2592 | E20: 53524.09746 | F20: 10211.50731 | G20: 206910.243 | H20: 266425.7665 | I20: Engineering, Construction & Energy
B21: أخرى | C21: 126465.6477 | D21: 142340.61 | E21: 65987.7805 | F21: 73800.57624 | G21: 192453.4282 | H21: 216141.1862 | I21: Other
B22: اعادة التأمين غير النسبية - المسؤوليات والممتلكات | C22: 251.745 | D22: 451.3913112 | E22: 0 | F22: 0 | G22: 251.745 | H22: 451.3913112 | I22: Reinsurance - Property & Liability
B23: المجموع - تأمين الممتلكات والمسؤوليات | C23: =C17+C18+C19+C20+C21+C22 -> 3724992.237 | D23: 4482153.168 | E23: 1699335.343 | F23: =F17+F18+F19+F20+F21+F22 -> 1606268.909 | G23: =G17+G18+G19+G20+G21+G22 -> 5424327.58 | H23: =H17+H18+H19+H20+H21+H22 -> 6088422.077 | I23: Total - Property & Liability Insurance
B25: المجموع - تأمين صحي | C25: 8829784.069 | D25: 8948227.282 | E25: 4452247.018 | F25: 4769123.484 | G25: =E25+C25 -> 13282031.09 | H25: =F25+D25 -> 13717350.77 | I25: Total - Health Insurance
B27: تأمين حياة جماعي | C27: 130367.7244 | D27: 151070.6584 | E27: 7481.353721 | F27: 9511.91052 | G27: =E27+C27 -> 137849.0781 | H27: =F27+D27 -> 160582.5689 | I27: Group Life
B28: تأمين ائتمان حياة جماعي | C28: 44425.33424 | D28: 51266.56127 | E28: 50 | F28: -588 | G28: =E28+C28 -> 44475.33424 | H28: =F28+D28 -> 50678.56127 | I28: Group Credit Life
B29: تأمين حياة فردي | C29: 729040.1837 | D29: 1540002.098 | E29: 2843923.111 | F29: 3298970.19 | G29: 3572963.295 | H29: 4838972.288 | I29: Individual Life
B30: دفعات الحياة وتكوين الأموال | C30: 0 | D30: 0 | E30: 87133.14938 | F30: 96919.40605 | G30: 87133.14938 | H30: 96919.40605 | I30: Annuities & Fund Accumulation
B31: المجموع - تأمين الأشخاص وعمليات تكوين الأموال | C31: =C27+C28+C29+C30 -> 903833.2423 | D31: 1742339.317 | E31: 2938587.614 | F31: =F27+F28+F29+F30 -> 3404813.507 | G31: =G27+G28+G29+G30 -> 3842420.856 | H31: =H27+H28+H29+H30 -> 5147152.824 | I31: Total - Insurance of Persons & Fund Accumulation
B33: المجموع - كافة فروع التأمين | C33: =C23+C25+C31 -> 13458609.55 | D33: 15172719.77 | E33: 9090169.975 | F33: 9780205.9 | G33: 22548779.52 | H33: 24952925.67 | I33: TOTAL - All Types of Business Combined

Sheet 13B
B6: صافي المُطالبات المدفوعة والمتكبدة حسب فرع التأمين
B7: شركات التأمين التقليدي الوطنية وشركات التأمين التكافلي الوطنية
B8: Net Paid and Incurred Claims by Line of Business
B9: Traditional & Takaful National Companies
B10: (2024)
B11: جدول رقم 13B | I11: TABLE 13B
B12: بالألف درهم | I12: AED in 000's
B13: فروع التأمين | C13: شركات التأمين التقليدي الوطنية | E13: شركات التأمين التكافلي الوطنية | G13: الشركات الوطنية | I13: Line of Business
C14: TRADITIONAL COMPANIES | E14: TAKAFUL OPERATORS | G14: NATIONAL COMPANIES
C15: المدفوعة | D15: المتكبدة | E15: المدفوعة | F15: المتكبدة | G15: المدفوعة | H15: المتكبدة
C16: Paid | D16: Incurred | E16: Paid | F16: Incurred | G16: Paid | H16: Incurred
B17: تأمين الحريق | C17: 268471.1319 | D17: 457582.1359 | E17: 32295.02407 | F17: 37103.50493 | G17: =C17+E17 -> 300766.156 | H17: =D17+F17 -> 494685.6408 | I17: Fire
B18: التأمين البحري والطيران | C18: 113664.9622 | D18: 174726.8111 | E18: 4194.466694 | F18: 5413.485377 | G18: =C18+E18 -> 117859.4289 | H18: =D18+F18 -> 180140.2964 | I18: Marine & Aviation
B19: تأمين السيارات والمركبات الأخرى | C19: 2504423.863 | D19: 2834554.359 | E19: 521839.2507 | F19: 573766.6114 | G19: 3026263.114 | H19: 3408320.97 | I19: Motor & Transportation
B20: التأمين الهندسي والانشاءات والطاقة | C20: 146420.2455 | D20: 236467.3097 | E20: 6965.900003 | F20: 19746.94947 | G20: 153386.1455 | H20: 256214.2592 | I20: Engineering, Construction & Energy
B21: أخرى | C21: 110298.2807 | D21: 116486.999 | E21: 16167.36703 | F21: 25853.61098 | G21: 126465.6477 | H21: 142340.61 | I21: Other
B22: اعادة التأمين غير النسبية - المسؤوليات والممتلكات | C22: 251.745 | D22: 451.3913112 | E22: 0 | F22: 0 | G22: 251.745 | H22: 451.3913112 | I22: Reinsurance - Property & Liability
B23: المجموع - تأمين الممتلكات والمسؤوليات | C23: =C17+C18+C19+C20+C21+C22 -> 3143530.228 | D23: 3820269.006 | E23: 581462.0085 | F23: 661884.1622 | G23: =G17+G18+G19+G20+G21+G22 -> 3724992.237 | H23: =H17+H18+H19+H20+H21+H22 -> 4482153.168 | I23: Total - Property & Liability Insurance
B25: المجموع - تأمين صحي | C25: 8067448.239 | D25: 8204057.305 | E25: 762335.8298 | F25: 744169.9765 | G25: =C25+E25 -> 8829784.069 | H25: =D25+F25 -> 8948227.282 | I25: Total - Health Insurance
B27: تأمين حياة جماعي | C27: 123513.0396 | D27: 143635.2696 | E27: 6854.684832 | F27: 7435.388791 | G27: =C27+E27 -> 130367.7244 | H27: =D27+F27 -> 151070.6584 | I27: Group Life
B28: تأمين ائتمان حياة جماعي | C28: 39900.46359 | D28: 45405.36161 | E28: 4524.870657 | F28: 5861.199661 | G28: =C28+E28 -> 44425.33424 | H28: =D28+F28 -> 51266.56127 | I28: Group Credit Life
B29: تأمين حياة فردي | C29: 725815.5889 | D29: 1565575.417 | E29: 3224.59481 | F29: -25573.31988 | G29: 729040.1837 | H29: 1540002.098 | I29: Individual Life
B30: دفعات الحياة وتكوين الأموال | C30: 0 | D30: 0 | E30: 0 | F30: 0 | G30: 0 | H30: 0 | I30: Annuities & Fund Accumulation
B31: المجموع - تأمين الأشخاص وعمليات تكوين الأموال | C31: =C27+C28+C29+C30 -> 889229.092 | D31: 1754616.049 | E31: 14604.1503 | F31: -12276.73143 | G31: =G27+G28+G29+G30 -> 903833.2423 | H31: =H27+H28+H29+H30 -> 1742339.317 | I31: Total - Insurance of Persons & Fund Accumulation
B33: المجموع - كافة فروع التأمين | C33: =C23+C25+C31 -> 12100207.56 | D33: 13778942.36 | E33: 1358401.989 | F33: 1393777.407 | G33: 13458609.55 | H33: 15172719.77 | I33: TOTAL - All Types of Business Combined

Sheet 14A
B6: نسبة الخسارة (الإجمالية) حسب فرع التأمين
B7: الشركات الوطنية والاجنبية
B8: Gross Loss Ratios by Line of Business
B9: National & Foreign Companies
B10: (2024)
B11: جدول رقم 14A | I11: TABLE 14A
B13: فروع التأمين | C13: الشركات الوطنية | E13: الشركات الأجنبية | G13: الاجمالي | I13: Line of Business
C14: NATIONAL COMPANIES | E14: FOREIGN COMPANIES | G14: TOTAL
C15: المدفوعة | D15: المتكبدة | E15: المدفوعة | F15: المتكبدة | G15: المدفوعة | H15: المتكبدة
C16: Paid | D16: Incurred | E16: Paid | F16: Incurred | G16: Paid | H16: Incurred
B17: تأمين الحريق | C17: 0.7220029927 | D17: 1.963891187 | E17: 0.9509473105 | F17: 2.208224299 | G17: 0.7492114896 | H17: 1.992928539 | I17: Fire
B18: التأمين البحري والطيران | C18: 0.4069659287 | D18: 0.4174358751 | E18: 0.3644180708 | F18: 0.4097094209 | G18: 0.4005887193 | H18: 0.4162778093 | I18: Marine & Aviation
B19: تأمين السيارات والمركبات الأخرى | C19: 0.9406121228 | D19: 1.080235206 | E19: 0.9678167707 | F19: 0.9953681566 | G19: 0.9475747984 | H19: 1.058514589 | I19: Motor & Transportation
B20: التأمين الهندسي والانشاءات والطاقة | C20: 0.406513271 | D20: 0.7753218094 | E20: 0.4379881076 | F20: 0.3047127662 | G20: 0.4081955978 | H20: 0.7501678041 | I20: Engineering, Construction & Energy
B21: أخرى | C21: 0.1206368086 | D21: 0.1490040183 | E21: 0.2722622976 | F21: 0.4082282721 | G21: 0.1365346507 | H21: 0.1761835268 | I21: Other
B22: اعادة التأمين غير النسبية - المسؤوليات والممتلكات | C22: 0.08818544061 | D22: 0.4841698091 | G22: 0.08818544061 | H22: 0.4841698091 | I22: Reinsurance - Property & Liability
B23: المجموع - تأمين الممتلكات والمسؤوليات | C23: 0.5536775282 | D23: 0.9643736393 | E23: 0.7683242231 | F23: 1.039167111 | G23: 0.5856577882 | H23: 0.9755171357 | I23: Total - Property & Liability Insurance
B25: المجموع - تأمين صحي | C25: 0.7837105213 | D25: 0.8322065814 | E25: 0.7482824093 | F25: 0.7951849221 | G25: 0.7736333622 | H25: 0.8216761543 | I25: Total - Health Insurance
B27: تأمين حياة جماعي | C27: 0.5855883736 | D27: 0.7470121802 | E27: 0.4692699918 | F27: 0.4353583997 | G27: 0.5615253515 | H27: 0.6825397236 | I27: Group Life
B28: تأمين ائتمان حياة جماعي | C28: 0.2601409623 | D28: 0.283027004 | E28: 0.2229051424 | F28: 0.2069248105 | G28: 0.2589909912 | H28: 0.2806767046 | I28: Group Credit Life
B29: تأمين حياة فردي | C29: 0.5173469577 | D29: 1.063455661 | E29: 0.8160150092 | F29: 0.8622338865 | G29: 0.740771189 | H29: 0.9129279428 | I29: Individual Life
B30: دفعات الحياة وتكوين الأموال | E30: 2.086189097 | F30: 2.32049696 | G30: 2.086189097 | H30: 2.32049696 | I30: Annuities & Fund Accumulation
B31: المجموع - تأمين الأشخاص وعمليات تكوين الأموال | C31: 0.4837834485 | D31: 0.8066059759 | E31: 0.8079584116 | F31: 0.8516749904 | G31: 0.6816982183 | H31: 0.8341214372 | I31: Total - Insurance of Persons & Fund Accumulation
B33: المجموع - كافة فروع التأمين | C33: 0.659324099 | D33: 0.8904674008 | E33: 0.7691915873 | F33: 0.8626874389 | G33: 0.6892674872 | H33: 0.882896224 | I33: TOTAL - All Types of Business Combined

Sheet 14B
B6: نسبة الخسارة (الإجمالية) حسب فرع التأمين
B7: شركات التأمين التقليدي الوطنية وشركات التأمين التكافلي الوطنية
B8: Gross Loss Ratios by Line of Business
B9: Traditional & Takaful National Companies
B10: (2024)
B11: جدول رقم 14B | I11: TABLE 14B
B13: فروع التأمين | C13: شركات التأمين التقليدي الوطنية | E13: شركات التأمين التكافلي الوطنية | G13: الشركات الوطنية | I13: Line of Business
C14: TRADITIONAL COMPANIES | E14: TAKAFUL OPERATORS | G14: NATIONAL COMPANIES
C15: المدفوعة | D15: المتكبدة | E15: المدفوعة | F15: المتكبدة | G15: المدفوعة | H15: المتكبدة
C16: Paid | D16: Incurred | E16: Paid | F16: Incurred | G16: Paid | H16: Incurred
B17: تأمين الحريق | C17: 0.7362075777 | D17: 2.012360252 | E17: 0.614303784 | F17: 1.596398588 | G17: 0.7220029927 | H17: 1.963891187 | I17: Fire
B18: التأمين البحري والطيران | C18: 0.4184374705 | D18: 0.4255154689 | E18: 0.2219681529 | F18: 0.2871389266 | G18: 0.4069659287 | H18: 0.4174358751 | I18: Marine & Aviation
B19: تأمين السيارات والمركبات الأخرى | C19: 0.9797810567 | D19: 1.081535167 | E19: 0.7872099795 | F19: 1.075144006 | G19: 0.9406121228 | H19: 1.080235206 | I19: Motor & Transportation
B20: التأمين الهندسي والانشاءات والطاقة | C20: 0.4159292664 | D20: 0.7830243321 | E20: 0.2488528677 | F20: 0.6463516064 | G20: 0.406513271 | H20: 0.7753218094 | I20: Engineering, Construction & Energy
B21: أخرى | C21: 0.1228971024 | D21: 0.1491970651 | E21: 0.1023991345 | F21: 0.1474463776 | G21: 0.1206368086 | H21: 0.1490040183 | I21: Other
B22: اعادة التأمين غير النسبية - المسؤوليات والممتلكات | C22: 0.08818544061 | D22: 0.4841698091 | G22: 0.08818544061 | H22: 0.4841698091 | I22: Reinsurance - Property & Liability
B23: المجموع - تأمين الممتلكات والمسؤوليات | C23: 0.5565431063 | D23: 0.9689725108 | E23: 0.5329763617 | F23: 0.9311510222 | G23: 0.5536775282 | H23: 0.9643736393 | I23: Total - Property & Liability Insurance
B25: المجموع - تأمين صحي | C25: 0.7824843134 | D25: 0.8351861697 | E25: 0.7959175698 | F25: 0.8025444194 | G25: 0.7837105213 | H25: 0.8322065814 | I25: Total - Health Insurance
B27: تأمين حياة جماعي | C27: 0.5494677446 | D27: 0.6973222582 | E27: 1.25957705 | F27: 1.674195499 | G27: 0.5855883736 | H27: 0.7470121802 | I27: Group Life
B28: تأمين ائتمان حياة جماعي | C28: 0.3651504506 | D28: 0.4887918751 | E28: 0.1670128933 | F28: 0.1005436357 | G28: 0.2601409623 | H28: 0.283027004 | I28: Group Credit Life
B29: تأمين حياة فردي | C29: 0.6421427926 | D29: 1.353529169 | E29: 0.03772525375 | F29: -0.05136960857 | G29: 0.5173469577 | H29: 1.063455661 | I29: Individual Life
B30: دفعات الحياة وتكوين الأموال | I30: Annuities & Fund Accumulation
B31: المجموع - تأمين الأشخاص وعمليات تكوين الأموال | C31: 0.5731479394 | D31: 1.004569747 | E31: 0.1812477263 | F31: 0.1364168222 | G31: 0.4837834485 | H31: 0.8066059759 | I31: Total - Insurance of Persons & Fund Accumulation
B33: المجموع - كافة فروع التأمين | C33: 0.6686548269 | D33: 0.9052294713 | E33: 0.5869208179 | F33: 0.775918745 | G33: 0.659324099 | H33: 0.8904674008 | I33: TOTAL - All Types of Business Combined

Sheet 15A
B6: نسبة الخسارة (الصافية) حسب فرع التأمين
B7: الشركات الوطنية والاجنبية
B8: Net Loss Ratios by Line of Business
B9: National & Foreign Companies
B10: (2024)
B11: جدول رقم 15A | I11: TABLE 15A
B13: فروع التأمين | C13: الشركات الوطنية | E13: الشركات الأجنبية | G13: الاجمالي | I13: Line of Business
C14: NATIONAL COMPANIES | E14: FOREIGN COMPANIES | G14: TOTAL
C15: المدفوعة | D15: المتكبدة | E15: المدفوعة | F15: المتكبدة | G15: المدفوعة | H15: المتكبدة
C16: Paid | D16: Incurred | E16: Paid | F16: Incurred | G16: Paid | H16: Incurred
B17: تأمين الحريق | C17: 0.429282058 | D17: 0.7060623869 | E17: 1.352158178 | F17: 1.11291881 | G17: 0.6297198316 | H17: 0.794426788 | I17: Fire
B18: التأمين البحري والطيران | C18: 0.3543646987 | D18: 0.5416228679 | E18: 0.4207084167 | F18: 0.2892165066 | G18: 0.3775835336 | H18: 0.4532862205 | I18: Marine & Aviation
B19: تأمين السيارات والمركبات الأخرى | C19: 0.8007532219 | D19: 0.901846236 | E19: 0.7669221396 | F19: 0.7746334457 | G19: 0.7906069184 | H19: 0.8636937593 | I19: Motor & Transportation
B20: التأمين الهندسي والانشاءات والطاقة | C20: 0.2788745469 | D20: 0.4658284828 | E20: 0.5591603298 | F20: 0.1066784881 | G20: 0.3204230992 | H20: 0.4125893846 | I20: Engineering, Construction & Energy
B21: أخرى | C21: 0.1043096229 | D21: 0.1174033867 | E21: 0.2722062212 | F21: 0.3044347882 | G21: 0.1322863375 | H21: 0.1485685455 | I21: Other
B22: اعادة التأمين غير النسبية - المسؤوليات والممتلكات | C22: 0.07356308529 | D22: 0.1319022722 | G22: 0.07356308529 | H22: 0.1319022722 | I22: Reinsurance - Property & Liability
B23: المجموع - تأمين الممتلكات والمسؤوليات | C23: 0.5662513448 | D23: 0.6813504828 | E23: 0.7291417126 | F23: 0.6892092652 | G23: 0.608863825 | H23: 0.6834063576 | I23: Total - Property & Liability Insurance
B25: المجموع - تأمين صحي | C25: 0.7239206388 | D25: 0.7336313504 | E25: 0.7379580787 | F25: 0.7904802204 | G25: 0.7285662195 | H25: 0.7524450383 | I25: Total - Health Insurance
B27: تأمين حياة جماعي | C27: 0.342606245 | D27: 0.3970135342 | E27: 0.1240713045 | F27: 0.1577462035 | G27: 0.3127130796 | H27: 0.3642844069 | I27: Group Life
B28: تأمين ائتمان حياة جماعي | C28: 0.2369114313 | D28: 0.2733943281 | E28: 0.01747030049 | F28: -0.2054507338 | G28: 0.2336125655 | H28: 0.2661958346 | I28: Group Credit Life
B29: تأمين حياة فردي | C29: 0.5433397313 | D29: 1.147734164 | E29: 0.6919964131 | F29: 0.8027205551 | G29: 0.655407677 | H29: 0.8876384459 | I29: Individual Life
B30: دفعات الحياة وتكوين الأموال | C30: 0 | D30: 0 | E30: 2.086509939 | F30: 2.320853837 | G30: 2.086510258 | H30: 2.320854192 | I30: Annuities & Fund Accumulation
B31: المجموع - تأمين الأشخاص وعمليات تكوين الأموال | C31: 0.4732576195 | D31: 0.9123091729 | E31: 0.6972304098 | F31: 0.8078505147 | G31: 0.627388287 | H31: 0.8404241788 | I31: Total - Insurance of Persons & Fund Accumulation
B33: المجموع - كافة فروع التأمين | C33: 0.6506357664 | D33: 0.733501787 | E33: 0.7226779331 | F33: 0.7775365043 | G33: 0.6778779845 | H33: 0.750153193 | I33: TOTAL - All Types of Business Combined

Sheet 15B
B6: نسبة الخسارة (الصافية) حسب فرع التأمين
B7: شركات التأمين التقليدي الوطنية وشركات التأمين التكافلي الوطنية
B8: Net Loss Ratios by Line of Business
B9: Traditional & Takaful National Companies
B10: (2024)
B11: جدول رقم 15B | I11: TABLE 15B
B13: فروع التأمين | C13: شركات التأمين التقليدي الوطنية | E13: شركات التأمين التكافلي الوطنية | G13: الشركات الوطنية | I13: Line of Business
C14: TRADITIONAL COMPANIES | E14: TAKAFUL OPERATORS | G14: NATIONAL COMPANIES
C15: المدفوعة | D15: المتكبدة | E15: المدفوعة | F15: المتكبدة | G15: المدفوعة | H15: المتكبدة
C16: Paid | D16: Incurred | E16: Paid | F16: Incurred | G16: Paid | H16: Incurred
B17: تأمين الحريق | C17: 0.4214540097 | D17: 0.7183261178 | E17: 0.5076694726 | F17: 0.583257555 | G17: 0.429282058 | H17: 0.7060623869 | I17: Fire
B18: التأمين البحري والطيران | C18: 0.3705244862 | D18: 0.5695736018 | E18: 0.1624135221 | F18: 0.2096150216 | G18: 0.3543646987 | H18: 0.5416228679 | I18: Marine & Aviation
B19: تأمين السيارات والمركبات الأخرى | C19: 0.8061240336 | D19: 0.9123864482 | E19: 0.7759425396 | F19: 0.8531552982 | G19: 0.8007532219 | H19: 0.901846236 | I19: Motor & Transportation
B20: التأمين الهندسي والانشاءات والطاقة | C20: 0.3008817076 | D20: 0.485921108 | E20: 0.1099048261 | F20: 0.3115584558 | G20: 0.2788745469 | H20: 0.4658284828 | I20: Engineering, Construction & Energy
B21: أخرى | C21: 0.1052508152 | D21: 0.1111563257 | E21: 0.09831187332 | F21: 0.157212793 | G21: 0.1043096229 | H21: 0.1174033867 | I21: Other
B22: اعادة التأمين غير النسبية - المسؤوليات والممتلكات | C22: 0.07356308529 | D22: 0.1319022722 | G22: 0.07356308529 | H22: 0.1319022722 | I22: Reinsurance - Property & Liability
B23: المجموع - تأمين الممتلكات والمسؤوليات | C23: 0.562495495 | D23: 0.6835894518 | E23: 0.5874574989 | F23: 0.6687088903 | G23: 0.5662513448 | H23: 0.6813504828 | I23: Total - Property & Liability Insurance
B25: المجموع - تأمين صحي | C25: 0.7298036344 | D25: 0.7421616676 | E25: 0.6670195084 | F25: 0.6511249669 | G25: 0.7239206388 | H25: 0.7336313504 | I25: Total - Health Insurance
B27: تأمين حياة جماعي | C27: 0.333440829 | D27: 0.3877636203 | E27: 0.6788167431 | F27: 0.7363236277 | G27: 0.342606245 | H27: 0.3970135342 | I27: Group Life
B28: تأمين ائتمان حياة جماعي | C28: 0.4824244963 | D28: 0.5489825615 | E28: 0.04317190439 | F28: 0.05592185293 | G28: 0.2369114313 | H28: 0.2733943281 | I28: Group Credit Life
B29: تأمين حياة فردي | C29: 0.6654877559 | D29: 1.435449014 | E29: 0.01284065312 | F29: -0.1018354705 | G29: 0.5433397313 | H29: 1.147734164 | I29: Individual Life
B30: دفعات الحياة وتكوين الأموال | E30: 0 | F30: 0 | G30: 0 | H30: 0 | I30: Annuities & Fund Accumulation
B31: المجموع - تأمين الأشخاص وعمليات تكوين الأموال | C31: 0.5760076803 | D31: 1.136571362 | E31: 0.03989851597 | F31: -0.03354001123 | G31: 0.4732576195 | H31: 0.9123091729 | I31: Total - Insurance of Persons & Fund Accumulation
B33: المجموع - كافة فروع التأمين | C33: 0.6653366023 | D33: 0.7576427633 | E33: 0.5436379549 | F33: 0.5577953401 | G33: 0.6506357664 | H33: 0.733501787 | I33: TOTAL - All Types of Business Combined

Sheet 16A
B6: نسبة العمولات ونسبة المصاريف والنسبة المجمعة (الإجمالية) حسب فرع التأمين
B7: الشركات الوطنية والاجنبية
B8: Gross Commission, Expense & Combined Ratios by Line of Business
B9: National & Foreign Companies
B10: (2024)
B11: جدول رقم 16A | L11: TABLE 16A
B13: فروع التأمين | C13: الشركات الوطنية | F13: الشركات الأجنبية | I13: الاجمالي | L13: Line of Business
C14: NATIONAL COMPANIES | F14: FOREIGN COMPANIES | I14: TOTAL
C15: نسبة العمولات | D15: نسبة المصاريف | E15: النسبة المجمعة | F15: نسبة العمولات | G15: نسبة المصاريف | H15: النسبة المجمعة | I15: نسبة العمولات | J15: نسبة المصاريف | K15: النسبة المجمعة
C16: Commission Ratio | D16: Expense Ratio | E16: Combined Ratio | F16: Commission Ratio | G16: Expense Ratio | H16: Combined Ratio | I16: Commission Ratio | J16: Expense Ratio | K16: Combined Ratio
B17: تأمين الحريق | C17: 0.0829390311 | D17: 0.0646383173 | E17: 2.111468536 | F17: 0.1795497412 | G17: 0.1397462472 | H17: 2.527520288 | I17: 0.09442056614 | J17: 0.07356439111 | K17: 2.160913497 | L17: Fire
B18: التأمين البحري والطيران | C18: 0.08188701509 | D18: 0.07142192992 | E18: 0.5707448201 | F18: 0.2058542624 | G18: 0.1556120059 | H18: 0.7711756892 | I18: 0.1004676235 | J18: 0.0840406084 | K18: 0.6007860412 | L18: Marine & Aviation
B19: تأمين السيارات والمركبات الأخرى | C19: 0.1439522007 | D19: 0.1307309106 | E19: 1.354918317 | F19: 0.1864067503 | G19: 0.1184927052 | H19: 1.300267612 | I19: 0.1548178901 | J19: 0.1275987012 | K19: 1.34093118 | L19: Motor & Transportation
B20: التأمين الهندسي والانشاءات والطاقة | C20: 0.0655170748 | D20: 0.06557397222 | E20: 0.9064128564 | F20: 0.1586254106 | G20: 0.09317603997 | H20: 0.5565142168 | I20: 0.07049370583 | J20: 0.06704929992 | K20: 0.8877108099 | L20: Engineering, Construction & Energy
B21: أخرى | C21: 0.08547854463 | D21: 0.1014066048 | E21: 0.3358891677 | F21: 0.1971106965 | G21: 0.1955265859 | H21: 0.8008655545 | I21: 0.09718310924 | J21: 0.1112750287 | K21: 0.3846416648 | L21: Other
B22: اعادة التأمين غير النسبية - المسؤوليات والممتلكات | C22: 0.2387048204 | D22: 0.2334849741 | E22: 0.9563596036 | I22: 0.2387048204 | J22: 0.2334849741 | K22: 0.9563596036 | L22: Reinsurance - Property & Liability
B23: المجموع - تأمين الممتلكات والمسؤوليات | C23: 0.09617747541 | D23: 0.09102375682 | E23: 1.151574872 | F23: 0.1871827725 | G23: 0.1368569684 | H23: 1.363206852 | I23: 0.1097363754 | J23: 0.09785245747 | K23: 1.183105969 | L23: Total - Property & Liability Insurance
B25: المجموع - تأمين صحي | C25: 0.04463535165 | D25: 0.07800343394 | E25: 0.954845367 | F25: 0.08394484706 | G25: 0.1190433842 | H25: 0.9981731533 | I25: 0.05581653005 | J25: 0.08967682227 | K25: 0.9671695066 | L25: Total - Health Insurance
B27: تأمين حياة جماعي | C27: 0.131331762 | D27: 0.09036874734 | E27: 0.9687126895 | F27: 0.081298758 | G27: 0.09535739397 | H27: 0.6120145517 | I27: 0.1209813319 | J27: 0.0914007589 | K27: 0.8949218144 | L27: Group Life
B28: تأمين ائتمان حياة جماعي | C28: 0.1172657358 | D28: 0.1254853137 | E28: 0.5257780534 | F28: 0.09823806597 | G28: 0.1268182749 | H28: 0.4319811514 | I28: 0.1166780954 | J28: 0.1255264801 | K28: 0.5228812801 | L28: Group Credit Life
B29: تأمين حياة فردي | C29: 0.1123388433 | D29: 0.1210631906 | E29: 1.296857695 | F29: 0.05666586828 | G29: 0.1215653368 | H29: 1.040465092 | I29: 0.07069163135 | J29: 0.1214388304 | K29: 1.105058405 | L29: Individual Life
B30: دفعات الحياة وتكوين الأموال | F30: 0.03446103442 | G30: 0.02672668114 | H30: 2.381684675 | I30: 0.03446103442 | J30: 0.02672668114 | K30: 2.381684675 | L30: Annuities & Fund Accumulation
B31: المجموع - تأمين الأشخاص وعمليات تكوين الأموال | C31: 0.1189926105 | D31: 0.1128990546 | E31: 1.038497641 | F31: 0.05785433377 | G31: 0.1194341269 | H31: 1.028963451 | I31: 0.08166656951 | J31: 0.1168888363 | K31: 1.032676843 | L31: Total - Insurance of Persons & Fund Accumulation
B33: المجموع - كافة فروع التأمين | C33: 0.07298324131 | D33: 0.08623957716 | E33: 1.049690219 | F33: 0.09855104875 | G33: 0.122929535 | H33: 1.084168023 | I33: 0.07995151549 | J33: 0.09623909263 | K33: 1.059086832 | L33: TOTAL - All Types of Business Combined

Sheet 16B
B6: نسبة العمولات ونسبة المصاريف والنسبة المجمعة (الإجمالية) حسب فرع التأمين
B7: شركات التأمين التقليدي الوطنية وشركات التأمين التكافلي الوطنية
B8: Gross Commission, Expense & Combined Ratios by Line of Business
B9: Traditional & Takaful National Companies
B10: (2024)
B11: جدول رقم 16B | L11: TABLE 16B
B13: فروع التأمين | C13: شركات التأمين التقليدي الوطنية | F13: شركات التأمين التكافلي الوطنية | I13: الشركات الوطنية | L13: Line of Business
C14: TRADITIONAL COMPANIES | F14: TAKAFUL OPERATORS | I14: NATIONAL COMPANIES
C15: نسبة العمولات | D15: نسبة المصاريف | E15: النسبة المجمعة | F15: نسبة العمولات | G15: نسبة المصاريف | H15: النسبة المجمعة | I15: نسبة العمولات | J15: نسبة المصاريف | K15: النسبة المجمعة
C16: Commission Ratio | D16: Expense Ratio | E16: Combined Ratio | F16: Commission Ratio | G16: Expense Ratio | H16: Combined Ratio | I16: Commission Ratio | J16: Expense Ratio | K16: Combined Ratio
B17: تأمين الحريق | C17: 0.07659544533 | D17: 0.06239752063 | E17: 2.151353218 | F17: 0.1310361186 | G17: 0.08162804479 | H17: 1.809062752 | I17: 0.0829390311 | J17: 0.0646383173 | K17: 2.111468536 | L17: Fire
B18: التأمين البحري والطيران | C18: 0.07816706977 | D18: 0.07023502104 | E18: 0.5739175597 | F18: 0.1418773481 | G18: 0.09056281842 | H18: 0.5195790931 | I18: 0.08188701509 | J18: 0.07142192992 | K18: 0.5707448201 | L18: Marine & Aviation
B19: تأمين السيارات والمركبات الأخرى | C19: 0.1394869258 | D19: 0.1311536436 | E19: 1.352175737 | F19: 0.1614401091 | G19: 0.1290753086 | H19: 1.365659423 | I19: 0.1439522007 | J19: 0.1307309106 | K19: 1.354918317 | L19: Motor & Transportation
B20: التأمين الهندسي والانشاءات والطاقة | C20: 0.05953257918 | D20: 0.06402136708 | E20: 0.9065782784 | F20: 0.1657208188 | G20: 0.09157062395 | H20: 0.9036430491 | I20: 0.0655170748 | J20: 0.06557397222 | K20: 0.9064128564 | L20: Engineering, Construction & Energy
B21: أخرى | C21: 0.07943945913 | D21: 0.0977714637 | E21: 0.3264079879 | F21: 0.1342062227 | G21: 0.1307375333 | H21: 0.4123901337 | I21: 0.08547854463 | J21: 0.1014066048 | K21: 0.3358891677 | L21: Other
B22: اعادة التأمين غير النسبية - المسؤوليات والممتلكات | C22: 0.2387048204 | D22: 0.2334849741 | E22: 0.9563596036 | I22: 0.2387048204 | J22: 0.2334849741 | K22: 0.9563596036 | L22: Reinsurance - Property & Liability
B23: المجموع - تأمين الممتلكات والمسؤوليات | C23: 0.08901774618 | D23: 0.08790530362 | E23: 1.145895561 | F23: 0.1478999342 | G23: 0.1135517131 | H23: 1.19260267 | I23: 0.09617747541 | J23: 0.09102375682 | K23: 1.151574872 | L23: Total - Property & Liability Insurance
B25: المجموع - تأمين صحي | C25: 0.04204984668 | D25: 0.07426796774 | E25: 0.9515039841 | F25: 0.07037436653 | G25: 0.115190452 | H25: 0.9881092379 | I25: 0.04463535165 | J25: 0.07800343394 | K25: 0.954845367 | L25: Total - Health Insurance
B27: تأمين حياة جماعي | C27: 0.1356205749 | D27: 0.08912794963 | E27: 0.9220707827 | F27: 0.051305157 | G27: 0.1135212678 | H27: 1.839021923 | I27: 0.131331762 | J27: 0.09036874734 | K27: 0.9687126895 | L27: Group Life
B28: تأمين ائتمان حياة جماعي | C28: 0.0777538301 | D28: 0.1076754034 | E28: 0.6742211086 | F28: 0.1523070214 | G28: 0.1412801012 | H28: 0.3941307583 | I28: 0.1172657358 | J28: 0.1254853137 | K28: 0.5257780534 | L28: Group Credit Life
B29: تأمين حياة فردي | C29: 0.05892653264 | D29: 0.1203143148 | E29: 1.532770017 | F29: 0.3176157539 | G29: 0.1239413083 | H29: 0.3901874536 | I29: 0.1123388433 | J29: 0.1210631906 | K29: 1.296857695 | L29: Individual Life
B30: دفعات الحياة وتكوين الأموال | L30: Annuities & Fund Accumulation
B31: المجموع - تأمين الأشخاص وعمليات تكوين الأموال | C31: 0.08924352829 | D31: 0.1073521468 | E31: 1.201165422 | F31: 0.2197055447 | G31: 0.1316776291 | H31: 0.4877999959 | I31: 0.1189926105 | J31: 0.1128990546 | K31: 1.038497641 | L31: Total - Insurance of Persons & Fund Accumulation
B33: المجموع - كافة فروع التأمين | C33: 0.06592617404 | D33: 0.08232751761 | E33: 1.053483163 | F33: 0.1277436878 | G33: 0.1165958314 | H33: 1.020258264 | I33: 0.07298324131 | J33: 0.08623957716 | K33: 1.049690219 | L33: TOTAL - All Types of Business Combined

Sheet 17A
B6: نسبة العمولات ونسبة المصاريف والنسبة المجمعة (الصافية) حسب فرع التأمين
B7: الشركات الوطنية والاجنبية
B8: Net Commission, Expense & Combined Ratios by Line of Business
B9: National & Foreign Companies
B10: (2024)
B11: جدول رقم 17A | L11: TABLE 17A
B13: فروع التأمين | C13: الشركات الوطنية | F13: الشركات الأجنبية | I13: الاجمالي | L13: Line of Business
C14: NATIONAL COMPANIES | F14: FOREIGN COMPANIES | I14: TOTAL
C15: نسبة العمولات | D15: نسبة المصاريف | E15: النسبة المجمعة | F15: نسبة العمولات | G15: نسبة المصاريف | H15: النسبة المجمعة | I15: نسبة العمولات | J15: نسبة المصاريف | K15: النسبة المجمعة
C16: Commission Ratio | D16: Expense Ratio | E16: Combined Ratio | F16: Commission Ratio | G16: Expense Ratio | H16: Combined Ratio | I16: Commission Ratio | J16: Expense Ratio | K16: Combined Ratio
B17: تأمين الحريق | C17: -0.05733083996 | D17: 0.4526119768 | E17: 1.101343524 | F17: 0.3814059263 | G17: 0.4756843948 | H17: 1.970009131 | I17: 0.03795759443 | J17: 0.457623033 | K17: 1.290007415 | L17: Fire
B18: التأمين البحري والطيران | C18: 0.0009567821029 | D18: 0.4132490495 | E18: 0.9558286996 | F18: 0.2177688982 | G18: 0.2948392299 | H18: 0.8018246347 | I18: 0.07683623046 | J18: 0.3718082299 | K18: 0.9019306808 | L18: Marine & Aviation
B19: تأمين السيارات والمركبات الأخرى | C19: 0.1479431461 | D19: 0.1762993754 | E19: 1.226088757 | F19: 0.1969701814 | G19: 0.1283065765 | H19: 1.099910204 | I19: 0.1626468785 | J19: 0.1619058216 | K19: 1.188246459 | L19: Motor & Transportation
B20: التأمين الهندسي والانشاءات والطاقة | C20: -0.07403785374 | D20: 0.3961629551 | E20: 0.7879535842 | F20: 0.1792048189 | G20: 0.1826476744 | H20: 0.4685309814 | I20: -0.03649807445 | J20: 0.3645122209 | K20: 0.740603531 | L20: Engineering, Construction & Energy
B21: أخرى | C21: -0.03776575728 | D21: 0.3908830995 | E21: 0.4705207289 | F21: 0.08911764782 | G21: 0.4415084832 | H21: 0.8350609192 | I21: -0.01662309657 | J21: 0.3993188387 | K21: 0.5312642876 | L21: Other
B22: اعادة التأمين غير النسبية - المسؤوليات والممتلكات | C22: 0.3979082662 | D22: 0.4024797182 | E22: 0.9322902566 | I22: 0.3979082662 | J22: 0.4024797182 | K22: 0.9322902566 | L22: Reinsurance - Property & Liability
B23: المجموع - تأمين الممتلكات والمسؤوليات | C23: 0.06599236239 | D23: 0.2757569486 | E23: 1.023099794 | F23: 0.2020033181 | G23: 0.2048853196 | H23: 1.096097903 | I23: 0.101573129 | J23: 0.2572167738 | K23: 1.04219626 | L23: Total - Property & Liability Insurance
B25: المجموع - تأمين صحي | C25: 0.04147488429 | D25: 0.134698979 | E25: 0.9098052137 | F25: 0.06172206221 | G25: 0.1652004553 | H25: 1.017402738 | I25: 0.04817552911 | J25: 0.1447932035 | K25: 0.9454137709 | L25: Total - Health Insurance
B27: تأمين حياة جماعي | C27: 0.2662403213 | D27: 0.2060831516 | E27: 0.8693370071 | F27: 0.1146608367 | G27: 0.3579341472 | H27: 0.6303411874 | I27: 0.2455059225 | J27: 0.22685469 | K27: 0.8366450195 | L27: Group Life
B28: تأمين ائتمان حياة جماعي | C28: 0.1905400002 | D28: 0.4099840872 | E28: 0.8739184156 | F28: -0.3308874913 | G28: 0.8651292802 | H28: 0.3287910552 | I28: 0.1827013636 | J28: 0.4168262999 | K28: 0.8657234981 | L28: Group Credit Life
B29: تأمين حياة فردي | C29: 0.1208496765 | D29: 0.1308476161 | E29: 1.399431457 | F29: 0.05825711339 | G29: 0.1273763756 | H29: 0.9883540441 | I29: 0.07366296492 | J29: 0.128230749 | K29: 1.08953216 | L29: Individual Life
B30: دفعات الحياة وتكوين الأموال | C30: 0 | D30: 0 | E30: 0 | F30: 0.0344663343 | G30: 0.02673079152 | H30: 2.382050962 | I30: 0.03446633957 | J30: 0.02673079561 | K30: 2.382051327 | L30: Annuities & Fund Accumulation
B31: المجموع - تأمين الأشخاص وعمليات تكوين الأموال | C31: 0.1566604985 | D31: 0.1732453791 | E31: 1.24221505 | F31: 0.05856409863 | G31: 0.1301786975 | H31: 0.9965933108 | I31: 0.08915380018 | J31: 0.1436083131 | K31: 1.073186292 | L31: Total - Insurance of Persons & Fund Accumulation
B33: المجموع - كافة فروع التأمين | C33: 0.05990665759 | D33: 0.1831170469 | E33: 0.9765254914 | F33: 0.08665591739 | G33: 0.1608187311 | H33: 1.025011153 | I33: 0.07002169442 | J33: 0.174685102 | K33: 0.9948599894 | L33: TOTAL - All Types of Business Combined

Sheet 17B
B6: نسبة العمولات ونسبة المصاريف والنسبة المجمعة (الصافية) حسب فرع التأمين
B7: شركات التأمين التقليدي الوطنية وشركات التأمين التكافلي الوطنية
B8: Net Commission, Expense & Combined Ratios by Line of Business
B9: Traditional & Takaful National Companies
B10: (2024)
B11: جدول رقم 17B | L11: TABLE 17B
B13: فروع التأمين | C13: شركات التأمين التقليدي الوطنية | F13: شركات التأمين التكافلي الوطنية | I13: الشركات الوطنية | L13: Line of Business
C14: TRADITIONAL COMPANIES | F14: TAKAFUL OPERATORS | I14: NATIONAL COMPANIES
C15: نسبة العمولات | D15: نسبة المصاريف | E15: النسبة المجمعة | F15: نسبة العمولات | G15: نسبة المصاريف | H15: النسبة المجمعة | I15: نسبة العمولات | J15: نسبة المصاريف | K15: النسبة المجمعة
C16: Commission Ratio | D16: Expense Ratio | E16: Combined Ratio | F16: Commission Ratio | G16: Expense Ratio | H16: Combined Ratio | I16: Commission Ratio | J16: Expense Ratio | K16: Combined Ratio
B17: تأمين الحريق | C17: -0.04749413545 | D17: 0.4245584101 | E17: 1.095390392 | F17: -0.1558322542 | G17: 0.7335308551 | H17: 1.160956156 | I17: -0.05733083996 | J17: 0.4526119768 | K17: 1.101343524 | L17: Fire
B18: التأمين البحري والطيران | C18: -0.009267302928 | D18: 0.4148680137 | E18: 0.9751743126 | F18: 0.1224017669 | G18: 0.3940184703 | H18: 0.7260352588 | I18: 0.0009567821029 | J18: 0.4132490495 | K18: 0.9558286996 | L18: Marine & Aviation
B19: تأمين السيارات والمركبات الأخرى | C19: 0.1275544102 | D19: 0.1713938529 | E19: 1.211334711 | F19: 0.2421297384 | G19: 0.1989606357 | H19: 1.294245672 | I19: 0.1479431461 | J19: 0.1762993754 | K19: 1.226088757 | L19: Motor & Transportation
B20: التأمين الهندسي والانشاءات والطاقة | C20: -0.1067840842 | D20: 0.4125216556 | E20: 0.7916586794 | F20: 0.177385831 | G20: 0.2705617879 | H20: 0.7595060747 | I20: -0.07403785374 | J20: 0.3961629551 | K20: 0.7879535842 | L20: Engineering, Construction & Energy
B21: أخرى | C21: -0.05936692885 | D21: 0.3879326481 | E21: 0.4397220449 | F21: 0.09988774152 | G21: 0.4096848556 | H21: 0.6667853901 | I21: -0.03776575728 | J21: 0.3908830995 | K21: 0.4705207289 | L21: Other
B22: اعادة التأمين غير النسبية - المسؤوليات والممتلكات | C22: 0.3979082662 | D22: 0.4024797182 | E22: 0.9322902566 | I22: 0.3979082662 | J22: 0.4024797182 | K22: 0.9322902566 | L22: Reinsurance - Property & Liability
B23: المجموع - تأمين الممتلكات والمسؤوليات | C23: 0.04479964771 | D23: 0.2753591691 | E23: 1.003748269 | F23: 0.1856499634 | G23: 0.2780028775 | H23: 1.132361731 | I23: 0.06599236239 | J23: 0.2757569486 | K23: 1.023099794 | L23: Total - Property & Liability Insurance
B25: المجموع - تأمين صحي | C25: 0.03365347829 | D25: 0.1285909619 | E25: 0.9044061078 | F25: 0.1171245825 | G25: 0.1937765475 | H25: 0.962026097 | I25: 0.04147488429 | J25: 0.134698979 | K25: 0.9098052137 | L25: Total - Health Insurance
B27: تأمين حياة جماعي | C27: 0.2673475582 | D27: 0.1981738353 | E27: 0.8532850138 | F27: 0.2256240878 | G27: 0.4962167537 | H27: 1.458164469 | I27: 0.2662403213 | J27: 0.2060831516 | K27: 0.8693370071 | L27: Group Life
B28: تأمين ائتمان حياة جماعي | C28: -0.04038274404 | D28: 0.3748871022 | E28: 0.8834869197 | F28: 0.372765998 | G28: 0.4376798568 | H28: 0.8663677077 | I28: 0.1905400002 | J28: 0.4099840872 | K28: 0.8739184156 | L28: Group Credit Life
B29: تأمين حياة فردي | C29: 0.06157850783 | D29: 0.1269482013 | E29: 1.623975723 | F29: 0.3782693147 | G29: 0.1477831008 | H29: 0.4242169449 | I29: 0.1208496765 | J29: 0.1308476161 | K29: 1.399431457 | L29: Individual Life
B30: دفعات الحياة وتكوين الأموال | F30: 0 | G30: 0 | H30: 0 | I30: 0 | J30: 0 | K30: 0 | L30: Annuities & Fund Accumulation
B31: المجموع - تأمين الأشخاص وعمليات تكوين الأموال | C31: 0.1054888278 | D31: 0.1573216734 | E31: 1.399381863 | F31: 0.3724823595 | G31: 0.2404052694 | H31: 0.5793476177 | I31: 0.1566604985 | J31: 0.1732453791 | K31: 1.24221505 | L31: Total - Insurance of Persons & Fund Accumulation
B33: المجموع - كافة فروع التأمين | C33: 0.04317636113 | D33: 0.1761300591 | E33: 0.9769491836 | F33: 0.1816755911 | G33: 0.2339707812 | H33: 0.9734417124 | I33: 0.05990665759 | J33: 0.1831170469 | K33: 0.9765254914 | L33: TOTAL - All Types of Business Combined

Sheet 18
B6: تحليل الربحية للتأمين على المركبات
B7: Motor Profitability Analysis
B8: (2024)
B11: جدول رقم 18 | G11: TABLE 18
B12: بالألف درهم | G12: AED in 000's
B13: البيــــــــان | C13: تأمين المركبات الشامل - أفراد | D13: تأمين المركبات المسؤولية المدنية - أفراد | E13: تأمين المركبات - تجاري | F13: الاجمالي | G13: DESCRIPTION
C14: Personal Motor - Comprehensive | D14: Personal Motor - Third Party Liability | E14: Commercial Motor | F14: TOTAL
B15: Gross of Reinsurance (إجمالي من إعادة التأمين)
B16: الأقساط المكتسبة | C16: 3935707.4 | D16: 1178295.441 | E16: 1735684.671 | F16: =C16+D16+E16 -> 6849687.512 | G16: Earned Premium
B17: المطالبات المتكبدة | C17: 4906223.638 | D17: 876881.765 | E17: 1467388.76 | F17: =C17+D17+E17 -> 7250494.163 | G17: Losses Incurred
B18: العمولات | C18: 645581.529 | D18: 176145.4506 | E18: 238727.1887 | F18: 1060454.168 | G18: Commission
B19: المصاريف | C19: 594360.0491 | D19: 128431.8492 | E19: 151219.3317 | F19: 874011.23 | G19: Expenses
B20: الأرباح / (الخسائر) | C20: =C16-C17-C18-C19 -> -2210457.816 | D20: -3163.624288 | E20: -121650.6085 | F20: -2335272.049 | G20: Profit / (Loss)
B21: نسبة الخسارة | C21: =C17/C16 -> 1.246592579 | D21: 0.7441951609 | E21: 0.8454235863 | F21: 1.058514589 | G21: Loss Ratio
B22: نسبة العمولات | C22: =C18/C16 -> 0.1640318914 | D22: 0.1494917527 | E22: 0.1375406447 | F22: 0.1548178901 | G22: Commission Ratio
B23: نسبة المصاريف | C23: =C19/C16 -> 0.1510173366 | D23: 0.1089980024 | E23: 0.0871237352 | F23: 0.1275987012 | G23: Expense Ratio
B24: النسبة المجمعة | C24: =SUM(C21:C23) -> 1.561641807 | D24: =SUM(D21:D23) -> 1.002684916 | E24: =SUM(E21:E23) -> 1.070087966 | F24: =SUM(F21:F23) -> 1.34093118 | G24: Combined Ratio
B25: Net of Reinsurance (صافي من إعادة التأمين)
B26: الأقساط المكتسبة | C26: 3100135.216 | D26: 845273.7214 | E26: 1452860.386 | F26: =C26+D26+E26 -> 5398269.323 | G26: Earned Premium
B27: المطالبات المتكبدة | C27: 3059164.875 | D27: 643297.0752 | E27: 959989.5754 | F27: =C27+D27+E27 -> 4662451.525 | G27: Losses Incurred
B28: العمولات | C28: 488641.1499 | D28: 178622.031 | E28: 210748.4735 | F28: =C28+D28+E28 -> 878011.6544 | G28: Commission
B29: المصاريف | C29: 594360.0491 | D29: 128431.8492 | E29: 151219.3317 | F29: =C29+D29+E29 -> 874011.23 | G29: Expenses
B30: الأرباح / (الخسائر) | C30: =C26-C27-C28-C29 -> -1042030.858 | D30: -105077.2341 | E30: 130903.0054 | F30: -1016205.087 | G30: Profit / (Loss)
B31: نسبة الخسارة | C31: 0.9867843375 | D31: 0.7610517858 | E31: 0.6607583114 | F31: 0.8636937593 | G31: Loss Ratio
B32: نسبة العمولات | C32: 0.1576193023 | D32: 0.2113185664 | E32: 0.1450576226 | F32: 0.1626468785 | G32: Commission Ratio
B33: نسبة المصاريف | C33: 0.1917206856 | D33: 0.1519411357 | E33: 0.1040838701 | F33: 0.1619058216 | G33: Expense Ratio
B34: النسبة المجمعة | C34: 1.336124325 | D34: 1.124311488 | E34: 0.9098998041 | F34: 1.188246459 | G34: Combined Ratio

Sheet 19
B6: تحليل الربحية للتأمين الصحي
B7: Health Profitability Analysis
B8: (2024)
B11: جدول رقم 19 | G11: TABLE 19
B12: بالألف درهم | G12: AED in 000's
B13: البيــــــــان | C13: التأمين الصحي الفردي | D13: التأمين الصحي الجماعي | E13: تأمين الحوادث الشخصية | F13: الاجمالي | G13: DESCRIPTION
C14: Health Insurance, Individual | D14: Health Insurance, Group | E14: Personal Accident Insurance | F14: TOTAL
B15: Gross of Reinsurance (إجمالي من إعادة التأمين)
B16: الأقساط المكتسبة | C16: 1175483.689 | D16: 27880163.07 | E16: 379311.7193 | F16: =SUM(C16:E16) -> 29434958.48 | G16: Earned Premium
B17: المطالبات المتكبدة | C17: 786272.4117 | D17: 23282041.39 | E17: 117689.6867 | F17: =SUM(C17:E17) -> 24186003.49 | G17: Losses Incurred
B18: العمولات | C18: 111152.667 | D18: 1485008.243 | E18: 46788.59864 | F18: =SUM(C18:E18) -> 1642949.509 | G18: Commission
B19: المصاريف | C19: 93454.12597 | D19: 2447082.53 | E19: 99096.88421 | F19: =SUM(C19:E19) -> 2639633.54 | G19: Expenses
B20: الأرباح / (الخسائر) | C20: =C16-C17-C18-C19 -> 184604.4847 | D20: =D16-D17-D18-D19 -> 666030.9123 | E20: 115736.5497 | F20: =F16-F17-F18-F19 -> 966371.9468 | G20: Profit / (Loss)
B21: نسبة الخسارة | C21: =C17/C16 -> 0.6688926599 | D21: 0.8350755097 | E21: 0.3102716862 | F21: =F17/F16 -> 0.8216761543 | G21: Loss Ratio
B22: نسبة العمولات | C22: =C18/C16 -> 0.09455908918 | D22: =D18/D16 -> 0.05326397264 | E22: 0.1233513131 | F22: =F18/F16 -> 0.05581626724 | G22: Commission Ratio
B23: نسبة المصاريف | C23: =C19/C16 -> 0.07950269903 | D23: 0.08777145685 | E23: 0.2612544753 | F23: =F19/F16 -> 0.08967682227 | G23: Expense Ratio
B24: النسبة المجمعة | C24: =SUM(C21:C23) -> 0.8429544481 | D24: =SUM(D21:D23) -> 0.9761109391 | E24: =SUM(E21:E23) -> 0.6948774745 | F24: =SUM(F21:F23) -> 0.9671692438 | G24: Combined Ratio
B25: Net of Reinsurance (صافي من إعادة التأمين)
B26: الأقساط المكتسبة | C26: 628985.4756 | D26: 17396244.76 | E26: 205138.8472 | F26: =SUM(C26:E26) -> 18230369.09 | G26: Earned Premium
B27: المطالبات المتكبدة | C27: 355758.8769 | D27: 13329313.07 | E27: 32278.8216 | F27: =SUM(C27:E27) -> 13717350.77 | G27: Losses Incurred
B28: العمولات | C28: 74054.26808 | D28: 772666.5507 | E28: 31529.12188 | F28: =SUM(C28:E28) -> 878249.9407 | G28: Commission
B29: المصاريف | C29: 93454.12597 | D29: 2447082.53 | E29: 99096.88421 | F29: =SUM(C29:E29) -> 2639633.54 | G29: Expenses
B30: الأرباح / (الخسائر) | C30: =C26-C27-C28-C29 -> 105718.2047 | D30: =D26-D27-D28-D29 -> 847182.6161 | E30: =E26-E27-E28-E29 -> 42234.01949 | F30: =F26-F27-F28-F29 -> 995134.8403 | G30: Profit / (Loss)
B31: نسبة الخسارة | C31: =C27/C26 -> 0.5656074594 | D31: 0.7662178388 | E31: 0.1573510919 | F31: =F27/F26 -> 0.7524450383 | G31: Loss Ratio
B32: نسبة العمولات | C32: =C28/C26 -> 0.1177360543 | D32: 0.04441570932 | E32: 0.1536964954 | F32: =F28/F26 -> 0.04817510477 | G32: Commission Ratio
B33: نسبة المصاريف | C33: =C29/C26 -> 0.1485791478 | D33: 0.1406672856 | E33: 0.4830722487 | F33: =F29/F26 -> 0.1447932035 | G33: Expense Ratio
B34: النسبة المجمعة | C34: =SUM(C31:C33) -> 0.8319226615 | D34: 0.9513008337 | E34: 0.7941198361 | F34: =SUM(F31:F33) -> 0.9454133465 | G34: Combined Ratio

Sheet 20A
B6: الموجودات المستثمرة حسب الفئة
B7: الشركات الوطنية والاجنبية
B8: Invested Assets by Class
B9: National & Foreign Companies
B11: جدول رقم 20A | I11: TABLE 20A
B12: بالألف درهم | I12: AED in 000's
B13: فروع التأمين | C13: الشركات الوطنية | E13: الشركات الأجنبية | G13: الاجمالي | I13: Asset Class
C14: NATIONAL COMPANIES | E14: FOREIGN COMPANIES | G14: TOTAL
C15: 2023 | D15: 2024 | E15: 2023 | F15: 2024 | G15: 2023 | H15: 2024
B16: استثمارات عقارية | C16: 4298236.377 | D16: 3984316.042 | E16: 71885.16966 | F16: 77480.84465 | G16: =E16+C16 -> 4370121.546 | H16: =F16+D16 -> 4061796.887 | I16: Real estate investments
B17: الأوراق المالية وسندات الدين | C17: 13509451.14 | D17: 15539267.48 | E17: 19343408.76 | F17: 20768329.48 | G17: =E17+C17 -> 32852859.9 | H17: =F17+D17 -> 36307596.96 | I17: Equity and debt securities
B18: النقد والودائع | C18: 15337469.93 | D18: 18338579.17 | E18: 6964189.05 | F18: 6687110.699 | G18: =E18+C18 -> 22301658.98 | H18: 25025689.86 | I18: Cash and deposits
B19: قروض مضمونة بوثائق التأمين على الحياة | C19: 41341.08 | D19: 40126.112 | E19: 69455.25155 | F19: 68286.26168 | G19: 110796.3315 | H19: 108412.3737 | I19: Loans secured by Life policies
B20: قروض وودائع وأدوات مالية أخرى مصنفة A | C20: 2033543.537 | D20: 3672826.548 | E20: 1064240.047 | F20: 1265937.611 | G20: 3097783.585 | H20: 4938764.158 | I20: Loans, Deposits and Other Instruments that are A Rated
B21: الاستثمار في الشركات الزميلة | C21: 291158.9281 | D21: 476570.6264 | E21: 47912.05085 | F21: 48803.36428 | G21: =E21+C21 -> 339070.979 | H21: 525373.9907 | I21: Investment in associates
B22: موجودات مستثمرة أخرى | C22: 6636711.712 | D22: 6502206.152 | E22: 7448057.873 | F22: 7428674.625 | G22: =E22+C22 -> 14084769.58 | H22: =F22+D22 -> 13930880.78 | I22: Other invested assets
B23: إجمالي الموجودات المستثمرة | C23: =SUM(C16,C17:C22) -> 42147912.7 | D23: =SUM(D16,D17:D22) -> 48553892.12 | E23: 35009148.2 | F23: 36344622.88 | G23: =SUM(G16,G17:G22) -> 77157060.9 | H23: 84898515.01 | I23: Total Invested Assets
B25: Percent of Total (النسبة من الإجمالي)
B27: فروع التأمين | C27: الشركات الوطنية | E27: الشركات الأجنبية | G27: الاجمالي | I27: Asset Class
C28: NATIONAL COMPANIES | E28: FOREIGN COMPANIES | G28: TOTAL
C29: 2023 | D29: 2024 | E29: 2023 | F29: 2024 | G29: 2023 | H29: 2024
B30: استثمارات عقارية | C30: =C16/C$23 -> 0.1019798159 | D30: 0.08205966335 | E30: 0.002053325298 | F30: 0.002131837903 | G30: 0.05663929516 | H30: 0.04784296741 | I30: Real estate investments
B31: الأوراق المالية وسندات الدين | C31: =C17/C$23 -> 0.3205247964 | D31: 0.3200416444 | E31: 0.5525244044 | F31: 0.5714278435 | G31: 0.425792008 | H31: 0.4276587989 | I31: Equity and debt securities
B32: النقد والودائع | C32: =C18/C$23 -> 0.3638963106 | D32: 0.3776953476 | E32: 0.1989248356 | F32: 0.1839917481 | G32: 0.2890423601 | H32: 0.2947718209 | I32: Cash and deposits
B33: قروض مضمونة بوثائق التأمين على الحياة | C33: =C19/C$23 -> 0.0009808571137 | D33: 0.0008264242112 | E33: 0.001983917208 | F33: 0.001878854594 | G33: 0.001435984345 | H33: 0.00127696431 | I33: Loans secured by Life policies
B34: قروض وودائع وأدوات مالية أخرى مصنفة A | C34: =C20/C$23 -> 0.04824778754 | D34: 0.07564432813 | E34: 0.03039891291 | F34: 0.03483149666 | G34: 0.04014906152 | H34: 0.05817256236 | I34: Loans, Deposits and Other Instruments that are A Rated
B35: الاستثمار في الشركات الزميلة | C35: =C21/C$23 -> 0.006908027219 | D35: =D21/D$23 -> 0.009815291949 | E35: 0.001368558029 | F35: 0.001342794626 | G35: 0.004394555405 | H35: 0.006188258896 | I35: Investment in associates
B36: موجودات مستثمرة أخرى | C36: =C22/C$23 -> 0.1574624053 | D36: 0.1339173003 | E36: 0.2127460466 | F36: 0.2043954246 | G36: 0.1825467355 | H36: 0.1640886272 | I36: Other invested assets
B37: إجمالي الموجودات المستثمرة | C37: =C30+C31+C32+C33+C34+C35+C36 -> 1 | D37: =D30+D31+D32+D33+D34+D35+D36 -> 1 | E37: 1 | F37: 1 | G37: 1 | H37: 1 | I37: Total Invested Assets

Sheet 20B
B6: الموجودات المستثمرة حسب الفئة
B7: شركات التأمين التقليدي الوطنية وشركات التأمين التكافلي الوطنية
B8: Invested Assets by Class
B9: Traditional & Takaful National Companies
B11: جدول رقم 20B | I11: TABLE 20B
B12: بالألف درهم | I12: AED in 000's
B13: فروع التأمين | C13: شركات التأمين التقليدي الوطنية | E13: شركات التأمين التكافلي الوطنية | G13: الشركات الوطنية | I13: Asset Class
C14: TRADITIONAL COMPANIES | E14: TAKAFUL OPERATORS | G14: NATIONAL COMPANIES
C15: 2023 | D15: 2024 | E15: 2023 | F15: 2024 | G15: 2023 | H15: 2024
B16: استثمارات عقارية | C16: 3638445.48 | D16: 3390071.277 | E16: 659790.897 | F16: 594244.7649 | G16: =E16+C16 -> 4298236.377 | H16: =F16+D16 -> 3984316.042 | I16: Real estate investments
B17: الأوراق المالية وسندات الدين | C17: 11871726.41 | D17: 14243166.46 | E17: 1637724.722 | F17: 1296101.02 | G17: =E17+C17 -> 13509451.14 | H17: =F17+D17 -> 15539267.48 | I17: Equity and debt securities
B18: النقد والودائع | C18: 13406440.56 | D18: 16031217.05 | E18: 1931029.375 | F18: 2307362.119 | G18: =E18+C18 -> 15337469.93 | H18: 18338579.17 | I18: Cash and deposits
B19: قروض مضمونة بوثائق التأمين على الحياة | C19: 41341.08 | D19: 40126.112 | E19: 0 | F19: 0 | G19: 41341.08 | H19: 40126.112 | I19: Loans secured by Life policies
B20: قروض وودائع وأدوات مالية أخرى مصنفة A | C20: 1885154.164 | D20: 3450503.81 | E20: 148389.3732 | F20: 222322.7373 | G20: 2033543.537 | H20: 3672826.548 | I20: Loans, Deposits and Other Instruments that are A Rated
B21: الاستثمار في الشركات الزميلة | C21: 255807.1791 | D21: 291043.9102 | E21: 35351.749 | F21: 185526.7162 | G21: =E21+C21 -> 291158.9281 | H21: 476570.6264 | I21: Investment in associates
B22: موجودات مستثمرة أخرى | C22: 3825915.877 | D22: 3851739.808 | E22: 2810795.834 | F22: 2650466.344 | G22: =E22+C22 -> 6636711.712 | H22: =F22+D22 -> 6502206.152 | I22: Other invested assets
B23: إجمالي الموجودات المستثمرة | C23: =SUM(C16,C17:C22) -> 34924830.75 | D23: =SUM(D16,D17:D22) -> 41297868.42 | E23: =SUM(E16,E17:E22) -> 7223081.95 | F23: =SUM(F16,F17:F22) -> 7256023.701 | G23: 42147912.7 | H23: 48553892.12 | I23: Total Invested Assets
B25: Percent of Total (النسبة من الإجمالي)
B27: فروع التأمين | C27: شركات التأمين التقليدي الوطنية | E27: شركات التأمين التكافلي الوطنية | G27: الشركات الوطنية | I27: Asset Class
C28: TRADITIONAL COMPANIES | E28: TAKAFUL OPERATORS | G28: NATIONAL COMPANIES
C29: 2023 | D29: 2024 | E29: 2023 | F29: 2024 | G29: 2023 | H29: 2024
B30: استثمارات عقارية | C30: =C16/C$23 -> 0.1041793303 | D30: 0.08208828703 | E30: 0.09134478905 | F30: 0.0818967508 | G30: 0.1019798159 | H30: 0.08205966335 | I30: Real estate investments
B31: الأوراق المالية وسندات الدين | C31: =C17/C$23 -> 0.3399222318 | D31: 0.344888659 | E31: 0.2267348942 | F31: 0.1786241437 | G31: 0.3205247964 | H31: 0.3200416444 | I31: Equity and debt securities
B32: النقد والودائع | C32: =C18/C$23 -> 0.3838655841 | D32: 0.3881850967 | E32: 0.2673414739 | F32: 0.3179926381 | G32: 0.3638963106 | H32: 0.3776953476 | I32: Cash and deposits
B33: قروض مضمونة بوثائق التأمين على الحياة | C33: =C19/C$23 -> 0.001183715973 | D33: 0.0009716267094 | E33: 0 | F33: 0 | G33: 0.0009808571137 | H33: 0.0008264242112 | I33: Loans secured by Life policies
B34: قروض وودائع وأدوات مالية أخرى مصنفة A | C34: =C20/C$23 -> 0.05397747458 | D34: 0.08355162003 | E34: 0.0205437754 | F34: 0.03063974795 | G34: 0.04824778754 | H34: 0.07564432813 | I34: Loans, Deposits and Other Instruments that are A Rated
B35: الاستثمار في الشركات الزميلة | C35: =C21/C$23 -> 0.007324507339 | D35: 0.007047431776 | E35: 0.004894274943 | F35: 0.02556864805 | G35: 0.006908027219 | H35: 0.009815291949 | I35: Investment in associates
B36: موجودات مستثمرة أخرى | C36: =C22/C$23 -> 0.1095471559 | D36: 0.09326727879 | E36: 0.3891407925 | F36: 0.3652780714 | G36: 0.1574624053 | H36: 0.1339173003 | I36: Other invested assets
B37: إجمالي الموجودات المستثمرة | C37: =C30+C31+C32+C33+C34+C35+C36 -> 1 | D37: =D30+D31+D32+D33+D34+D35+D36 -> 1 | E37: 1 | F37: 1 | G37: 1 | H37: 1 | I37: Total Invested Assets

Sheet 21A
B6: قائمة المركز المالي
B7: الشركات الوطنية والاجنبية
B8: Statement of Financial Position
B9: National & Foreign Companies
B11: جدول رقم 21A | I11: TABLE 21A
B12: بالألف درهم | I12: AED in 000's
B13: البيــــــــان | C13: الشركات الوطنية | E13: الشركات الأجنبية | G13: الاجمالي | I13: DESCRIPTION
C14: NATIONAL COMPANIES | E14: FOREIGN COMPANIES | G14: TOTAL
C15: 2023 | D15: 2024 | E15: 2023 | F15: 2024 | G15: 2023 | H15: 2024
B16: الموجودات | I16: Assets
B17: إجمالي الموجودات المستثمرة | C17: 42147912.7 | D17: 48553892.13 | E17: 35009148.2 | F17: 36344622.89 | G17: =C17+E17 -> 77157060.9 | H17: =D17+F17 -> 84898515.02 | I17: Total Invested Assets
B18: مستردات إعادة التأمين | C18: 21445311.59 | D18: 30644594.83 | E18: 3854294.548 | F18: 4890043.865 | G18: =C18+E18 -> 25299606.14 | H18: =D18+F18 -> 35534638.7 | I18: Reinsurance recoverable
B19: ذمم إعادة التأمين المدينة | C19: 1360452.459 | D19: 2374152.828 | E19: 210119.4211 | F19: 360576.2605 | G19: 1570571.88 | H19: 2734729.089 | I19: Reinsurance receivables
B20: ذمم تأمين مدينة | C20: 8059898.903 | D20: 10008811.27 | E20: 2357884.851 | F20: 3131237.443 | G20: 10417783.75 | H20: 13140048.71 | I20: Insurance receivables
B21: ذمم مدينة ودفعات مقدمة أخرى | C21: 4653748.153 | D21: 5699916.074 | E21: 723486.6151 | F21: 1954107.401 | G21: 5377234.768 | H21: 7654023.475 | I21: Other receivables and prepayments
B22: تكاليف الاستحواذ المؤجلة | C22: 1182972.778 | D22: 1473084.89 | E22: 4486845.411 | F22: 4527817.922 | G22: 5669818.189 | H22: 6000902.812 | I22: Deferred policy acquisition costs
B23: الممتلكات والآلات والمعدات | C23: 1604570.615 | D23: 1440417.324 | E23: 116896.1744 | F23: 152347.7191 | G23: 1721466.789 | H23: 1592765.043 | I23: Property, machinery and equipment
B24: ودائع قانونية إلزامية | C24: 802550.4962 | D24: 901906.288 | E24: 226341.7857 | F24: 389813.3618 | G24: 1028892.282 | H24: 1291719.65 | I24: Statutory deposits
B25: الموجودات غير الملموسة | C25: 212894.7038 | D25: 289715.7695 | E25: 113978.5858 | F25: 115933.8095 | G25: 326873.2896 | H25: 405649.579 | I25: Intangible assets
B26: أخرى | C26: 1739881.865 | D26: 2197378.727 | E26: 0 | F26: 0 | G26: 1739881.865 | H26: 2197378.727 | I26: Others
B27: مجموع الموجودات | C27: =SUM(C17:C26) -> 83210194.26 | D27: 103583870.1 | E27: 47098995.59 | F27: 51866500.67 | G27: 130309189.8 | H27: 155450370.8 | I27: Total Assets
B29: المطلوبات | I29: Liabilities
B30: إجمالي المخصصات الفنية | C30: 40584528.63 | D30: 54033474.01 | E30: 35693411.6 | F30: 38199075.64 | G30: =C30+E30 -> 76277940.23 | H30: =D30+F30 -> 92232549.66 | I30: Total Technical Provisions
B31: أقساط تأمين مقبوضة مقدما | C31: 292795.5224 | D31: 303167.8578 | E31: 24416.41768 | F31: 14168.6339 | G31: 317211.9401 | H31: 317336.4917 | I31: Premiums collected in advance
B32: ذمم التأمين الدائنة | C32: 4367779.906 | D32: 5812046.103 | E32: 958153.9763 | F32: 1154883.758 | G32: 5325933.882 | H32: 6966929.861 | I32: Insurance payable
B33: ذمم اعادة التأمين الدائنة | C33: 6004135.623 | D33: 6988171.941 | E33: 497204.07 | F33: 716633.194 | G33: 6501339.693 | H33: 7704805.135 | I33: Reinsurance payables
B34: عمولات اعادة التامين غير المكتسبة | C34: 493778.8471 | D34: 545281.8979 | E34: 90141.64576 | F34: 110839.7609 | G34: 583920.4928 | H34: 656121.6588 | I34: Unearned reinsurance commissions
B35: المصاريف المستحقة والمطلوبات الأخرى | C35: 7305002.846 | D35: 9235766.75 | E35: 4535350.139 | F35: 5015049.931 | G35: 11840352.98 | H35: 14250816.68 | I35: Accrued expenses and other liabilities
B36: ذمم الوكالة/المضاربة دائنة | C36: 219977.1472 | D36: 354970.6184 | E36: 0 | F36: 0 | G36: 219977.1472 | H36: 354970.6184 | I36: Wakala / Mudaraba Payable
B37: القروض | C37: 733969.7044 | D37: 886167.3871 | E37: 0 | F37: 0 | G37: 733969.7044 | H37: 886167.3871 | I37: Borrowings
B38: تعويضات مكافآت نهاية الخدمة للموظفين | C38: 370803.8242 | D38: 395799.3523 | E38: 76564.84624 | F38: 72220.60969 | G38: 447368.6705 | H38: 468019.962 | I38: End of service indemnity
B39: أخرى | C39: 22585.09273 | D39: 20963.20655 | E39: 0 | F39: 0 | G39: 22585.09273 | H39: 20963.20655 | I39: Others
B40: مجموع المطلوبات | C40: =SUM(C30:C39) -> 60395357.15 | D40: =SUM(D30:D39) -> 78575809.13 | E40: 41875242.69 | F40: 45282871.53 | G40: 102270599.8 | H40: 123858680.7 | I40: Total Liabilities
B42: حقوق المساهمين العائدة لمساهمي الشركة الأُم | I42: Equity Attributable to Equityholders of Parent
B43: الرصيد الصافي في حساب المشتركين | C43: 2114.475 | D43: 3983.293 | E43: 39036.58174 | F43: 39042.28843 | G43: =C43+E43 -> 41151.05674 | H43: =D43+F43 -> 43025.58143 | I43: Net balance in participants' funds
B44: رأس المال المصدر والمدفوع | C44: 6681615.915 | D44: 6866926.325 | E44: 100000 | F44: 100000 | G44: 6781615.915 | H44: 6966926.325 | I44: Issued and paid up share capital
B45: علاوة إصدار | C45: 110925.311 | D45: 110925.311 | E45: 0 | F45: 0 | G45: 110925.311 | H45: 110925.311 | I45: Share premium
B46: أسهم الخزينة | C46: -40633.285 | D46: -40633.285 | E46: 0 | F46: 0 | G46: -40633.285 | H46: -40633.285 | I46: Treasury shares
B47: رأس المال الإضافي المدفوع | C47: 15000 | D47: 15000 | E47: 38000 | F47: 38000 | G47: 53000 | H47: 53000 | I47: Additional paid in capital
B48: الأرباح/الخسائر المدورة | C48: 5638091.53 | D48: 6526713.567 | E48: -825065.3305 | F48: -74113.62929 | G48: 4813026.199 | H48: 6452599.937 | I48: Retained earnings/loss
B49: حساب الشركة الأم | C49: -0.004831055146 | D49: 0.5935079346 | E49: 5849177.978 | F49: 6482511.994 | G49: 5849177.973 | H49: 6482512.588 | I49: Head Office Account
B50: حقوق الأقلية | C50: 128835.1513 | D50: 492766.6199 | E50: 0 | F50: 0 | G50: 128835.1513 | H50: 492766.6199 | I50: Minority interest
B51: الإحتياطيات | C51: 10278888.03 | D51: 11032378.58 | E51: 22603.66881 | F51: -1811.508244 | G51: 10301491.7 | H51: 11030567.07 | I51: Reserves
B52: مجموع حقوق المساهمين | C52: =SUM(C43:C51) -> 22814837.12 | D52: =SUM(D43:D51) -> 25008061 | E52: 5223752.898 | F52: 6583629.145 | G52: 28038590.02 | H52: 31591690.15 | I52: Total Equity
B54: مجموع حقوق المساهمين والمطلوبات | C54: =SUM(C40+C52) -> 83210194.27 | D54: =SUM(D40+D52) -> 103583870.1 | E54: 47098995.59 | F54: 51866500.68 | G54: 130309189.9 | H54: 155450370.8 | I54: Total Equity and Liabilities

Sheet 21B
B6: قائمة المركز المالي
B7: شركات التأمين التقليدي الوطنية وشركات التأمين التكافلي الوطنية
B8: Statement of Financial Position
B9: Traditional & Takaful National Companies
B11: جدول رقم 21B | I11: TABLE 21B
B12: بالألف درهم | I12: AED in 000's
B13: البيــــــــان | C13: شركات التأمين التقليدي الوطنية | E13: شركات التأمين التكافلي الوطنية | G13: الشركات الوطنية | I13: DESCRIPTION
C14: TRADITIONAL COMPANIES | E14: TAKAFUL OPERATORS | G14: NATIONAL COMPANIES
C15: 2023 | D15: 2024 | E15: 2023 | F15: 2024 | G15: 2023 | H15: 2024
B16: الموجودات | I16: Assets
B17: إجمالي الموجودات المستثمرة | C17: 34924830.75 | D17: 41297868.42 | E17: 7223081.947 | F17: 7256023.704 | G17: =E17+C17 -> 42147912.7 | H17: =F17+D17 -> 48553892.13 | I17: Total Invested Assets
B18: مستردات إعادة التأمين | C18: 19134596.74 | D18: 27431806.41 | E18: 2310714.853 | F18: 3212788.424 | G18: =E18+C18 -> 21445311.59 | H18: 30644594.83 | I18: Reinsurance recoverable
B19: ذمم إعادة التأمين المدينة | C19: 1118022.895 | D19: 2068566.539 | E19: 242429.5635 | F19: 305586.2895 | G19: 1360452.459 | H19: 2374152.828 | I19: Reinsurance receivables
B20: ذمم تأمين مدينة | C20: 7123830.462 | D20: 9140375.48 | E20: 936068.4405 | F20: 868435.7877 | G20: 8059898.903 | H20: 10008811.27 | I20: Insurance receivables
B21: ذمم مدينة ودفعات مقدمة أخرى | C21: 3202939.551 | D21: 4106937.539 | E21: 1450808.602 | F21: 1592978.535 | G21: 4653748.153 | H21: 5699916.074 | I21: Other receivables and prepayments
B22: تكاليف الاستحواذ المؤجلة | C22: 913184.7395 | D22: 1163756.722 | E22: 269788.0385 | F22: 309328.1682 | G22: 1182972.778 | H22: 1473084.89 | I22: Deferred policy acquisition costs
B23: الممتلكات والآلات والمعدات | C23: 1508283.428 | D23: 1328810.022 | E23: 96287.18666 | F23: 111607.3027 | G23: 1604570.615 | H23: 1440417.324 | I23: Property, machinery and equipment
B24: ودائع قانونية إلزامية | C24: 457024.595 | D24: 547065.592 | E24: 345525.9012 | F24: 354840.696 | G24: 802550.4962 | H24: 901906.288 | I24: Statutory deposits
B25: الموجودات غير الملموسة | C25: 143801.7378 | D25: 221882.1695 | E25: 69092.966 | F25: 67833.6 | G25: 212894.7038 | H25: 289715.7695 | I25: Intangible assets
B26: أخرى | C26: 0 | D26: 0 | E26: 1739881.865 | F26: 2197378.727 | G26: =E26+C26 -> 1739881.865 | H26: =F26+D26 -> 2197378.727 | I26: Others
B27: مجموع الموجودات | C27: =SUM(C17:C26) -> 68526514.9 | D27: =SUM(D17:D26) -> 87307068.9 | E27: 14683679.36 | F27: 16276801.23 | G27: 83210194.26 | H27: 103583870.1 | I27: Total Assets
B29: المطلوبات | I29: Liabilities
B30: إجمالي المخصصات الفنية | C30: 33699656.69 | D30: 46198860.22 | E30: 6884871.942 | F30: 7834613.789 | G30: =E30+C30 -> 40584528.63 | H30: 54033474.01 | I30: Total Technical Provisions
B31: أقساط تأمين مقبوضة مقدما | C31: 256828.1551 | D31: 275072.583 | E31: 35967.36732 | F31: 28095.27486 | G31: 292795.5224 | H31: 303167.8578 | I31: Premiums collected in advance
B32: ذمم التأمين الدائنة | C32: 3914119.011 | D32: 5329149.961 | E32: 453660.8945 | F32: 482896.1424 | G32: 4367779.906 | H32: 5812046.103 | I32: Insurance payable
B33: ذمم اعادة التأمين الدائنة | C33: 4953510.797 | D33: 5874522.622 | E33: 1050624.826 | F33: 1113649.319 | G33: 6004135.623 | H33: 6988171.941 | I33: Reinsurance payables
B34: عمولات اعادة التامين غير المكتسبة | C34: 413814.7921 | D34: 453623.5373 | E34: 79964.05498 | F34: 91658.36066 | G34: 493778.8471 | H34: 545281.8979 | I34: Unearned reinsurance commissions
B35: المصاريف المستحقة والمطلوبات الأخرى | C35: 3614986.19 | D35: 5096524.594 | E35: 3690016.656 | F35: 4139242.156 | G35: 7305002.846 | H35: 9235766.75 | I35: Accrued expenses and other liabilities
B36: ذمم الوكالة/المضاربة دائنة | C36: 0 | D36: 0 | E36: 219977.1472 | F36: 354970.6184 | G36: 219977.1472 | H36: 354970.6184 | I36: Wakala / Mudaraba Payable
B37: القروض | C37: 576215.7044 | D37: 726914.3871 | E37: 157754 | F37: 159253 | G37: 733969.7044 | H37: 886167.3871 | I37: Borrowings
B38: تعويضات مكافآت نهاية الخدمة للموظفين | C38: 334703.986 | D38: 359535.0678 | E38: 36099.83822 | F38: 36264.28458 | G38: 370803.8242 | H38: 395799.3523 | I38: End of service indemnity
B39: أخرى | C39: 0 | D39: 0 | E39: 22585.09273 | F39: 20963.20655 | G39: 22585.09273 | H39: 20963.20655 | I39: Others
B40: مجموع المطلوبات | C40: =SUM(C30:C39) -> 47763835.33 | D40: =SUM(D30:D39) -> 64314202.98 | E40: 12631521.82 | F40: 14261606.15 | G40: 60395357.15 | H40: 78575809.13 | I40: Total Liabilities
B42: حقوق المساهمين العائدة لمساهمي الشركة الأُم | I42: Equity Attributable to Equityholders of Parent
B43: الرصيد الصافي في حساب المشتركين | C43: 0 | D43: 0 | E43: 2114.475 | F43: 3983.293 | G43: =E43+C43 -> 2114.475 | H43: 3983.293 | I43: Net balance in participants' funds
B44: رأس المال المصدر والمدفوع | C44: 4194420.917 | D44: 4209416.327 | E44: 2487194.998 | F44: 2657509.998 | G44: 6681615.915 | H44: 6866926.325 | I44: Issued and paid up share capital
B45: علاوة إصدار | C45: 109726.921 | D45: 109726.921 | E45: 1198.39 | F45: 1198.39 | G45: 110925.311 | H45: 110925.311 | I45: Share premium
B46: أسهم الخزينة | C46: -4660.318 | D46: -4660.318 | E46: -35972.967 | F46: -35972.967 | G46: -40633.285 | H46: -40633.285 | I46: Treasury shares
B47: رأس المال الإضافي المدفوع | C47: 15000 | D47: 15000 | E47: 0 | F47: 0 | G47: =E47+C47 -> 15000 | H47: =F47+D47 -> 15000 | I47: Additional paid in capital
B48: الأرباح/الخسائر المدورة | C48: 6109352.524 | D48: 7184820.825 | E48: -471260.9946 | F48: -658107.258 | G48: 5638091.53 | H48: 6526713.567 | I48: Retained earnings/loss
B49: حساب الشركة الأم | C49: -0.004831055146 | D49: 0.5935079346 | E49: 0 | F49: 0 | G49: -0.004831055146 | H49: 0.5935079346 | I49: Head Office Account
B50: حقوق الأقلية | C50: 62346.818 | D50: 445847.311 | E50: 66488.33326 | F50: 46919.30893 | G50: 128835.1513 | H50: 492766.6199 | I50: Minority interest
B51: الإحتياطيات | C51: 10276492.72 | D51: 11032714.26 | E51: 2395.314196 | F51: -335.6828713 | G51: 10278888.03 | H51: 11032378.58 | I51: Reserves
B52: مجموع حقوق المساهمين | C52: =SUM(C43:C51) -> 20762679.57 | D52: =SUM(D43:D51) -> 22992865.92 | E52: 2052157.548 | F52: 2015195.082 | G52: 22814837.12 | H52: 25008061 | I52: Total Equity
B54: مجموع حقوق المساهمين والمطلوبات | C54: =SUM(C40+C52) -> 68526514.9 | D54: 87307068.9 | E54: 14683679.37 | F54: 16276801.23 | G54: 83210194.27 | H54: 103583870.1 | I54: Total Equity and Liabilities

Sheet 22A
B6: قائمة الدخل
B7: الشركات الوطنية والاجنبية
B8: Income Statement
B9: National & Foreign Companies
B11: جدول رقم 22A | I11: TABLE 22A
B12: بالألف درهم | I12: AED in 000's
B13: البيــــــــان | C13: الشركات الوطنية | E13: الشركات الأجنبية | G13: الاجمالي | I13: DESCRIPTION
C14: NATIONAL COMPANIES | E14: FOREIGN COMPANIES | G14: TOTAL
C15: 2023 | D15: 2024 | E15: 2023 | F15: 2024 | G15: 2023 | H15: 2024
B16: الدخل الاكتتابي | I16: Underwriting Income
B17: اجمالي الأقساط المكتتبة | C17: 39140025.21 | D17: 47688245.24 | E17: 14237817.61 | F17: 17422523.53 | G17: =E17+C17 -> 53377842.82 | H17: =F17+D17 -> 65110768.76 | I17: Gross Written Premium
B18: صافي الأقساط المكتتبة | C18: 17854051.89 | D18: 22371557.98 | E18: 10922832.21 | F18: 13358331.2 | G18: =E18+C18 -> 28776884.1 | H18: 35729889.17 | I18: Net Written Premium
B19: صافي الأقساط المكتسبة | C19: 16427823.28 | D19: 20685320.79 | E19: 10451662.32 | F19: 12578452.38 | G19: 26879485.6 | H19: 33263773.17 | I19: Net Premiums Earned
B20: صافي المطالبات ومصاريف تسوية المطالبات المدفوعة | C20: 10992851.1 | D20: 13458609.54 | E20: 7382033.901 | F20: 9090169.977 | G20: 18374885 | H20: 22548779.52 | I20: Net Claims & Claim Related Expenses Paid
B21: صافي المطالبات ومصاريف تسوية المطالبات المتكبدة | C21: 12285450.87 | D21: 15172719.76 | E21: 9099550.997 | F21: 9780205.899 | G21: 21385001.86 | H21: 24952925.65 | I21: Net Claims & Claim Related Expenses Incurred
B22: أجر الوكالة/حصة المضاربة المكتسبة | C22: 2236.891453 | D22: -1106.011 | E22: 0 | F22: 0 | G22: =E22+C22 -> 2236.891453 | H22: =F22+D22 -> -1106.011 | I22: Wakala / Mudaraba Fees Earned
B23: صافي العمولات المدفوعة | C23: 1072090.167 | D23: 1492913.251 | E23: 864268.4412 | F23: 1110271.728 | G23: 1936358.608 | H23: 2603184.979 | I23: Net Commissions Paid
B24: صافي العمولات المتكبدة | C24: 836584.1404 | D24: 1239188.426 | E24: 695127.5121 | F24: 1089997.333 | G24: 1531711.652 | H24: 2329185.759 | I24: Net Commissions Incurred
B25: تكاليف الاستحواذ الأخرى | C25: 664979.5881 | D25: 898029.3001 | E25: 302925.3253 | F25: 388461.1302 | G25: 967904.9134 | H25: 1286490.43 | I25: Other Acquisition Expenses
B26: مصاريف عمومية | C26: 2148011.046 | D26: 2601130.736 | E26: 1340920.517 | F26: 1522014.611 | G26: 3488931.563 | H26: 4123145.346 | I26: General Expenses
B27: الضرائب والتراخيص والرسوم | C27: 223620.2055 | D27: 356027.9718 | E27: 99638.21924 | F27: 112375.0131 | G27: 323258.4247 | H27: 468402.9849 | I27: Taxes, Licenses and Fees
B28: تكاليف الإكتتاب الاخرى | C28: 3036610.84 | D28: 3855188.007 | E28: 1743484.061 | F28: 2022850.754 | G28: =SUM(G25:G27) -> 4780094.901 | H28: 5878038.761 | I28: Other Underwriting Expenses
B29: صافي دخل / (خسارة) الاكتتاب | C29: =C19-C21-C24-C28 -> 269177.4391 | D29: 418224.6053 | E29: -1086500.254 | F29: -314601.6055 | G29: -817322.8148 | H29: 103622.9998 | I29: Net Underwriting Income / (Loss)
B31: الدخل الاستثماري | I31: Investment Income
B32: دخل مكتسب من الاستثمارات العقارية | C32: 126692.2882 | D32: 142814.4926 | E32: 3550.68508 | F32: 3378.529808 | G32: =E32+C32 -> 130242.9733 | H32: 146193.0224 | I32: Earned Income from Real Estate Investments
B33: دخل مكتسب من الاستثمارات الاخرى | C33: 1462091.836 | D33: 1996193.529 | E33: 521384.9838 | F33: 467002.3529 | G33: 1983476.82 | H33: 2463195.882 | I33: Earned Income from Other Investments
B34: صافي الربح / (الخسارة) المحققة على الاستثمارات | C34: 160462.8903 | D34: 86026.73417 | E34: 137133.3447 | F34: 675068.7168 | G34: 297596.235 | H34: 761095.451 | I34: Net Realized Gain / (Loss) on Investments
B35: صافي الربح / (الخسارة) غير المحققة على الاستثمارات | C35: 427253.3434 | D35: 232616.2314 | E35: 2779391.644 | F35: 2086315.366 | G35: 3206644.988 | H35: 2318931.598 | I35: Net Unrealized Gain / (Loss) on Investments
B36: تعديلات في الاستثمارات متدنية القيمة | C36: 26280.01134 | D36: 12491.46768 | E36: -1485.767225 | F36: -2538.13686 | G36: 24794.24411 | H36: 9953.330824 | I36: Adjustment for Impaired Investments
B37: ربح / (خسارة) صرف العملات الأجنبية على الاستثمارات | C37: -882.76567 | D37: -1491.67595 | E37: -217770.8149 | F37: -2922.463129 | G37: -218653.5806 | H37: -4414.139079 | I37: Foreign Exchange Gain / (Loss) on Investments
B38: إجمالي دخل الاستثمار | C38: =SUM(C32:C37) -> 2201897.603 | D38: 2468650.779 | E38: 3222204.076 | F38: 3226304.366 | G38: 5424101.679 | H38: 5694955.145 | I38: Gross Investment Income
B39: مصاريف الاستثمار | C39: 299466.4517 | D39: 305060.6884 | E39: 13935.76952 | F39: -3702.137804 | G39: 313402.2212 | H39: 301358.5506 | I39: Investment Expenses
B40: صافي دخل الاستثمار | C40: =C38-C39 -> 1902431.152 | D40: 2163590.091 | E40: 3208268.306 | F40: 3230006.504 | G40: 5110699.458 | H40: 5393596.595 | I40: Net Investment Income
B41: دخل تشغيلي آخر | C41: 558789.5302 | D41: 661281.8889 | E41: 606878.3908 | F41: 455703.3572 | G41: 1165667.921 | H41: 1116985.246 | I41: Other Operating Income
B42: مصاريف تشغيلية أخرى | C42: 601113.8306 | D42: 1035967.269 | E42: 2313350.81 | F42: 2943941.316 | G42: =E42+C42 -> 2914464.641 | H42: =F42+D42 -> 3979908.585 | I42: Other Operating Expenses
B43: إجمالي الربح / الخسارة قبل حساب القروض وتوزيعات الأرباح | C43: =C29+C40+C41-C42 -> 2129284.29 | D43: 2207129.316 | E43: 415295.6328 | F43: 427166.9392 | G43: 2544579.923 | H43: 2634296.255 | I43: Total Profit / (Loss) prior to Loans & Dividends
B44: أخرى | C44: 0 | D44: 0 | E44: 0 | G44: =E44+C44 -> 0 | H44: =F44+D44 -> 0 | I44: Others
B45: إجمالي الربح / الخسارة قبل توزيعات الأرباح على حاملي الوثائق | C45: =C43-C44 -> 2129284.29 | D45: 2207129.316 | E45: 415295.6328 | F45: 427166.9392 | G45: 2544579.923 | H45: 2634296.255 | I45: Total Profit / (Loss) prior to Policyholder Dividends
B46: توزيعات الأرباح على حاملي الوثائق | C46: 23949.229 | D46: 20928.51052 | E46: 0 | F46: 0 | G46: =E46+C46 -> 23949.229 | H46: =F46+D46 -> 20928.51052 | I46: Policyholder Dividends
B47: إجمالي الربح / (الخسارة) | C47: =C45-C46 -> 2105335.061 | D47: =D45-D46 -> 2186200.806 | E47: 415295.6328 | F47: 427166.9392 | G47: 2520630.694 | H47: 2613367.745 | I47: Total Profit / (Loss)

Sheet 22B
B6: قائمة الدخل
B7: شركات التأمين التقليدي الوطنية وشركات التأمين التكافلي الوطنية
B8: Income Statement
B9: Traditional & Takaful National Companies
B11: جدول رقم 22B | I11: TABLE 22B
B12: بالألف درهم | I12: AED in 000's
B13: البيــــــــان | C13: شركات التأمين التقليدي الوطنية | E13: شركات التأمين التكافلي الوطنية | G13: الشركات الوطنية | I13: DESCRIPTION
C14: TRADITIONAL COMPANIES | E14: TAKAFUL OPERATORS | G14: NATIONAL COMPANIES
C15: 2023 | D15: 2024 | E15: 2023 | F15: 2024 | G15: 2023 | H15: 2024
B16: الدخل الاكتتابي | I16: Underwriting Income
B17: اجمالي الأقساط المكتتبة | C17: 34285474.79 | D17: 42205169.11 | E17: 4854550.427 | F17: 5483076.133 | G17: =E17+C17 -> 39140025.21 | H17: =F17+D17 -> 47688245.24 | I17: Gross Written Premium
B18: صافي الأقساط المكتتبة | C18: 15240682.12 | D18: 19689092.06 | E18: 2613369.765 | F18: 2682465.915 | G18: =E18+C18 -> 17854051.89 | H18: 22371557.98 | I18: Net Written Premium
B19: صافي الأقساط المكتسبة | C19: 13917753.3 | D19: 18186592.35 | E19: 2510069.984 | F19: 2498728.439 | G19: 16427823.28 | H19: 20685320.79 | I19: Net Premiums Earned
B20: صافي المطالبات ومصاريف تسوية المطالبات المدفوعة | C20: 9581213.631 | D20: 12100207.56 | E20: 1411637.467 | F20: 1358401.988 | G20: 10992851.1 | H20: 13458609.54 | I20: Net Claims & Claim Related Expenses Paid
B21: صافي المطالبات ومصاريف تسوية المطالبات المتكبدة | C21: 10716306.84 | D21: 13778939.35 | E21: 1569144.028 | F21: 1393780.406 | G21: 12285450.87 | H21: 15172719.76 | I21: Net Claims & Claim Related Expenses Incurred
B22: أجر الوكالة/حصة المضاربة المكتسبة | C22: 0 | D22: 0 | E22: 2236.891453 | F22: -1106.011 | G22: 2236.891453 | H22: -1106.011 | I22: Wakala / Mudaraba Fees Earned
B23: صافي العمولات المدفوعة | C23: 598278.7381 | D23: 976252.1124 | E23: 473811.4287 | F23: 516661.1386 | G23: 1072090.167 | H23: 1492913.251 | I23: Net Commissions Paid
B24: صافي العمولات المتكبدة | C24: 398288.8348 | D24: 785231.0065 | E24: 438295.3056 | F24: 453957.4195 | G24: 836584.1404 | H24: =F24+D24 -> 1239188.426 | I24: Net Commissions Incurred
B25: تكاليف الاستحواذ الأخرى | C25: 591819.3459 | D25: 802858.0368 | E25: 73160.24218 | F25: 95171.26324 | G25: 664979.5881 | H25: 898029.3001 | I25: Other Acquisition Expenses
B26: مصاريف عمومية | C26: 1653283.595 | D26: 2109622.607 | E26: 494727.4509 | F26: 491508.1284 | G26: 2148011.046 | H26: 2601130.736 | I26: General Expenses
B27: الضرائب والتراخيص والرسوم | C27: 184878.1635 | D27: 304816.4779 | E27: 38742.04197 | F27: 51211.4939 | G27: 223620.2055 | H27: 356027.9718 | I27: Taxes, Licenses and Fees
B28: تكاليف الإكتتاب الاخرى | C28: =SUM(C25:C27) -> 2429981.105 | D28: =SUM(D25:D27) -> 3217297.122 | E28: =SUM(E25:E27) -> 606629.735 | F28: =SUM(F25:F27) -> 637890.8855 | G28: =SUM(G25:G27) -> 3036610.84 | H28: 3855188.007 | I28: Other Underwriting Expenses
B29: صافي دخل / (خسارة) الاكتتاب | C29: =C19-C21-C24-C28 -> 373176.5239 | D29: 405124.8766 | E29: =E19-E21-E24-E28 -> -103999.0848 | F29: =F19-F21-F24-F28 -> 13099.72868 | G29: =G19-G21-G24-G28 -> 269177.4391 | H29: =H19-H21-H24-H28 -> 418224.6053 | I29: Net Underwriting Income / (Loss)
B31: الدخل الاستثماري | I31: Investment Income
B32: دخل مكتسب من الاستثمارات العقارية | C32: 117538.8907 | D32: 133555.6374 | E32: 9153.39747 | F32: 9258.85528 | G32: =E32+C32 -> 126692.2882 | H32: 142814.4926 | I32: Earned Income from Real Estate Investments
B33: دخل مكتسب من الاستثمارات الاخرى | C33: 1234074.017 | D33: 1732570.12 | E33: 228017.8189 | F33: 263623.4088 | G33: 1462091.836 | H33: 1996193.529 | I33: Earned Income from Other Investments
B34: صافي الربح / (الخسارة) المحققة على الاستثمارات | C34: 93457.34699 | D34: 62606.67232 | E34: 67005.54327 | F34: 23420.06185 | G34: 160462.8903 | H34: 86026.73417 | I34: Net Realized Gain / (Loss) on Investments
B35: صافي الربح / (الخسارة) غير المحققة على الاستثمارات | C35: 338679.6288 | D35: 159276.2031 | E35: 88573.71465 | F35: 73340.02835 | G35: 427253.3434 | H35: 232616.2314 | I35: Net Unrealized Gain / (Loss) on Investments
B36: تعديلات في الاستثمارات متدنية القيمة | C36: 194.948459 | D36: -697.695766 | E36: 26085.06288 | F36: 13189.16345 | G36: 26280.01134 | H36: 12491.46768 | I36: Adjustment for Impaired Investments
B37: ربح / (خسارة) صرف العملات الأجنبية على الاستثمارات | C37: -882.76567 | D37: -1491.67595 | E37: 0 | F37: 0 | G37: -882.76567 | H37: -1491.67595 | I37: Foreign Exchange Gain / (Loss) on Investments
B38: إجمالي دخل الاستثمار | C38: =SUM(C32:C37) -> 1783062.066 | D38: =SUM(D32:D37) -> 2085819.261 | E38: =SUM(E32:E37) -> 418835.5371 | F38: 382831.5177 | G38: =SUM(G32:G37) -> 2201897.603 | H38: 2468650.779 | I38: Gross Investment Income
B39: مصاريف الاستثمار | C39: 196262.4701 | D39: 183321.5848 | E39: 103203.9816 | F39: 121739.1035 | G39: 299466.4517 | H39: 305060.6884 | I39: Investment Expenses
B40: صافي دخل الاستثمار | C40: =C38-C39 -> 1586799.596 | D40: 1902497.677 | E40: =E38-E39 -> 315631.5555 | F40: 261092.4142 | G40: =G38-G39 -> 1902431.152 | H40: 2163590.091 | I40: Net Investment Income
B41: دخل تشغيلي آخر | C41: 506400.1354 | D41: 590251.8408 | E41: 52389.39475 | F41: 71030.04809 | G41: 558789.5302 | H41: 661281.8889 | I41: Other Operating Income
B42: مصاريف تشغيلية أخرى | C42: 237728.864 | D42: 737411.9899 | E42: 363384.9666 | F42: 298555.2791 | G42: 601113.8306 | H42: 1035967.269 | I42: Other Operating Expenses
B43: إجمالي الربح / الخسارة قبل حساب القروض وتوزيعات الأرباح | C43: =C29+C40+C41-C42 -> 2228647.391 | D43: 2160462.404 | E43: =E29+E40+E41-E42 -> -99363.10109 | F43: 46666.91187 | G43: =G29+G40+G41-G42 -> 2129284.29 | H43: =H29+H40+H41-H42 -> 2207129.316 | I43: Total Profit / (Loss) prior to Loans & Dividends
B44: أخرى | C44: 0 | E44: 0 | G44: =E44+C44 -> 0 | H44: =F44+D44 -> 0 | I44: Others
B45: إجمالي الربح / الخسارة قبل توزيعات الأرباح على حاملي الوثائق | C45: =C43-C44 -> 2228647.391 | D45: 2160462.404 | E45: -99363.10109 | F45: 46666.91187 | G45: 2129284.29 | H45: =H43-H44 -> 2207129.316 | I45: Total Profit / (Loss) prior to Policyholder Dividends
B46: توزيعات الأرباح على حاملي الوثائق | C46: 23949.229 | D46: 20928.51052 | E46: 0 | F46: 0 | G46: =E46+C46 -> 23949.229 | H46: 20928.51052 | I46: Policyholder Dividends
B47: إجمالي الربح / (الخسارة) | C47: =C45-C46 -> 2204698.162 | D47: 2139533.894 | E47: =E45-E46 -> -99363.10109 | F47: 46666.91187 | G47: =G45-G46 -> 2105335.061 | H47: 2186200.806 | I47: Total Profit / (Loss)

Sheet 23A
B6: تحليل الملاءة المالية
B7: Solvency Analysis
B8: (2024)
B11: جدول رقم 23A | D11: TABLE 23A
B12: بالألف درهم | D12: AED in 000's
B13: البيــــــــان | C13: الاجمالي | D13: DESCRIPTION
C14: TOTAL
B15: متطلب الحد الأدنى لرأس المال (MCR) | C15: 5850000 | D15: Minimum Capital Requirement (MCR)
B16: مخاطر الإكتتاب - التأمينات العامة | C16: 2376729.573 | D16: Underwriting Risk - Property and Liability Insurance
B17: مخاطر الإكتتاب - التأمين على الحياة | C17: 334180.8432 | D17: Underwriting Risk - Life Insurance
B18: مخاطر الإكتتاب - التأمين الصحي | C18: 1708988.094 | D18: Underwriting Risk - Health Insurance
B19: المخاطر الاستثمارية | C19: 4304084.758 | D19: Investment Risk
B20: مخاطر الائتمان | C20: 3598036.823 | D20: Credit Risk
B21: المتطلب الأساسي لملاءة رأس المال (BSCR) | C21: 8824629.728 | D21: Basic Solvency Capital Required (BSCR)
B22: المخاطر التشغيلية | C22: 2592983.735 | D22: Operational Risk
B23: متطلب ملاءة رأس المال (SCR) | C23: 11417613.46 | D23: Solvency Capital Requirement (SCR)
B24: المبلغ الأدنى للضمان (MGF) | C24: 8191195.482 | D24: Minimum Guarantee Fund (MGF)
B26: صافي الموجودات المقبولة مطروحا منها المطلوبات | C26: 22341894.22 | D26: Admissible Assets less Liabilities
B28: الفائض / (العجز) في هامش الحد الأدنى لرأس المال | C28: 16827405.38 | D28: MCR Solvency Margin - Surplus / (Deficit)
B29: الفائض / (العجز) في هامش ملاءة رأس المال | C29: 11121352.98 | D29: SCR Solvency Margin - Surplus / (Deficit)
B30: الفائض / (العجز) في هامش المبلغ الأدنى للضمان | C30: 14347770.96 | D30: MGF Solvency Margin - Surplus / (Deficit)
B32: نسبة الحد الأدنى لرأس المال | C32: 3.819127217 | D32: MCR Solvency Ratio
B33: نسبة ملاءة رأس المال | C33: 1.956791959 | D33: SCR Solvency Ratio
B34: نسبة المبلغ الأدنى للضمان | C34: 2.727549876 | D34: MGF Solvency Ratio

Sheet 23B
B6: تحليل الملاءة المالية للشركات الوطنية
B7: Solvency Analysis for National Companies
B8: (2024)
B11: جدول رقم 23B | D11: TABLE 23B
B12: بالألف درهم | D12: AED in 000's
B13: البيــــــــان | C13: الشركات الوطنية | D13: DESCRIPTION
C14: NATIONAL COMPANIES
B15: متطلب الحد الأدنى لرأس المال (MCR) | C15: 3100000 | D15: Minimum Capital Requirement (MCR)
B16: مخاطر الإكتتاب - التأمينات العامة | C16: 1905910.41 | D16: Underwriting Risk - Property and Liability Insurance
B17: مخاطر الإكتتاب - التأمين على الحياة | C17: 117162.9022 | D17: Underwriting Risk - Life Insurance
B18: مخاطر الإكتتاب - التأمين الصحي | C18: 1190022.241 | D18: Underwriting Risk - Health Insurance
B19: المخاطر الاستثمارية | C19: 3553316.96 | D19: Investment Risk
B20: مخاطر الائتمان | C20: 2839799.841 | D20: Credit Risk
B21: المتطلب الأساسي لملاءة رأس المال (BSCR) | C21: 6757480.243 | D21: Basic Solvency Capital Required (BSCR)
B22: المخاطر التشغيلية | C22: 1881261.453 | D22: Operational Risk
B23: متطلب ملاءة رأس المال (SCR) | C23: 8638741.696 | D23: Solvency Capital Requirement (SCR)
B24: المبلغ الأدنى للضمان (MGF) | C24: 5661079.725 | D24: Minimum Guarantee Fund (MGF)
B26: صافي الموجودات المقبولة مطروحا منها المطلوبات | C26: 16770881.59 | D26: Admissible Assets less Liabilities
B28: الفائض / (العجز) في هامش الحد الأدنى لرأس المال | C28: 13291215.29 | D28: MCR Solvency Margin - Surplus / (Deficit)
B29: الفائض / (العجز) في هامش ملاءة رأس المال | C29: 7583743.385 | D29: SCR Solvency Margin - Surplus / (Deficit)
B30: الفائض / (العجز) في هامش المبلغ الأدنى للضمان | C30: 10561405.36 | D30: MGF Solvency Margin - Surplus / (Deficit)
B32: نسبة الحد الأدنى لرأس المال | C32: 5.409961802 | D32: MCR Solvency Ratio
B33: نسبة ملاءة رأس المال | C33: 1.941356991 | D33: SCR Solvency Ratio
B34: نسبة المبلغ الأدنى للضمان | C34: 2.962488148 | D34: MGF Solvency Ratio

Sheet 24A
B6: إجمالي الأقساط المكتتبة حسب الإمارة
B7: Gross Written Premium by Emirate
B8: (2024)
B11: جدول رقم 24A | M11: TABLE 24A
B12: بالألف درهم | M12: AED in 000's
B13: فروع التأمين | C13: أم القيوين | D13: الشارقة | E13: رأس الخيمة | F13: الفجيرة | G13: دبي | H13: عجمان | I13: أبو ظبي | J13: داخل الدولة | K13: خارج الدولة | L13: جميع المواقع | M13: Line of Business
C14: Umm Al Quwain | D14: Sharjah | E14: Ras Al Khaimah | F14: Fujairah | G14: Dubai | H14: Ajman | I14: Abu Dhabi | J14: Within UAE | K14: Outside UAE | L14: All Locations
B15: تأمين الحريق | C15: 2877.50543 | D15: 99316.35041 | E15: 37753.93252 | F15: 55838.62478 | G15: 2934462.041 | H15: 7309.269173 | I15: 1213561.023 | J15: =C15+D15+E15+F15+G15+H15+I15 -> 4351118.746 | K15: 1882136.528 | L15: =J15+K15 -> 6233255.274 | M15: Fire
B16: التأمين البحري والطيران | C16: 51.33545 | D16: 81483.52464 | E16: 7045.27816 | F16: 12348.2024 | G16: 1229126.48 | H16: 2609.298834 | I16: 618706.3247 | J16: =C16+D16+E16+F16+G16+H16+I16 -> 1951370.444 | K16: 366200.2413 | L16: =J16+K16 -> 2317570.685 | M16: Marine & Aviation
B17: تأمين السيارات والمركبات الأخرى | C17: 268.37649 | D17: 426362.2677 | E17: 492650.653 | F17: 121479.5918 | G17: 4490618.046 | H17: 50978.36896 | I17: 1883297.733 | J17: 7465655.037 | K17: 585990.0839 | L17: 8051645.121 | M17: Motor & Transportation
B18: التأمين الهندسي والانشاءات والطاقة | C18: 13.82534 | D18: 75063.91968 | E18: 64744.08373 | F18: 14094.32545 | G18: 1090857.406 | H18: 6449.134812 | I18: 1696072.629 | J18: 2947295.324 | K18: 1155241.878 | L18: 4102537.202 | M18: Engineering, Construction & Energy
B19: أخرى | C19: 103.32459 | D19: 43500.78532 | E19: 27802.10874 | F19: 10015.65717 | G19: 4207444.786 | H19: 6790.457668 | I19: 1022709.264 | J19: 5318366.384 | K19: 270154.2475 | L19: 5588520.631 | M19: Other
B20: اعادة التأمين غير النسبية - المسؤوليات والممتلكات | C20: 0 | D20: 0 | E20: 0 | F20: 0 | G20: 0 | H20: 0 | I20: 5753.65417 | J20: 5753.65417 | K20: 0 | L20: 5753.65417 | M20: Reinsurance - Property & Liability
B21: المجموع - تأمين الممتلكات والمسؤوليات | C21: =C15+C16+C17+C18+C19+C20 -> 3314.3673 | D21: 725726.8478 | E21: 629996.0562 | F21: 213776.4016 | G21: 13952508.76 | H21: 74136.52945 | I21: 6440100.628 | J21: =J15+J16+J17+J18+J19+J20 -> 22039559.59 | K21: =K15+K16+K17+K18+K19+K20 -> 4259722.978 | L21: =L15+L16+L17+L18+L19+L20 -> 26299282.57 | M21: Total - Property & Liability Insurance
B23: المجموع - تأمين صحي | C23: 12948.23244 | D23: 1623116.953 | E23: 115920.1866 | F23: 87394.07426 | G23: 18905663.57 | H23: 66719.59442 | I23: 10015145.09 | J23: =C23+D23+E23+F23+G23+H23+I23 -> 30826907.7 | K23: 490849.6682 | L23: =J23+K23 -> 31317757.37 | M23: Total - Health Insurance
B25: تأمين حياة جماعي | C25: 1700.181333 | D25: 32113.99852 | E25: 6091.456345 | F25: 3542.562397 | G25: 561712.3823 | H25: 4215.660616 | I25: 282863.6573 | J25: =C25+D25+E25+F25+G25+H25+I25 -> 892239.8988 | K25: 229346.1713 | L25: =J25+K25 -> 1121586.07 | M25: Group Life
B26: تأمين ائتمان حياة جماعي | C26: 0 | D26: 151.44399 | E26: 83181.96766 | F26: 0 | G26: 392458.1137 | H26: 0 | I26: 131987.8486 | J26: 607779.3739 | K26: 22536.06462 | L26: 630315.4385 | M26: Group Credit Life
B27: تأمين حياة فردي | C27: 5960.396799 | D27: 126350.8313 | E27: 16334.6703 | F27: 7564.704287 | G27: 4924736.868 | H27: 30034.94162 | I27: 517731.0052 | J27: 5628713.417 | K27: 71347.24692 | L27: 5700060.664 | M27: Individual Life
B28: دفعات الحياة وتكوين الأموال | C28: 0 | D28: 0 | E28: 0 | F28: 0 | G28: 41580.53328 | H28: 0 | I28: 186.1262348 | J28: 41766.65952 | K28: -0.0001616064037 | L28: 41766.65936 | M28: Annuities & Fund Accumulation
B29: المجموع - تأمين الأشخاص وعمليات تكوين الأموال | C29: =C25+C26+C27+C28 -> 7660.578132 | D29: 158616.2738 | E29: 105608.0943 | F29: 11107.26668 | G29: 5920487.897 | H29: 34250.60224 | I29: 932768.6373 | J29: =C29+D29+E29+F29+G29+H29+I29 -> 7170499.349 | K29: =K25+K26+K27+K28 -> 323229.4826 | L29: 7493728.832 | M29: Total - Insurance of Persons & Fund Accumulation
B31: المجموع - كافة فروع التأمين | C31: =C21+C23+C29 -> 23923.17787 | D31: 2507460.074 | E31: 851524.337 | F31: 312277.7426 | G31: 38778660.22 | H31: 175106.7261 | I31: 17388014.36 | J31: =J21+J23+J29 -> 60036966.64 | K31: =K21+K23+K29 -> 5073802.129 | L31: 65110768.77 | M31: TOTAL - All Types of Business Combined
G88: ` | H88: ` | I88: `

Sheet 24B
B6: صافي الأقساط المكتتبة حسب الإمارة
B7: Net Written Premium by Emirate
B8: (2024)
B11: جدول رقم 24B | M11: TABLE 24B
B12: بالألف درهم | M12: AED in 000's
B13: فروع التأمين | C13: أم القيوين | D13: الشارقة | E13: رأس الخيمة | F13: الفجيرة | G13: دبي | H13: عجمان | I13: أبو ظبي | J13: داخل الدولة | K13: خارج الدولة | L13: جميع المواقع | M13: Line of Business
C14: Umm Al Quwain | D14: Sharjah | E14: Ras Al Khaimah | F14: Fujairah | G14: Dubai | H14: Ajman | I14: Abu Dhabi | J14: Within UAE | K14: Outside UAE | L14: All Locations
B15: تأمين الحريق | C15: -1136.243796 | D15: 10515.09674 | E15: 3278.490005 | F15: -6346.622863 | G15: 461175.807 | H15: -803.2840408 | I15: -449536.6892 | J15: =C15+D15+E15+F15+G15+H15+I15 -> 17146.55386 | K15: 933191.9984 | L15: =J15+K15 -> 950338.5523 | M15: Fire
B16: التأمين البحري والطيران | C16: 15.40058 | D16: 13892.58605 | E16: 1150.809987 | F16: 3192.09526 | G16: 281267.4477 | H16: -118.4422269 | I16: 12215.81018 | J16: 311615.7075 | K16: 198820.5046 | L16: =J16+K16 -> 510436.2121 | M16: Marine & Aviation
B17: تأمين السيارات والمركبات الأخرى | C17: 261.9933814 | D17: 362271.9094 | E17: 239656.2881 | F17: 105102.5841 | G17: 3803511.048 | H17: 4386.545981 | I17: 1552268.496 | J17: 6067458.865 | K17: 523461.3396 | L17: 6590920.205 | M17: Motor & Transportation
B18: التأمين الهندسي والانشاءات والطاقة | C18: -86.02354396 | D18: 81.9293402 | E18: 3856.485328 | F18: -3255.842244 | G18: 169376.792 | H18: 663.8704935 | I18: -271787.2654 | J18: -101150.054 | K18: 755560.8073 | L18: 654410.7534 | M18: Engineering, Construction & Energy
B19: أخرى | C19: 36.02752088 | D19: 14237.45634 | E19: 6246.177857 | F19: 2865.304142 | G19: 1170155.638 | H19: 3459.656444 | I19: 219987.3241 | J19: 1416987.585 | K19: 106699.799 | L19: 1523687.384 | M19: Other
B20: اعادة التأمين غير النسبية - المسؤوليات والممتلكات | C20: 0 | D20: 0 | E20: 0 | F20: 0 | G20: 0 | H20: 0 | I20: 4431.73023 | J20: 4431.73023 | K20: 0 | L20: 4431.73023 | M20: Reinsurance - Property & Liability
B21: المجموع - تأمين الممتلكات والمسؤوليات | C21: =C15+C16+C17+C18+C19+C20 -> -908.8458578 | D21: 400998.9778 | E21: 254188.2513 | F21: 101557.5184 | G21: 5885486.732 | H21: 7588.346651 | I21: 1067579.406 | J21: =J15+J16+J17+J18+J19+J20 -> 7716490.387 | K21: =K15+K16+K17+K18+K19+K20 -> 2517734.449 | L21: 10234224.84 | M21: Total - Property & Liability Insurance
B23: المجموع - تأمين صحي | C23: 7885.882037 | D23: 775349.8288 | E23: 87642.58419 | F23: 54923.85208 | G23: 11634415.31 | H23: 45740.81373 | I23: 7829146.102 | J23: =C23+D23+E23+F23+G23+H23+I23 -> 20435104.38 | K23: -982922.9895 | L23: =J23+K23 -> 19452181.39 | M23: Total - Health Insurance
B25: تأمين حياة جماعي | C25: 661.8868622 | D25: 6762.993404 | E25: 2506.136377 | F25: -1256.42813 | G25: 174353.3919 | H25: 2923.235026 | I25: 9384.438355 | J25: =C25+D25+E25+F25+G25+H25+I25 -> 195335.6538 | K25: 226246.8215 | L25: =J25+K25 -> 421582.4754 | M25: Group Life
B26: تأمين ائتمان حياة جماعي | C26: 0 | D26: 51.14165 | E26: 42084.4789 | F26: 0 | G26: 114262.2095 | H26: 0 | I26: 15464.02825 | J26: =C26+D26+E26+F26+G26+H26+I26 -> 171861.8583 | K26: 16602.7182 | L26: 188464.5765 | M26: Group Credit Life
B27: تأمين حياة فردي | C27: 5938.674142 | D27: 125130.3734 | E27: 16181.08234 | F27: 7533.503049 | G27: 4652947.925 | H27: 29898.78439 | I27: 500870.7524 | J27: =C27+D27+E27+F27+G27+H27+I27 -> 5338501.095 | K27: 53174.57864 | L27: 5391675.673 | M27: Individual Life
B28: دفعات الحياة وتكوين الأموال | C28: 0 | D28: 0 | E28: 0 | F28: 0 | G28: 41574.5923 | H28: 0 | I28: 185.6383772 | J28: =C28+D28+E28+F28+G28+H28+I28 -> 41760.23068 | K28: -0.0001616064037 | L28: 41760.23052 | M28: Annuities & Fund Accumulation
B29: المجموع - تأمين الأشخاص وعمليات تكوين الأموال | C29: =C25+C26+C27+C28 -> 6600.561005 | D29: 131944.5085 | E29: 60771.69761 | F29: 6277.074919 | G29: 4983138.119 | H29: 32822.01942 | I29: 525904.8574 | J29: =J25+J26+J27+J28 -> 5747458.838 | K29: =K25+K26+K27+K28 -> 296024.1182 | L29: =L25+L26+L27+L28 -> 6043482.956 | M29: Total - Insurance of Persons & Fund Accumulation
B31: المجموع - كافة فروع التأمين | C31: =C21+C23+C29 -> 13577.59718 | D31: 1308293.315 | E31: 402602.5331 | F31: 162758.4454 | G31: 22503040.16 | H31: 86151.1798 | I31: 9422630.366 | J31: =J21+J23+J29 -> 33899053.6 | K31: =K21+K23+K29 -> 1830835.578 | L31: 35729889.18 | M31: TOTAL - All Types of Business Combined

Sheet 25
B6: عدد وثائق التأمين حسب الإمارة
B7: Number of Policies by Emirate
B8: (2024)
B11: جدول رقم 25 | M11: TABLE 25
B13: فروع التأمين | C13: أم القيوين | D13: الشارقة | E13: رأس الخيمة | F13: الفجيرة | G13: دبي | H13: عجمان | I13: أبو ظبي | J13: داخل الدولة | K13: خارج الدولة | L13: جميع المواقع | M13: Line of Business
C14: Umm Al Quwain | D14: Sharjah | E14: Ras Al Khaimah | F14: Fujairah | G14: Dubai | H14: Ajman | I14: Abu Dhabi | J14: Within UAE | K14: Outside UAE | L14: All Locations
B15: تأمين الحريق | C15: 64 | D15: 4478.4 | E15: 1044 | F15: 903 | G15: 110206.6702 | H15: 555 | I15: 32794.2 | J15: =C15+D15+E15+F15+G15+H15+I15 -> 150045.2702 | K15: 67956.74976 | L15: =J15+K15 -> 218002.02 | M15: Fire
B16: التأمين البحري والطيران | C16: 2 | D16: 16203.45 | E16: 329 | F16: 568 | G16: 183935.7 | H16: 512 | I16: 21470.85 | J16: 223021 | K16: 37821.22 | L16: 260842.22 | M16: Marine & Aviation
B17: تأمين السيارات والمركبات الأخرى | C17: 154 | D17: 247487.65 | E17: 544306 | F17: 75687 | G17: 2187254.696 | H17: 28389 | I17: 1330449.45 | J17: 4413727.796 | K17: 931760.2638 | L17: 5345488.06 | M17: Motor & Transportation
B18: التأمين الهندسي والانشاءات والطاقة | C18: 1 | D18: 2227.65 | E18: 1224 | F18: 495 | G18: 26791.26667 | H18: 238 | I18: 15618.45 | J18: 46595.36667 | K18: 25071.03333 | L18: 71666.4 | M18: Engineering, Construction & Energy
B19: أخرى | C19: 1300.090889 | D19: 562190.7147 | E19: 542391.9632 | F19: 159018.5831 | G19: 5626948.969 | H19: 38586.11441 | I19: 1695894.377 | J19: 8626330.812 | K19: 156587.6476 | L19: 8782918.46 | M19: Other
B20: اعادة التأمين غير النسبية - المسؤوليات والممتلكات | C20: 0 | D20: 0 | E20: 0 | F20: 0 | G20: 0 | H20: 0 | I20: 1149 | J20: 1149 | K20: 0 | L20: 1149 | M20: Reinsurance - Property & Liability
B21: المجموع - تأمين الممتلكات والمسؤوليات | C21: =C15+C16+C17+C18+C19+C20 -> 1521.090889 | D21: =D15+D16+D17+D18+D19+D20 -> 832587.8647 | E21: =E15+E16+E17+E18+E19+E20 -> 1089294.963 | F21: =F15+F16+F17+F18+F19+F20 -> 236671.5831 | G21: =G15+G16+G17+G18+G19+G20 -> 8135137.302 | H21: =H15+H16+H17+H18+H19+H20 -> 68280.11441 | I21: =I15+I16+I17+I18+I19+I20 -> 3097376.327 | J21: =J15+J16+J17+J18+J19+J20 -> 13460869.25 | K21: =K15+K16+K17+K18+K19+K20 -> 1219196.914 | L21: =L15+L16+L17+L18+L19+L20 -> 14680066.16 | M21: Total - Property & Liability Insurance
B23: المجموع - تأمين صحي | C23: 891 | D23: 317953.5364 | E23: 17546 | F23: 96186 | G23: 1265414.204 | H23: 7145 | I23: 359374.26 | J23: =C23+D23+E23+F23+G23+H23+I23 -> 2064510 | K23: 185031.16 | L23: =J23+K23 -> 2249541.16 | M23: Total - Health Insurance
B25: تأمين حياة جماعي | C25: 18 | D25: 1710.871167 | E25: 99 | F25: 100 | G25: 10197.78482 | H25: 73.69756407 | I25: 3489.64645 | J25: =C25+D25+E25+F25+G25+H25+I25 -> 15689 | K25: 395.46 | L25: =J25+K25 -> 16084.46 | M25: Group Life
B26: تأمين ائتمان حياة جماعي | C26: 0 | D26: 86 | E26: 47 | F26: 0 | G26: 1052 | H26: 0 | I26: 207 | J26: 1392 | K26: 937.9 | L26: =J26+K26 -> 2329.9 | M26: Group Credit Life
B27: تأمين حياة فردي | C27: 272 | D27: 7661 | E27: 857 | F27: 363 | G27: 228359.35 | H27: 1476 | I27: 33771.65 | J27: 272760 | K27: 14167.26 | L27: =J27+K27 -> 286927.26 | M27: Individual Life
B28: دفعات الحياة وتكوين الأموال | C28: 0 | D28: 0 | E28: 0 | F28: 0 | G28: 641 | H28: 0 | I28: 14 | J28: 655 | K28: 0 | L28: =J28+K28 -> 655 | M28: Annuities & Fund Accumulation
B29: المجموع - تأمين الأشخاص وعمليات تكوين الأموال | C29: =C25+C26+C27+C28 -> 290 | D29: =D25+D26+D27+D28 -> 9457.871167 | E29: =E25+E26+E27+E28 -> 1003 | F29: =F25+F26+F27+F28 -> 463 | G29: =G25+G26+G27+G28 -> 240250.1348 | H29: =H25+H26+H27+H28 -> 1549.697564 | I29: =I25+I26+I27+I28 -> 37482.29645 | J29: =J25+J26+J27+J28 -> 290496 | K29: =K25+K26+K27+K28 -> 15500.62 | L29: =L25+L26+L27+L28 -> 305996.62 | M29: Total - Insurance of Persons & Fund Accumulation
B31: المجموع - كافة فروع التأمين | C31: =C21+C23+C29 -> 2702.090889 | D31: =D21+D23+D29 -> 1159999.272 | E31: 1107843.963 | F31: 333320.5831 | G31: 9640801.641 | H31: 76974.81197 | I31: 3494232.883 | J31: 15815875.25 | K31: 1419728.694 | L31: 17235603.94 | M31: TOTAL - All Types of Business Combined

Sheet 26A
B6: إجمالي الأقساط غير المكتسبة حسب الإمارة
B7: Gross Unearned Premium Reserve by Emirate
B8: (2024)
B11: جدول رقم 26A | M11: TABLE 26A
B12: بالألف درهم | M12: AED in 000's
B13: فروع التأمين | C13: أم القيوين | D13: الشارقة | E13: رأس الخيمة | F13: الفجيرة | G13: دبي | H13: عجمان | I13: أبو ظبي | J13: داخل الدولة | K13: خارج الدولة | L13: جميع المواقع | M13: Line of Business
C14: Umm Al Quwain | D14: Sharjah | E14: Ras Al Khaimah | F14: Fujairah | G14: Dubai | H14: Ajman | I14: Abu Dhabi | J14: Within UAE | K14: Outside UAE | L14: All Locations
B15: تأمين الحريق | C15: 910.3098578 | D15: 32516.65452 | E15: 17236.99719 | F15: 18830.40353 | G15: 1020426.37 | H15: 2841.282214 | I15: 453777.4622 | J15: =C15+D15+E15+F15+G15+H15+I15 -> 1546539.48 | K15: 643164.2628 | L15: =J15+K15 -> 2189703.742 | M15: Fire
B16: التأمين البحري والطيران | C16: 32.34144613 | D16: 25394.41699 | E16: 3903.349014 | F16: 2886.498809 | G16: 475739.3326 | H16: 1519.344689 | I16: 242611.8795 | J16: 752087.1631 | K16: 145505.0306 | L16: 897592.1937 | M16: Marine & Aviation
B17: تأمين السيارات والمركبات الأخرى | C17: 174.39807 | D17: 145400.3471 | E17: 137728.5468 | F17: 66272.72923 | G17: 2505656.695 | H17: 17536.28962 | I17: 954390.7299 | J17: 3827159.735 | K17: 277241.3341 | L17: 4104401.069 | M17: Motor & Transportation
B18: التأمين الهندسي والانشاءات والطاقة | C18: 10.81824223 | D18: 28897.68463 | E18: 53114.83392 | F18: 39468.86058 | G18: 590769.3825 | H18: 2945.253047 | I18: 1079790.531 | J18: 1794997.364 | K18: 576326.4656 | L18: 2371323.829 | M18: Engineering, Construction & Energy
B19: أخرى | C19: 62.45196954 | D19: 30439.89314 | E19: 13066.9986 | F19: 2415.618037 | G19: 2344608.163 | H19: 5948.080577 | I19: 433415.2058 | J19: 2829956.411 | K19: 131940.3739 | L19: 2961896.785 | M19: Other
B20: اعادة التأمين غير النسبية - المسؤوليات والممتلكات | C20: 0 | D20: 0 | E20: 0 | F20: 0 | G20: 0 | H20: 0 | I20: 2687.370938 | J20: 2687.370938 | K20: 0 | L20: 2687.370938 | M20: Reinsurance - Property & Liability
B21: المجموع - تأمين الممتلكات والمسؤوليات | C21: =C15+C16+C17+C18+C19+C20 -> 1190.319586 | D21: 262648.9964 | E21: 225050.7255 | F21: 129874.1102 | G21: 6937199.942 | H21: 30790.25015 | I21: 3166673.179 | J21: 10753427.52 | K21: 1774177.467 | L21: 12527604.99 | M21: Total - Property & Liability Insurance
B23: المجموع - تأمين صحي | C23: 648.3863432 | D23: 295100.2223 | E23: 38447.30577 | F23: 38882.47037 | G23: 6623423.683 | H23: 12547.32452 | I23: 3166287.944 | J23: =C23+D23+E23+F23+G23+H23+I23 -> 10175337.34 | K23: 185650.2567 | L23: =J23+K23 -> 10360987.59 | M23: Total - Health Insurance
B25: تأمين حياة جماعي | C25: 248.318153 | D25: 10303.01582 | E25: 1732.96397 | F25: 271.9887353 | G25: 146158.6579 | H25: 891.3897391 | I25: 62272.2064 | J25: =C25+D25+E25+F25+G25+H25+I25 -> 221878.5407 | K25: 36002.22881 | L25: =J25+K25 -> 257880.7695 | M25: Group Life
B26: تأمين ائتمان حياة جماعي | C26: 0 | D26: 0 | E26: 0 | F26: 0 | G26: 17800.49007 | H26: 0 | I26: 0 | J26: 17800.49007 | K26: 2099.969184 | L26: 19900.45925 | M26: Group Credit Life
B27: تأمين حياة فردي | C27: 0.02475328503 | D27: 132.0114308 | E27: 0.4603936408 | F27: 0.04316752011 | G27: 369442.1454 | H27: 0.1013987012 | I27: 241.7192442 | J27: 369816.5058 | K27: 18299.31374 | L27: 388115.8195 | M27: Individual Life
B28: دفعات الحياة وتكوين الأموال | C28: 0 | D28: 0 | E28: 0 | F28: 0 | G28: 0 | H28: 0 | I28: 0 | J28: 0 | K28: 0 | L28: 0 | M28: Annuities & Fund Accumulation
B29: المجموع - تأمين الأشخاص وعمليات تكوين الأموال | C29: =C25+C26+C27+C28 -> 248.3429063 | D29: 10435.02725 | E29: 1733.424363 | F29: 272.0319028 | G29: 533401.2934 | H29: 891.4911378 | I29: 62513.92564 | J29: 609495.5366 | K29: 56401.51173 | L29: 665897.0483 | M29: Total - Insurance of Persons & Fund Accumulation
B31: المجموع - كافة فروع التأمين | C31: =C21+C23+C29 -> 2087.048835 | D31: 568184.246 | E31: 265231.4557 | F31: 169028.6125 | G31: 14094024.92 | H31: 44229.06581 | I31: 6395475.048 | J31: 21538260.4 | K31: 2016229.235 | L31: 23554489.63 | M31: TOTAL - All Types of Business Combined

Sheet 26B
B6: صافي الأقساط غير المكتسبة حسب الإمارة
B7: Net Unearned Premium Reserve by Emirate
B8: (2024)
B11: جدول رقم 26B | M11: TABLE 26B
B12: بالألف درهم | M12: AED in 000's
B13: فروع التأمين | C13: أم القيوين | D13: الشارقة | E13: رأس الخيمة | F13: الفجيرة | G13: دبي | H13: عجمان | I13: أبو ظبي | J13: داخل الدولة | K13: خارج الدولة | L13: جميع المواقع | M13: Line of Business
C14: Umm Al Quwain | D14: Sharjah | E14: Ras Al Khaimah | F14: Fujairah | G14: Dubai | H14: Ajman | I14: Abu Dhabi | J14: Within UAE | K14: Outside UAE | L14: All Locations
B15: تأمين الحريق | C15: -364.5918119 | D15: 6810.253919 | E15: 2723.771552 | F15: -1636.594382 | G15: 214234.6095 | H15: 219.9004315 | I15: -130409.4218 | J15: =C15+D15+E15+F15+G15+H15+I15 -> 91577.92744 | K15: 357655.052 | L15: =J15+K15 -> 449232.9794 | M15: Fire
B16: التأمين البحري والطيران | C16: 13.22832406 | D16: 7737.119651 | E16: 779.0279415 | F16: 1213.902024 | G16: 83467.88926 | H16: 547.5055366 | I16: -4820.192654 | J16: 88938.48008 | K16: 97677.18877 | L16: 186615.6688 | M16: Marine & Aviation
B17: تأمين السيارات والمركبات الأخرى | C17: 171.6678935 | D17: 124222.1336 | E17: 132119.4681 | F17: 64847.26191 | G17: 2196724.89 | H17: -1393.242425 | I17: 810222.1295 | J17: 3326914.309 | K17: 272180.3652 | L17: 3599094.674 | M17: Motor & Transportation
B18: التأمين الهندسي والانشاءات والطاقة | C18: -85.52782887 | D18: 2787.942725 | E18: 2278.784211 | F18: -4622.153574 | G18: 49731.33206 | H18: 550.9199723 | I18: -17079.35839 | J18: 33561.93918 | K18: 405554.7932 | L18: 439116.7324 | M18: Engineering, Construction & Energy
B19: أخرى | C19: 24.9028344 | D19: 8856.148841 | E19: 2262.492946 | F19: 1289.861083 | G19: 518813.6553 | H19: 1440.97509 | I19: 102945.0464 | J19: 635633.0825 | K19: 61293.74791 | L19: 696926.8304 | M19: Other
B20: اعادة التأمين غير النسبية - المسؤوليات والممتلكات | C20: 0 | D20: 0 | E20: 0 | F20: 0 | G20: 0 | H20: 0 | I20: 2369.890011 | J20: 2369.890011 | K20: 0 | L20: 2369.890011 | M20: Reinsurance - Property & Liability
B21: المجموع - تأمين الممتلكات والمسؤوليات | C21: =C15+C16+C17+C18+C19+C20 -> -240.3205888 | D21: =D15+D16+D17+D18+D19+D20 -> 150413.5988 | E21: 140163.5447 | F21: 61092.27706 | G21: 3062972.376 | H21: 1366.058606 | I21: 763228.093 | J21: 4178995.628 | K21: 1194361.147 | L21: 5373356.775 | M21: Total - Property & Liability Insurance
B23: المجموع - تأمين صحي | C23: 520.3321958 | D23: 218545.266 | E23: 31097.17905 | F23: 27182.78416 | G23: 3923409.946 | H23: 9702.488276 | I23: 2505558.248 | J23: =C23+D23+E23+F23+G23+H23+I23 -> 6716016.243 | K23: -90166.92081 | L23: =J23+K23 -> 6625849.323 | M23: Total - Health Insurance
B25: تأمين حياة جماعي | C25: 175.0466117 | D25: 3894.520891 | E25: 724.5577506 | F25: 183.5655211 | G25: 50382.71005 | H25: 518.8977111 | I25: 18471.05397 | J25: =C25+D25+E25+F25+G25+H25+I25 -> 74350.3525 | K25: 33099.59013 | L25: =J25+K25 -> 107449.9426 | M25: Group Life
B26: تأمين ائتمان حياة جماعي | C26: 0 | D26: 0 | E26: 0 | F26: 0 | G26: 6006.644101 | H26: 0 | I26: 0 | J26: 6006.644101 | K26: 2097.594957 | L26: 8104.239059 | M26: Group Credit Life
B27: تأمين حياة فردي | C27: 0.01899836342 | D27: 109.9160735 | E27: 0.3533561584 | F27: 0.0331314504 | G27: 367289.3607 | H27: 0.07782439275 | I27: 189.0036215 | J27: 367588.7637 | K27: 18057.74519 | L27: 385646.5089 | M27: Individual Life
B28: دفعات الحياة وتكوين الأموال | C28: 0 | D28: 0 | E28: 0 | F28: 0 | G28: 0 | H28: 0 | I28: 0 | J28: 0 | K28: 0 | L28: 0 | M28: Annuities & Fund Accumulation
B29: المجموع - تأمين الأشخاص وعمليات تكوين الأموال | C29: =C25+C26+C27+C28 -> 175.0656101 | D29: =D25+D26+D27+D28 -> 4004.436964 | E29: 724.9111068 | F29: 183.5986526 | G29: 423678.7149 | H29: 518.9755355 | I29: 18660.05759 | J29: 447945.7603 | K29: 53254.93028 | L29: 501200.6906 | M29: Total - Insurance of Persons & Fund Accumulation
B31: المجموع - كافة فروع التأمين | C31: =C21+C23+C29 -> 455.0772171 | D31: =D21+D23+D29 -> 372963.3018 | E31: 171985.6349 | F31: 88458.65988 | G31: 7410061.037 | H31: 11587.52242 | I31: 3287446.399 | J31: 11342957.63 | K31: 1157449.157 | L31: 12500406.79 | M31: TOTAL - All Types of Business Combined

Sheet 27A
B6: إجمالي المطالبات المدفوعة حسب الإمارة
B7: Gross Claims Paid by Emirate
B8: (2024)
B11: جدول رقم 27A | M11: TABLE 27A
B12: بالألف درهم | M12: AED in 000's
B13: فروع التأمين | C13: أم القيوين | D13: الشارقة | E13: رأس الخيمة | F13: الفجيرة | G13: دبي | H13: عجمان | I13: أبو ظبي | J13: داخل الدولة | K13: خارج الدولة | L13: جميع المواقع | M13: Line of Business
C14: Umm Al Quwain | D14: Sharjah | E14: Ras Al Khaimah | F14: Fujairah | G14: Dubai | H14: Ajman | I14: Abu Dhabi | J14: Within UAE | K14: Outside UAE | L14: All Locations
B15: تأمين الحريق | C15: 238.6027454 | D15: 71130.86665 | E15: 18053.73418 | F15: 320578.4897 | G15: 2326284.505 | H15: 9292.292788 | I15: 656850.4233 | J15: =C15+D15+E15+F15+G15+H15+I15 -> 3402428.914 | K15: 768891.0678 | L15: =J15+K15 -> 4171319.982 | M15: Fire
B16: التأمين البحري والطيران | C16: 2.58819 | D16: 31780.04851 | E16: 897.3572756 | F16: 420.35816 | G16: 515298.661 | H16: 1620.700359 | I16: 153268.0781 | J16: 703287.7915 | K16: 203517.9936 | L16: 906805.7852 | M16: Marine & Aviation
B17: تأمين السيارات والمركبات الأخرى | C17: 671.37006 | D17: 416052.9172 | E17: 188499.6284 | F17: 88386.76422 | G17: 3689446.734 | H17: 43015.36213 | I17: 1673043.213 | J17: 6099115.989 | K17: 391475.2747 | L17: 6490591.263 | M17: Motor & Transportation
B18: التأمين الهندسي والانشاءات والطاقة | C18: 0 | D18: 18504.01638 | E18: 1808.421192 | F18: 132675.5732 | G18: 428323.4288 | H18: 1243.267146 | I18: 465719.9668 | J18: 1048274.673 | K18: 384719.2092 | L18: 1432993.883 | M18: Engineering, Construction & Energy
B19: أخرى | C19: 37.43988 | D19: 7320.231356 | E19: 3364.033863 | F19: 617.43207 | G19: 497835.6205 | H19: 3290.179829 | I19: 98007.50085 | J19: 610472.4384 | K19: 102340.5868 | L19: 712813.0252 | M19: Other
B20: اعادة التأمين غير النسبية - المسؤوليات والممتلكات | C20: 0 | D20: 2.5 | E20: 0 | F20: 0 | G20: 182.23 | H20: 0 | I20: 335.485 | J20: 520.215 | K20: 0 | L20: 520.215 | M20: Reinsurance - Property & Liability
B21: المجموع - تأمين الممتلكات والمسؤوليات | C21: =C15+C16+C17+C18+C19+C20 -> 950.0008754 | D21: 544790.5801 | E21: 212623.1749 | F21: 542678.6173 | G21: 7457371.179 | H21: 58461.80225 | I21: 3047224.667 | J21: 11864100.02 | K21: 1850944.132 | L21: 13715044.15 | M21: Total - Property & Liability Insurance
B23: المجموع - تأمين صحي | C23: 10260.71558 | D23: 1195180.675 | E23: 99951.64295 | F23: 40642.47036 | G23: 13494515.96 | H23: 43377.08172 | I23: 7360793.312 | J23: =C23+D23+E23+F23+G23+H23+I23 -> 22244721.86 | K23: 527144.0358 | L23: =J23+K23 -> 22771865.9 | M23: Total - Health Insurance
B25: تأمين حياة جماعي | C25: 695.8991239 | D25: 20262.65131 | E25: 3504.288849 | F25: 1764.337752 | G25: 324838.4323 | H25: 1829.732559 | I25: 195288.6763 | J25: =C25+D25+E25+F25+G25+H25+I25 -> 548184.0182 | K25: 66179.11787 | L25: =J25+K25 -> 614363.136 | M25: Group Life
B26: تأمين ائتمان حياة جماعي | C26: 0 | D26: 2855.29665 | E26: 13349.52541 | F26: 0 | G26: 75526.42218 | H26: 0 | I26: 37574.98976 | J26: 129306.234 | K26: 34423.45679 | L26: 163729.6908 | M26: Group Credit Life
B27: تأمين حياة فردي | C27: 7102.338195 | D27: 131350.3834 | E27: 30924.77535 | F27: 9055.21311 | G27: 3544099.721 | H27: 39678.11938 | I27: 399638.2119 | J27: 4161848.763 | K27: 102333.0775 | L27: 4264181.84 | M27: Individual Life
B28: دفعات الحياة وتكوين الأموال | C28: 0 | D28: 0 | E28: 0 | F28: 0 | G28: 85280.23182 | H28: 0 | I28: 1852.91691 | J28: 87133.14873 | K28: 0.0006488000072 | L28: 87133.14938 | M28: Annuities & Fund Accumulation
B29: المجموع - تأمين الأشخاص وعمليات تكوين الأموال | C29: =C25+C26+C27+C28 -> 7798.237319 | D29: 154468.3313 | E29: 47778.58961 | F29: 10819.55086 | G29: 4029744.808 | H29: 41507.85193 | I29: 634354.7949 | J29: 4926472.163 | K29: 202935.6528 | L29: 5129407.816 | M29: Total - Insurance of Persons & Fund Accumulation
B31: المجموع - كافة فروع التأمين | C31: =C21+C23+C29 -> 19008.95378 | D31: 1894439.586 | E31: 360353.4075 | F31: 594140.6386 | G31: 24981631.95 | H31: 143346.7359 | I31: 11042372.77 | J31: 39035294.05 | K31: 2581023.821 | L31: 41616317.87 | M31: TOTAL - All Types of Business Combined

Sheet 27B
B6: صافي المطالبات المدفوعة حسب الإمارة
B7: Net Claims Paid by Emirate
B8: (2024)
B11: جدول رقم 27B | M11: TABLE 27B
B12: بالألف درهم | M12: AED in 000's
B13: فروع التأمين | C13: أم القيوين | D13: الشارقة | E13: رأس الخيمة | F13: الفجيرة | G13: دبي | H13: عجمان | I13: أبو ظبي | J13: داخل الدولة | K13: خارج الدولة | L13: جميع المواقع | M13: Line of Business
C14: Umm Al Quwain | D14: Sharjah | E14: Ras Al Khaimah | F14: Fujairah | G14: Dubai | H14: Ajman | I14: Abu Dhabi | J14: Within UAE | K14: Outside UAE | L14: All Locations
B15: تأمين الحريق | C15: 69.97442843 | D15: 13817.78183 | E15: 3152.312495 | F15: 27100.52079 | G15: 260504.7182 | H15: 1407.692128 | I15: 66817.67772 | J15: =C15+D15+E15+F15+G15+H15+I15 -> 372870.6776 | K15: 190736.113 | L15: =J15+K15 -> 563606.7906 | M15: Fire
B16: التأمين البحري والطيران | C16: 0.77769 | D16: 8190.680248 | E16: 199.6968517 | F16: 41.01181 | G16: 94873.30745 | H16: 237.0594356 | I16: 19991.08663 | J16: 123533.6201 | K16: 69662.67885 | L16: 193196.299 | M16: Marine & Aviation
B17: تأمين السيارات والمركبات الأخرى | C17: 666.741068 | D17: 298092.5026 | E17: 133177.9799 | F17: 72109.33825 | G17: 2315130.642 | H17: 29232.19882 | I17: 1045045.075 | J17: 3893454.477 | K17: 374454.5971 | L17: 4267909.074 | M17: Motor & Transportation
B18: التأمين الهندسي والانشاءات والطاقة | C18: 0 | D18: 3393.015992 | E18: 210.4510046 | F18: 5022.600638 | G18: 102490.3519 | H18: 920.9637404 | I18: 33346.72501 | J18: 145384.1082 | K18: 61526.13473 | L18: 206910.243 | M18: Engineering, Construction & Energy
B19: أخرى | C19: 15.07386 | D19: 2315.4495 | E19: 811.1604859 | F19: 348.28664 | G19: 123349.4929 | H19: 1697.107785 | I19: 32775.93424 | J19: 161312.5054 | K19: 31140.92278 | L19: 192453.4282 | M19: Other
B20: اعادة التأمين غير النسبية - المسؤوليات والممتلكات | C20: 0 | D20: 2.5 | E20: 0 | F20: 0 | G20: 162.6875 | H20: 0 | I20: 86.5575 | J20: 251.745 | K20: 0 | L20: 251.745 | M20: Reinsurance - Property & Liability
B21: المجموع - تأمين الممتلكات والمسؤوليات | C21: =C15+C16+C17+C18+C19+C20 -> 752.5670464 | D21: 325811.9302 | E21: 137551.6007 | F21: 104621.7581 | G21: 2896511.2 | H21: 33495.02191 | I21: 1198063.056 | J21: 4696807.134 | K21: 727520.4464 | L21: 5424327.58 | M21: Total - Property & Liability Insurance
B23: المجموع - تأمين صحي | C23: 5892.637049 | D23: 494694.9112 | E23: 61540.73665 | F23: 9580.444122 | G23: 7660792.797 | H23: 25633.51844 | I23: 5443892.265 | J23: =C23+D23+E23+F23+G23+H23+I23 -> 13702027.31 | K23: -419996.2226 | L23: =J23+K23 -> 13282031.09 | M23: Total - Health Insurance
B25: تأمين حياة جماعي | C25: 104.6980383 | D25: 3524.291131 | E25: 904.3368685 | F25: 257.630784 | G25: 54089.9207 | H25: -2469.626172 | I25: 54581.5274 | J25: =C25+D25+E25+F25+G25+H25+I25 -> 110992.7788 | K25: 26856.29935 | L25: =J25+K25 -> 137849.0781 | M25: Group Life
B26: تأمين ائتمان حياة جماعي | C26: 0 | D26: 389.197258 | E26: 1373.14316 | F26: 0 | G26: 9244.784584 | H26: 0 | I26: 22919.61997 | J26: 33926.74497 | K26: 10548.58927 | L26: 44475.33424 | M26: Group Credit Life
B27: تأمين حياة فردي | C27: 7097.867089 | D27: 131205.5469 | E27: 30633.92787 | F27: 9049.078851 | G27: 2881109.316 | H27: 39671.11906 | I27: 380371.389 | J27: 3479138.245 | K27: 93825.04942 | L27: 3572963.295 | M27: Individual Life
B28: دفعات الحياة وتكوين الأموال | C28: 0 | D28: 0 | E28: 0 | F28: 0 | G28: 85280.23182 | H28: 0 | I28: 1852.91691 | J28: 87133.14873 | K28: 0.0006488000072 | L28: 87133.14938 | M28: Annuities & Fund Accumulation
B29: المجموع - تأمين الأشخاص وعمليات تكوين الأموال | C29: =C25+C26+C27+C28 -> 7202.565127 | D29: 135119.0353 | E29: 32911.4079 | F29: 9306.709635 | G29: 3029724.254 | H29: 37201.49289 | I29: 459725.4533 | J29: 3711190.918 | K29: 131229.9387 | L29: 3842420.856 | M29: Total - Insurance of Persons & Fund Accumulation
B31: المجموع - كافة فروع التأمين | C31: =C21+C23+C29 -> 13847.76922 | D31: 955625.8767 | E31: 232003.7453 | F31: 123508.9119 | G31: 13587028.25 | H31: 96330.03324 | I31: 7101680.774 | J31: 22110025.36 | K31: 438754.1625 | L31: 22548779.52 | M31: TOTAL - All Types of Business Combined

Sheet 28A
B6: البيانات بالإجمالي لإمارة دبي
B7: Gross Results for Dubai
B8: (2024)
B11: جدول رقم 28A | H11: TABLE 28A
B12: بالألف درهم | H12: AED in 000's
B13: فروع التأمين | C13: الأقساط المكتتبة | D13: أعداد الوثائق | E13: مخصص الأقساط غير المكتسبة | F13: المطالبات المدفوعة | G13: مخصص المطالبات تحت التسوية | H13: Line of Business
C14: Written Premium | D14: Number of Policies | E14: Unearned Premium Reserve | F14: Claims Paid | G14: Outstanding Claim Reserves
B15: تأمين الحريق | C15: 2934462.041 | D15: 110206.6702 | E15: 1020426.37 | F15: 2326284.505 | G15: 7413165.2 | H15: Fire
B16: التأمين البحري والطيران | C16: 1229126.48 | D16: 183935.7 | E16: 475739.3326 | F16: 515298.661 | G16: 1217367.073 | H16: Marine & Aviation
B17: تأمين السيارات والمركبات الأخرى | C17: 4490618.046 | D17: 2187254.696 | E17: 2505656.695 | F17: 3689446.734 | G17: 1597034.201 | H17: Motor & Transportation
B18: التأمين الهندسي والانشاءات والطاقة | C18: 1090857.406 | D18: 26791.26667 | E18: 590769.3825 | F18: 428323.4288 | G18: 2517744.935 | H18: Engineering, Construction & Energy
B19: أخرى | C19: 4207444.786 | D19: 5626948.969 | E19: 2344608.163 | F19: 497835.6205 | G19: 1392922.998 | H19: Other
B20: اعادة التأمين غير النسبية - المسؤوليات والممتلكات | C20: 0 | D20: 0 | E20: 0 | F20: 182.23 | G20: 0 | H20: Reinsurance - Property & Liability
B21: المجموع - تأمين الممتلكات والمسؤوليات | C21: =C15+C16+C17+C18+C19+C20 -> 13952508.76 | D21: =D15+D16+D17+D18+D19+D20 -> 8135137.302 | E21: 6937199.942 | F21: 7457371.179 | G21: 14138234.41 | H21: Total - Property & Liability Insurance
B23: المجموع - تأمين صحي | C23: 18905663.57 | D23: 1265414.204 | E23: 6623423.683 | F23: 13494515.96 | G23: 3314488.098 | H23: Total - Health Insurance
B25: تأمين حياة جماعي | C25: 561712.3823 | D25: 10197.78482 | E25: 146158.6579 | F25: 324838.4323 | G25: 271875.603 | H25: Group Life
B26: تأمين ائتمان حياة جماعي | C26: 392458.1137 | D26: 1052 | E26: 17800.49007 | F26: 75526.42218 | G26: 261230.306 | H26: Group Credit Life
B27: تأمين حياة فردي | C27: 4924736.868 | D27: 228359.35 | E27: 369442.1454 | F27: 3544099.721 | G27: 32529612.98 | H27: Individual Life
B28: دفعات الحياة وتكوين الأموال | C28: 41580.53328 | D28: 641 | E28: 0 | F28: 85280.23182 | G28: 537927.8518 | H28: Annuities & Fund Accumulation
B29: المجموع - تأمين الأشخاص وعمليات تكوين الأموال | C29: =C25+C26+C27+C28 -> 5920487.897 | D29: =D25+D26+D27+D28 -> 240250.1348 | E29: 533401.2934 | F29: 4029744.808 | G29: 33600646.75 | H29: Total - Insurance of Persons & Fund Accumulation
B31: المجموع - كافة فروع التأمين | C31: =C21+C23+C29 -> 38778660.22 | D31: =D21+D23+D29 -> 9640801.641 | E31: =E21+E23+E29 -> 14094024.92 | F31: =F21+F23+F29 -> 24981631.95 | G31: =G21+G23+G29 -> 51053369.25 | H31: TOTAL - All Types of Business Combined

Sheet 28B
B6: البيانات بالصافي لإمارة دبي
B7: Net Results for Dubai
B8: (2024)
B11: جدول رقم 28B | H11: TABLE 28B
B12: بالألف درهم | H12: AED in 000's
B13: فروع التأمين | C13: الأقساط المكتتبة | D13: أعداد الوثائق | E13: مخصص الأقساط غير المكتسبة | F13: المطالبات المدفوعة | G13: مخصص المطالبات تحت التسوية | H13: Line of Business
C14: Written Premium | D14: Number of Policies | E14: Unearned Premium Reserve | F14: Claims Paid | G14: Outstanding Claim Reserves
B15: تأمين الحريق | C15: 461175.807 | D15: 110206.6702 | E15: 214234.6095 | F15: 260504.7182 | G15: 739384.6219 | H15: Fire
B16: التأمين البحري والطيران | C16: 281267.4477 | D16: 183935.7 | E16: 83467.88926 | F16: 94873.30745 | G16: 310875.1181 | H16: Marine & Aviation
B17: تأمين السيارات والمركبات الأخرى | C17: 3803511.048 | D17: 2187254.696 | E17: 2196724.89 | F17: 2315130.642 | G17: 1130860.705 | H17: Motor & Transportation
B18: التأمين الهندسي والانشاءات والطاقة | C18: 169376.792 | D18: 26791.26667 | E18: 49731.33206 | F18: 102490.3519 | G18: 387784.7863 | H18: Engineering, Construction & Energy
B19: أخرى | C19: 1170155.638 | D19: 5626948.969 | E19: 518813.6553 | F19: 123349.4929 | G19: 345451.7716 | H19: Other
B20: اعادة التأمين غير النسبية - المسؤوليات والممتلكات | C20: 0 | D20: 0 | E20: 0 | F20: 162.6875 | G20: 0 | H20: Reinsurance - Property & Liability
B21: المجموع - تأمين الممتلكات والمسؤوليات | C21: =C15+C16+C17+C18+C19+C20 -> 5885486.732 | D21: =D15+D16+D17+D18+D19+D20 -> 8135137.302 | E21: =E15+E16+E17+E18+E19+E20 -> 3062972.376 | F21: =F15+F16+F17+F18+F19+F20 -> 2896511.2 | G21: =G15+G16+G17+G18+G19+G20 -> 2914357.002 | H21: Total - Property & Liability Insurance
B23: المجموع - تأمين صحي | C23: 11634415.31 | D23: 1265414.204 | E23: 3923409.946 | F23: 7660792.797 | G23: 2018767.909 | H23: Total - Health Insurance
B25: تأمين حياة جماعي | C25: 174353.3919 | D25: 10197.78482 | E25: 50382.71005 | F25: 54089.9207 | G25: 37207.62647 | H25: Group Life
B26: تأمين ائتمان حياة جماعي | C26: 114262.2095 | D26: 1052 | E26: 6006.644101 | F26: 9244.784584 | G26: 37506.7849 | H26: Group Credit Life
B27: تأمين حياة فردي | C27: 4652947.925 | D27: 228359.35 | E27: 367289.3607 | F27: 2881109.316 | G27: 31117508.84 | H27: Individual Life
B28: دفعات الحياة وتكوين الأموال | C28: 41574.5923 | D28: 641 | E28: 0 | F28: 85280.23182 | G28: 537927.8518 | H28: Annuities & Fund Accumulation
B29: المجموع - تأمين الأشخاص وعمليات تكوين الأموال | C29: =C25+C26+C27+C28 -> 4983138.119 | D29: =D25+D26+D27+D28 -> 240250.1348 | E29: =E25+E26+E27+E28 -> 423678.7149 | F29: =F25+F26+F27+F28 -> 3029724.254 | G29: =G25+G26+G27+G28 -> 31730151.1 | H29: Total - Insurance of Persons & Fund Accumulation
B31: المجموع - كافة فروع التأمين | C31: =C21+C23+C29 -> 22503040.16 | D31: =D21+D23+D29 -> 9640801.641 | E31: =E21+E23+E29 -> 7410061.037 | F31: =F21+F23+F29 -> 13587028.25 | G31: =G21+G23+G29 -> 36663276.01 | H31: TOTAL - All Types of Business Combined

Sheet 29A
B6: البيانات بالإجمالي لإمارة أبو ظبي
B7: Gross Results for Abu Dhabi
B8: (2024)
B11: جدول رقم 29A | H11: TABLE 29A
B12: بالألف درهم | H12: AED in 000's
B13: فروع التأمين | C13: الأقساط المكتتبة | D13: أعداد الوثائق | E13: مخصص الأقساط غير المكتسبة | F13: المطالبات المدفوعة | G13: مخصص المطالبات تحت التسوية | H13: Line of Business
C14: Written Premium | D14: Number of Policies | E14: Unearned Premium Reserve | F14: Claims Paid | G14: Outstanding Claim Reserves
B15: تأمين الحريق | C15: 1213561.023 | D15: 32794.2 | E15: 453777.4622 | F15: 656850.4233 | G15: 2953555.067 | H15: Fire
B16: التأمين البحري والطيران | C16: 618706.3247 | D16: 21470.85 | E16: 242611.8795 | F16: 153268.0781 | G16: 657868.8085 | H16: Marine & Aviation
B17: تأمين السيارات والمركبات الأخرى | C17: 1883297.733 | D17: 1330449.45 | E17: 954390.7299 | F17: 1673043.213 | G17: 814164.4464 | H17: Motor & Transportation
B18: التأمين الهندسي والانشاءات والطاقة | C18: 1696072.629 | D18: 15618.45 | E18: 1079790.531 | F18: 465719.9668 | G18: 2044055.855 | H18: Engineering, Construction & Energy
B19: أخرى | C19: 1022709.264 | D19: 1695894.377 | E19: 433415.2058 | F19: 98007.50085 | G19: 537670.8362 | H19: Other
B20: اعادة التأمين غير النسبية - المسؤوليات والممتلكات | C20: 5753.65417 | D20: 1149 | E20: 2687.370938 | F20: 335.485 | G20: 9820.995289 | H20: Reinsurance - Property & Liability
B21: المجموع - تأمين الممتلكات والمسؤوليات | C21: =C15+C16+C17+C18+C19+C20 -> 6440100.628 | D21: =D15+D16+D17+D18+D19+D20 -> 3097376.327 | E21: 3166673.179 | F21: 3047224.667 | G21: 7017136.009 | H21: Total - Property & Liability Insurance
B23: المجموع - تأمين صحي | C23: 10015145.09 | D23: 359374.26 | E23: 3166287.944 | F23: 7360793.312 | G23: 2543469.052 | H23: Total - Health Insurance
B25: تأمين حياة جماعي | C25: 282863.6573 | D25: 3489.64645 | E25: 62272.2064 | F25: 195288.6763 | G25: 194481.409 | H25: Group Life
B26: تأمين ائتمان حياة جماعي | C26: 131987.8486 | D26: 207 | E26: 0 | F26: 37574.98976 | G26: 591212.6264 | H26: Group Credit Life
B27: تأمين حياة فردي | C27: 517731.0052 | D27: 33771.65 | E27: 241.7192442 | F27: 399638.2119 | G27: 1074735.607 | H27: Individual Life
B28: دفعات الحياة وتكوين الأموال | C28: 186.1262348 | D28: 14 | E28: 0 | F28: 1852.91691 | G28: 0 | H28: Annuities & Fund Accumulation
B29: المجموع - تأمين الأشخاص وعمليات تكوين الأموال | C29: =C25+C26+C27+C28 -> 932768.6373 | D29: =D25+D26+D27+D28 -> 37482.29645 | E29: =E25+E26+E27+E28 -> 62513.92564 | F29: =F25+F26+F27+F28 -> 634354.7949 | G29: =G25+G26+G27+G28 -> 1860429.642 | H29: Total - Insurance of Persons & Fund Accumulation
B31: المجموع - كافة فروع التأمين | C31: =C21+C23+C29 -> 17388014.36 | D31: =D21+D23+D29 -> 3494232.883 | E31: 6395475.048 | F31: 11042372.77 | G31: 11421034.7 | H31: TOTAL - All Types of Business Combined

Sheet 29B
B6: البيانات بالصافي لإمارة أبو ظبي
B7: Net Results for Abu Dhabi
B8: (2024)
B11: جدول رقم 29B | H11: TABLE 29B
B12: بالألف درهم | H12: AED in 000's
B13: فروع التأمين | C13: الأقساط المكتتبة | D13: أعداد الوثائق | E13: مخصص الأقساط غير المكتسبة | F13: المطالبات المدفوعة | G13: مخصص المطالبات تحت التسوية | H13: Line of Business
C14: Written Premium | D14: Number of Policies | E14: Unearned Premium Reserve | F14: Claims Paid | G14: Outstanding Claim Reserves
B15: تأمين الحريق | C15: -449536.6892 | D15: 32794.2 | E15: -130409.4218 | F15: 66817.67772 | G15: -242006.7428 | H15: Fire
B16: التأمين البحري والطيران | C16: 12215.81018 | D16: 21470.85 | E16: -4820.192654 | F16: 19991.08663 | G16: 1876.313592 | H16: Marine & Aviation
B17: تأمين السيارات والمركبات الأخرى | C17: 1552268.496 | D17: 1330449.45 | E17: 810222.1295 | F17: 1045045.075 | G17: 577680.0299 | H17: Motor & Transportation
B18: التأمين الهندسي والانشاءات والطاقة | C18: -271787.2654 | D18: 15618.45 | E18: -17079.35839 | F18: 33346.72501 | G18: 104146.4125 | H18: Engineering, Construction & Energy
B19: أخرى | C19: 219987.3241 | D19: 1695894.377 | E19: 102945.0464 | F19: 32775.93424 | G19: 107713.7811 | H19: Other
B20: اعادة التأمين غير النسبية - المسؤوليات والممتلكات | C20: 4431.73023 | D20: 1149 | E20: 2369.890011 | F20: 86.5575 | G20: 2074.433261 | H20: Reinsurance - Property & Liability
B21: المجموع - تأمين الممتلكات والمسؤوليات | C21: =C15+C16+C17+C18+C19+C20 -> 1067579.406 | D21: =D15+D16+D17+D18+D19+D20 -> 3097376.327 | E21: =E15+E16+E17+E18+E19+E20 -> 763228.093 | F21: =F15+F16+F17+F18+F19+F20 -> 1198063.056 | G21: =G15+G16+G17+G18+G19+G20 -> 551484.2275 | H21: Total - Property & Liability Insurance
B23: المجموع - تأمين صحي | C23: 7829146.102 | D23: 359374.26 | E23: 2505558.248 | F23: 5443892.265 | G23: 1855639.581 | H23: Total - Health Insurance
B25: تأمين حياة جماعي | C25: 9384.438355 | D25: 3489.64645 | E25: 18471.05397 | F25: 54581.5274 | G25: -2476.36779 | H25: Group Life
B26: تأمين ائتمان حياة جماعي | C26: 15464.02825 | D26: 207 | E26: 0 | F26: 22919.61997 | G26: 406991.5745 | H26: Group Credit Life
B27: تأمين حياة فردي | C27: 500870.7524 | D27: 33771.65 | E27: 189.0036215 | F27: 380371.389 | G27: 1064287.781 | H27: Individual Life
B28: دفعات الحياة وتكوين الأموال | C28: 185.6383772 | D28: 14 | E28: 0 | F28: 1852.91691 | G28: 0 | H28: Annuities & Fund Accumulation
B29: المجموع - تأمين الأشخاص وعمليات تكوين الأموال | C29: =C25+C26+C27+C28 -> 525904.8574 | D29: =D25+D26+D27+D28 -> 37482.29645 | E29: =E25+E26+E27+E28 -> 18660.05759 | F29: =F25+F26+F27+F28 -> 459725.4533 | G29: =G25+G26+G27+G28 -> 1468802.988 | H29: Total - Insurance of Persons & Fund Accumulation
B31: المجموع - كافة فروع التأمين | C31: =C21+C23+C29 -> 9422630.366 | D31: =D21+D23+D29 -> 3494232.883 | E31: =E21+E23+E29 -> 3287446.399 | F31: =F21+F23+F29 -> 7101680.774 | G31: =G21+G23+G29 -> 3875926.796 | H31: TOTAL - All Types of Business Combined

Sheet 30A
B6: البيانات بالإجمالي لإمارة عجمان
B7: Gross Results for Ajman
B8: (2024)
B11: جدول رقم 30A | H11: TABLE 30A
B12: بالألف درهم | H12: AED in 000's
B13: فروع التأمين | C13: الأقساط المكتتبة | D13: أعداد الوثائق | E13: مخصص الأقساط غير المكتسبة | F13: المطالبات المدفوعة | G13: مخصص المطالبات تحت التسوية | H13: Line of Business
C14: Written Premium | D14: Number of Policies | E14: Unearned Premium Reserve | F14: Claims Paid | G14: Outstanding Claim Reserves
B15: تأمين الحريق | C15: 7309.269173 | D15: 555 | E15: 2841.282214 | F15: 9292.292788 | G15: 15195.48611 | H15: Fire
B16: التأمين البحري والطيران | C16: 2609.298834 | D16: 512 | E16: 1519.344689 | F16: 1620.700359 | G16: 14496.74639 | H16: Marine & Aviation
B17: تأمين السيارات والمركبات الأخرى | C17: 50978.36896 | D17: 28389 | E17: 17536.28962 | F17: 43015.36213 | G17: 18799.31241 | H17: Motor & Transportation
B18: التأمين الهندسي والانشاءات والطاقة | C18: 6449.134812 | D18: 238 | E18: 2945.253047 | F18: 1243.267146 | G18: 4880.710601 | H18: Engineering, Construction & Energy
B19: أخرى | C19: 6790.457668 | D19: 38586.11441 | E19: 5948.080577 | F19: 3290.179829 | G19: 10835.94877 | H19: Other
B20: اعادة التأمين غير النسبية - المسؤوليات والممتلكات | C20: 0 | D20: 0 | E20: 0 | F20: 0 | G20: 0 | H20: Reinsurance - Property & Liability
B21: المجموع - تأمين الممتلكات والمسؤوليات | C21: =C15+C16+C17+C18+C19+C20 -> 74136.52945 | D21: =D15+D16+D17+D18+D19+D20 -> 68280.11441 | E21: 30790.25015 | F21: 58461.80225 | G21: 64208.20428 | H21: Total - Property & Liability Insurance
B23: المجموع - تأمين صحي | C23: 66719.59442 | D23: 7145 | E23: 12547.32452 | F23: 43377.08172 | G23: 9345.600179 | H23: Total - Health Insurance
B25: تأمين حياة جماعي | C25: 4215.660616 | D25: 73.69756407 | E25: 891.3897391 | F25: 1829.732559 | G25: 1354.263432 | H25: Group Life
B26: تأمين ائتمان حياة جماعي | C26: 0 | D26: 0 | E26: 0 | F26: 0 | G26: 0 | H26: Group Credit Life
B27: تأمين حياة فردي | C27: 30034.94162 | D27: 1476 | E27: 0.1013987012 | F27: 39678.11938 | G27: 118061.4563 | H27: Individual Life
B28: دفعات الحياة وتكوين الأموال | C28: 0 | D28: 0 | E28: 0 | F28: 0 | G28: 0 | H28: Annuities & Fund Accumulation
B29: المجموع - تأمين الأشخاص وعمليات تكوين الأموال | C29: =C25+C26+C27+C28 -> 34250.60224 | D29: =D25+D26+D27+D28 -> 1549.697564 | E29: 891.4911378 | F29: 41507.85193 | G29: 119415.7198 | H29: Total - Insurance of Persons & Fund Accumulation
B31: المجموع - كافة فروع التأمين | C31: =C21+C23+C29 -> 175106.7261 | D31: =D21+D23+D29 -> 76974.81197 | E31: 44229.06581 | F31: 143346.7359 | G31: 192969.5242 | H31: TOTAL - All Types of Business Combined

Sheet 30B
B6: البيانات بالصافي لإمارة عجمان
B7: Net Results for Ajman
B8: (2024)
B11: جدول رقم 30B | H11: TABLE 30B
B12: بالألف درهم | H12: AED in 000's
B13: فروع التأمين | C13: الأقساط المكتتبة | D13: أعداد الوثائق | E13: مخصص الأقساط غير المكتسبة | F13: المطالبات المدفوعة | G13: مخصص المطالبات تحت التسوية | H13: Line of Business
C14: Written Premium | D14: Number of Policies | E14: Unearned Premium Reserve | F14: Claims Paid | G14: Outstanding Claim Reserves
B15: تأمين الحريق | C15: -803.2840408 | D15: 555 | E15: 219.9004315 | F15: 1407.692128 | G15: -4939.81095 | H15: Fire
B16: التأمين البحري والطيران | C16: -118.4422269 | D16: 512 | E16: 547.5055366 | F16: 237.0594356 | G16: 6490.935223 | H16: Marine & Aviation
B17: تأمين السيارات والمركبات الأخرى | C17: 4386.545981 | D17: 28389 | E17: -1393.242425 | F17: 29232.19882 | G17: -3851.607422 | H17: Motor & Transportation
B18: التأمين الهندسي والانشاءات والطاقة | C18: 663.8704935 | D18: 238 | E18: 550.9199723 | F18: 920.9637404 | G18: 818.2503415 | H18: Engineering, Construction & Energy
B19: أخرى | C19: 3459.656444 | D19: 38586.11441 | E19: 1440.97509 | F19: 1697.107785 | G19: 1547.657884 | H19: Other
B20: اعادة التأمين غير النسبية - المسؤوليات والممتلكات | C20: 0 | D20: 0 | E20: 0 | F20: 0 | G20: 0 | H20: Reinsurance - Property & Liability
B21: المجموع - تأمين الممتلكات والمسؤوليات | C21: =C15+C16+C17+C18+C19+C20 -> 7588.346651 | D21: =D15+D16+D17+D18+D19+D20 -> 68280.11441 | E21: 1366.058606 | F21: 33495.02191 | G21: 65.42507783 | H21: Total - Property & Liability Insurance
B23: المجموع - تأمين صحي | C23: 45740.81373 | D23: 7145 | E23: 9702.488276 | F23: 25633.51844 | G23: 5908.094684 | H23: Total - Health Insurance
B25: تأمين حياة جماعي | C25: 2923.235026 | D25: 73.69756407 | E25: 518.8977111 | F25: -2469.626172 | G25: 357.0053942 | H25: Group Life
B26: تأمين ائتمان حياة جماعي | C26: 0 | D26: 0 | E26: 0 | F26: 0 | G26: 0 | H26: Group Credit Life
B27: تأمين حياة فردي | C27: 29898.78439 | D27: 1476 | E27: 0.07782439275 | F27: 39671.11906 | G27: 117895.3826 | H27: Individual Life
B28: دفعات الحياة وتكوين الأموال | C28: 0 | D28: 0 | E28: 0 | F28: 0 | G28: 0 | H28: Annuities & Fund Accumulation
B29: المجموع - تأمين الأشخاص وعمليات تكوين الأموال | C29: =C25+C26+C27+C28 -> 32822.01942 | D29: =D25+D26+D27+D28 -> 1549.697564 | E29: 518.9755355 | F29: 37201.49289 | G29: 118252.388 | H29: Total - Insurance of Persons & Fund Accumulation
B31: المجموع - كافة فروع التأمين | C31: =C21+C23+C29 -> 86151.1798 | D31: =D21+D23+D29 -> 76974.81197 | E31: 11587.52242 | F31: 96330.03324 | G31: 124225.9078 | H31: TOTAL - All Types of Business Combined

Sheet 31A
B6: البيانات بالإجمالي لإمارة أم القيوين
B7: Gross Results for Umm Al Quwain
B8: (2024)
B11: جدول رقم 31A | H11: TABLE 31A
B12: بالألف درهم | H12: AED in 000's
B13: فروع التأمين | C13: الأقساط المكتتبة | D13: أعداد الوثائق | E13: مخصص الأقساط غير المكتسبة | F13: المطالبات المدفوعة | G13: مخصص المطالبات تحت التسوية | H13: Line of Business
C14: Written Premium | D14: Number of Policies | E14: Unearned Premium Reserve | F14: Claims Paid | G14: Outstanding Claim Reserves
B15: تأمين الحريق | C15: 2877.50543 | D15: 64 | E15: 910.3098578 | F15: 238.6027454 | G15: 3168.466631 | H15: Fire
B16: التأمين البحري والطيران | C16: 51.33545 | D16: 2 | E16: 32.34144613 | F16: 2.58819 | G16: 17.56877675 | H16: Marine & Aviation
B17: تأمين السيارات والمركبات الأخرى | C17: 268.37649 | D17: 154 | E17: 174.39807 | F17: 671.37006 | G17: 1.971691593 | H17: Motor & Transportation
B18: التأمين الهندسي والانشاءات والطاقة | C18: 13.82534 | D18: 1 | E18: 10.81824223 | F18: 0 | G18: 16.48073181 | H18: Engineering, Construction & Energy
B19: أخرى | C19: 103.32459 | D19: 1300.090889 | E19: 62.45196954 | F19: 37.43988 | G19: 153.0582115 | H19: Other
B20: اعادة التأمين غير النسبية - المسؤوليات والممتلكات | C20: 0 | D20: 0 | E20: 0 | F20: 0 | G20: 0 | H20: Reinsurance - Property & Liability
B21: المجموع - تأمين الممتلكات والمسؤوليات | C21: =C15+C16+C17+C18+C19+C20 -> 3314.3673 | D21: =D15+D16+D17+D18+D19+D20 -> 1521.090889 | E21: 1190.319586 | F21: 950.0008754 | G21: 3357.546042 | H21: Total - Property & Liability Insurance
B23: المجموع - تأمين صحي | C23: 12948.23244 | D23: 891 | E23: 648.3863432 | F23: 10260.71558 | G23: 790.1966448 | H23: Total - Health Insurance
B25: تأمين حياة جماعي | C25: 1700.181333 | D25: 18 | E25: 248.318153 | F25: 695.8991239 | G25: 408.8848251 | H25: Group Life
B26: تأمين ائتمان حياة جماعي | C26: 0 | D26: 0 | E26: 0 | F26: 0 | G26: 0 | H26: Group Credit Life
B27: تأمين حياة فردي | C27: 5960.396799 | D27: 272 | E27: 0.02475328503 | F27: 7102.338195 | G27: 18752.3083 | H27: Individual Life
B28: دفعات الحياة وتكوين الأموال | C28: 0 | D28: 0 | E28: 0 | F28: 0 | G28: 0 | H28: Annuities & Fund Accumulation
B29: المجموع - تأمين الأشخاص وعمليات تكوين الأموال | C29: =C25+C26+C27+C28 -> 7660.578132 | D29: =D25+D26+D27+D28 -> 290 | E29: 248.3429063 | F29: 7798.237319 | G29: 19161.19312 | H29: Total - Insurance of Persons & Fund Accumulation
B31: المجموع - كافة فروع التأمين | C31: =C21+C23+C29 -> 23923.17787 | D31: =D21+D23+D29 -> 2702.090889 | E31: 2087.048835 | F31: 19008.95378 | G31: 23308.93581 | H31: TOTAL - All Types of Business Combined

Sheet 31B
B6: البيانات بالصافي لإمارة أم القيوين
B7: Net Results for Umm Al Quwain
B8: (2024)
B11: جدول رقم 31B | H11: TABLE 31B
B12: بالألف درهم | H12: AED in 000's
B13: فروع التأمين | C13: الأقساط المكتتبة | D13: أعداد الوثائق | E13: مخصص الأقساط غير المكتسبة | F13: المطالبات المدفوعة | G13: مخصص المطالبات تحت التسوية | H13: Line of Business
C14: Written Premium | D14: Number of Policies | E14: Unearned Premium Reserve | F14: Claims Paid | G14: Outstanding Claim Reserves
B15: تأمين الحريق | C15: -1136.243796 | D15: 64 | E15: -364.5918119 | F15: 69.97442843 | G15: -3282.710059 | H15: Fire
B16: التأمين البحري والطيران | C16: 15.40058 | D16: 2 | E16: 13.22832406 | F16: 0.77769 | G16: 11.97868131 | H16: Marine & Aviation
B17: تأمين السيارات والمركبات الأخرى | C17: 261.9933814 | D17: 154 | E17: 171.6678935 | F17: 666.741068 | G17: -1.112534782 | H17: Motor & Transportation
B18: التأمين الهندسي والانشاءات والطاقة | C18: -86.02354396 | D18: 1 | E18: -85.52782887 | F18: 0 | G18: -248.8727495 | H18: Engineering, Construction & Energy
B19: أخرى | C19: 36.02752088 | D19: 1300.090889 | E19: 24.9028344 | F19: 15.07386 | G19: 102.018937 | H19: Other
B20: اعادة التأمين غير النسبية - المسؤوليات والممتلكات | C20: 0 | D20: 0 | E20: 0 | F20: 0 | G20: 0 | H20: Reinsurance - Property & Liability
B21: المجموع - تأمين الممتلكات والمسؤوليات | C21: =C15+C16+C17+C18+C19+C20 -> -908.8458578 | D21: =D15+D16+D17+D18+D19+D20 -> 1521.090889 | E21: -240.3205888 | F21: 752.5670464 | G21: -3418.697725 | H21: Total - Property & Liability Insurance
B23: المجموع - تأمين صحي | C23: 7885.882037 | D23: 891 | E23: 520.3321958 | F23: 5892.637049 | G23: 502.3612801 | H23: Total - Health Insurance
B25: تأمين حياة جماعي | C25: 661.8868622 | D25: 18 | E25: 175.0466117 | F25: 104.6980383 | G25: 119.2100996 | H25: Group Life
B26: تأمين ائتمان حياة جماعي | C26: 0 | D26: 0 | E26: 0 | F26: 0 | G26: 0 | H26: Group Credit Life
B27: تأمين حياة فردي | C27: 5938.674142 | D27: 272 | E27: 0.01899836342 | F27: 7097.867089 | G27: 18737.59286 | H27: Individual Life
B28: دفعات الحياة وتكوين الأموال | C28: 0 | D28: 0 | E28: 0 | F28: 0 | G28: 0 | H28: Annuities & Fund Accumulation
B29: المجموع - تأمين الأشخاص وعمليات تكوين الأموال | C29: =C25+C26+C27+C28 -> 6600.561005 | D29: =D25+D26+D27+D28 -> 290 | E29: 175.0656101 | F29: 7202.565127 | G29: 18856.80296 | H29: Total - Insurance of Persons & Fund Accumulation
B31: المجموع - كافة فروع التأمين | C31: =C21+C23+C29 -> 13577.59718 | D31: =D21+D23+D29 -> 2702.090889 | E31: 455.0772171 | F31: 13847.76922 | G31: 15940.46652 | H31: TOTAL - All Types of Business Combined

Sheet 32A
B6: البيانات بالإجمالي لإمارة الشارقة
B7: Gross Results for Sharjah
B8: (2024)
B11: جدول رقم 32A | H11: TABLE 32A
B12: بالألف درهم | H12: AED in 000's
B13: فروع التأمين | C13: الأقساط المكتتبة | D13: أعداد الوثائق | E13: مخصص الأقساط غير المكتسبة | F13: المطالبات المدفوعة | G13: مخصص المطالبات تحت التسوية | H13: Line of Business
C14: Written Premium | D14: Number of Policies | E14: Unearned Premium Reserve | F14: Claims Paid | G14: Outstanding Claim Reserves
B15: تأمين الحريق | C15: 99316.35041 | D15: 4478.4 | E15: 32516.65452 | F15: 71130.86665 | G15: 200703.109 | H15: Fire
B16: التأمين البحري والطيران | C16: 81483.52464 | D16: 16203.45 | E16: 25394.41699 | F16: 31780.04851 | G16: 57201.0226 | H16: Marine & Aviation
B17: تأمين السيارات والمركبات الأخرى | C17: 426362.2677 | D17: 247487.65 | E17: 145400.3471 | F17: 416052.9172 | G17: 204034.3798 | H17: Motor & Transportation
B18: التأمين الهندسي والانشاءات والطاقة | C18: 75063.91968 | D18: 2227.65 | E18: 28897.68463 | F18: 18504.01638 | G18: 60608.6216 | H18: Engineering, Construction & Energy
B19: أخرى | C19: 43500.78532 | D19: 562190.7147 | E19: 30439.89314 | F19: 7320.231356 | G19: 34892.46233 | H19: Other
B20: اعادة التأمين غير النسبية - المسؤوليات والممتلكات | C20: 0 | D20: 0 | E20: 0 | F20: 2.5 | G20: 0 | H20: Reinsurance - Property & Liability
B21: المجموع - تأمين الممتلكات والمسؤوليات | C21: =C15+C16+C17+C18+C19+C20 -> 725726.8478 | D21: =D15+D16+D17+D18+D19+D20 -> 832587.8647 | E21: 262648.9964 | F21: 544790.5801 | G21: 557439.5953 | H21: Total - Property & Liability Insurance
B23: المجموع - تأمين صحي | C23: 1623116.953 | D23: 317953.5364 | E23: 295100.2223 | F23: 1195180.675 | G23: 543326.0336 | H23: Total - Health Insurance
B25: تأمين حياة جماعي | C25: 32113.99852 | D25: 1710.871167 | E25: 10303.01582 | F25: 20262.65131 | G25: 21644.62136 | H25: Group Life
B26: تأمين ائتمان حياة جماعي | C26: 151.44399 | D26: 86 | E26: 0 | F26: 2855.29665 | G26: 353.4732969 | H26: Group Credit Life
B27: تأمين حياة فردي | C27: 126350.8313 | D27: 7661 | E27: 132.0114308 | F27: 131350.3834 | G27: 484570.796 | H27: Individual Life
B28: دفعات الحياة وتكوين الأموال | C28: 0 | D28: 0 | E28: 0 | F28: 0 | G28: 0 | H28: Annuities & Fund Accumulation
B29: المجموع - تأمين الأشخاص وعمليات تكوين الأموال | C29: =C25+C26+C27+C28 -> 158616.2738 | D29: =D25+D26+D27+D28 -> 9457.871167 | E29: 10435.02725 | F29: 154468.3313 | G29: 506568.8907 | H29: Total - Insurance of Persons & Fund Accumulation
B31: المجموع - كافة فروع التأمين | C31: =C21+C23+C29 -> 2507460.074 | D31: =D21+D23+D29 -> 1159999.272 | E31: 568184.246 | F31: 1894439.586 | G31: 1607334.52 | H31: TOTAL - All Types of Business Combined

Sheet 32B
B6: البيانات بالصافي لإمارة الشارقة
B7: Net Results for Sharjah
B8: (2024)
B11: جدول رقم 32B | H11: TABLE 32B
B12: بالألف درهم | H12: AED in 000's
B13: فروع التأمين | C13: الأقساط المكتتبة | D13: أعداد الوثائق | E13: مخصص الأقساط غير المكتسبة | F13: المطالبات المدفوعة | G13: مخصص المطالبات تحت التسوية | H13: Line of Business
C14: Written Premium | D14: Number of Policies | E14: Unearned Premium Reserve | F14: Claims Paid | G14: Outstanding Claim Reserves
B15: تأمين الحريق | C15: 10515.09674 | D15: 4478.4 | E15: 6810.253919 | F15: 13817.78183 | G15: 48541.92427 | H15: Fire
B16: التأمين البحري والطيران | C16: 13892.58605 | D16: 16203.45 | E16: 7737.119651 | F16: 8190.680248 | G16: 13052.42776 | H16: Marine & Aviation
B17: تأمين السيارات والمركبات الأخرى | C17: 362271.9094 | D17: 247487.65 | E17: 124222.1336 | F17: 298092.5026 | G17: 150641.9784 | H17: Motor & Transportation
B18: التأمين الهندسي والانشاءات والطاقة | C18: 81.9293402 | D18: 2227.65 | E18: 2787.942725 | F18: 3393.015992 | G18: 7742.789633 | H18: Engineering, Construction & Energy
B19: أخرى | C19: 14237.45634 | D19: 562190.7147 | E19: 8856.148841 | F19: 2315.4495 | G19: 6714.268368 | H19: Other
B20: اعادة التأمين غير النسبية - المسؤوليات والممتلكات | C20: 0 | D20: 0 | E20: 0 | F20: 2.5 | G20: 0 | H20: Reinsurance - Property & Liability
B21: المجموع - تأمين الممتلكات والمسؤوليات | C21: =C15+C16+C17+C18+C19+C20 -> 400998.9778 | D21: =D15+D16+D17+D18+D19+D20 -> 832587.8647 | E21: 150413.5988 | F21: 325811.9302 | G21: 226693.3884 | H21: Total - Property & Liability Insurance
B23: المجموع - تأمين صحي | C23: 775349.8288 | D23: 317953.5364 | E23: 218545.266 | F23: 494694.9112 | G23: 194070.4801 | H23: Total - Health Insurance
B25: تأمين حياة جماعي | C25: 6762.993404 | D25: 1710.871167 | E25: 3894.520891 | F25: 3524.291131 | G25: 4538.455689 | H25: Group Life
B26: تأمين ائتمان حياة جماعي | C26: 51.14165 | D26: 86 | E26: 0 | F26: 389.197258 | G26: 91.44354597 | H26: Group Credit Life
B27: تأمين حياة فردي | C27: 125130.3734 | D27: 7661 | E27: 109.9160735 | F27: 131205.5469 | G27: 479813.7365 | H27: Individual Life
B28: دفعات الحياة وتكوين الأموال | C28: 0 | D28: 0 | E28: 0 | F28: 0 | G28: 0 | H28: Annuities & Fund Accumulation
B29: المجموع - تأمين الأشخاص وعمليات تكوين الأموال | C29: =C25+C26+C27+C28 -> 131944.5085 | D29: =D25+D26+D27+D28 -> 9457.871167 | E29: 4004.436964 | F29: 135119.0353 | G29: 484443.6358 | H29: Total - Insurance of Persons & Fund Accumulation
B31: المجموع - كافة فروع التأمين | C31: =C21+C23+C29 -> 1308293.315 | D31: =D21+D23+D29 -> 1159999.272 | E31: 372963.3018 | F31: 955625.8767 | G31: 905207.5043 | H31: TOTAL - All Types of Business Combined

Sheet 33A
B6: البيانات بالإجمالي لإمارة رأس الخيمة
B7: Gross Results for Ras Al Khaimah
B8: (2024)
B11: جدول رقم 33A | H11: TABLE 33A
B12: بالألف درهم | H12: AED in 000's
B13: فروع التأمين | C13: الأقساط المكتتبة | D13: أعداد الوثائق | E13: مخصص الأقساط غير المكتسبة | F13: المطالبات المدفوعة | G13: مخصص المطالبات تحت التسوية | H13: Line of Business
C14: Written Premium | D14: Number of Policies | E14: Unearned Premium Reserve | F14: Claims Paid | G14: Outstanding Claim Reserves
B15: تأمين الحريق | C15: 37753.93252 | D15: 1044 | E15: 17236.99719 | F15: 18053.73418 | G15: 60390.80605 | H15: Fire
B16: التأمين البحري والطيران | C16: 7045.27816 | D16: 329 | E16: 3903.349014 | F16: 897.3572756 | G16: 3188.435494 | H16: Marine & Aviation
B17: تأمين السيارات والمركبات الأخرى | C17: 492650.653 | D17: 544306 | E17: 137728.5468 | F17: 188499.6284 | G17: 139587.6323 | H17: Motor & Transportation
B18: التأمين الهندسي والانشاءات والطاقة | C18: 64744.08373 | D18: 1224 | E18: 53114.83392 | F18: 1808.421192 | G18: 6711.700112 | H18: Engineering, Construction & Energy
B19: أخرى | C19: 27802.10874 | D19: 542391.9632 | E19: 13066.9986 | F19: 3364.033863 | G19: 19449.84322 | H19: Other
B20: اعادة التأمين غير النسبية - المسؤوليات والممتلكات | C20: 0 | D20: 0 | E20: 0 | F20: 0 | G20: 0 | H20: Reinsurance - Property & Liability
B21: المجموع - تأمين الممتلكات والمسؤوليات | C21: =C15+C16+C17+C18+C19+C20 -> 629996.0562 | D21: =D15+D16+D17+D18+D19+D20 -> 1089294.963 | E21: =E15+E16+E17+E18+E19+E20 -> 225050.7255 | F21: =F15+F16+F17+F18+F19+F20 -> 212623.1749 | G21: =G15+G16+G17+G18+G19+G20 -> 229328.4172 | H21: Total - Property & Liability Insurance
B23: المجموع - تأمين صحي | C23: 115920.1866 | D23: 17546 | E23: 38447.30577 | F23: 99951.64295 | G23: 18752.17378 | H23: Total - Health Insurance
B25: تأمين حياة جماعي | C25: 6091.456345 | D25: 99 | E25: 1732.96397 | F25: 3504.288849 | G25: 5309.346039 | H25: Group Life
B26: تأمين ائتمان حياة جماعي | C26: 83181.96766 | D26: 47 | E26: 0 | F26: 13349.52541 | G26: 13830.38301 | H26: Group Credit Life
B27: تأمين حياة فردي | C27: 16334.6703 | D27: 857 | E27: 0.4603936408 | F27: 30924.77535 | G27: 75377.06875 | H27: Individual Life
B28: دفعات الحياة وتكوين الأموال | C28: 0 | D28: 0 | E28: 0 | F28: 0 | G28: 0 | H28: Annuities & Fund Accumulation
B29: المجموع - تأمين الأشخاص وعمليات تكوين الأموال | C29: =C25+C26+C27+C28 -> 105608.0943 | D29: =D25+D26+D27+D28 -> 1003 | E29: =E25+E26+E27+E28 -> 1733.424363 | F29: =F25+F26+F27+F28 -> 47778.58961 | G29: =G25+G26+G27+G28 -> 94516.7978 | H29: Total - Insurance of Persons & Fund Accumulation
B31: المجموع - كافة فروع التأمين | C31: =C21+C23+C29 -> 851524.337 | D31: =D21+D23+D29 -> 1107843.963 | E31: 265231.4557 | F31: 360353.4075 | G31: 342597.3888 | H31: TOTAL - All Types of Business Combined

Sheet 33B
B6: البيانات بالصافي لإمارة رأس الخيمة
B7: Net Results for Ras Al Khaimah
B8: (2024)
B11: جدول رقم 33B | H11: TABLE 33B
B12: بالألف درهم | H12: AED in 000's
B13: فروع التأمين | C13: الأقساط المكتتبة | D13: أعداد الوثائق | E13: مخصص الأقساط غير المكتسبة | F13: المطالبات المدفوعة | G13: مخصص المطالبات تحت التسوية | H13: Line of Business
C14: Written Premium | D14: Number of Policies | E14: Unearned Premium Reserve | F14: Claims Paid | G14: Outstanding Claim Reserves
B15: تأمين الحريق | C15: 3278.490005 | D15: 1044 | E15: 2723.771552 | F15: 3152.312495 | G15: 7427.993632 | H15: Fire
B16: التأمين البحري والطيران | C16: 1150.809987 | D16: 329 | E16: 779.0279415 | F16: 199.6968517 | G16: 756.9095805 | H16: Marine & Aviation
B17: تأمين السيارات والمركبات الأخرى | C17: 239656.2881 | D17: 544306 | E17: 132119.4681 | F17: 133177.9799 | G17: 67266.79433 | H17: Motor & Transportation
B18: التأمين الهندسي والانشاءات والطاقة | C18: 3856.485328 | D18: 1224 | E18: 2278.784211 | F18: 210.4510046 | G18: 1333.24213 | H18: Engineering, Construction & Energy
B19: أخرى | C19: 6246.177857 | D19: 542391.9632 | E19: 2262.492946 | F19: 811.1604859 | G19: 1544.09256 | H19: Other
B20: اعادة التأمين غير النسبية - المسؤوليات والممتلكات | C20: 0 | D20: 0 | E20: 0 | F20: 0 | G20: 0 | H20: Reinsurance - Property & Liability
B21: المجموع - تأمين الممتلكات والمسؤوليات | C21: =C15+C16+C17+C18+C19+C20 -> 254188.2513 | D21: =D15+D16+D17+D18+D19+D20 -> 1089294.963 | E21: =E15+E16+E17+E18+E19+E20 -> 140163.5447 | F21: =F15+F16+F17+F18+F19+F20 -> 137551.6007 | G21: =G15+G16+G17+G18+G19+G20 -> 78329.03223 | H21: Total - Property & Liability Insurance
B23: المجموع - تأمين صحي | C23: 87642.58419 | D23: 17546 | E23: 31097.17905 | F23: 61540.73665 | G23: 15361.75842 | H23: Total - Health Insurance
B25: تأمين حياة جماعي | C25: 2506.136377 | D25: 99 | E25: 724.5577506 | F25: 904.3368685 | G25: 1657.819806 | H25: Group Life
B26: تأمين ائتمان حياة جماعي | C26: 42084.4789 | D26: 47 | E26: 0 | F26: 1373.14316 | G26: 2086.83518 | H26: Group Credit Life
B27: تأمين حياة فردي | C27: 16181.08234 | D27: 857 | E27: 0.3533561584 | F27: 30633.92787 | G27: 74931.90617 | H27: Individual Life
B28: دفعات الحياة وتكوين الأموال | C28: 0 | D28: 0 | E28: 0 | F28: 0 | G28: 0 | H28: Annuities & Fund Accumulation
B29: المجموع - تأمين الأشخاص وعمليات تكوين الأموال | C29: =C25+C26+C27+C28 -> 60771.69761 | D29: =D25+D26+D27+D28 -> 1003 | E29: 724.9111068 | F29: 32911.4079 | G29: 78676.56115 | H29: Total - Insurance of Persons & Fund Accumulation
B31: المجموع - كافة فروع التأمين | C31: =C21+C23+C29 -> 402602.5331 | D31: =D21+D23+D29 -> 1107843.963 | E31: 171985.6349 | F31: 232003.7453 | G31: 172367.3518 | H31: TOTAL - All Types of Business Combined

Sheet 34A
B6: البيانات بالإجمالي لإمارة الفجيرة
B7: Gross Results for Fujairah
B8: (2024)
B11: جدول رقم 34A | H11: TABLE 34A
B12: بالألف درهم | H12: AED in 000's
B13: فروع التأمين | C13: الأقساط المكتتبة | D13: أعداد الوثائق | E13: مخصص الأقساط غير المكتسبة | F13: المطالبات المدفوعة | G13: مخصص المطالبات تحت التسوية | H13: Line of Business
C14: Written Premium | D14: Number of Policies | E14: Unearned Premium Reserve | F14: Claims Paid | G14: Outstanding Claim Reserves
B15: تأمين الحريق | C15: 55838.62478 | D15: 903 | E15: 18830.40353 | F15: 320578.4897 | G15: 106867.9018 | H15: Fire
B16: التأمين البحري والطيران | C16: 12348.2024 | D16: 568 | E16: 2886.498809 | F16: 420.35816 | G16: 4991.692314 | H16: Marine & Aviation
B17: تأمين السيارات والمركبات الأخرى | C17: 121479.5918 | D17: 75687 | E17: 66272.72923 | F17: 88386.76422 | G17: 29798.60558 | H17: Motor & Transportation
B18: التأمين الهندسي والانشاءات والطاقة | C18: 14094.32545 | D18: 495 | E18: 39468.86058 | F18: 132675.5732 | G18: 33138.82081 | H18: Engineering, Construction & Energy
B19: أخرى | C19: 10015.65717 | D19: 159018.5831 | E19: 2415.618037 | F19: 617.43207 | G19: 2365.587621 | H19: Other
B20: اعادة التأمين غير النسبية - المسؤوليات والممتلكات | C20: 0 | D20: 0 | E20: 0 | F20: 0 | G20: 0 | H20: Reinsurance - Property & Liability
B21: المجموع - تأمين الممتلكات والمسؤوليات | C21: =C15+C16+C17+C18+C19+C20 -> 213776.4016 | D21: =D15+D16+D17+D18+D19+D20 -> 236671.5831 | E21: =E15+E16+E17+E18+E19+E20 -> 129874.1102 | F21: =F15+F16+F17+F18+F19+F20 -> 542678.6173 | G21: =G15+G16+G17+G18+G19+G20 -> 177162.6081 | H21: Total - Property & Liability Insurance
B23: المجموع - تأمين صحي | C23: 87394.07426 | D23: 96186 | E23: 38882.47037 | F23: 40642.47036 | G23: 12834.14772 | H23: Total - Health Insurance
B25: تأمين حياة جماعي | C25: 3542.562397 | D25: 100 | E25: 271.9887353 | F25: 1764.337752 | G25: 1216.095409 | H25: Group Life
B26: تأمين ائتمان حياة جماعي | C26: 0 | D26: 0 | E26: 0 | F26: 0 | G26: 0 | H26: Group Credit Life
B27: تأمين حياة فردي | C27: 7564.704287 | D27: 363 | E27: 0.04316752011 | F27: 9055.21311 | G27: 26831.57838 | H27: Individual Life
B28: دفعات الحياة وتكوين الأموال | C28: 0 | D28: 0 | E28: 0 | F28: 0 | G28: 0 | H28: Annuities & Fund Accumulation
B29: المجموع - تأمين الأشخاص وعمليات تكوين الأموال | C29: =C25+C26+C27+C28 -> 11107.26668 | D29: =D25+D26+D27+D28 -> 463 | E29: =E25+E26+E27+E28 -> 272.0319028 | F29: =F25+F26+F27+F28 -> 10819.55086 | G29: =G25+G26+G27+G28 -> 28047.67379 | H29: Total - Insurance of Persons & Fund Accumulation
B31: المجموع - كافة فروع التأمين | C31: =C21+C23+C29 -> 312277.7426 | D31: =D21+D23+D29 -> 333320.5831 | E31: 169028.6125 | F31: 594140.6386 | G31: 218044.4296 | H31: TOTAL - All Types of Business Combined

Sheet 34B
B6: البيانات بالصافي لإمارة الفجيرة
B7: Net Results for Fujairah
B8: (2024)
B11: جدول رقم 34B | H11: TABLE 34B
B12: بالألف درهم | H12: AED in 000's
B13: فروع التأمين | C13: الأقساط المكتتبة | D13: أعداد الوثائق | E13: مخصص الأقساط غير المكتسبة | F13: المطالبات المدفوعة | G13: مخصص المطالبات تحت التسوية | H13: Line of Business
C14: Written Premium | D14: Number of Policies | E14: Unearned Premium Reserve | F14: Claims Paid | G14: Outstanding Claim Reserves
B15: تأمين الحريق | C15: -6346.622863 | D15: 903 | E15: -1636.594382 | F15: 27100.52079 | G15: 4874.289736 | H15: Fire
B16: التأمين البحري والطيران | C16: 3192.09526 | D16: 568 | E16: 1213.902024 | F16: 41.01181 | G16: 2608.525252 | H16: Marine & Aviation
B17: تأمين السيارات والمركبات الأخرى | C17: 105102.5841 | D17: 75687 | E17: 64847.26191 | F17: 72109.33825 | G17: 25191.74831 | H17: Motor & Transportation
B18: التأمين الهندسي والانشاءات والطاقة | C18: -3255.842244 | D18: 495 | E18: -4622.153574 | F18: 5022.600638 | G18: -10956.64559 | H18: Engineering, Construction & Energy
B19: أخرى | C19: 2865.304142 | D19: 159018.5831 | E19: 1289.861083 | F19: 348.28664 | G19: -44.24414799 | H19: Other
B20: اعادة التأمين غير النسبية - المسؤوليات والممتلكات | C20: 0 | D20: 0 | E20: 0 | F20: 0 | G20: 0 | H20: Reinsurance - Property & Liability
B21: المجموع - تأمين الممتلكات والمسؤوليات | C21: =C15+C16+C17+C18+C19+C20 -> 101557.5184 | D21: =D15+D16+D17+D18+D19+D20 -> 236671.5831 | E21: =E15+E16+E17+E18+E19+E20 -> 61092.27706 | F21: =F15+F16+F17+F18+F19+F20 -> 104621.7581 | G21: =G15+G16+G17+G18+G19+G20 -> 21673.67356 | H21: Total - Property & Liability Insurance
B23: المجموع - تأمين صحي | C23: 54923.85208 | D23: 96186 | E23: 27182.78416 | F23: 9580.444122 | G23: 5251.697671 | H23: Total - Health Insurance
B25: تأمين حياة جماعي | C25: -1256.42813 | D25: 100 | E25: 183.5655211 | F25: 257.630784 | G25: 287.8817668 | H25: Group Life
B26: تأمين ائتمان حياة جماعي | C26: 0 | D26: 0 | E26: 0 | F26: 0 | G26: 0 | H26: Group Credit Life
B27: تأمين حياة فردي | C27: 7533.503049 | D27: 363 | E27: 0.0331314504 | F27: 9049.078851 | G27: 26810.16503 | H27: Individual Life
B28: دفعات الحياة وتكوين الأموال | C28: 0 | D28: 0 | E28: 0 | F28: 0 | G28: 0 | H28: Annuities & Fund Accumulation
B29: المجموع - تأمين الأشخاص وعمليات تكوين الأموال | C29: =C25+C26+C27+C28 -> 6277.074919 | D29: =D25+D26+D27+D28 -> 463 | E29: =E25+E26+E27+E28 -> 183.5986526 | F29: =F25+F26+F27+F28 -> 9306.709635 | G29: =G25+G26+G27+G28 -> 27098.0468 | H29: Total - Insurance of Persons & Fund Accumulation
B31: المجموع - كافة فروع التأمين | C31: =C21+C23+C29 -> 162758.4454 | D31: =D21+D23+D29 -> 333320.5831 | E31: =E21+E23+E29 -> 88458.65988 | F31: =F21+F23+F29 -> 123508.9119 | G31: =G21+G23+G29 -> 54023.41803 | H31: TOTAL - All Types of Business Combined

Sheet Ins. Companies
A3: دليل شركات التأمين في دولة الإمارات العربية المتحدة
A4: Directory of insurance companies in the UAE
A7: رقم القيد | B7: الاسم | C7: الشكل القانوني | D7: جنسية الشركة | E7: تأمين تقليدي / تأمين تكافلي | F7: أنواع التأمين | G7: الموقع الالكتروني | H7: تاريخ القيد | I7: Insurance Type | J7: Traditional Insurance / Takaful Insurance | K7: Company Nationality | L7: Legal Type | M7: Name | N7: Registration Number
G8: Web Site | H8: Registration Date
A9: 1 | B9: شركة أبوظبي الوطنية للتامين | C9: شركة مساهمة عامة | D9: الإمارات العربية المتحدة | E9: تأمين تقليدي | F9: تأمين الممتلكات والمسؤوليات + تأمين الأشخاص وعمليات تكوين الأموال | G9: www.adnic.ae | H9: 1984-07-22 | I9: Property and Liability Insurance + Insurance of Persons and Fund Accumulation Operations | J9: Traditional Insurance | K9: United Arab Emirate | L9: Public Joint Stock | M9: Abu Dhabi National Insurance Company | N9: 1
A10: 2 | B10: شركة الامارات للتأمين (ش.م.ع) | C10: شركة مساهمة عامة | D10: الإمارات العربية المتحدة | E10: تأمين تقليدي | F10: تأمين الممتلكات والمسؤوليات + تأمين الأشخاص وعمليات تكوين الأموال | G10: www.eminsco.com | H10: 1985-08-26 | I10: Property and Liability Insurance + Insurance of Persons and Fund Accumulation Operations | J10: Traditional Insurance | K10: United Arab Emirate | L10: Public Joint Stock | M10: Emirates Insurance Company (PSC) | N10: 2
A11: 3 | B11: شركة العين الاهلية للتأمين | C11: شركة مساهمة عامة | D11: الإمارات العربية المتحدة | E11: تأمين تقليدي | F11: تأمين الممتلكات والمسؤوليات + تأمين الأشخاص وعمليات تكوين الأموال | G11: www.alaininsurance.com | H11: 1984-08-08 | I11: Property and Liability Insurance + Insurance of Persons and Fund Accumulation Operations | J11: Traditional Insurance | K11: United Arab Emirate | L11: Public Joint Stock | M11: Al Ain Ahlia Insurance Company | N11: 3
A12: 4 | B12: شركة دبي للتأمين شركة مساهمة عامة | C12: شركة مساهمة عامة | D12: الإمارات العربية المتحدة | E12: تأمين تقليدي | F12: تأمين الممتلكات والمسؤوليات + تأمين الأشخاص وعمليات تكوين الأموال | G12: www.dubins.ae | H12: 1984-11-13 | I12: Property and Liability Insurance + Insurance of Persons and Fund Accumulation Operations | J12: Traditional Insurance | K12: United Arab Emirate | L12: Public Joint Stock | M12: Dubai Insurance Company (PSC) | N12: 4
A13: 5 | B13: شركة الظفرة للتأمين | C13: شركة مساهمة عامة | D13: الإمارات العربية المتحدة | E13: تأمين تقليدي | F13: تأمين الممتلكات والمسؤوليات + تأمين الأشخاص وعمليات تكوين الأموال | G13: www.aldhafrainsurance.ae | H13: 1984-11-14 | I13: Property and Liability Insurance + Insurance of Persons and Fund Accumulation Operations | J13: Traditional Insurance | K13: United Arab Emirate | L13: Public Joint Stock | M13: Al dhafra Insurance Company | N13: 5
A14: 6 | B14: سكون تكافل ش م ع | C14: شركة مساهمة عامة | D14: الإمارات العربية المتحدة | E14: تأمين تكافلي | F14: تأمين الممتلكات والمسؤوليات + تأمين الأشخاص وعمليات تكوين الأموال | G14: www.sukoontakaful.com | H14: 1984-12-15 | I14: Property and Liability Insurance + Insurance of Persons and Fund Accumulation Operations | J14: Takaful Insurance | K14: United Arab Emirate | L14: Public Joint Stock | M14: Sukoon Takaful PJSC | N14: 6
A15: 7 | B15: شركة رأس الخيمة الوطنية للتأمين | C15: شركة مساهمة عامة | D15: الإمارات العربية المتحدة | E15: تأمين تقليدي | F15: تأمين الممتلكات والمسؤوليات + تأمين الأشخاص وعمليات تكوين الأموال | G15: www.rakinsurance.com | H15: 1998-12-20 | I15: Property and Liability Insurance + Insurance of Persons and Fund Accumulation Operations | J15: Traditional Insurance | K15: United Arab Emirate | L15: Public Joint Stock | M15: Ras Al Khaimah National Insurance Company P.S.C | N15: 7
A16: 8 | B16: شركة التأمين فيدلتي المتحدة | C16: شركة مساهمة عامة | D16: الإمارات العربية المتحدة | E16: تأمين تقليدي | F16: تأمين الممتلكات والمسؤوليات + تأمين الأشخاص وعمليات تكوين الأموال | G16: www.fidelityunited.ae | H16: 1984-12-22 | I16: Property and Liability Insurance + Insurance of Persons and Fund Accumulation Operations | J16: Traditional Insurance | K16: United Arab Emirate | L16: Public Joint Stock | M16: United Fidelity Insurance Company | N16: 8
A17: 9 | B17: شركة سكون للتأمين (مساهمة عامة) | C17: شركة مساهمة عامة | D17: الإمارات العربية المتحدة | E17: تأمين تقليدي | F17: تأمين الممتلكات والمسؤوليات + تأمين الأشخاص وعمليات تكوين الأموال | G17: www.sukoon.com | H17: 1984-12-24 | I17: Property and Liability Insurance + Insurance of Persons and Fund Accumulation Operations | J17: Traditional Insurance | K17: United Arab Emirate | L17: Public Joint Stock | M17: Sukoon Insurance Company (PJSC) | N17: 9
A18: 10 | B18: شركة الوثبة الوطنية للتأمين | C18: شركة مساهمة عامة | D18: الإمارات العربية المتحدة | E18: تأمين تقليدي | F18: تأمين الممتلكات والمسؤوليات | G18: www.awnic.com | H18: 1984-12-24 | I18: Property and Liability Insurance | J18: Traditional Insurance | K18: United Arab Emirate | L18: Public Joint Stock | M18: Al Wathba National Insurance Company | N18: 10
A19: 11 | B19: شركة الفجيرة الوطنية للتأمين - ش . م . ع | C19: شركة مساهمة عامة | D19: الإمارات العربية المتحدة | E19: تأمين تقليدي | F19: تأمين الممتلكات والمسؤوليات + تأمين الأشخاص وعمليات تكوين الأموال | G19: www.afnic.ae | H19: 1984-12-25 | I19: Property and Liability Insurance + Insurance of Persons and Fund Accumulation Operations | J19: Traditional Insurance | K19: United Arab Emirate | L19: Public Joint Stock | M19: Al Fujairah National Insurance Company PSC | N19: 11
A20: 12 | B20: شركة الشارقة للتأمين | C20: شركة مساهمة عامة | D20: الإمارات العربية المتحدة | E20: تأمين تقليدي | F20: تأمين الممتلكات والمسؤوليات + تأمين الأشخاص وعمليات تكوين الأموال | G20: www.sharjahinsurance.co.ae | H20: 1984-12-25 | I20: Property and Liability Insurance + Insurance of Persons and Fund Accumulation Operations | J20: Traditional Insurance | K20: United Arab Emirate | L20: Public Joint Stock | M20: Sharjah Insurance Company (P.S.C) | N20: 12
A21: 14 | B21: شركة أورينت للتأمين | C21: شركة مساهمة عامة | D21: الإمارات العربية المتحدة | E21: تأمين تقليدي | F21: تأمين الممتلكات والمسؤوليات + تأمين الأشخاص وعمليات تكوين الأموال | G21: www.insuranceuae.com | H21: 1984-12-29 | I21: Property and Liability Insurance + Insurance of Persons and Fund Accumulation Operations | J21: Traditional Insurance | K21: United Arab Emirate | L21: Public Joint Stock | M21: Orient Insurance Company | N21: 14
A22: 15 | B22: شركة البحيرة الوطنية للتأمين | C22: شركة مساهمة عامة | D22: الإمارات العربية المتحدة | E22: تأمين تقليدي | F22: تأمين الممتلكات والمسؤوليات + تأمين الأشخاص وعمليات تكوين الأموال | G22: www.albuhaira.com | H22: 1984-12-30 | I22: Property and Liability Insurance + Insurance of Persons and Fund Accumulation Operations | J22: Traditional Insurance | K22: United Arab Emirate | L22: Public Joint Stock | M22: Al Buharia National Insurance Company | N22: 15
A23: 16 | B23: شركة الصقر الوطنية للتأمين (شركة مساهمة عامة) | C23: شركة مساهمة عامة | D23: الإمارات العربية المتحدة | E23: تأمين تقليدي | F23: تأمين الممتلكات والمسؤوليات + تأمين الأشخاص وعمليات تكوين الأموال | G23: www.alsagrins.ae | H23: 1989-10-26 | I23: Property and Liability Insurance + Insurance of Persons and Fund Accumulation Operations | J23: Traditional Insurance | K23: United Arab Emirate | L23: Public Joint Stock | M23: Al Sagr National Insurance Company (PSC) | N23: 16
A24: 17 | B24: الشركة الإسلامية العربية للتأمين (سلامة) | C24: شركة مساهمة عامة | D24: الإمارات العربية المتحدة | E24: تأمين تكافلي | F24: تأمين الممتلكات والمسؤوليات + تأمين الأشخاص وعمليات تكوين الأموال | G24: www.salama.ae | H24: 1984-12-25 | I24: Property and Liability Insurance + Insurance of Persons and Fund Accumulation Operations | J24: Takaful Insurance | K24: United Arab Emirate | L24: Public Joint Stock | M24: Islamic Arab Insurance Company "SALAMA" | N24: 17
A25: 18 | B25: اللاينس للتأمين | C25: شركة مساهمة عامة | D25: الإمارات العربية المتحدة | E25: تأمين تقليدي | F25: تأمين الممتلكات والمسؤوليات + تأمين الأشخاص وعمليات تكوين الأموال | G25: www.alliance-uae.com | H25: 1984-12-31 | I25: Property and Liability Insurance + Insurance of Persons and Fund Accumulation Operations | J25: Traditional Insurance | K25: United Arab Emirate | L25: Public Joint Stock | M25: Alliance Insurance Company | N25: 18
A26: 20 | B26: شركة التأمين العربية ش م ل | C26: فرع شركة أجنبية | D26: لبنان | E26: تأمين تقليدي | F26: تأمين الممتلكات والمسؤوليات + تأمين الأشخاص وعمليات تكوين الأموال | G26: www.arabiainsurance.com | H26: 1984-11-01 | I26: Property and Liability Insurance + Insurance of Persons and Fund Accumulation Operations | J26: Traditional Insurance | K26: Lebanon | L26: Foreign Company Branch | M26: Arabia Insurance Company sal | N26: 20
A27: 21 | B27: شركة التأمين الأردنية المساهمة المحدودة | C27: فرع شركة أجنبية | D27: الأردن | E27: تأمين تقليدي | F27: تأمين الممتلكات والمسؤوليات | G27: www.jicjo.com | H27: 1984-12-01 | I27: Property and Liability Insurance | J27: Traditional Insurance | K27: Jordan | L27: Foreign Company Branch | M27: Jordan Insurance Company Ltd | N27: 21
A28: 22 | B28: شركة التأمين العربية السعودية ش . م . ب(م) | C28: فرع شركة خليجية | D28: البحرين | E28: تأمين تقليدي | F28: تأمين الممتلكات والمسؤوليات | G28: www.damana.com | H28: 1984-12-13 | I28: Property and Liability Insurance | J28: Traditional Insurance | K28: Bahrain | L28: GCC Company Branch | M28: Saudi Arabian Insurance Company B.S.C (C) | N28: 22
A29: 30 | B29: شركة سهامي بيمة ايران | C29: فرع شركة أجنبية | D29: ايران | E29: تأمين تقليدي | F29: تأمين الممتلكات والمسؤوليات | G29: www.bimehir.ae | H29: 1984-12-19 | I29: Property and Liability Insurance | J29: Traditional Insurance | K29: Iran, Islamic Republic of | L29: Foreign Company Branch | M29: Iran Insurance Company | N29: 30
A30: 32 | B30: ميتسوى سوميتومو انشورانس كومبانى ليمتد | C30: فرع شركة أجنبية | D30: اليابان | E30: تأمين تقليدي | F30: تأمين الممتلكات والمسؤوليات | G30: www.ms-ins.com | H30: 1984-12-22 | I30: Property and Liability Insurance | J30: Traditional Insurance | K30: Japan | L30: Foreign Company Branch | M30: Mitsui Sumitomo Insurance Company Ltd | N30: 32
A31: 34 | B31: اميركان لايف انشورنس كومباني | C31: فرع شركة أجنبية | D31: الولايات المتحدة الامريكية | E31: تأمين تقليدي | F31: تأمين الممتلكات والمسؤوليات + تأمين الأشخاص وعمليات تكوين الأموال | G31: www.metlife .ae | H31: 1984-12-23 | I31: Property and Liability Insurance + Insurance of Persons and Fund Accumulation Operations | J31: Traditional Insurance | K31: United States of America | L31: Foreign Company Branch | M31: American Life Insurance Company | N31: 34
A32: 37 | B32: ذي أورينتال أنشورانس كومباني ليمتد | C32: فرع شركة أجنبية | D32: الهند | E32: تأمين تقليدي | F32: تأمين الممتلكات والمسؤوليات | G32: www.orientalinsurance.org.in | H32: 1984-12-29 | I32: Property and Liability Insurance | J32: Traditional Insurance | K32: India | L32: Foreign Company Branch | M32: The Oriental Insurance Company Limited | N32: 37
A33: 38 | B33: شركة قطر للتأمين | C33: فرع شركة أجنبية | D33: قطر | E33: تأمين تقليدي | F33: تأمين الممتلكات والمسؤوليات | G33: www.qatarinsurance.com | H33: 1984-12-29 | I33: Property and Liability Insurance | J33: Traditional Insurance | K33: Qatar | L33: Foreign Company Branch | M33: Qatar Insurance Company | N33: 38
A34: 42 | B34: الإتحاد الوطني - شركة الضمان العامة للشرق الأدنى | C34: فرع شركة أجنبية | D34: لبنان | E34: تأمين تقليدي | F34: تأمين الممتلكات والمسؤوليات + تأمين الأشخاص وعمليات تكوين الأموال | G34: www.unic.ae | H34: 1984-12-29 | I34: Property and Liability Insurance + Insurance of Persons and Fund Accumulation Operations | J34: Traditional Insurance | K34: Lebanon | L34: Foreign Company Branch | M34: Al Ittihad Al Watani - General Insurance Company for the Near East | N34: 42
A35: 43 | B35: الشركة القطرية العامة للتأمين وإعادة التأمين ش.م.ق | C35: فرع شركة أجنبية | D35: قطر | E35: تأمين تقليدي | F35: تأمين الممتلكات والمسؤوليات + تأمين الأشخاص وعمليات تكوين الأموال | G35: www.qgirco.com | H35: 1984-12-29 | I35: Property and Liability Insurance + Insurance of Persons and Fund Accumulation Operations | J35: Traditional Insurance | K35: Qatar | L35: Foreign Company Branch | M35: Qatar General Insurance & Reinsurance Company S.A.Q | N35: 43
A36: 44 | B36: أدمجي انشورنس كومباني ليمتد فرع دبي | C36: فرع شركة أجنبية | D36: باكستان | E36: تأمين تقليدي | F36: تأمين الممتلكات والمسؤوليات | G36: www.adamjeeinsurance.com | H36: 1984-12-29 | I36: Property and Liability Insurance | J36: Traditional Insurance | K36: Pakistan | L36: Foreign Company Branch | M36: Adamjee Insurance Company Limited | N36: 44
A37: 45 | B37: طوكيو مارين اند نيتشيدو فايرانشورانس كومباني ليمتد | C37: فرع شركة أجنبية | D37: اليابان | E37: تأمين تقليدي | F37: تأمين الممتلكات والمسؤوليات | G37: www.tmnf.ae | H37: 1984-12-29 | I37: Property and Liability Insurance | J37: Traditional Insurance | K37: Japan | L37: Foreign Company Branch | M37: Tokio Marine & Nichido Fire Insurance Company Ltd | N37: 45
A38: 48 | B38: سيغنا الشرق الأوسط للتأمين ش.م.ل | C38: فرع شركة أجنبية | D38: لبنان | E38: تأمين تقليدي | F38: تأمين الممتلكات والمسؤوليات | G38: www.cigna.com | H38: 1984-12-30 | I38: Property and Liability Insurance | J38: Traditional Insurance | K38: Lebanon | L38: Foreign Company Branch | M38: Cigna Insurance Middle East S.A.L | N38: 48
A39: 49 | B39: ذي نيو انديا اشورانس كومباني ليمتد | C39: فرع شركة أجنبية | D39: الهند | E39: تأمين تقليدي | F39: تأمين الممتلكات والمسؤوليات | G39: www.nia-dubai.com | H39: 1984-12-30 | I39: Property and Liability Insurance | J39: Traditional Insurance | K39: India | L39: Foreign Company Branch | M39: The New India Assurance Company Limited | N39: 49
A40: 54 | B40: ستيت لايف أنشورانس كوربوريشن أوف باكستان | C40: فرع شركة أجنبية | D40: باكستان | E40: تأمين تقليدي | F40: تأمين الأشخاص وعمليات تكوين الأموال | G40: www.statelifegulf.ae | H40: 1984-12-30 | I40: Insurance of Persons and Fund Accumulation Operations | J40: Traditional Insurance | K40: Pakistan | L40: Foreign Company Branch | M40: State Life Insurance Corporation Of Pakistan | N40: 54
A41: 61 | B41: الشركة الوطنية للتأمينات العامة | C41: شركة مساهمة عامة | D41: الإمارات العربية المتحدة | E41: تأمين تقليدي | F41: تأمين الممتلكات والمسؤوليات + تأمين الأشخاص وعمليات تكوين الأموال | G41: www.ngiuae.com | H41: 1984-12-31 | I41: Property and Liability Insurance + Insurance of Persons and Fund Accumulation Operations | J41: Traditional Insurance | K41: United Arab Emirate | L41: Public Joint Stock | M41: National General Insurance Company | N41: 61
A42: 62 | B42: زيوريخ لايف أنشورانس كومباني ليمتد | C42: فرع شركة أجنبية | D42: سويسرا | E42: تأمين تقليدي | F42: تأمين الأشخاص وعمليات تكوين الأموال | G42: www.zurich.ae | H42: 1988-04-04 | I42: Insurance of Persons and Fund Accumulation Operations | J42: Traditional Insurance | K42: Switzerland | L42: Foreign Company Branch | M42: Zurich Life Insurance Company Limited | N42: 62
A43: 63 | B43: زيوريخ إنترناشيونال لايف ليمتد | C43: فرع شركة أجنبية | D43: المملكة المتحدة | E43: تأمين تقليدي | F43: تأمين الأشخاص وعمليات تكوين الأموال | G43: www.zurich.com | H43: 1991-06-07 | I43: Insurance of Persons and Fund Accumulation Operations | J43: Traditional Insurance | K43: United Kingdom | L43: Foreign Company Branch | M43: Zurich International Life Limited | N43: 63
A44: 64 | B44: دبي الوطنية للتأمين واعادة التأمين ش.م.ع | C44: شركة مساهمة عامة | D44: الإمارات العربية المتحدة | E44: تأمين تقليدي | F44: تأمين الممتلكات والمسؤوليات + تأمين الأشخاص وعمليات تكوين الأموال | G44: www.dni.ae | H44: 1992-01-06 | I44: Property and Liability Insurance + Insurance of Persons and Fund Accumulation Operations | J44: Traditional Insurance | K44: United Arab Emirate | L44: Public Joint Stock | M44: Dubai National Insurance & Reinsurance Company P.S.C | N44: 64
A45: 65 | B45: ليفا للتأمين (الشرق الاوسط) ش . م . ب(م) | C45: فرع شركة أجنبية | D45: البحرين | E45: تأمين تقليدي | F45: تأمين الممتلكات والمسؤوليات | G45: www.livainsurance.ae | H45: 1992-10-21 | I45: Property and Liability Insurance | J45: Traditional Insurance | K45: bahrain | L45: Foreign Company Branch | M45: LIVA Insurance B.S.C. © | N45: 65
A46: 66 | B46: شركة الخزنة للتأمين | C46: شركة مساهمة عامة | D46: الإمارات العربية المتحدة | E46: تأمين تقليدي | F46: تأمين الممتلكات والمسؤوليات + تأمين الأشخاص وعمليات تكوين الأموال | G46: www.akic.ae | H46: 1997-01-27 | I46: Property and Liability Insurance + Insurance of Persons and Fund Accumulation Operations | J46: Traditional Insurance | K46: United Arab Emirate | L46: Public Joint Stock | M46: Al Khazna Insurance Company P.S.C | N46: 66
A47: 67 | B47: شركة الاتحاد للتأمين | C47: شركة مساهمة عامة | D47: الإمارات العربية المتحدة | E47: تأمين تقليدي | F47: تأمين الممتلكات والمسؤوليات + تأمين الأشخاص وعمليات تكوين الأموال | G47: www.unioninsurance.ae | H47: 1998-04-26 | I47: Property and Liability Insurance + Insurance of Persons and Fund Accumulation Operations | J47: Traditional Insurance | K47: United Arab Emirate | L47: Public Joint Stock | M47: Union Insurance | N47: 67
A48: 69 | B48: مجموعة الخليج للتأمين (الخليج) ش.م.ب مقفله | C48: فرع شركة خليجية | D48: البحرين | E48: تأمين تقليدي | F48: تأمين الممتلكات والمسؤوليات + تأمين الأشخاص وعمليات تكوين الأموال | G48: www.GIG-Gulf.com | H48: 2002-01-22 | I48: Property and Liability Insurance + Insurance of Persons and Fund Accumulation Operations | J48: Traditional Insurance | K48: Bahrain | L48: GCC Company Branch | M48: Gulf Insurance Group (Gulf) B.S.C Closed | N48: 69
A49: 70 | B49: شركة دبى الإسلامية للتأمين وإعادة التأمين (أمان) | C49: شركة مساهمة عامة | D49: الإمارات العربية المتحدة | E49: تأمين تكافلي | F49: تأمين الممتلكات والمسؤوليات + تأمين الأشخاص وعمليات تكوين الأموال | G49: www.aman.ae | H49: 2003-09-16 | I49: Property and Liability Insurance + Insurance of Persons and Fund Accumulation Operations | J49: Takaful Insurance | K49: United Arab Emirate | L49: Public Joint Stock | M49: Dubai Islamic Insurance & Reinsurance Co. (Aman) P.S.C | N49: 70
A50: 71 | B50: شركة أبوظبي الوطنية للتكافل - ش م ع - تكافل | C50: شركة مساهمة عامة | D50: الإمارات العربية المتحدة | E50: تأمين تكافلي | F50: تأمين الممتلكات والمسؤوليات + تأمين الأشخاص وعمليات تكوين الأموال | G50: www.takaful.ae | H50: 2003-11-23 | I50: Property and Liability Insurance + Insurance of Persons and Fund Accumulation Operations | J50: Takaful Insurance | K50: United Arab Emirate | L50: Public Joint Stock | M50: Abu Dhabi National Takaful Company - P S C - Takaful. | N50: 71
A51: 72 | B51: شركة التأمين على الحياة (العالمية) ش.م.ب (مقفلة) | C51: فرع شركة خليجية | D51: البحرين | E51: تأمين تقليدي | F51: تأمين الممتلكات والمسؤوليات + تأمين الأشخاص وعمليات تكوين الأموال | G51: www.licinternational.com | H51: 2005-10-25 | I51: Property and Liability Insurance + Insurance of Persons and Fund Accumulation Operations | J51: Traditional Insurance | K51: Bahrain | L51: GCC Company Branch | M51: Life Insurance Corporation Company (International) B.S.C(C) | N51: 72
A52: 73 | B52: الشركة الوطنية للضمان الصحي (ضمان | C52: شركة مساهمة عامة | D52: الإمارات العربية المتحدة | E52: تأمين تقليدي | F52: تأمين صحي | G52: www.damanhealth.ae | H52: 2006-06-12 | I52: Health Insurance | J52: Traditional Insurance | K52: United Arab Emirate | L52: Public Joint Stock | M52: The National Health Insurance Company (Daman) PJS | N52: 73
A53: 74 | B53: جنرال انشورانس كوربوريشن اوف انديا | C53: فرع شركة أجنبية | D53: الهند | E53: تأمين تقليدي | F53: تأمين الممتلكات والمسؤوليات | G53: www.gicdubai.com | H53: 2006-07-03 | I53: Property and Liability Insurance | J53: Traditional Insurance | K53: India | L53: Foreign Company Branch | M53: General Insurance Corporation Of India | N53: 74
A54: 76 | B54: فريندز بروفيدنت انترناشيونال ليمتد | C54: فرع شركة أجنبية | D54: المملكة المتحدة | E54: تأمين تقليدي | F54: تأمين الأشخاص وعمليات تكوين الأموال | G54: www.fpinternational.com | H54: 2007-04-18 | I54: Insurance of Persons and Fund Accumulation Operations | J54: Traditional Insurance | K54: United Kingdom | L54: Foreign Company Branch | M54: Friends Provident International Limited | N54: 76
A55: 77 | B55: الشركة الوطنية للتأمين على الحياة والعام ش م ع ع | C55: فرع شركة أجنبية | D55: عُمان | E55: تأمين تقليدي | F55: تأمين الأشخاص وعمليات تكوين الأموال | G55: www.nlicgulf.com | H55: 2007-05-13 | I55: Insurance of Persons and Fund Accumulation Operations | J55: Traditional Insurance | K55: Oman | L55: Foreign Company Branch | M55: National Life and General Insurance Company SAOG | N55: 77
A56: 78 | B56: شركة وطنية للتكافل العائلي ش م ع | C56: شركة مساهمة عامة | D56: الإمارات العربية المتحدة | E56: تأمين تكافلي | F56: تأمين الأشخاص وعمليات تكوين الأموال | G56: www.watania.ae | H56: 2008-05-15 | I56: Insurance of Persons and Fund Accumulation Operations | J56: Takaful Insurance | K56: United Arab Emirate | L56: Public Joint Stock | M56: Watania Takaful Family | N56: 78
A57: 79 | B57: أميريكان هوم أشورانس كومباني (فرع دبي | C57: فرع شركة أجنبية | D57: الولايات المتحدة الامريكية | E57: تأمين تقليدي | F57: تأمين الممتلكات والمسؤوليات | G57: www.aig.com | H57: 2008-07-14 | I57: Property and Liability Insurance | J57: Traditional Insurance | K57: United States of America | L57: Foreign Company Branch | M57: American Home Insurance Company (Dubai Br.) | N57: 79
A58: 81 | B58: تشب تيمبست لايف ري انشورانس ليمتد | C58: فرع شركة أجنبية | D58: المملكة المتحدة | E58: تأمين تقليدي | F58: تأمين الأشخاص وعمليات تكوين الأموال | G58: www.chubb.com | H58: 2008-08-24 | I58: Insurance of Persons and Fund Accumulation Operations | J58: Traditional Insurance | K58: United Kingdom | L58: Foreign Company Branch | M58: CHUBB Tempest Life ReInsurance Ltd | N58: 81
A59: 82 | B59: شركة ميثاق للتأمين التكافلي | C59: شركة مساهمة عامة | D59: الإمارات العربية المتحدة | E59: تأمين تكافلي | F59: تأمين الممتلكات والمسؤوليات | G59: www.methaq.ae | H59: 2008-09-10 | I59: Property and Liability Insurance | J59: Takaful Insurance | K59: United Arab Emirate | L59: Public Joint Stock | M59: Methaq Takaful Insurance | N59: 82
A60: 83 | B60: شركة حياه للتأمين | C60: شركة مساهمة عامة | D60: الإمارات العربية المتحدة | E60: تأمين تقليدي | F60: تأمين الأشخاص وعمليات تكوين الأموال | G60: www.hayah.com | H60: 2008-09-16 | I60: Insurance of Persons and Fund Accumulation Operations | J60: Traditional Insurance | K60: United Arab Emirate | L60: Public Joint Stock | M60: HAYAH Insurance Company | N60: 83
A61: 84 | B61: ياس تكافل | C61: شركة مساهمة عامة | D61: الإمارات العربية المتحدة | E61: تأمين تكافلي | F61: تأمين الممتلكات والمسؤوليات + تأمين الأشخاص وعمليات تكوين الأموال | G61: www.yastakaful.ae | H61: 2009-01-05 | I61: Property and Liability Insurance + Insurance of Persons and Fund Accumulation Operations | J61: Takaful Insurance | K61: United Arab Emirate | L61: Public Joint Stock | M61: YAS TAKAFUL | N61: 84
A62: 85 | B62: شركة وطنية للتكافل العام مساهمة عامة | C62: شركة مساهمة عامة | D62: الإمارات العربية المتحدة | E62: تأمين تكافلي | F62: تأمين الممتلكات والمسؤوليات + تأمين الأشخاص وعمليات تكوين الأموال | G62: www.watania.ae | H62: 2009-01-06 | I62: Property and Liability Insurance + Insurance of Persons and Fund Accumulation Operations | J62: Takaful Insurance | K62: United Arab Emirate | L62: Public Joint Stock | M62: Watania Takaful General PJSC | N62: 85
A63: 86 | B63: تكافل الامارات - تأمين (ش.م.ع) | C63: شركة مساهمة عامة | D63: الإمارات العربية المتحدة | E63: تأمين تكافلي | F63: تأمين الأشخاص وعمليات تكوين الأموال | G63: www.takafulemarat.com | H63: 2008-10-14 | I63: Insurance of Persons and Fund Accumulation Operations | J63: Takaful Insurance | K63: United Arab Emirate | L63: Public Joint Stock | M63: Takaful Emarat - Insurance PSC | N63: 86
A64: 87 | B64: شركة الإمارات لتأمين ائتمان الصادرات | C64: شركة مساهمة عامة | D64: الإمارات العربية المتحدة | E64: تأمين تقليدي | F64: تأمين الممتلكات والمسؤوليات | G64: www.ecie.ae | H64: 2009-06-01 | I64: Property and Liability Insurance | J64: Traditional Insurance | K64: United Arab Emirate | L64: Public Joint Stock | M64: Export Credit Insurance Company of The Emirates | N64: 87
A65: 89 | B65: دار التأمين ش.م.ع | C65: شركة مساهمة عامة | D65: الإمارات العربية المتحدة | E65: تأمين تقليدي | F65: تأمين الممتلكات والمسؤوليات | G65: www.insurancehouse.ae | H65: 2011-05-02 | I65: Property and Liability Insurance | J65: Traditional Insurance | K65: United Arab Emirate | L65: Public Joint Stock | M65: Insurance House | N65: 89
A66: 91 | B66: شركة المتوسط والخليج للتأمين وإعادة التأمين "ميد غلف" ش م ب مقفلة | C66: فرع شركة أجنبية | D66: البحرين | E66: تأمين تقليدي | F66: تأمين صحي | G66: www.medgulf.ae | H66: 2015-11-30 | I66: health insurance | J66: Traditional Insurance | K66: Bahrain | L66: Foreign Company Branch | M66: The Mediterranean & Gulf Insurance & Reinsurance Company BSC (c) - Medgulf | N66: 91
A67: 92 | B67: شركة اورينت تكافل مساهمة عامة | C67: شركة مساهمة عامة | D67: الإمارات العربية المتحدة | E67: تأمين تكافلي | F67: تأمين الممتلكات والمسؤوليات | G67: www.orientunbtakaful.ae | H67: 2017-07-16 | I67: Property and Liability Insurance | J67: Takaful Insurance | K67: United Arab Emirate | L67: Public Joint Stock | M67: Orient Takaful(PJSC) | N67: 92

Sheet Glossary
A3: قائمة مصطلحات التأمين المُستخدمة في التقرير
A4: Glossary of Insurance Terms Used in The Report
A8: المُصطلح | B8: التعريف | C8: Definition | D8: Term
